Workbook

Sheet START

Sheet Instructions
D2: 2020
X4: Yes
X5: No
W7: Type of Entities Range:
X8: Parent Municipality
X9: Consolidated Information
W17: MTREF Range: | X17: 2008
X18: 2009
X19: 2010
X20: 2011
X21: 2012
X22: 2013
X23: 2014
X24: 2015
X25: 2016
X26: 2017
X27: 2018
X28: 2019
X29: 2020
X30: 2021
X31: 2022
W33: MTREF Linked: | X33: 12
W34: MTREF: | X34: =INDEX(X17:X31,X33,1) -> 2019
W36: Fin Year: | X36: =MTREF&"/"&RIGHT(MTREF,2)+1 -> 2019/20

Sheet Template names (hidden)
A1: Common sheet headings
A2: Head1 | B2: =HLOOKUP(MTREF,Headings,2) -> 2017/18 | C2: Prior year -1
A3: Head1A | B3: =HLOOKUP(MTREF,Headings,3) -> 2016/17 | C3: Prior year -2
A4: Head1B | B4: =HLOOKUP(MTREF,Headings,4) -> 2015/16 | C4: Prior year -3
A5: Head2 | B5: =HLOOKUP(MTREF,Headings,5) -> Current Year 2018/19 | C5: Year in which budget is being prepared
A6: Head2A | B6: =HLOOKUP(MTREF,Headings,6) -> 2018/19 | C6: Year in which budget is being prepared
A7: Head3 | B7: =HLOOKUP(MTREF,Headings,7) -> 2019/20 Medium Term Revenue & Expenditure Framework | C7: MTREF name
A8: Head4 | B8: LTFS | C8: Long term financial strategy
A9: Head5 | B9: Audited Outcome
A10: Head5A | B10: Outcome
A11: Head5B | B11: Pre-audit outcome
A12: Head6 | B12: Original Budget
A13: Head7 | B13: Adjusted Budget
A14: Head8 | B14: Full Year Forecast
A15: Head9 | B15: =HLOOKUP(MTREF,Headings,8) -> Budget Year 2019/20 | C15: 1st year of MTREF | D15: Year1
A16: Head10 | B16: =HLOOKUP(MTREF,Headings,9) -> Budget Year +1 2020/21 | C16: 2nd year of MTREF | D16: Year2
A17: Head11 | B17: =HLOOKUP(MTREF,Headings,10) -> Budget Year +2 2021/22 | C17: 3rd year of MTREF | D17: Year3
A18: Head12 | B18: =HLOOKUP(MTREF,Headings,11) -> Forecast 2022/23 | C18: 1st yr of long term forecast | D18: Year4
A19: Head13 | B19: =HLOOKUP(MTREF,Headings,12) -> Forecast 2023/24 | C19: Next yr of long term forecast | D19: Year5
A20: Head14 | B20: =HLOOKUP(MTREF,Headings,13) -> Forecast 2024/25 | C20: Next yr of long term forecast | D20: Year6
A21: Head15 | B21: =HLOOKUP(MTREF,Headings,14) -> Forecast 2025/26 | C21: Next yr of long term forecast | D21: Year7
A22: Head16 | B22: =HLOOKUP(MTREF,Headings,15) -> Forecast 2026/27 | C22: Next yr of long term forecast | D22: Year8
A23: Head17 | B23: =HLOOKUP(MTREF,Headings,16) -> Forecast 2027/28 | C23: Next yr of long term forecast | D23: Year9
A24: Head18 | B24: =HLOOKUP(MTREF,Headings,17) -> Forecast 2028/29 | C24: Next yr of long term forecast | D24: Year10
A25: Head19 | B25: =HLOOKUP(MTREF,Headings,18) -> Forecast 2029/30 | C25: Next yr of long term forecast | D25: Year11
A26: Head20 | B26: =HLOOKUP(MTREF,Headings,19) -> Forecast 2030/31 | C26: Next yr of long term forecast | D26: Year12
A27: Head21 | B27: =HLOOKUP(MTREF,Headings,20) -> Forecast 2031/32 | C27: Next yr of long term forecast | D27: Year13
A28: Head22 | B28: =HLOOKUP(MTREF,Headings,21) -> Forecast 2032/33 | C28: Next yr of long term forecast | D28: Year14
A29: Head23 | B29: =HLOOKUP(MTREF,Headings,22) -> Forecast 2033/34 | C29: Next yr of long term forecast | D29: Year15
A30: Head24 | B30: Description
A31: Head25
A32: Head26 | B32: Vote Description
A33: Head27 | B33: Ref
A34: Head27a | B34: References
A35: Head28 | B35: Surplus/(Deficit) for the year | D35: Result
A36: Head29 | B36: =HLOOKUP(MTREF,Headings,23) -> Annual target 2019/20
A37: Head30 | B37: =HLOOKUP(MTREF,Headings,24) -> Revised target 2019/20
A38: Head31 | B38: Quarter ended 30 September
A39: Head32 | B39: Quarter ended 31 December
A40: Head33 | B40: Quarter ended 31 March
A41: Head34 | B41: Quarter ended 30 June
A42: Head35 | B42: Variance explanation
A43: Head36 | B43: YTD Actual 31 Dec
A44: Head37 | B44: YTD Budget 31 Dec
A45: Head38 | B45: Monthly actual
A46: Head39 | B46: YTD actual
A47: Head40 | B47: YTD budget
A48: Head41 | B48: YTD variance
A49: Head42 | B49: Surplus/ (Deficit) for the yr/period
A50: Head43 | B50: =Head3&" Summary" -> 2019/20 Medium Term Revenue & Expenditure Framework Summary
A51: Head44 | B51: 2001 Census
A52: Head45 | B52: 2011 Census
A53: Head46 | B53: - Adjustments Budget - January 2007
A54: Head47 | B54: Previous target year to complete
A55: Head48 | B55: Present value
A56: Head49
A57: Head50 | B57: Other Adjusts.
A58: Head51 | B58: Accum. Funds
A59: Head52 | B59: Multi-year capital
A60: Head53 | B60: Unfore. Unavoid.
A61: Head54 | B61: Prior Adjusted
A62: Head55 | B62: Nat. or Prov. Govt
A63: Head56 | B63: Total Adjusts.
A64: SFPerf1 | B64: Budgeted Financial Performance
A65: SFPerf2 | B65: Forecast Financial Performance
A66: SFPos1 | B66: Budgeted Financial Position
A67: SFPos2 | B67: Forecast Financial Position
A68: Cash1 | B68: Budget Cash Flow
A69: Cash2 | B69: Forecast Cash Flow
A70: RandM | B70: Expenditure includes repairs & maintenance of R'000
A71: Depart1 | B71: Department 1 - | D71: DEP1
A72: Depart2 | B72: Department 2 - | D72: DEP2
A73: Depart3 | B73: Department 3 - | D73: DEP3
A74: Depart4 | B74: Department 4 - | D74: DEP4
A75: Depart5 | B75: Department 5 - | D75: DEP5
A76: Depart6 | B76: Department 6 - | D76: DEP6
A77: Depart7 | B77: Department 7 - | D77: DEP7
A78: Depart8 | B78: Department 8 - | D78: DEP8
A79: Depart9 | B79: Department 9 - | D79: DEP9
A80: Depart10 | B80: Department 10 - | D80: DEP10
A81: Depart11 | B81: Department 11 - | D81: DEP11
A82: Depart12 | B82: Department 12 - | D82: DEP12
A83: Depart13 | B83: Department 13 - | D83: DEP13
A84: Depart14 | B84: Department 14 - | D84: DEP14
A87: Base year of forecast column selection names
A88: Choose | B88: ACT
B89: APP
B90: ADJ
A92: Standard nomenclature
A93: Muni | B93: ='Lookup and lists'!B28 -> TSH City Of Tshwane
A94: Municipal Entities | B94: 1 | C94: Type of report: | D94: 2
A95: =IF((MuniEntities=1)*(MuniType=2),"YES","NO") -> YES | B95: Does this municipality have entities (consolidated budget and entity budgets required)? YES/NO
A96: Entity 1 | B96: (Pty) Ltd Example 1 - Municipal entity - | D96: Ent1
A97: Entity 2 | B97: (Pty) Ltd Example 2 - Municipal entity - | D97: Ent2
A98: Entity 3 | B98: Municipal Entity Example 3 | D98: Ent3
A99: Budget approval tables | C99: Chart x-ref | D99: Sch/Tab/Ch | E99: Alternative for municipalities without entities | F99: Alternative for municipalities without entities
B100: =IF(Consolques="YES",E100,F100) -> Table A1 Consolidated Budget Summary | D100: Table A1 | E100: =D100&"Consolidated Budget Summary" -> Table A1 Consolidated Budget Summary | F100: =D100&"Budget Summary" -> Table A1 Budget Summary
B101: Table A2 Consolidated Budgeted Financial Performance (revenue and expenditure by functional classification) | C101: Charts 5, 6 | D101: Table A2 | E101: =D101&"Consolidated Budgeted Financial Performance (revenue and expenditure by functional classification)" -> Table A2 Consolidated Budgeted Financial Performance (revenue and expenditure by functional classification) | F101: =D101&"Budgeted Financial Performance (revenue and expenditure by functional classification)" -> Table A2 Budgeted Financial Performance (revenue and expenditure by functional classification)
B102: Table A3 Consolidated Budgeted Financial Performance (revenue and expenditure by municipal vote) | D102: Table A3 | E102: =D102&"Consolidated Budgeted Financial Performance (revenue and expenditure by municipal vote)" -> Table A3 Consolidated Budgeted Financial Performance (revenue and expenditure by municipal vote) | F102: =D102&"Budgeted Financial Performance (revenue and expenditure by municipal vote)" -> Table A3 Budgeted Financial Performance (revenue and expenditure by municipal vote)
B103: Table A4 Consolidated Budgeted Financial Performance (revenue and expenditure) | C103: Charts 1, 2, 3, 4 | D103: Table A4 | E103: =D103&"Consolidated Budgeted Financial Performance (revenue and expenditure)" -> Table A4 Consolidated Budgeted Financial Performance (revenue and expenditure) | F103: =D103&"Budgeted Financial Performance (revenue and expenditure)" -> Table A4 Budgeted Financial Performance (revenue and expenditure)
B104: Table A5 Consolidated Budgeted Capital Expenditure by vote, functional classification and funding | C104: Charts 7, 8, 9, 10, 20 | D104: Table A5 | E104: =D104&"Consolidated Budgeted Capital Expenditure by vote, functional classification and funding" -> Table A5 Consolidated Budgeted Capital Expenditure by vote, functional classification and funding | F104: =D104&"Budgeted Capital Expenditure by vote, functional classification and funding" -> Table A5 Budgeted Capital Expenditure by vote, functional classification and funding
B105: Table A6 Consolidated Budgeted Financial Position | D105: Table A6 | E105: =D105&"Consolidated Budgeted Financial Position" -> Table A6 Consolidated Budgeted Financial Position | F105: =D105&"Budgeted Financial Position" -> Table A6 Budgeted Financial Position
B106: Table A7 Consolidated Budgeted Cash Flows | D106: Table A7 | E106: =D106&"Consolidated Budgeted Cash Flows" -> Table A7 Consolidated Budgeted Cash Flows | F106: =D106&"Budgeted Cash Flows" -> Table A7 Budgeted Cash Flows
B107: Table A8 Consolidated Cash backed reserves/accumulated surplus reconciliation | D107: Table A8 | E107: =D107&"Consolidated Cash backed reserves/accumulated surplus reconciliation" -> Table A8 Consolidated Cash backed reserves/accumulated surplus reconciliation | F107: =D107&"Cash backed reserves/accumulated surplus reconciliation" -> Table A8 Cash backed reserves/accumulated surplus reconciliation
B108: Table A9 Consolidated Asset Management | D108: Table A9 | E108: =D108&"Consolidated Asset Management" -> Table A9 Consolidated Asset Management | F108: =D108&"Asset Management" -> Table A9 Asset Management
B109: Table A10 Consolidated basic service delivery measurement | D109: Table A10 | E109: =D109&"Consolidated basic service delivery measurement" -> Table A10 Consolidated basic service delivery measurement | F109: =D109&"Basic service delivery measurement" -> Table A10 Basic service delivery measurement
A110: Supportinging Tables to the Budget Approval Tables | C110: =$C$99 -> Chart x-ref | D110: =$D$99 -> Sch/Tab/Ch
A111: Supporting Table SA1 | B111: =A111&" Supportinging detail to 'Budgeted Financial Performance'" -> Supporting Table SA1 Supportinging detail to 'Budgeted Financial Performance'
A112: Supporting Table SA2 | B112: =IF(Consolques="YES",E112,F112) -> Supporting Table SA2 Consolidated Matrix Financial Performance Budget (revenue source/expenditure type & dept.) | E112: =A112&"Consolidated Matrix Financial Performance Budget (revenue source/expenditure type & dept.)" -> Supporting Table SA2 Consolidated Matrix Financial Performance Budget (revenue source/expenditure type & dept.) | F112: =A112&"Matrix Financial Performance Budget (revenue source/expenditure type and dept.)" -> Supporting Table SA2 Matrix Financial Performance Budget (revenue source/expenditure type and dept.)
A113: Supporting Table SA3 | B113: =A113&"Supportinging detail to 'Budgeted Financial Position'" -> Supporting Table SA3 Supportinging detail to 'Budgeted Financial Position'
A114: Supporting Table SA4 | B114: =A114&"Reconciliation of IDP strategic objectives and budget (revenue)" -> Supporting Table SA4 Reconciliation of IDP strategic objectives and budget (revenue) | C114: Chart 11
A115: Supporting Table SA5 | B115: =A115&"Reconciliation of IDP strategic objectives and budget (operating expenditure)" -> Supporting Table SA5 Reconciliation of IDP strategic objectives and budget (operating expenditure) | C115: Chart 12
A116: Supporting Table SA6 | B116: =A116&"Reconciliation of IDP strategic objectives and budget (capital expenditure)" -> Supporting Table SA6 Reconciliation of IDP strategic objectives and budget (capital expenditure) | C116: Chart 13
A117: Supporting Table SA7 | B117: =A117&" Measureable performance objectives" -> Supporting Table SA7 Measureable performance objectives
A118: Supporting Table SA8 | B118: =A118&" Performance indicators and benchmarks" -> Supporting Table SA8 Performance indicators and benchmarks | C118: Chts 15-19
A119: Supporting Table SA9 | B119: =A119&" Social, economic and demographic statistics and assumptions" -> Supporting Table SA9 Social, economic and demographic statistics and assumptions
A120: Supporting Table SA10 | B120: =A120&" Funding measurement" -> Supporting Table SA10 Funding measurement | C120: Chart 14
A121: Supporting Table SA11 | B121: =A121&" Property rates summary" -> Supporting Table SA11 Property rates summary
A122: Supporting Table SA12a | B122: =A122&" Property rates by category (current year)" -> Supporting Table SA12a Property rates by category (current year)
A123: Supporting Table SA12b | B123: =A123&" Property rates by category (budget year)" -> Supporting Table SA12b Property rates by category (budget year)
A124: Supporting Table SA13a | B124: =A124&" Service Tariffs by category" -> Supporting Table SA13a Service Tariffs by category
A125: Supporting Table SA13b | B125: =A125&" Service Tariffs by category - explanatory" -> Supporting Table SA13b Service Tariffs by category - explanatory
A126: Supporting Table SA14 | B126: =A126&" Household bills" -> Supporting Table SA14 Household bills
A127: Supporting Table SA15 | B127: =A127&" Investment particulars by type" -> Supporting Table SA15 Investment particulars by type
A128: Supporting Table SA16 | B128: =A128&" Investment particulars by maturity" -> Supporting Table SA16 Investment particulars by maturity
A129: Supporting Table SA17 | B129: =A129&" Borrowing" -> Supporting Table SA17 Borrowing
A130: Supporting Table SA18 | B130: =A130&" Transfers and grant receipts" -> Supporting Table SA18 Transfers and grant receipts
A131: Supporting Table SA19 | B131: =A131&" Expenditure on transfers and grant programme" -> Supporting Table SA19 Expenditure on transfers and grant programme
A132: Supporting Table SA20 | B132: =A132&" Reconciliation of transfers, grant receipts and unspent funds" -> Supporting Table SA20 Reconciliation of transfers, grant receipts and unspent funds
A133: Supporting Table SA21 | B133: =A133&" Transfers and grants made by the municipality" -> Supporting Table SA21 Transfers and grants made by the municipality
A134: Supporting Table SA22 | B134: =A134&" Summary councillor and staff benefits" -> Supporting Table SA22 Summary councillor and staff benefits
A135: Supporting Table SA23 | B135: =A135&" Salaries, allowances & benefits (political office bearers/councillors/senior managers)" -> Supporting Table SA23 Salaries, allowances & benefits (political office bearers/councillors/senior managers)
A136: Supporting Table SA24 | B136: =A136&" Summary of personnel numbers" -> Supporting Table SA24 Summary of personnel numbers
A137: Supporting Table SA25 | B137: =IF(Consolques="YES",E137,F137) -> Supporting Table SA25 Consolidated budgeted monthly revenue and expenditure | E137: =A137&" Consolidated budgeted monthly revenue and expenditure" -> Supporting Table SA25 Consolidated budgeted monthly revenue and expenditure | F137: =A137&" Budgeted monthly revenue and expenditure" -> Supporting Table SA25 Budgeted monthly revenue and expenditure
A138: Supporting Table SA26 | B138: Supporting Table SA26 Consolidated budgeted monthly revenue and expenditure (municipal vote) | E138: =A138&" Consolidated budgeted monthly revenue and expenditure (municipal vote)" -> Supporting Table SA26 Consolidated budgeted monthly revenue and expenditure (municipal vote) | F138: =A138&" Budgeted monthly revenue and expenditure (municipal vote)" -> Supporting Table SA26 Budgeted monthly revenue and expenditure (municipal vote)
A139: Supporting Table SA27 | B139: Supporting Table SA27 Consolidated budgeted monthly revenue and expenditure (functional classification) | E139: =A139&" Consolidated budgeted monthly revenue and expenditure (functional classification)" -> Supporting Table SA27 Consolidated budgeted monthly revenue and expenditure (functional classification) | F139: =A139&" Budgeted monthly revenue and expenditure (functional classification)" -> Supporting Table SA27 Budgeted monthly revenue and expenditure (functional classification)
A140: Supporting Table SA28 | B140: Supporting Table SA28 Consolidated budgeted monthly capital expenditure (municipal vote) | E140: =A140&" Consolidated budgeted monthly capital expenditure (municipal vote)" -> Supporting Table SA28 Consolidated budgeted monthly capital expenditure (municipal vote) | F140: =A140&" Budgeted monthly capital expenditure (municipal vote)" -> Supporting Table SA28 Budgeted monthly capital expenditure (municipal vote)
A141: Supporting Table SA29 | B141: Supporting Table SA29 Consolidated budgeted monthly capital expenditure (functional classification) | E141: =A141&" Consolidated budgeted monthly capital expenditure (functional classification)" -> Supporting Table SA29 Consolidated budgeted monthly capital expenditure (functional classification) | F141: =A141&" Budgeted monthly capital expenditure (functional classification)" -> Supporting Table SA29 Budgeted monthly capital expenditure (functional classification)
A142: Supporting Table SA30 | B142: Supporting Table SA30 Consolidated budgeted monthly cash flow | E142: =A142&" Consolidated budgeted monthly cash flow" -> Supporting Table SA30 Consolidated budgeted monthly cash flow | F142: =A142&" Budgeted monthly cash flow" -> Supporting Table SA30 Budgeted monthly cash flow
A143: Supporting Table SA31 | B143: Supporting Table SA31 Aggregated entity budget | E143: =A143&" Aggregated entity budget" -> Supporting Table SA31 Aggregated entity budget | F143: NOT REQUIRED - municipality does not have entities
A144: Supporting Table SA32 | B144: =A144&" List of external mechanisms" -> Supporting Table SA32 List of external mechanisms
A145: Supporting Table SA33 | B145: =A145&" Contracts having future budgetary implications" -> Supporting Table SA33 Contracts having future budgetary implications
A146: Supporting Table SA34a | B146: =IF(Consolques="YES",E146,F146) -> Supporting Table SA34a Consolidated capital expenditure on new assets by asset class | E146: =A146&" Consolidated capital expenditure on new assets by asset class" -> Supporting Table SA34a Consolidated capital expenditure on new assets by asset class | F146: =A146&" Capital expenditure on new assets by asset class" -> Supporting Table SA34a Capital expenditure on new assets by asset class
A147: Supporting Table SA34b | B147: Supporting Table SA34b Consolidated capital expenditure on the renewal of existing assets by asset class | E147: =A147&" Consolidated capital expenditure on the renewal of existing assets by asset class" -> Supporting Table SA34b Consolidated capital expenditure on the renewal of existing assets by asset class | F147: =A147&" Capital expenditure on the renewal of existing assets by asset class" -> Supporting Table SA34b Capital expenditure on the renewal of existing assets by asset class
A148: Supporting Table SA34c | B148: Supporting Table SA34c Consolidated repairs and maintenance by asset class | E148: =A148&" Consolidated repairs and maintenance by asset class" -> Supporting Table SA34c Consolidated repairs and maintenance by asset class | F148: =A148&" Repairs and maintenance expenditure by asset class" -> Supporting Table SA34c Repairs and maintenance expenditure by asset class
A149: Supporting Table SA34d | B149: =IF(Consolques="YES",E149,F149) -> Supporting Table SA34d Consolidated Depreciation by asset class | E149: =A149&" Consolidated Depreciation by asset class" -> Supporting Table SA34d Consolidated Depreciation by asset class | F149: =A149&" Depreciation by asset class" -> Supporting Table SA34d Depreciation by asset class
A150: Supporting Table SA34e | B150: =IF(Consolques="YES",E150,F150) -> Supporting Table SA34e Consolidated capital expenditure on the upgrading of existing assets by asset class | E150: =A150&" Consolidated capital expenditure on the upgrading of existing assets by asset class" -> Supporting Table SA34e Consolidated capital expenditure on the upgrading of existing assets by asset class | F150: =A150&" Capital expenditure on the upgrading of existing assets by asset class" -> Supporting Table SA34e Capital expenditure on the upgrading of existing assets by asset class
A151: Supporting Table SA35 | B151: Supporting Table SA35 Consolidated future financial implications of the capital budget | E151: =A151&" Consolidated future financial implications of the capital budget" -> Supporting Table SA35 Consolidated future financial implications of the capital budget | F151: =A151& " Future financial implications of the capital budget" -> Supporting Table SA35 Future financial implications of the capital budget
A152: Supporting Table SA36 | B152: Supporting Table SA36 Consolidated detailed capital budget | E152: =A152&" Consolidated detailed capital budget" -> Supporting Table SA36 Consolidated detailed capital budget | F152: =A152& " Detailed capital budget" -> Supporting Table SA36 Detailed capital budget
A153: Supporting Table SA37 | B153: Supporting Table SA37 Consolidated projects delayed from previous financial year/s | E153: =A153&" Consolidated projects delayed from previous financial year/s" -> Supporting Table SA37 Consolidated projects delayed from previous financial year/s | F153: =A153& " Projects delayed from previous financial year/s" -> Supporting Table SA37 Projects delayed from previous financial year/s
A154: Supporting Table SA38 | B154: =IF(Consolques="YES",E154,F154) -> Supporting Table SA38 Consolidated detailed operational projects | E154: =A154&" Consolidated detailed operational projects" -> Supporting Table SA38 Consolidated detailed operational projects | F154: =A154& " Detailed operational projects" -> Supporting Table SA38 Detailed operational projects
A156: Budget Charts | B156: Charts | C156: Cross reference
A157: Chart A1 | B157: =A157&"Revenue by Municipal Vote" -> Chart A1 Revenue by Municipal Vote
A158: Chart A2 | B158: =A158&"Expenditure by Municipal Vote" -> Chart A2 Expenditure by Municipal Vote
A159: Chart A3 | B159: =A159&"Revenue by Standard Classification" -> Chart A3 Revenue by Standard Classification | C159: A2
A160: Chart A4 | B160: =A160&"Expenditure by Standard Classification" -> Chart A4 Expenditure by Standard Classification | C160: A2
A161: Chart A5 | B161: =A161&"Revenue by Major Source (refer 'Minor' source for 'Other Revenue' allocation" -> Chart A5 Revenue by Major Source (refer 'Minor' source for 'Other Revenue' allocation | C161: A3
A162: Chart A6 | B162: =A162&"Revenue by Minor Source (Other)" -> Chart A6 Revenue by Minor Source (Other) | C162: A3
A163: Chart A7 | B163: =A163&"Expenditure by Major Type" -> Chart A7 Expenditure by Major Type | C163: A3
A164: Chart A8 | B164: =A164&"Expenditure by Minor Type (Other)" -> Chart A8 Expenditure by Minor Type (Other) | C164: A3
A165: Chart A9 | B165: =A165&"Capital Expenditure by Municipal Vote/Appropriation (Major)" -> Chart A9 Capital Expenditure by Municipal Vote/Appropriation (Major) | C165: A5
A166: Chart A10 | B166: =A166&"Capital Expenditure by Municipal Vote/Appropriation (Minor)" -> Chart A10 Capital Expenditure by Municipal Vote/Appropriation (Minor) | C166: A5
A167: Chart A11 | B167: =A166&"Capital Expenditure by Standard Classification" -> Chart A10 Capital Expenditure by Standard Classification | C167: A5
A168: Chart A12 | B168: =A168&"Capital expenditure performance trend" -> Chart A12 Capital expenditure performance trend | C168: A5
A169: Chart A13 | B169: =A169&"Capital funding by Source" -> Chart A13 Capital funding by Source | C169: A5
A170: Chart A14 | B170: =A170&"Cash flow trend" -> Chart A14 Cash flow trend | C170: A7
A171: Chart A15 | B171: =A171&"IDP Strategic Objective - Revenue" -> Chart A15 IDP Strategic Objective - Revenue | C171: Table A4
A172: Chart A16 | B172: =A172&"IDP Strategic Objective - Expenditure" -> Chart A16 IDP Strategic Objective - Expenditure | C172: Table A5
A173: Chart A17 | B173: =A173&"IDP Strategic Objective - Capital Expenditure" -> Chart A17 IDP Strategic Objective - Capital Expenditure | C173: Table A6
A174: Chart A18 | B174: =A174&"Debt (borrowing to Total Revenue)" -> Chart A18 Debt (borrowing to Total Revenue) | C174: Table A8
A175: Chart A19 | B175: =A175&"Debtors' trend analysis" -> Chart A19 Debtors' trend analysis | C175: Table A8
A176: Chart A20 | B176: =A176&"Distribution losses" -> Chart A20 Distribution losses | C176: Table A8
A177: Chart A21 | B177: =A177&"Borrowed funding of capital expenditure" -> Chart A21 Borrowed funding of capital expenditure | C177: Table A8
A178: Chart A22 | B178: =A178&"Expenditure analysis (% of Revenue)" -> Chart A22 Expenditure analysis (% of Revenue) | C178: Table A8
A179: Chart A23 | B179: =A179&"Increases in service charges" -> Chart A23 Increases in service charges | C179: Table A10

Sheet Lookup and lists (hidden)
A1: Description | B1: 2007 | C1: 2008 | D1: 2009 | E1: 2010 | F1: 2011 | G1: 2012 | H1: 2013 | I1: 2014 | J1: 2015 | K1: 2016 | L1: 2017 | M1: 2018 | N1: 2019 | O1: 2020 | Q1: Lists | Y1: Grants: | Z1: National - opex | AA1: Provincial - opex | AB1: National - capex | AC1: Provincial - capex
A2: ='Template names'!C2 -> Prior year -1 | B2: 2005/06 | C2: 2006/07 | D2: 2007/08 | E2: =E1-2&"/"&RIGHT(E1,2)-1 -> 2008/9 | F2: 2009/10 | G2: 2010/11 | H2: 2011/12 | I2: 2012/13 | J2: 2013/14 | K2: 2014/15 | L2: 2015/16 | M2: 2016/17 | N2: 2017/18 | O2: 2018/19 | Q2: Yes | R2: <1 | S2: <4 | T2: Market | U2: Land & impr. | V2: Yes | W2: Uniform | X2: Yrs | Z2: Local Government Equitable Share | AA2: Health subsidy | AB2: Municipal Infrastructure Grant (MIG) | AC2: Agriculture
A3: ='Template names'!C3 -> Prior year -2 | B3: 2004/05 | C3: 2005/06 | D3: 2006/07 | E3: =E1-3&"/"&RIGHT(E1,2)-2 -> 2007/8 | F3: 2008/9 | G3: 2009/10 | H3: 2010/11 | I3: 2011/12 | J3: 2012/13 | K3: 2013/14 | L3: 2014/15 | M3: 2015/16 | N3: 2016/17 | O3: 2017/18 | Q3: No | R3: 1 | S3: 4 | T3: Dep.Replace | U3: Land only | V3: No | W3: Variable | X3: Mths | Z3: RSC Levy Replacement | AA3: Ambulance subsidy | AB3: Public Transport and Systems | AC3: Education
A4: ='Template names'!C4 -> Prior year -3 | B4: 2003/04 | C4: 2004/05 | D4: 2005/06 | E4: =E1-4&"/"&RIGHT(E1,2)-3 -> 2006/7 | F4: 2007/8 | G4: 2008/9 | H4: 2009/10 | I4: 2010/11 | J4: 2011/12 | K4: 2012/13 | L4: 2013/14 | M4: 2014/15 | N4: 2015/16 | O4: 2016/17 | R4: 2 | S4: 5 | T4: Other | U4: Other | Z4: Finance Management | AA4: Housing | AB4: Rural Transport Services and Infrastructure | AC4: Health
A5: ='Template names'!C5 -> Year in which budget is being prepared | B5: Current Year 2006/07 | C5: Current Year 2007/08 | D5: Current Year 2008/09 | E5: ="Current Year "& E1-1&"/"&RIGHT(E1,2) -> Current Year 2009/10 | F5: Current Year 2010/11 | G5: Current Year 2011/12 | H5: Current Year 2012/13 | I5: Current Year 2013/14 | J5: Current Year 2014/15 | K5: Current Year 2015/16 | L5: Current Year 2016/17 | M5: Current Year 2017/18 | N5: Current Year 2018/19 | O5: Current Year 2019/20 | R5: 3 | S5: 6 | Z5: Municipal Systems Improvement | AA5: Sport and Recreation | AB5: Regional Bulk Infrastructure | AC5: Housing and Local Government
A6: ='Template names'!C6 -> Year in which budget is being prepared | B6: 2006/07 | C6: 2007/08 | D6: 2008/09 | E6: =E1-1&"/"&RIGHT(E1,2) -> 2009/10 | F6: 2010/11 | G6: 2011/12 | H6: 2012/13 | I6: 2013/14 | J6: 2014/15 | K6: 2015/16 | L6: 2016/17 | M6: 2017/18 | N6: 2018/19 | O6: 2019/20 | R6: 4 | S6: 6-10 | Z6: Water Services Operating Subsidy | AB6: Rural Households Infrastructure | AC6: Other Departments
A7: ='Template names'!C7 -> MTREF name | B7: 2007/08 Medium Term Revenue & Expenditure Framework | C7: 2008/09 Medium Term Revenue & Expenditure Framework | D7: 2009/10 Medium Term Revenue & Expenditure Framework | E7: =E1&"/"&RIGHT(E1,2)+1&" Medium Term Revenue & Expenditure Framework" -> 2010/11 Medium Term Revenue & Expenditure Framework | F7: 2011/12 Medium Term Revenue & Expenditure Framework | G7: 2012/13 Medium Term Revenue & Expenditure Framework | H7: 2013/14 Medium Term Revenue & Expenditure Framework | I7: 2014/15 Medium Term Revenue & Expenditure Framework | J7: 2015/16 Medium Term Revenue & Expenditure Framework | K7: 2016/17 Medium Term Revenue & Expenditure Framework | L7: 2017/18 Medium Term Revenue & Expenditure Framework | M7: 2018/19 Medium Term Revenue & Expenditure Framework | N7: 2019/20 Medium Term Revenue & Expenditure Framework | O7: 2020/21 Medium Term Revenue & Expenditure Framework | R7: 5 | S7: >10 | Z7: Energy Efficiency and Demand Management | AB7: Neighbourhood Development Partnership | AC7: Public Works, Roads, Transport
A8: ='Template names'!C15 -> 1st year of MTREF | B8: Budget Year 2007/08 | C8: Budget Year 2008/09 | D8: Budget Year 2009/10 | E8: ="Budget Year "&E1&"/"&RIGHT(E1,2)+1 -> Budget Year 2010/11 | F8: Budget Year 2011/12 | G8: Budget Year 2012/13 | H8: Budget Year 2013/14 | I8: Budget Year 2014/15 | J8: Budget Year 2015/16 | K8: Budget Year 2016/17 | L8: Budget Year 2017/18 | M8: Budget Year 2018/19 | N8: Budget Year 2019/20 | O8: Budget Year 2020/21 | R8: >5 | Z8: Integrated National Electrification Programme | AB8: 2010 FIFA World Cup Stadiums Development | AC8: Sport and Recreation
A9: ='Template names'!C16 -> 2nd year of MTREF | B9: Budget Year +1 2008/09 | C9: Budget Year +1 2009/10 | D9: Budget Year +1 2010/11 | E9: ="Budget Year +1 "&E1+1&"/"&RIGHT(E1,2)+2 -> Budget Year +1 2011/12 | F9: Budget Year +1 2012/13 | G9: Budget Year +1 2013/14 | H9: Budget Year +1 2014/15 | I9: Budget Year +1 2015/16 | J9: Budget Year +1 2016/17 | K9: Budget Year +1 2017/18 | L9: Budget Year +1 2018/19 | M9: Budget Year +1 2019/20 | N9: Budget Year +1 2020/21 | O9: Budget Year +1 2021/22 | Z9: Municipal Drought Relief
A10: ='Template names'!C17 -> 3rd year of MTREF | B10: Budget Year +2 2009/10 | C10: Budget Year +2 2010/11 | D10: Budget Year +2 2011/12 | E10: ="Budget Year +2 "&E1+2&"/"&RIGHT(E1,2)+3 -> Budget Year +2 2012/13 | F10: Budget Year +2 2013/14 | G10: Budget Year +2 2014/15 | H10: Budget Year +2 2015/16 | I10: Budget Year +2 2016/17 | J10: Budget Year +2 2017/18 | K10: Budget Year +2 2018/19 | L10: Budget Year +2 2019/20 | M10: Budget Year +2 2020/21 | N10: Budget Year +2 2021/22 | O10: Budget Year +2 2022/23 | Z10: 2010 FIFA World Cup Operating
A11: ='Template names'!C18 -> 1st yr of long term forecast | B11: Forecast 2010/11 | C11: Forecast 2011/12 | D11: Forecast 2012/13 | E11: ="Forecast "&E1+3&"/"&RIGHT(E1,2)+4 -> Forecast 2013/14 | F11: Forecast 2014/15 | G11: Forecast 2015/16 | H11: Forecast 2016/17 | I11: Forecast 2017/18 | J11: Forecast 2018/19 | K11: Forecast 2019/20 | L11: Forecast 2020/21 | M11: Forecast 2021/22 | N11: Forecast 2022/23 | O11: Forecast 2023/24 | Z11: Electricity Demand Side Management
A12: ='Template names'!C19 -> Next yr of long term forecast | B12: Forecast 2011/12 | C12: Forecast 2012/13 | D12: Forecast 2013/14 | E12: ="Forecast "&E1+4&"/"&RIGHT(E1,2)+5 -> Forecast 2014/15 | F12: Forecast 2015/16 | G12: Forecast 2016/17 | H12: Forecast 2017/18 | I12: Forecast 2018/19 | J12: Forecast 2019/20 | K12: Forecast 2020/21 | L12: Forecast 2021/22 | M12: Forecast 2022/23 | N12: Forecast 2023/24 | O12: Forecast 2024/25 | Z12: EPWP Incentive
A13: ='Template names'!C20 -> Next yr of long term forecast | B13: Forecast 2012/13 | C13: Forecast 2013/14 | D13: Forecast 2014/15 | E13: ="Forecast "&E1+5&"/"&RIGHT(E1,2)+6 -> Forecast 2015/16 | F13: Forecast 2016/17 | G13: Forecast 2017/18 | H13: Forecast 2018/19 | I13: Forecast 2019/20 | J13: Forecast 2020/21 | K13: Forecast 2021/22 | L13: Forecast 2022/23 | M13: Forecast 2023/24 | N13: Forecast 2024/25 | O13: Forecast 2025/26
A14: ='Template names'!C21 -> Next yr of long term forecast | B14: Forecast 2013/14 | C14: Forecast 2014/15 | D14: Forecast 2015/16 | E14: ="Forecast "&E1+6&"/"&RIGHT(E1,2)+7 -> Forecast 2016/17 | F14: Forecast 2017/18 | G14: Forecast 2018/19 | H14: Forecast 2019/20 | I14: Forecast 2020/21 | J14: Forecast 2021/22 | K14: Forecast 2022/23 | L14: Forecast 2023/24 | M14: Forecast 2024/25 | N14: Forecast 2025/26 | O14: Forecast 2026/27 | Z14: Asset Class | AA14: Asset sub-class old | AB14: Asset sub-class | AC14: IUDF | AD14: MTSF
A15: ='Template names'!C22 -> Next yr of long term forecast | B15: Forecast 2014/15 | C15: Forecast 2015/16 | D15: Forecast 2016/17 | E15: ="Forecast "&E1+7&"/"&RIGHT(E1,2)+8 -> Forecast 2017/18 | F15: Forecast 2018/19 | G15: Forecast 2019/20 | H15: Forecast 2020/21 | I15: Forecast 2021/22 | J15: Forecast 2022/23 | K15: Forecast 2023/24 | L15: Forecast 2024/25 | M15: Forecast 2025/26 | N15: Forecast 2026/27 | O15: Forecast 2027/28
A16: ='Template names'!C23 -> Next yr of long term forecast | B16: Forecast 2015/16 | C16: Forecast 2016/17 | D16: Forecast 2017/18 | E16: ="Forecast "&E1+8&"/"&RIGHT(E1,2)+9 -> Forecast 2018/19 | F16: Forecast 2019/20 | G16: Forecast 2020/21 | H16: Forecast 2021/22 | I16: Forecast 2022/23 | J16: Forecast 2023/24 | K16: Forecast 2024/25 | L16: Forecast 2025/26 | M16: Forecast 2026/27 | N16: Forecast 2027/28 | O16: Forecast 2028/29 | Z16: Roads Infrastructure | AA16: Roads, Pavements & Bridges | AB16: Roads | AC16: Spatial integration | AD16: Quality basic education
A17: ='Template names'!C24 -> Next yr of long term forecast | B17: Forecast 2016/17 | C17: Forecast 2017/18 | D17: Forecast 2018/19 | E17: ="Forecast "&E1+9&"/"&RIGHT(E1,2)+10 -> Forecast 2019/20 | F17: Forecast 2020/21 | G17: Forecast 2021/22 | H17: Forecast 2022/23 | I17: Forecast 2023/24 | J17: Forecast 2024/25 | K17: Forecast 2025/26 | L17: Forecast 2026/27 | M17: Forecast 2027/28 | N17: Forecast 2028/29 | O17: Forecast 2029/30 | Z17: Storm water Infrastructure | AA17: Storm water | AB17: Road Structures | AC17: Inclusion and access | AD17: A long and healthy life for all South Africans
A18: ='Template names'!C25 -> Next yr of long term forecast | B18: Forecast 2017/18 | C18: Forecast 2018/19 | D18: Forecast 2019/20 | E18: ="Forecast "&E1+10&"/"&RIGHT(E1,2)+11 -> Forecast 2020/21 | F18: Forecast 2021/22 | G18: Forecast 2022/23 | H18: Forecast 2023/24 | I18: Forecast 2024/25 | J18: Forecast 2025/26 | K18: Forecast 2026/27 | L18: Forecast 2027/28 | M18: Forecast 2028/29 | N18: Forecast 2029/30 | O18: Forecast 2030/31 | Z18: Electrical Infrastructure | AA18: Generation | AB18: Road Furniture | AC18: Growth | AD18: All people in South Africa are and feel safe
A19: ='Template names'!C26 -> Next yr of long term forecast | B19: Forecast 2018/19 | C19: Forecast 2019/20 | D19: Forecast 2020/21 | E19: ="Forecast "&E1+11&"/"&RIGHT(E1,2)+12 -> Forecast 2021/22 | F19: Forecast 2022/23 | G19: Forecast 2023/24 | H19: Forecast 2024/25 | I19: Forecast 2025/26 | J19: Forecast 2026/27 | K19: Forecast 2027/28 | L19: Forecast 2028/29 | M19: Forecast 2029/30 | N19: Forecast 2030/31 | O19: Forecast 2031/32 | Z19: Water Supply Infrastructure | AA19: Transmission & Reticulation | AB19: Capital Spares | AC19: Governance | AD19: Decent employment through inclusive growth
A20: ='Template names'!C27 -> Next yr of long term forecast | B20: Forecast 2019/20 | C20: Forecast 2020/21 | D20: Forecast 2021/22 | E20: ="Forecast "&E1+12&"/"&RIGHT(E1,2)+13 -> Forecast 2022/23 | F20: Forecast 2023/24 | G20: Forecast 2024/25 | H20: Forecast 2025/26 | I20: Forecast 2026/27 | J20: Forecast 2027/28 | K20: Forecast 2028/29 | L20: Forecast 2029/30 | M20: Forecast 2030/31 | N20: Forecast 2031/32 | O20: Forecast 2032/33 | Z20: Sanitation Infrastructure | AA20: Street Lighting | AB20: Drainage Collection | AD20: A skilled and capable workforce to support an inclusive growth path
A21: ='Template names'!C28 -> Next yr of long term forecast | B21: Forecast 2020/21 | C21: Forecast 2021/22 | D21: Forecast 2022/23 | E21: ="Forecast "&E1+13&"/"&RIGHT(E1,2)+14 -> Forecast 2023/24 | F21: Forecast 2024/25 | G21: Forecast 2025/26 | H21: Forecast 2026/27 | I21: Forecast 2027/28 | J21: Forecast 2028/29 | K21: Forecast 2029/30 | L21: Forecast 2030/31 | M21: Forecast 2031/32 | N21: Forecast 2032/33 | O21: Forecast 2033/34 | Z21: Solid Waste Infrastructure | AA21: Dams & Reservoirs | AB21: Storm water Conveyance | AD21: An efficient, competitive and responsive economic infrastructure network
A22: ='Template names'!C29 -> Next yr of long term forecast | B22: Forecast 2021/22 | C22: Forecast 2022/23 | D22: Forecast 2023/24 | E22: ="Forecast "&E1+14&"/"&RIGHT(E1,2)+15 -> Forecast 2024/25 | F22: Forecast 2025/26 | G22: Forecast 2026/27 | H22: Forecast 2027/28 | I22: Forecast 2028/29 | J22: Forecast 2029/30 | K22: Forecast 2030/31 | L22: Forecast 2031/32 | M22: Forecast 2032/33 | N22: Forecast 2033/34 | O22: Forecast 2034/35 | Z22: Rail Infrastructure | AA22: Water purification | AB22: Attenuation | AD22: Vibrant, equitable, sustainable rural communities contributing towards food security for all
A23: Adjustments Budget | B23: Annual target 2007/08 | C23: Annual target 2008/09 | D23: Annual target 2009/10 | E23: ="Annual target " & E1&"/"&RIGHT(E1,2)+1 -> Annual target 2010/11 | F23: Annual target 2011/12 | G23: Annual target 2012/13 | H23: Annual target 2013/14 | I23: Annual target 2014/15 | J23: Annual target 2015/16 | K23: Annual target 2016/17 | L23: Annual target 2017/18 | M23: Annual target 2018/19 | N23: Annual target 2019/20 | O23: Annual target 2020/21 | Z23: Coastal Infrastructure | AA23: Reticulation | AB23: Power Plants | AD23: Sustainable human settlements and improved quality of household life
A24: =A23 -> Adjustments Budget | B24: Revised target 2007/08 | C24: Revised target 2008/09 | D24: Revised target 2009/10 | E24: ="Revised target "& E1&"/"&RIGHT(E1,2)+1 -> Revised target 2010/11 | F24: Revised target 2011/12 | G24: Revised target 2012/13 | H24: Revised target 2013/14 | I24: Revised target 2014/15 | J24: Revised target 2015/16 | K24: Revised target 2016/17 | L24: Revised target 2017/18 | M24: Revised target 2018/19 | N24: Revised target 2019/20 | O24: Revised target 2020/21 | Z24: Information and Communication Infrastructure | AA24: Sewerage purification | AB24: HV Substations | AD24: Responsive, accountable, effective and efficient local government
A25: NOTE: This sheet should not be directly amended - select headings from sheet 'S' | Z25: Community Facilities | AA25: Waste Management | AB25: HV Switching Station | AD25: Protect and enhance our environmental assets and natural resources
Z26: Sport and Recreation Facilities | AA26: Transportation | AB26: HV Transmission Conductors | AD26: Create a better South Africa and contribute to a better Africa and a better world
A27: Name link | B27: 66 | Z27: Heritage assets | AA27: Gas | AB27: MV Substations | AD27: An efficient, effective and development-oriented public service
A28: Name of Muni | B28: =INDEX(B29:B307,B27,1) -> TSH City Of Tshwane | Z28: Revenue Generating | AA28: Parks & gardens | AB28: MV Switching Stations | AD28: A comprehensive, responsive and sustainable social protection system
B29: Choose name from list | C29: Set name on 'Instructions' sheet | Z29: Non-revenue Generating | AA29: Sportsfields & stadia | AB29: MV Networks | AD29: A diverse, socially cohesive society with a common national identity
B30: BUF Buffalo City | C30: EC EASTERN CAPE | Z30: Operational Buildings | AA30: Swimming pools | AB30: LV Networks
B31: NMA Nelson Mandela Bay | C31: EC EASTERN CAPE | Z31: Housing | AA31: Community halls | AB31: Capital Spares
B32: EC101 Dr Beyers Naude | C32: EC EASTERN CAPE | Z32: Biological or Cultivated Assets | AA32: Libraries | AB32: Dams and Weirs
B33: EC102 Blue Crane Route | C33: EC EASTERN CAPE | Z33: Servitudes | AA33: Recreational facilities | AB33: Boreholes
B34: EC104 Makana | C34: EC EASTERN CAPE | Z34: Licences and Rights | AA34: Fire, safety & emergency | AB34: Reservoirs
B35: EC105 Ndlambe | C35: EC EASTERN CAPE | Z35: Computer Equipment | AA35: Security and policing | AB35: Pump Stations
B36: EC106 Sundays River Valley | C36: EC EASTERN CAPE | Z36: Furniture and Office Equipment | AA36: Buses | AB36: Water Treatment Works
B37: EC108 Kouga | C37: EC EASTERN CAPE | Z37: Machinery and Equipment | AA37: Clinics | AB37: Bulk Mains
B38: EC109 Kou-Kamma | C38: EC EASTERN CAPE | Z38: Transport Assets | AA38: Museums & Art Galleries | AB38: Distribution
B39: DC10 Sarah Baartman | C39: EC EASTERN CAPE | Z39: Land | AA39: Cemeteries | AB39: Distribution Points
B40: EC121 Mbhashe | C40: EC EASTERN CAPE | Z40: Zoo's, Marine and Non-biological Animals | AA40: Social rental housing | AB40: PRV Stations
B41: EC122 Mnquma | C41: EC EASTERN CAPE | AA41: Buildings | AB41: Capital Spares
B42: EC123 Great Kei | C42: EC EASTERN CAPE | AA42: Housing development | AB42: Pump Station
B43: EC124 Amahlathi | C43: EC EASTERN CAPE | AA43: General vehicles | AB43: Reticulation
B44: EC126 Ngqushwa | C44: EC EASTERN CAPE | AA44: Specialised vehicles - Refuse | AB44: Waste Water Treatment Works
B45: EC129 Raymond Mhlaba | C45: EC EASTERN CAPE | AA45: Specialised vehicles - Fire | AB45: Outfall Sewers
B46: DC12 Amathole | C46: EC EASTERN CAPE | AA46: Specialised vehicles - Conservancy | AB46: Toilet Facilities
B47: EC131 Inxuba Yethemba | C47: EC EASTERN CAPE | AA47: Specialised vehicles - Ambulances | AB47: Capital Spares
B48: EC135 Intsika Yethu | C48: EC EASTERN CAPE | AA48: Plant & equipment | AB48: Landfill Sites
B49: EC136 Emalahleni (Ec) | C49: EC EASTERN CAPE | AA49: Computers - hardware/equipment | AB49: Waste Transfer Stations
B50: EC137 Engcobo | C50: EC EASTERN CAPE | AA50: Furniture and other office equipment | AB50: Waste Processing Facilities
B51: EC138 Sakhisizwe | C51: EC EASTERN CAPE | AA51: Abattoirs | AB51: Waste Drop-off Points
B52: EC139 Enoch Mgijima | C52: EC EASTERN CAPE | AA52: Markets | AB52: Waste Separation Facilities
B53: DC13 Chris Hani | C53: EC EASTERN CAPE | AA53: Civic Land and Buildings | AB53: Electricity Generation Facilities
B54: EC141 Elundini | C54: EC EASTERN CAPE | AA54: Other Buildings | AB54: Capital Spares
B55: EC142 Senqu | C55: EC EASTERN CAPE | AA55: Other Land | AB55: Rail Lines
B56: EC145 Walter Sisulu | C56: EC EASTERN CAPE | AA56: Surplus Assets - (Investment or Inventory) | AB56: Rail Structures
B57: DC14 Joe Gqabi | C57: EC EASTERN CAPE | AA57: Computers - software & programming | AB57: Rail Furniture
B58: EC153 Ngquza Hills | C58: EC EASTERN CAPE | AA58: Other | AB58: Drainage Collection
B59: EC154 Port St Johns | C59: EC EASTERN CAPE | AB59: Storm water Conveyance
B60: EC155 Nyandeni | C60: EC EASTERN CAPE | Z60: SA16 - Investments | AB60: Attenuation
B61: EC156 Mhlontlo | C61: EC EASTERN CAPE | Z61: Security | AA61: Interest rate | AB61: MV Substations
B62: EC157 King Sabata Dalindyebo | C62: EC EASTERN CAPE | Z62: Yes | AA62: Fixed | AB62: LV Networks
B63: DC15 O .R. Tambo | C63: EC EASTERN CAPE | Z63: No | AA63: Variable | AB63: Capital Spares
B64: EC441 Matatiele | C64: EC EASTERN CAPE | AB64: Sand Pumps
B65: EC442 Umzimvubu | C65: EC EASTERN CAPE | AB65: Piers
B66: EC443 Mbizana | C66: EC EASTERN CAPE | Z66: SA36, SA37 - Capital projects | AB66: Revetments
B67: EC444 Ntabankulu | C67: EC EASTERN CAPE | Z67: Yes | AB67: Promenades
B68: DC44 Alfred Nzo | C68: EC EASTERN CAPE | Z68: No | AB68: Capital Spares
B69: MAN Mangaung | C69: FS FREE STATE | AB69: Data Centres
B70: FS161 Letsemeng | C70: FS FREE STATE | AB70: Core Layers
B71: FS162 Kopanong | C71: FS FREE STATE | AB71: Distribution Layers
B72: FS163 Mohokare | C72: FS FREE STATE | AB72: Capital Spares
B73: DC16 Xhariep | C73: FS FREE STATE | AB73: Halls
B74: FS181 Masilonyana | C74: FS FREE STATE | AB74: Centres
B75: FS182 Tokologo | C75: FS FREE STATE | AB75: Crèches
B76: FS183 Tswelopele | C76: FS FREE STATE | AB76: Clinics/Care Centres
B77: FS184 Matjhabeng | C77: FS FREE STATE | AB77: Fire/Ambulance Stations
B78: FS185 Nala | C78: FS FREE STATE | AB78: Testing Stations
B79: DC18 Lejweleputswa | C79: FS FREE STATE | AB79: Museums
B80: FS191 Setsoto | C80: FS FREE STATE | AB80: Galleries
B81: FS192 Dihlabeng | C81: FS FREE STATE | AB81: Theatres
B82: FS193 Nketoana | C82: FS FREE STATE | AB82: Libraries
B83: FS194 Maluti-a-Phofung | C83: FS FREE STATE | AB83: Cemeteries/Crematoria
B84: FS195 Phumelela | C84: FS FREE STATE | AB84: Police
B85: FS196 Mantsopa | C85: FS FREE STATE | AB85: Purls
B86: DC19 Thabo Mofutsanyana | C86: FS FREE STATE | AB86: Public Open Space
B87: FS201 Moqhaka | C87: FS FREE STATE | AB87: Nature Reserves
B88: FS203 Ngwathe | C88: FS FREE STATE | AB88: Public Ablution Facilities
B89: FS204 Metsimaholo | C89: FS FREE STATE | AB89: Markets
B90: FS205 Mafube | C90: FS FREE STATE | AB90: Stalls
B91: DC20 Fezile Dabi | C91: FS FREE STATE | AB91: Abattoirs
B92: EKU City of Ekurhuleni | C92: GT GAUTENG | AB92: Airports
B93: JHB City Of Johannesburg | C93: GT GAUTENG | AB93: Taxi Ranks/Bus Terminals
B94: TSH City Of Tshwane | C94: GT GAUTENG | AB94: Capital Spares
B95: GT421 Emfuleni | C95: GT GAUTENG | AB95: Indoor Facilities
B96: GT422 Midvaal | C96: GT GAUTENG | AB96: Outdoor Facilities
B97: GT423 Lesedi | C97: GT GAUTENG | AB97: Capital Spares
B98: DC42 Sedibeng | C98: GT GAUTENG | AB98: Monuments
B99: GT481 Mogale City | C99: GT GAUTENG | AB99: Historic Buildings
B100: GT484 Merafong City | C100: GT GAUTENG | AB100: Works of Art
B101: GT485 Rand West City | C101: GT GAUTENG | AB101: Conservation Areas
B102: DC48 West Rand | C102: GT GAUTENG | AB102: Other Heritage
B103: ETH eThekwini | C103: KZN KWAZULU-NATAL | AB103: Improved Property
B104: KZN212 Umdoni | C104: KZN KWAZULU-NATAL | AB104: Unimproved Property
B105: KZN213 Umzumbe | C105: KZN KWAZULU-NATAL | AB105: Municipal Offices
B106: KZN214 uMuziwabantu | C106: KZN KWAZULU-NATAL | AB106: Pay/Enquiry Points
B107: KZN216 Ray Nkonyeni | C107: KZN KWAZULU-NATAL | AB107: Building Plan Offices
B108: DC21 Ugu | C108: KZN KWAZULU-NATAL | AB108: Workshops
B109: KZN221 uMshwathi | C109: KZN KWAZULU-NATAL | AB109: Yards
B110: KZN222 uMngeni | C110: KZN KWAZULU-NATAL | AB110: Stores
B111: KZN223 Mpofana | C111: KZN KWAZULU-NATAL | AB111: Laboratories
B112: KZN224 Impendle | C112: KZN KWAZULU-NATAL | AB112: Training Centres
B113: KZN225 Msunduzi | C113: KZN KWAZULU-NATAL | AB113: Manufacturing Plant
B114: KZN226 Mkhambathini | C114: KZN KWAZULU-NATAL | AB114: Depots
B115: KZN227 Richmond | C115: KZN KWAZULU-NATAL | AB115: Capital Spares
B116: DC22 uMgungundlovu | C116: KZN KWAZULU-NATAL | AB116: Staff Housing
B117: KZN235 Okhahlamba | C117: KZN KWAZULU-NATAL | AB117: Social Housing
B118: KZN237 Inkosi Langalibalele | C118: KZN KWAZULU-NATAL | AB118: Capital Spares
B119: KZN238 Alfred Duma | C119: KZN KWAZULU-NATAL | AB119: Water Rights
B120: DC23 Uthukela | C120: KZN KWAZULU-NATAL | AB120: Effluent Licenses
B121: KZN241 Endumeni | C121: KZN KWAZULU-NATAL | AB121: Solid Waste Licenses
B122: KZN242 Nquthu | C122: KZN KWAZULU-NATAL | AB122: Computer Software and Applications
B123: KZN244 Msinga | C123: KZN KWAZULU-NATAL | AB123: Load Settlement Software Applications
B124: KZN245 Umvoti | C124: KZN KWAZULU-NATAL | AB124: Unspecified
B125: DC24 Umzinyathi | C125: KZN KWAZULU-NATAL
B126: KZN252 Newcastle | C126: KZN KWAZULU-NATAL
B127: KZN253 Emadlangeni | C127: KZN KWAZULU-NATAL
B128: KZN254 Dannhauser | C128: KZN KWAZULU-NATAL
B129: DC25 Amajuba | C129: KZN KWAZULU-NATAL
B130: KZN261 eDumbe | C130: KZN KWAZULU-NATAL
B131: KZN262 uPhongolo | C131: KZN KWAZULU-NATAL
B132: KZN263 Abaqulusi | C132: KZN KWAZULU-NATAL
B133: KZN265 Nongoma | C133: KZN KWAZULU-NATAL
B134: KZN266 Ulundi | C134: KZN KWAZULU-NATAL
B135: DC26 Zululand | C135: KZN KWAZULU-NATAL
B136: KZN271 Umhlabuyalingana | C136: KZN KWAZULU-NATAL
B137: KZN272 Jozini | C137: KZN KWAZULU-NATAL
B138: KZN275 Mtubatuba | C138: KZN KWAZULU-NATAL
B139: KZN276 Hlabisa Big Five | C139: KZN KWAZULU-NATAL
B140: DC27 Umkhanyakude | C140: KZN KWAZULU-NATAL
B141: KZN281 Mfolozi | C141: KZN KWAZULU-NATAL
B142: KZN282 uMhlathuze | C142: KZN KWAZULU-NATAL
B143: KZN284 uMlalazi | C143: KZN KWAZULU-NATAL
B144: KZN285 Mthonjaneni | C144: KZN KWAZULU-NATAL
B145: KZN286 Nkandla | C145: KZN KWAZULU-NATAL
B146: DC28 King Cetshwayo | C146: KZN KWAZULU-NATAL
B147: KZN291 Mandeni | C147: KZN KWAZULU-NATAL
B148: KZN292 KwaDukuza | C148: KZN KWAZULU-NATAL
B149: KZN293 Ndwedwe | C149: KZN KWAZULU-NATAL
B150: KZN294 Maphumulo | C150: KZN KWAZULU-NATAL
B151: DC29 iLembe | C151: KZN KWAZULU-NATAL
B152: KZN433 Greater Kokstad | C152: KZN KWAZULU-NATAL
B153: KZN434 Ubuhlebezwe | C153: KZN KWAZULU-NATAL
B154: KZN435 Umzimkhulu | C154: KZN KWAZULU-NATAL
B155: KZN436 Dr Nkosazana Dlamini Zuma | C155: KZN KWAZULU-NATAL
B156: DC43 Harry Gwala | C156: KZN KWAZULU-NATAL
B157: LIM331 Greater Giyani | C157: LIM LIMPOPO
B158: LIM332 Greater Letaba | C158: LIM LIMPOPO
B159: LIM333 Greater Tzaneen | C159: LIM LIMPOPO
B160: LIM334 Ba-Phalaborwa | C160: LIM LIMPOPO
B161: LIM335 Maruleng | C161: LIM LIMPOPO
B162: DC33 Mopani | C162: LIM LIMPOPO
B163: LIM341 Musina | C163: LIM LIMPOPO
B164: LIM343 Thulamela | C164: LIM LIMPOPO
B165: LIM344 Makhado | C165: LIM LIMPOPO
B166: LIM345 Collins Chabane | C166: LIM LIMPOPO
B167: DC34 Vhembe | C167: LIM LIMPOPO
B168: LIM351 Blouberg | C168: LIM LIMPOPO
B169: LIM353 Molemole | C169: LIM LIMPOPO
B170: LIM354 Polokwane | C170: LIM LIMPOPO
B171: LIM355 Lepelle-Nkumpi | C171: LIM LIMPOPO
B172: DC35 Capricorn | C172: LIM LIMPOPO
B173: LIM361 Thabazimbi | C173: LIM LIMPOPO
B174: LIM362 Lephalale | C174: LIM LIMPOPO
B175: LIM366 Bela Bela | C175: LIM LIMPOPO
B176: LIM367 Mogalakwena | C176: LIM LIMPOPO
B177: LIM368 Modimolle-Mookgopong | C177: LIM LIMPOPO
B178: DC36 Waterberg | C178: LIM LIMPOPO
B179: LIM471 Ephraim Mogale | C179: LIM LIMPOPO
B180: LIM472 Elias Motsoaledi | C180: LIM LIMPOPO
B181: LIM473 Makhuduthamaga | C181: LIM LIMPOPO
B182: LIM476 Tubatse Fetakgomo | C182: LIM LIMPOPO
B183: DC47 Sekhukhune | C183: LIM LIMPOPO
B184: MP301 Albert Luthuli | C184: MP MPUMALANGA
B185: MP302 Msukaligwa | C185: MP MPUMALANGA
B186: MP303 Mkhondo | C186: MP MPUMALANGA
B187: MP304 Pixley Ka Seme (MP) | C187: MP MPUMALANGA
B188: MP305 Lekwa | C188: MP MPUMALANGA
B189: MP306 Dipaleseng | C189: MP MPUMALANGA
B190: MP307 Govan Mbeki | C190: MP MPUMALANGA
B191: DC30 Gert Sibande | C191: MP MPUMALANGA
B192: MP311 Victor Khanye | C192: MP MPUMALANGA
B193: MP312 Emalahleni (Mp) | C193: MP MPUMALANGA
B194: MP313 Steve Tshwete | C194: MP MPUMALANGA
B195: MP314 Emakhazeni | C195: MP MPUMALANGA
B196: MP315 Thembisile Hani | C196: MP MPUMALANGA
B197: MP316 Dr J.S. Moroka | C197: MP MPUMALANGA
B198: DC31 Nkangala | C198: MP MPUMALANGA
B199: MP321 Thaba Chweu | C199: MP MPUMALANGA
B200: MP324 Nkomazi | C200: MP MPUMALANGA
... 87 more rows

Sheet Org structure
A1: Organisational Structure Votes | C1: Organisational Structure Sub-Votes
A2: =B2&" - "&C2 -> Vote 1 - Community & Social Development Services Department | B2: Vote 1 | C2: Community & Social Development Services Department
A3: =B12&" - "& C12 -> Vote 2 - Economic Development & Spatial Planning Department | B3: 1.1 | C3: 019 - Child Care | D3: =CONCATENATE(B3, " - ", C3) -> 1.1 - 019 - Child Care | E3: 1.1 - 019 - Child Care
A4: =B26&" - "&C26 -> Vote 3 - Emergency Services Department | B4: 1.2 | C4: 041 - Library | D4: 1.2 - 041 - Library | E4: 1.2 - 041 - Library
A5: =B34&" - "&C34 -> Vote 4 - Environment & Agriculture Management Department | B5: 1.3 | C5: 042 - Culture | D5: 1.3 - 042 - Culture | E5: 1.3 - 042 - Culture
A6: =B44&" - "&C44 -> Vote 5 - Group Audit & Risk Department | B6: 1.4 | C6: 054 - Sport and Recreation | D6: 1.4 - 054 - Sport and Recreation | E6: 1.4 - 054 - Sport and Recreation
A7: =B48&" - "&C48 -> Vote 6 - Group Financial Services Department | B7: 1.5 | C7: 058 - Educational Services | D7: 1.5 - 058 - Educational Services | E7: 1.5 - 058 - Educational Services
A8: =B59&" - "&C59 -> Vote 7 - Group Property Management Department | B8: 1.6 | C8: 066 - Education and Development | D8: 1.6 - 066 - Education and Development | E8: 1.6 - 066 - Education and Development
A9: =B66&" - "&C66 -> Vote 8 - Health Department | B9: 1.7 | C9: 068 - Management Offices | D9: 1.7 - 068 - Management Offices | E9: 1.7 - 068 - Management Offices
A10: =B72&" - "&C72 -> Vote 9 - Human Settlement Department | B10: 1.8 | C10: 155 - Management and Administration (Kungwini) | D10: 1.8 - 155 - Management and Administration (Kungwini) | E10: 1.8 - 155 - Management and Administration (Kungwini)
A11: =B81&" - "&C81 -> Vote 10 - Tshwane Metro Police Department | B11: 1.9 | C11: 156 - Management and Administration (Nokeng) | D11: 1.9 - 156 - Management and Administration (Nokeng) | E11: 1.9 - 156 - Management and Administration (Nokeng)
A12: =B90&" - "&C90 -> Vote 11 - Regional Operations & Coordination Department | B12: Vote 2 | C12: Economic Development & Spatial Planning Department
A13: =B152&" - "&C152 -> Vote 12 - Roads & Transport Department | B13: 2.1 | C13: 010 - Operations | D13: 2.1 - 010 - Operations | E13: 2.1 - 010 - Operations
A14: =B161&" - "&C161 -> Vote 13 - Shared Services Department | B14: 2.2 | C14: 044 - Quantity Surveyors | D14: 2.2 - 044 - Quantity Surveyors | E14: 2.2 - 044 - Quantity Surveyors
A15: =B169&" - "&C169 -> Vote 14 - Utility Services Department | B15: 2.3 | C15: 045 - Architect | D15: 2.3 - 045 - Architect | E15: 2.3 - 045 - Architect
A16: =B186&" - "&C186 -> Vote 15 - Other Departments | B16: 2.4 | C16: 055 - Horticulture | D16: 2.4 - 055 - Horticulture | E16: 2.4 - 055 - Horticulture
B17: 2.5 | C17: 068 - Economic Development | D17: 2.5 - 068 - Economic Development | E17: 2.5 - 068 - Economic Development
B18: 2.6 | C18: 079 - City Planning | D18: 2.6 - 079 - City Planning | E18: 2.6 - 079 - City Planning
B19: 2.7 | C19: 080 - City Planning | D19: 2.7 - 080 - City Planning | E19: 2.7 - 080 - City Planning
B20: 2.8 | C20: 153 - Management and Administration (Kungwini) | D20: 2.8 - 153 - Management and Administration (Kungwini) | E20: 2.8 - 153 - Management and Administration (Kungwini)
B21: 2.9 | C21: 154 - Management and Administration (Metsweding) | D21: 2.9 - 154 - Management and Administration (Metsweding) | E21: 2.9 - 154 - Management and Administration (Metsweding)
B22: 2.10 | C22: 160 - Fresh-Produce Market | D22: 2.10 - 160 - Fresh-Produce Market | E22: 2.10 - 160 - Fresh-Produce Market
B23: 2.11 | C23: 179 - Management and Administration (Kungwini) | D23: 2.11 - 179 - Management and Administration (Kungwini) | E23: 2.11 - 179 - Management and Administration (Kungwini)
B24: 2.12 | C24: 180 - Management and Administration (Nokeng) | D24: 2.12 - 180 - Management and Administration (Nokeng) | E24: 2.12 - 180 - Management and Administration (Nokeng)
B25: 2.13 | C25: 181 - Management and Administration (Metsweding) | D25: 2.13 - 181 - Management and Administration (Metsweding) | E25: 2.13 - 181 - Management and Administration (Metsweding)
B26: Vote 3 | C26: Emergency Services Department
B27: 3.1 | C27: 005 - Emergency Medical and Ambulance Services | D27: =CONCATENATE(B27, " - ", C27) -> 3.1 - 005 - Emergency Medical and Ambulance Services | E27: 3.1 - 005 - Emergency Medical and Ambulance Services
B28: 3.2 | C28: 006 - Fire Brigade | D28: 3.2 - 006 - Fire Brigade | E28: 3.2 - 006 - Fire Brigade
B29: 3.3 | C29: 011 - Management and Administration (Kungwini) | D29: 3.3 - 011 - Management and Administration (Kungwini) | E29: 3.3 - 011 - Management and Administration (Kungwini)
B30: 3.4 | C30: 012 - Management and Administration (Nokeng) | D30: 3.4 - 012 - Management and Administration (Nokeng) | E30: 3.4 - 012 - Management and Administration (Nokeng)
B31: 3.5 | C31: 013 - Management and Administration (Metsweding) | D31: 3.5 - 013 - Management and Administration (Metsweding) | E31: 3.5 - 013 - Management and Administration (Metsweding)
B32: 3.6 | C32: 040 - Emergency Operational and Support Services | D32: 3.6 - 040 - Emergency Operational and Support Services | E32: 3.6 - 040 - Emergency Operational and Support Services
B33: 3.7 | C33: 048 - Disaster Management | D33: 3.7 - 048 - Disaster Management | E33: 3.7 - 048 - Disaster Management
B34: Vote 4 | C34: Environment & Agriculture Management Department
B35: 4.1 | C35: 018 - Environmental Health | D35: =CONCATENATE(B35, " - ", C35) -> 4.1 - 018 - Environmental Health | E35: 4.1 - 018 - Environmental Health
B36: 4.2 | C36: 034 - Waste Management | D36: 4.2 - 034 - Waste Management | E36: 4.2 - 034 - Waste Management
B37: 4.3 | C37: 035 - Solid Waste Services | D37: 4.3 - 035 - Solid Waste Services | E37: 4.3 - 035 - Solid Waste Services
B38: 4.4 | C38: 037 - Management and Administration (Nokeng) | D38: 4.4 - 037 - Management and Administration (Nokeng) | E38: 4.4 - 037 - Management and Administration (Nokeng)
B39: 4.5 | C39: 038 - Management and Administration (Metsweding) | D39: 4.5 - 038 - Management and Administration (Metsweding) | E39: 4.5 - 038 - Management and Administration (Metsweding)
B40: 4.6 | C40: 053 - Culture and Recreation | D40: 4.6 - 053 - Culture and Recreation | E40: 4.6 - 053 - Culture and Recreation
B41: 4.7 | C41: 055 - Horticulture | D41: 4.7 - 055 - Horticulture | E41: 4.7 - 055 - Horticulture
B42: 4.8 | C42: 056 - Conservation and Resorts | D42: 4.8 - 056 - Conservation and Resorts | E42: 4.8 - 056 - Conservation and Resorts
B43: 4.9 | C43: 057 - Cemeteries | D43: 4.9 - 057 - Cemeteries | E43: 4.9 - 057 - Cemeteries
B44: Vote 5 | C44: Group Audit & Risk Department
B45: 5.1 | C45: 049 - Metropolitan Police Services | D45: =CONCATENATE(B45, " - ", C45) -> 5.1 - 049 - Metropolitan Police Services | E45: 5.1 - 049 - Metropolitan Police Services
B46: 5.2 | C46: 069 - Internal Audit and Risk Management | D46: =CONCATENATE(B46, " - ", C46) -> 5.2 - 069 - Internal Audit and Risk Management | E46: 5.2 - 069 - Internal Audit and Risk Management
B47: 5.3 | C47: 070 - Internal Audit | D47: =CONCATENATE(B47, " - ", C47) -> 5.3 - 070 - Internal Audit | E47: 5.3 - 070 - Internal Audit
B48: Vote 6 | C48: Group Financial Services Department
B49: 6.1 | C49: 001 - General and Assessment Rates | D49: =CONCATENATE(B49, " - ", C49) -> 6.1 - 001 - General and Assessment Rates | E49: 6.1 - 001 - General and Assessment Rates
B50: 6.2 | C50: 003 - General | D50: 6.2 - 003 - General | E50: 6.2 - 003 - General
B51: 6.3 | C51: 070 - Finance | D51: 6.3 - 070 - Finance | E51: 6.3 - 070 - Finance
B52: 6.4 | C52: 071 - Provisioning | D52: 6.4 - 071 - Provisioning | E52: 6.4 - 071 - Provisioning
B53: 6.5 | C53: 074 - Stores | D53: 6.5 - 074 - Stores | E53: 6.5 - 074 - Stores
B54: 6.6 | C54: 076 - Provisioning Services | D54: 6.6 - 076 - Provisioning Services | E54: 6.6 - 076 - Provisioning Services
B55: 6.7 | C55: 078 - Property Valuation | D55: 6.7 - 078 - Property Valuation | E55: 6.7 - 078 - Property Valuation
B56: 6.8 | C56: 171 - Management and Administration (Kungwini) | D56: 6.8 - 171 - Management and Administration (Kungwini) | E56: 6.8 - 171 - Management and Administration (Kungwini)
B57: 6.9 | C57: 172 - Management and Administration (Nokeng) | D57: 6.9 - 172 - Management and Administration (Nokeng) | E57: 6.9 - 172 - Management and Administration (Nokeng)
B58: 6.10 | C58: 173 - Management and Administration (Metsweding) | D58: 6.10 - 173 - Management and Administration (Metsweding) | E58: 6.10 - 173 - Management and Administration (Metsweding)
B59: Vote 7 | C59: Group Property Management Department
B60: 7.1 | C60: 063 - Property management | D60: =CONCATENATE(B60, " - ", C60) -> 7.1 - 063 - Property management | E60: 7.1 - 063 - Property management
B61: 7.2 | C61: 065 - Tshwane House | D61: 7.2 - 065 - Tshwane House | E61: 7.2 - 065 - Tshwane House
B62: 7.3 | C62: 067 - Property Services | D62: 7.3 - 067 - Property Services | E62: 7.3 - 067 - Property Services
B63: 7.4 | C63: 071 - Office of Gen manager | D63: 7.4 - 071 - Office of Gen manager | E63: 7.4 - 071 - Office of Gen manager
B64: 7.5 | C64: 072 - Management and Administration: PM | D64: 7.5 - 072 - Management and Administration: PM | E64: 7.5 - 072 - Management and Administration: PM
B65: 7.6 | C65: 075 - Building Management | D65: 7.6 - 075 - Building Management | E65: 7.6 - 075 - Building Management
B66: Vote 8 | C66: Health Department
B67: 8.1 | C67: 019 - Health Services | D67: =CONCATENATE(B67, " - ", C67) -> 8.1 - 019 - Health Services | E67: 8.1 - 019 - Health Services
B68: 8.2 | C68: 020 - Health Services | D68: =CONCATENATE(B68, " - ", C68) -> 8.2 - 020 - Health Services | E68: 8.2 - 020 - Health Services
B69: 8.3 | C69: 021 - Management and Administration (Kungwini) | D69: =CONCATENATE(B69, " - ", C69) -> 8.3 - 021 - Management and Administration (Kungwini) | E69: 8.3 - 021 - Management and Administration (Kungwini)
B70: 8.4 | C70: 022 - Management and Administration (Nokeng) | D70: =CONCATENATE(B70, " - ", C70) -> 8.4 - 022 - Management and Administration (Nokeng) | E70: 8.4 - 022 - Management and Administration (Nokeng)
B71: 8.5 | C71: 023 - Management and Administration (Metsweding) | D71: =CONCATENATE(B71, " - ", C71) -> 8.5 - 023 - Management and Administration (Metsweding) | E71: 8.5 - 023 - Management and Administration (Metsweding)
B72: Vote 9 | C72: Human Settlement Department
B73: 9.1 | C73: 001 - Tshwane Housing Company | D73: =CONCATENATE(B73, " - ", C73) -> 9.1 - 001 - Tshwane Housing Company | E73: 9.1 - 001 - Tshwane Housing Company
B74: 9.2 | C74: 064 - Urban Development Projects | D74: 9.2 - 064 - Urban Development Projects | E74: 9.2 - 064 - Urban Development Projects
B75: 9.3 | C75: 082 - Housing Administration | D75: 9.3 - 082 - Housing Administration | E75: 9.3 - 082 - Housing Administration
B76: 9.4 | C76: 083 - Housing Administration | D76: 9.4 - 083 - Housing Administration | E76: 9.4 - 083 - Housing Administration
B77: 9.5 | C77: 084 - Economic Housing | D77: 9.5 - 084 - Economic Housing | E77: 9.5 - 084 - Economic Housing
B78: 9.6 | C78: 086 - Housing Taken Over from Government | D78: 9.6 - 086 - Housing Taken Over from Government | E78: 9.6 - 086 - Housing Taken Over from Government
B79: 9.7 | C79: 089 - Housing: East | D79: 9.7 - 089 - Housing: East | E79: 9.7 - 089 - Housing: East
B80: 9.8 | C80: 110 - Electricity | D80: 9.8 - 110 - Electricity | E80: 9.8 - 110 - Electricity
B81: Vote 10 | C81: Tshwane Metro Police Department
B82: 10.1 | C82: 040 - Metro Police Support Services | D82: =CONCATENATE(B82, " - ", C82) -> 10.1 - 040 - Metro Police Support Services | E82: 10.1 - 040 - Metro Police Support Services
B83: 10.2 | C83: 048 - Disaster Management | D83: 10.2 - 048 - Disaster Management | E83: 10.2 - 048 - Disaster Management
B84: 10.3 | C84: 049 - Metropolitan Police Services | D84: 10.3 - 049 - Metropolitan Police Services | E84: 10.3 - 049 - Metropolitan Police Services
B85: 10.4 | C85: 069 - Operations and Management | D85: 10.4 - 069 - Operations and Management | E85: 10.4 - 069 - Operations and Management
B86: 10.5 | C86: 167 - Parking Garages and Areas | D86: 10.5 - 167 - Parking Garages and Areas | E86: 10.5 - 167 - Parking Garages and Areas
B87: 10.6 | C87: 168 - Management and Administration (Kungwini) | D87: 10.6 - 168 - Management and Administration (Kungwini) | E87: 10.6 - 168 - Management and Administration (Kungwini)
B88: 10.7 | C88: 169 - Management and Administration (Nokeng) | D88: 10.7 - 169 - Management and Administration (Nokeng) | E88: 10.7 - 169 - Management and Administration (Nokeng)
B89: 10.8 | C89: 170 - Management and Administration (Metsweding) | D89: 10.8 - 170 - Management and Administration (Metsweding) | E89: 10.8 - 170 - Management and Administration (Metsweding)
B90: Vote 11 | C90: Regional Operations & Coordination Department
B91: 11.1 | C91: 010 - Operations | D91: 11.1 - 010 - Operations | E91: 11.1 - 010 - Operations
B92: 11.2 | C92: 014 - Management and Administration (Kungwini) | D92: 11.2 - 014 - Management and Administration (Kungwini) | E92: 11.2 - 014 - Management and Administration (Kungwini)
B93: 11.3 | C93: 015 - Management and Administration (Nokeng) | D93: 11.3 - 015 - Management and Administration (Nokeng) | E93: 11.3 - 015 - Management and Administration (Nokeng)
B94: 11.4 | C94: 016 - Management and Administration (Metsweding) | D94: 11.4 - 016 - Management and Administration (Metsweding) | E94: 11.4 - 016 - Management and Administration (Metsweding)
B95: 11.5 | C95: 020 - Health Services | D95: 11.5 - 020 - Health Services | E95: 11.5 - 020 - Health Services
B96: 11.6 | C96: 025 - Roads and Storm Water | D96: 11.6 - 025 - Roads and Storm Water | E96: 11.6 - 025 - Roads and Storm Water
B97: 11.7 | C97: 026 - Management and Administration (Kungwini) | D97: 11.7 - 026 - Management and Administration (Kungwini) | E97: 11.7 - 026 - Management and Administration (Kungwini)
B98: 11.8 | C98: 027 - Management and Administration (Nokeng) | D98: 11.8 - 027 - Management and Administration (Nokeng) | E98: 11.8 - 027 - Management and Administration (Nokeng)
B99: 11.9 | C99: 030 - Waste Water Treatment | D99: 11.9 - 030 - Waste Water Treatment | E99: 11.9 - 030 - Waste Water Treatment
B100: 11.10 | C100: 031 - Waste Water Collection | D100: 11.10 - 031 - Waste Water Collection | E100: 11.10 - 031 - Waste Water Collection
B101: 11.11 | C101: 034 - Waste Management | D101: 11.11 - 034 - Waste Management | E101: 11.11 - 034 - Waste Management
B102: 11.12 | C102: 035 - Solid Waste Services | D102: 11.12 - 035 - Solid Waste Services | E102: 11.12 - 035 - Solid Waste Services
B103: 11.13 | C103: 036 - Management and Administration (Kungwini) | D103: 11.13 - 036 - Management and Administration (Kungwini) | E103: 11.13 - 036 - Management and Administration (Kungwini)
B104: 11.14 | C104: 038 - Management and Administration (Metsweding) | D104: 11.14 - 038 - Management and Administration (Metsweding) | E104: 11.14 - 038 - Management and Administration (Metsweding)
B105: 11.15 | C105: 040 - Metro Police Support Services | D105: 11.15 - 040 - Metro Police Support Services | E105: 11.15 - 040 - Metro Police Support Services
B106: 11.16 | C106: 041 - Library | D106: 11.16 - 041 - Library | E106: 11.16 - 041 - Library
B107: 11.17 | C107: 042 - Culture | D107: 11.17 - 042 - Culture | E107: 11.17 - 042 - Culture
B108: 11.18 | C108: 053 - Culture and Recreation | D108: 11.18 - 053 - Culture and Recreation | E108: 11.18 - 053 - Culture and Recreation
B109: 11.19 | C109: 054 - Sport and Recreation | D109: 11.19 - 054 - Sport and Recreation | E109: 11.19 - 054 - Sport and Recreation
B110: 11.20 | C110: 055 - Horticulture | D110: 11.20 - 055 - Horticulture | E110: 11.20 - 055 - Horticulture
B111: 11.21 | C111: 056 - Conservation and Resorts | D111: 11.21 - 056 - Conservation and Resorts | E111: 11.21 - 056 - Conservation and Resorts
B112: 11.22 | C112: 057 - Cemeteries | D112: 11.22 - 057 - Cemeteries | E112: 11.22 - 057 - Cemeteries
B113: 11.23 | C113: 064 - Urban Development Projects | D113: 11.23 - 064 - Urban Development Projects | E113: 11.23 - 064 - Urban Development Projects
B114: 11.24 | C114: 065 - Tshwane House | D114: 11.24 - 065 - Tshwane House | E114: 11.24 - 065 - Tshwane House
B115: 11.25 | C115: 069 - Operation and Management | D115: 11.25 - 069 - Operation and Management | E115: 11.25 - 069 - Operation and Management
B116: 11.26 | C116: 079 - City Planning | D116: 11.26 - 079 - City Planning | E116: 11.26 - 079 - City Planning
B117: 11.27 | C117: 080 - City Planning | D117: 11.27 - 080 - City Planning | E117: 11.27 - 080 - City Planning
B118: 11.28 | C118: 082 - Housing Administration | D118: 11.28 - 082 - Housing Administration | E118: 11.28 - 082 - Housing Administration
B119: 11.29 | C119: 083 - Housing Administration | D119: 11.29 - 083 - Housing Administration | E119: 11.29 - 083 - Housing Administration
B120: 11.30 | C120: 084 - Economic Housing | D120: 11.30 - 084 - Economic Housing | E120: 11.30 - 084 - Economic Housing
B121: 11.31 | C121: 085 - Housing: Selling Schemes | D121: 11.31 - 085 - Housing: Selling Schemes | E121: 11.31 - 085 - Housing: Selling Schemes
B122: 11.32 | C122: 086 - Housing Taken Over From Government | D122: 11.32 - 086 - Housing Taken Over From Government | E122: 11.32 - 086 - Housing Taken Over From Government
B123: 11.33 | C123: 089 - Housing: East | D123: 11.33 - 089 - Housing: East | E123: 11.33 - 089 - Housing: East
B124: 11.34 | C124: 090 - RED: Region 3 | D124: 11.34 - 090 - RED: Region 3 | E124: 11.34 - 090 - RED: Region 3
B125: 11.35 | C125: 113 - Primary Power Distribution | D125: 11.35 - 113 - Primary Power Distribution | E125: 11.35 - 113 - Primary Power Distribution
B126: 11.36 | C126: 114 - Electricity Distribution System: Prince | D126: 11.36 - 114 - Electricity Distribution System: Prince | E126: 11.36 - 114 - Electricity Distribution System: Prince
B127: 11.37 | C127: 115 - Electricity Distribution System Works Ea | D127: 11.37 - 115 - Electricity Distribution System Works Ea | E127: 11.37 - 115 - Electricity Distribution System Works Ea
B128: 11.38 | C128: 116 - Electricity: Power System Operating | D128: 11.38 - 116 - Electricity: Power System Operating | E128: 11.38 - 116 - Electricity: Power System Operating
B129: 11.39 | C129: 117 - Electricity: Previous Park | D129: 11.39 - 117 - Electricity: Previous Park | E129: 11.39 - 117 - Electricity: Previous Park
B130: 11.40 | C130: 118 - Electricity: Technical Support Services | D130: 11.40 - 118 - Electricity: Technical Support Services | E130: 11.40 - 118 - Electricity: Technical Support Services
B131: 11.41 | C131: 119 - Specialist Engineering | D131: 11.41 - 119 - Specialist Engineering | E131: 11.41 - 119 - Specialist Engineering
B132: 11.42 | C132: 120 - Electro technical: Works South | D132: 11.42 - 120 - Electro technical: Works South | E132: 11.42 - 120 - Electro technical: Works South
B133: 11.43 | C133: 121 - Electricity Distribution System: Rosslyn | D133: 11.43 - 121 - Electricity Distribution System: Rosslyn | E133: 11.43 - 121 - Electricity Distribution System: Rosslyn
B134: 11.44 | C134: 122 - Electricity: Wonderboom | D134: 11.44 - 122 - Electricity: Wonderboom | E134: 11.44 - 122 - Electricity: Wonderboom
B135: 11.45 | C135: 123 - Electricity Distribution System: Fortsig | D135: 11.45 - 123 - Electricity Distribution System: Fortsig | E135: 11.45 - 123 - Electricity Distribution System: Fortsig
B136: 11.46 | C136: 124 - Electricity: ESKOM Areas | D136: 11.46 - 124 - Electricity: ESKOM Areas | E136: 11.46 - 124 - Electricity: ESKOM Areas
B137: 11.47 | C137: 125 - Electricity: Soshanguve | D137: 11.47 - 125 - Electricity: Soshanguve | E137: 11.47 - 125 - Electricity: Soshanguve
B138: 11.48 | C138: 126 - Management and Administration (Kungwini) | D138: 11.48 - 126 - Management and Administration (Kungwini) | E138: 11.48 - 126 - Management and Administration (Kungwini)
B139: 11.49 | C139: 127 - Management and Administration (Nokeng) | D139: 11.49 - 127 - Management and Administration (Nokeng) | E139: 11.49 - 127 - Management and Administration (Nokeng)
B140: 11.50 | C140: 128 - Management and Administration (Metsweding) | D140: 11.50 - 128 - Management and Administration (Metsweding) | E140: 11.50 - 128 - Management and Administration (Metsweding)
B141: 11.51 | C141: 129 - Electricity: Atteridgeville | D141: 11.51 - 129 - Electricity: Atteridgeville | E141: 11.51 - 129 - Electricity: Atteridgeville
B142: 11.52 | C142: 136 - Water Supply | D142: 11.52 - 136 - Water Supply | E142: 11.52 - 136 - Water Supply
B143: 11.53 | C143: 140 - Management and Administration (Nokeng) | D143: 11.53 - 140 - Management and Administration (Nokeng) | E143: 11.53 - 140 - Management and Administration (Nokeng)
B144: 11.54 | C144: 150 - Management and Administration (Kungwini) | D144: 11.54 - 150 - Management and Administration (Kungwini) | E144: 11.54 - 150 - Management and Administration (Kungwini)
B145: 11.55 | C145: 151 - Management and Administration (Nokeng) | D145: 11.55 - 151 - Management and Administration (Nokeng) | E145: 11.55 - 151 - Management and Administration (Nokeng)
B146: 11.56 | C146: 152 - Management and Administration (Metsweding) | D146: =CONCATENATE(B146, " - ", C146) -> 11.56 - 152 - Management and Administration (Metsweding) | E146: 11.56 - 152 - Management and Administration (Metsweding)
B147: 11.57 | C147: 155 - Management and Administration (Kungwini) | D147: 11.57 - 155 - Management and Administration (Kungwini) | E147: 11.57 - 155 - Management and Administration (Kungwini)
B148: 11.58 | C148: 156 - Management and Administration (Nokeng) | D148: 11.58 - 156 - Management and Administration (Nokeng) | E148: 11.58 - 156 - Management and Administration (Nokeng)
B149: 11.59 | C149: 157 - Management and Administration (Metsweding) | D149: 11.59 - 157 - Management and Administration (Metsweding) | E149: 11.59 - 157 - Management and Administration (Metsweding)
B150: 11.60 | C150: 182 - Management and Administration (Kungwini) | D150: 11.60 - 182 - Management and Administration (Kungwini) | E150: 11.60 - 182 - Management and Administration (Kungwini)
B151: 11.61 | C151: 183 - Management and Administration (Nokeng) | D151: 11.61 - 183 - Management and Administration (Nokeng) | E151: 11.61 - 183 - Management and Administration (Nokeng)
B152: Vote 12 | C152: Roads & Transport Department
B153: 12.1 | C153: 025 - Roads and Stormwater | D153: =CONCATENATE(B153, " - ", C153) -> 12.1 - 025 - Roads and Stormwater | E153: 12.1 - 025 - Roads and Stormwater
B154: 12.2 | C154: 026 - Management and Administration (Kungwini) | D154: 12.2 - 026 - Management and Administration (Kungwini) | E154: 12.2 - 026 - Management and Administration (Kungwini)
B155: 12.3 | C155: 028 - Management and Administration (Metsweding) | D155: 12.3 - 028 - Management and Administration (Metsweding) | E155: 12.3 - 028 - Management and Administration (Metsweding)
B156: 12.4 | C156: 049 - Metropolitan Police Services | D156: 12.4 - 049 - Metropolitan Police Services | E156: 12.4 - 049 - Metropolitan Police Services
B157: 12.5 | C157: 068 - Transport | D157: 12.5 - 068 - Transport | E157: 12.5 - 068 - Transport
B158: 12.6 | C158: 077 - Mechanical Maintenance: C De Wet | D158: 12.6 - 077 - Mechanical Maintenance: C De Wet | E158: 12.6 - 077 - Mechanical Maintenance: C De Wet
B159: 12.7 | C159: 174 - Transport Services | D159: 12.7 - 174 - Transport Services | E159: 12.7 - 174 - Transport Services
B160: 12.8 | C160: 175 - Airport | D160: 12.8 - 175 - Airport | E160: 12.8 - 175 - Airport
B161: Vote 13 | C161: Shared Services Department
B162: 13.1 | C162: 001 - Tshwane Civic Centre | D162: =CONCATENATE(B162, " - ", C162) -> 13.1 - 001 - Tshwane Civic Centre | E162: 13.1 - 001 - Tshwane Civic Centre
B163: 13.2 | C163: 008 - Information Services | D163: 13.2 - 008 - Information Services | E163: 13.2 - 008 - Information Services
B164: 13.3 | C164: 043 - Administrative Services | D164: 13.3 - 043 - Administrative Services | E164: 13.3 - 043 - Administrative Services
B165: 13.4 | C165: 062 - Catering | D165: 13.4 - 062 - Catering | E165: 13.4 - 062 - Catering
B166: 13.5 | C166: 067 - Property Services | D166: 13.5 - 067 - Property Services | E166: 13.5 - 067 - Property Services
B167: 13.6 | C167: 071 - Corporate Management | D167: 13.6 - 071 - Corporate Management | E167: 13.6 - 071 - Corporate Management
B168: 13.7 | C168: 073 - Mechanical Maintenance Bosman Street | D168: 13.7 - 073 - Mechanical Maintenance Bosman Street | E168: 13.7 - 073 - Mechanical Maintenance Bosman Street
B169: Vote 14 | C169: Utility Services Department
B170: 14.1 | C170: 109 - Electricity | D170: =CONCATENATE(B170, " - ", C170) -> 14.1 - 109 - Electricity | E170: 14.1 - 109 - Electricity
B171: 14.2 | C171: 110 - Electricity | D171: 14.2 - 110 - Electricity | E171: 14.2 - 110 - Electricity
B172: 14.3 | C172: 111 - Pretoria West Power Station | D172: 14.3 - 111 - Pretoria West Power Station | E172: 14.3 - 111 - Pretoria West Power Station
B173: 14.4 | C173: 112 - Royal Power Station | D173: 14.4 - 112 - Royal Power Station | E173: 14.4 - 112 - Royal Power Station
B174: 14.5 | C174: 113 - Primary Power Distribution | D174: 14.5 - 113 - Primary Power Distribution | E174: 14.5 - 113 - Primary Power Distribution
B175: 14.6 | C175: 116 - Electricity: Power System Operating | D175: 14.6 - 116 - Electricity: Power System Operating | E175: 14.6 - 116 - Electricity: Power System Operating
B176: 14.7 | C176: 118 - Electricity: Technical Support Services | D176: 14.7 - 118 - Electricity: Technical Support Services | E176: 14.7 - 118 - Electricity: Technical Support Services
B177: 14.8 | C177: 119 - Specialist Engineering | D177: 14.8 - 119 - Specialist Engineering | E177: 14.8 - 119 - Specialist Engineering
B178: 14.9 | C178: 030 - Waste Water Treatment | D178: 14.9 - 030 - Waste Water Treatment | E178: 14.9 - 030 - Waste Water Treatment
B179: 14.10 | C179: 031 - Waste Water Collection | D179: 14.10 - 031 - Waste Water Collection | E179: 14.10 - 031 - Waste Water Collection
B180: 14.11 | C180: 136 - Water Supply | D180: 14.11 - 136 - Water Supply | E180: 14.11 - 136 - Water Supply
B181: 14.12 | C181: 137 - Management and Administration (Kungwini) | D181: 14.12 - 137 - Management and Administration (Kungwini) | E181: 14.12 - 137 - Management and Administration (Kungwini)
B182: 14.13 | C182: 138 - Management and Administration (Nokeng) | D182: 14.13 - 138 - Management and Administration (Nokeng) | E182: 14.13 - 138 - Management and Administration (Nokeng)
B183: 14.14 | C183: 139 - Management and Administration (Kungwini) | D183: 14.14 - 139 - Management and Administration (Kungwini) | E183: 14.14 - 139 - Management and Administration (Kungwini)
B184: 14.15 | C184: 140 - Management and Administration (Nokeng) | D184: 14.15 - 140 - Management and Administration (Nokeng) | E184: 14.15 - 140 - Management and Administration (Nokeng)
B185: 14.16 | C185: 141 - Management and Administration (Metsweding) | D185: 14.16 - 141 - Management and Administration (Metsweding) | E185: 14.16 - 141 - Management and Administration (Metsweding)
B186: Vote 15 | C186: Other Departments
B187: 15.1 | C187: City Manager Department | D187: =CONCATENATE(B187, " - ", C187) -> 15.1 - City Manager Department | E187: 15.1 - City Manager Department
B188: 15.2 | C188: City Strategy and Organisational Performance | D188: 15.2 - City Strategy and Organisational Performance | E188: 15.2 - City Strategy and Organisational Performance
B189: 15.3 | C189: Customer Relations Management Department | D189: 15.3 - Customer Relations Management Department | E189: 15.3 - Customer Relations Management Department
B190: 15.4 | C190: Group Communication & Marketing Department | D190: 15.4 - Group Communication & Marketing Department | E190: 15.4 - Group Communication & Marketing Department
B191: 15.5 | C191: Group Human Capital Management Department | D191: 15.5 - Group Human Capital Management Department | E191: 15.5 - Group Human Capital Management Department
B192: 15.6 | C192: Group Legal and Secretarial Service Department | D192: 15.6 - Group Legal and Secretarial Service Department | E192: 15.6 - Group Legal and Secretarial Service Department
B193: 15.7 | C193: Office of the Chief Whip Department | D193: 15.7 - Office of the Chief Whip Department | E193: 15.7 - Office of the Chief Whip Department
B194: 15.8 | C194: Office of the Executive Mayor Department | D194: 15.8 - Office of the Executive Mayor Department | E194: 15.8 - Office of the Executive Mayor Department
B195: 15.9 | C195: Office of the Speaker Department | D195: 15.9 - Office of the Speaker Department | E195: 15.9 - Office of the Speaker Department

Sheet Contacts
A1: =muni&" - "&" Contact Information" -> TSH City Of Tshwane - Contact Information
A3: A. GENERAL INFORMATION
A4: Municipality | B4: =muni -> TSH City Of Tshwane | C4: =IF(B4="Choose name from List","Set name on 'Instructions' sheet", "") -> 
A6: Grade | C6: 1 Grade in terms of the Remuneration of Public Office Bearers Act.
A8: Province | B8: =IF(B4>" ",VLOOKUP(B4,'Lookup and lists'!B29:C307,2, FALSE)," ") -> GT GAUTENG
A10: Web Address | B10: www.tshwane.gov.za
A12: e-mail Address | B12: Citymanager@tshwane.gov.za
A14: B. CONTACT INFORMATION
A15: Postal address:
A16: P.O. Box | B16: PO Box 440
A17: City / Town | B17: Pretoria
A18: Postal Code | B18: 1
A20: Street address
A21: Building | B21: Tshwane House Floor 2
A22: Street No. & Name | B22: Cnr Lilian Ngoyi & Madiba street
A23: City / Town | B23: Pretoria
A24: Postal Code | B24: 2
A26: General Contacts
A27: Telephone number | B27: +27 12 358 7911
A28: Fax number | B28: +27 12 358 1112
A30: C. POLITICAL LEADERSHIP
A31: Speaker: | C31: Secretary/PA to the Speaker:
A32: ID Number | C32: ID Number
A33: Title | C33: Title
A34: Name | B34: Katlego Rachel Matheba | C34: Name | D34: Luzette R Klein
A35: Telephone number | B35: +27 12 358 4228/1601 | C35: Telephone number | D35: +27 12 358 8068
A36: Cell number | B36: +27 72 174 1658 | C36: Cell number | D36: +27 79 797 3354
A37: Fax number | B37: +27 12 358 1312 | C37: Fax number | D37: +27 86 211 9301 or +27 12 358 1312
A38: E-mail address | B38: Speaker@tshwane.gov.za | C38: E-mail address | D38: Luzettek@tshwane.gov.za
A40: Mayor/Executive Mayor: | C40: Secretary/PA to the Mayor/Executive Mayor:
A41: ID Number | C41: ID Number
A42: Title | C42: Title
A43: Name | B43: Stevens Mokgalapa | C43: Name | D43: Sally Motebele
A44: Telephone number | B44: +27 12 358 4763 | C44: Telephone number | D44: +27 12 358 4903
A45: Cell number | C45: Cell number
A46: Fax number | B46: +27 12 323 5117 | C46: Fax number
A47: E-mail address | B47: Executivemayor@tshwane.gov.za | C47: E-mail address | D47: sallym@tshwane.gov.za
A49: Deputy Mayor/Executive Mayor: | C49: Secretary/PA to the Deputy Mayor/Executive Mayor:
A50: ID Number | C50: ID Number
A51: Title | C51: Title
A52: Name | C52: Name
A53: Telephone number | C53: Telephone number
A54: Cell number | C54: Cell number
A55: Fax number | C55: Fax number
A56: E-mail address | C56: E-mail address
A58: D. MANAGEMENT LEADERSHIP
A59: Municipal Manager: | C59: Secretary/PA to the Municipal Manager:
A60: ID Number | C60: ID Number
A61: Title | C61: Title
A62: Name | B62: Moeketsi Mosola | C62: Name | D62: Ninette Botha
A63: Telephone number | B63: +27 12 358 4901 | C63: Telephone number | D63: +27 12 358 4904
A64: Cell number | C64: Cell number | D64: +27 79 490 7146
A65: Fax number | B65: +27 12 358 1112 | C65: Fax number | D65: +27 12 358 1112 or 086 214 9544
A66: E-mail address | B66: citymanager@tshwane.gov.za | C66: E-mail address | D66: ninetteb@tshwane.gov.za
A68: Chief Financial Officer | C68: Secretary/PA to the Chief Financial Officer
A69: ID Number | C69: ID Number
A70: Title | C70: Title
A71: Name | B71: Group CFO: Umar Banda | C71: Name | D71: Sarah Masevhe
A72: Telephone number | B72: +27 12 358 8110/1 | C72: Telephone number | D72: +27 12 358 8101
A73: Cell number | C73: Cell number | D73: 27732120144
A74: Fax number | B74: +27 12 358 8111 | C74: Fax number
A75: E-mail address | B75: UmarB@tshwane.gov.za | C75: E-mail address | D75: SarahMas@tshwane.gov.za
A77: Official responsible for submitting financial information | C77: Official responsible for submitting financial information
A78: ID Number | C78: ID Number
A79: Title | C79: Title
A80: Name | B80: Nthabiseng Mokete | C80: Name
A81: Telephone number | B81: +27 12 358 3625 | C81: Telephone number
A82: Cell number | B82: +27 82 562 1989 | C82: Cell number
A83: Fax number | B83: +27 12 358 8111 | C83: Fax number
A84: E-mail address | B84: NthabisengMok@tshwane.gov.za | C84: E-mail address
A85: Official responsible for submitting financial information | C85: Official responsible for submitting financial information
A86: ID Number | C86: ID Number
A87: Title | C87: Title
A88: Name | C88: Name
A89: Telephone number | C89: Telephone number
A90: Cell number | C90: Cell number
A91: Fax number | C91: Fax number
A92: E-mail address | C92: E-mail address

Sheet A1-Sum
A1: =muni&" - "&Approve1 -> TSH City Of Tshwane - Table A1 Consolidated Budget Summary
A2: =desc -> Description | B2: =head1b -> 2015/16 | C2: =head1A -> 2016/17 | D2: =Head1 -> 2017/18 | E2: =Head2 -> Current Year 2018/19 | I2: =Head3 -> 2019/20 Medium Term Revenue & Expenditure Framework
A3: R thousands | B3: =Head5 -> Audited Outcome | C3: =Head5 -> Audited Outcome | D3: =Head5 -> Audited Outcome | E3: =Head6 -> Original Budget | F3: =Head7 -> Adjusted Budget | G3: =Head8 -> Full Year Forecast | H3: =Head5b -> Pre-audit outcome | I3: =Head9 -> Budget Year 2019/20 | J3: =Head10 -> Budget Year +1 2020/21 | K3: =Head11 -> Budget Year +2 2021/22
A4: Financial Performance
A5: Property rates | B5: ='A4-FinPerf RE'!C5 -> 5360554242 | C5: ='A4-FinPerf RE'!D5 -> 5912583707 | D5: ='A4-FinPerf RE'!E5 -> 6761346762 | E5: ='A4-FinPerf RE'!F5 -> 6980635977 | F5: ='A4-FinPerf RE'!G5 -> 7065502389 | G5: ='A4-FinPerf RE'!H5 -> 7065502389 | H5: ='A4-FinPerf RE'!I5 -> 0 | I5: ='A4-FinPerf RE'!J5 -> 7490492531 | J5: ='A4-FinPerf RE'!K5 -> 7894979128 | K5: ='A4-FinPerf RE'!L5 -> 8321308001
A6: Service charges | B6: =SUM('A4-FinPerf RE'!C6:C9) -> 1.46183388e+10 | C6: =SUM('A4-FinPerf RE'!D6:D9) -> 1.618649312e+10 | D6: =SUM('A4-FinPerf RE'!E6:E9) -> 1.692104589e+10 | E6: =SUM('A4-FinPerf RE'!F6:F9) -> 1.878856034e+10 | F6: =SUM('A4-FinPerf RE'!G6:G9) -> 1.865976258e+10 | G6: =SUM('A4-FinPerf RE'!H6:H9) -> 1.865976258e+10 | H6: =SUM('A4-FinPerf RE'!I6:I9) -> 0 | I6: =SUM('A4-FinPerf RE'!J6:J9) -> 2.060531341e+10 | J6: =SUM('A4-FinPerf RE'!K6:K9) -> 2.222345844e+10 | K6: =SUM('A4-FinPerf RE'!L6:L9) -> 2.35434597e+10
A7: Investment revenue | B7: ='A4-FinPerf RE'!C12 -> 57274371.37 | C7: ='A4-FinPerf RE'!D12 -> 105877361.7 | D7: ='A4-FinPerf RE'!E12 -> 210975786.5 | E7: ='A4-FinPerf RE'!F12 -> 103863942.4 | F7: ='A4-FinPerf RE'!G12 -> 177982585 | G7: ='A4-FinPerf RE'!H12 -> 177982585 | H7: ='A4-FinPerf RE'!I12 -> 0 | I7: ='A4-FinPerf RE'!J12 -> 186887427.6 | J7: ='A4-FinPerf RE'!K12 -> 197151316.2 | K7: ='A4-FinPerf RE'!L12 -> 207970466.1
A8: Transfers recognised - operational | B8: ='A4-FinPerf RE'!C18 -> 3517105033 | C8: ='A4-FinPerf RE'!D18 -> 3813144804 | D8: ='A4-FinPerf RE'!E18 -> 4362302110 | E8: ='A4-FinPerf RE'!F18 -> 4440080940 | F8: ='A4-FinPerf RE'!G18 -> 4736593938 | G8: ='A4-FinPerf RE'!H18 -> 4736593938 | H8: ='A4-FinPerf RE'!I18 -> 0 | I8: ='A4-FinPerf RE'!J18 -> 4789483640 | J8: ='A4-FinPerf RE'!K18 -> 5043649070 | K8: ='A4-FinPerf RE'!L18 -> 5180984880
A9: Other own revenue | B9: ='A4-FinPerf RE'!C11+'A4-FinPerf RE'!C13+'A4-FinPerf RE'!C14+'A4-FinPerf RE'!C15+'A4-FinPerf RE'!C16+'A4-FinPerf RE'!C17+'A4-FinPerf RE'!C19+'A4-FinPerf RE'!C20 -> 2059349972 | C9: ='A4-FinPerf RE'!D11+'A4-FinPerf RE'!D13+'A4-FinPerf RE'!D14+'A4-FinPerf RE'!D15+'A4-FinPerf RE'!D16+'A4-FinPerf RE'!D17+'A4-FinPerf RE'!D19+'A4-FinPerf RE'!D20 -> 2123935762 | D9: ='A4-FinPerf RE'!E11+'A4-FinPerf RE'!E13+'A4-FinPerf RE'!E14+'A4-FinPerf RE'!E15+'A4-FinPerf RE'!E16+'A4-FinPerf RE'!E17+'A4-FinPerf RE'!E19+'A4-FinPerf RE'!E20 -> 2045564888 | E9: ='A4-FinPerf RE'!F11+'A4-FinPerf RE'!F13+'A4-FinPerf RE'!F14+'A4-FinPerf RE'!F15+'A4-FinPerf RE'!F16+'A4-FinPerf RE'!F17+'A4-FinPerf RE'!F19+'A4-FinPerf RE'!F20 -> 2217065702 | F9: ='A4-FinPerf RE'!G11+'A4-FinPerf RE'!G13+'A4-FinPerf RE'!G14+'A4-FinPerf RE'!G15+'A4-FinPerf RE'!G16+'A4-FinPerf RE'!G17+'A4-FinPerf RE'!G19+'A4-FinPerf RE'!G20 -> 2351349565 | G9: ='A4-FinPerf RE'!H11+'A4-FinPerf RE'!H13+'A4-FinPerf RE'!H14+'A4-FinPerf RE'!H15+'A4-FinPerf RE'!H16+'A4-FinPerf RE'!H17+'A4-FinPerf RE'!H19+'A4-FinPerf RE'!H20 -> 2351349565 | H9: ='A4-FinPerf RE'!I11+'A4-FinPerf RE'!I13+'A4-FinPerf RE'!I14+'A4-FinPerf RE'!I15+'A4-FinPerf RE'!I16+'A4-FinPerf RE'!I17+'A4-FinPerf RE'!I19+'A4-FinPerf RE'!I20 -> 0 | I9: ='A4-FinPerf RE'!J11+'A4-FinPerf RE'!J13+'A4-FinPerf RE'!J14+'A4-FinPerf RE'!J15+'A4-FinPerf RE'!J16+'A4-FinPerf RE'!J17+'A4-FinPerf RE'!J19+'A4-FinPerf RE'!J20 -> 2491690386 | J9: ='A4-FinPerf RE'!K11+'A4-FinPerf RE'!K13+'A4-FinPerf RE'!K14+'A4-FinPerf RE'!K15+'A4-FinPerf RE'!K16+'A4-FinPerf RE'!K17+'A4-FinPerf RE'!K19+'A4-FinPerf RE'!K20 -> 2653112951 | K9: ='A4-FinPerf RE'!L11+'A4-FinPerf RE'!L13+'A4-FinPerf RE'!L14+'A4-FinPerf RE'!L15+'A4-FinPerf RE'!L16+'A4-FinPerf RE'!L17+'A4-FinPerf RE'!L19+'A4-FinPerf RE'!L20 -> 2815867687
A10: ='A4-FinPerf RE'!A21 -> Total Revenue (excluding capital transfers and contributions) | B10: =SUM(B5:B9) -> 2.561262242e+10 | C10: 2.814203475e+10 | D10: 3.030123544e+10 | E10: 3.25302069e+10 | F10: 3.299119105e+10 | G10: 3.299119105e+10 | H10: 0 | I10: 3.55638674e+10 | J10: 3.801235091e+10 | K10: 4.006959073e+10
A11: Employee costs | B11: ='A4-FinPerf RE'!C24 -> 7515878882 | C11: ='A4-FinPerf RE'!D24 -> 8022601725 | D11: ='A4-FinPerf RE'!E24 -> 8162683482 | E11: ='A4-FinPerf RE'!F24 -> 9604146267 | F11: ='A4-FinPerf RE'!G24 -> 9557269604 | G11: ='A4-FinPerf RE'!H24 -> 9557269604 | H11: ='A4-FinPerf RE'!I24 -> 0 | I11: ='A4-FinPerf RE'!J24 -> 1.06319404e+10 | J11: ='A4-FinPerf RE'!K24 -> 1.162852383e+10 | K11: ='A4-FinPerf RE'!L24 -> 1.240785596e+10
A12: Remuneration of councillors | B12: ='A4-FinPerf RE'!C25 -> 109968279.8 | C12: ='A4-FinPerf RE'!D25 -> 115513604.1 | D12: ='A4-FinPerf RE'!E25 -> 123785928.2 | E12: ='A4-FinPerf RE'!F25 -> 132797337.5 | F12: ='A4-FinPerf RE'!G25 -> 136383061.7 | G12: ='A4-FinPerf RE'!H25 -> 136383061.7 | H12: ='A4-FinPerf RE'!I25 -> 0 | I12: ='A4-FinPerf RE'!J25 -> 142093151.1 | J12: ='A4-FinPerf RE'!K25 -> 151613392.2 | K12: ='A4-FinPerf RE'!L25 -> 161771489.5
A13: Depreciation & asset impairment | B13: ='A4-FinPerf RE'!C27 -> 1417534573 | C13: ='A4-FinPerf RE'!D27 -> 1588749855 | D13: ='A4-FinPerf RE'!E27 -> 2043501122 | E13: ='A4-FinPerf RE'!F27 -> 1957156351 | F13: ='A4-FinPerf RE'!G27 -> 1957258609 | G13: ='A4-FinPerf RE'!H27 -> 1957258609 | H13: ='A4-FinPerf RE'!I27 -> 0 | I13: ='A4-FinPerf RE'!J27 -> 2132962910 | J13: ='A4-FinPerf RE'!K27 -> 2220898816 | K13: ='A4-FinPerf RE'!L27 -> 2343010542
A14: Finance charges | B14: ='A4-FinPerf RE'!C28 -> 1126460250 | C14: ='A4-FinPerf RE'!D28 -> 1301275716 | D14: ='A4-FinPerf RE'!E28 -> 1686553864 | E14: ='A4-FinPerf RE'!F28 -> 1390948318 | F14: ='A4-FinPerf RE'!G28 -> 1387722304 | G14: ='A4-FinPerf RE'!H28 -> 1387722304 | H14: ='A4-FinPerf RE'!I28 -> 0 | I14: ='A4-FinPerf RE'!J28 -> 1512675725 | J14: ='A4-FinPerf RE'!K28 -> 1618563026 | K14: ='A4-FinPerf RE'!L28 -> 1731862437
A15: Materials and bulk purchases | B15: ='A4-FinPerf RE'!C29+'A4-FinPerf RE'!C30 -> 9191428253 | C15: ='A4-FinPerf RE'!D29+'A4-FinPerf RE'!D30 -> 9817856751 | D15: ='A4-FinPerf RE'!E29+'A4-FinPerf RE'!E30 -> 1.02202999e+10 | E15: ='A4-FinPerf RE'!F29+'A4-FinPerf RE'!F30 -> 1.148945021e+10 | F15: ='A4-FinPerf RE'!G29+'A4-FinPerf RE'!G30 -> 1.13999458e+10 | G15: ='A4-FinPerf RE'!H29+'A4-FinPerf RE'!H30 -> 1.13999458e+10 | H15: ='A4-FinPerf RE'!I29+'A4-FinPerf RE'!I30 -> 0 | I15: ='A4-FinPerf RE'!J29+'A4-FinPerf RE'!J30 -> 1.282013352e+10 | J15: ='A4-FinPerf RE'!K29+'A4-FinPerf RE'!K30 -> 1.384035612e+10 | K15: ='A4-FinPerf RE'!L29+'A4-FinPerf RE'!L30 -> 1.45891745e+10
A16: Transfers and grants | B16: ='A4-FinPerf RE'!C32 -> 76213216.13 | C16: ='A4-FinPerf RE'!D32 -> 51462269.55 | D16: ='A4-FinPerf RE'!E32 -> 33709003.29 | E16: ='A4-FinPerf RE'!F32 -> 42222485.79 | F16: ='A4-FinPerf RE'!G32 -> 57868149.83 | G16: ='A4-FinPerf RE'!H32 -> 57868150.57 | H16: ='A4-FinPerf RE'!I32 -> 0 | I16: ='A4-FinPerf RE'!J32 -> 57882790 | J16: ='A4-FinPerf RE'!K32 -> 60996437.09 | K16: ='A4-FinPerf RE'!L32 -> 67399108.66
A17: Other expenditure | B17: ='A4-FinPerf RE'!C26+'A4-FinPerf RE'!C31+'A4-FinPerf RE'!C33+'A4-FinPerf RE'!C34 -> 7528903785 | C17: ='A4-FinPerf RE'!D26+'A4-FinPerf RE'!D31+'A4-FinPerf RE'!D33+'A4-FinPerf RE'!D34 -> 7125691038 | D17: ='A4-FinPerf RE'!E26+'A4-FinPerf RE'!E31+'A4-FinPerf RE'!E33+'A4-FinPerf RE'!E34 -> 7694570767 | E17: ='A4-FinPerf RE'!F26+'A4-FinPerf RE'!F31+'A4-FinPerf RE'!F33+'A4-FinPerf RE'!F34 -> 7800255959 | F17: ='A4-FinPerf RE'!G26+'A4-FinPerf RE'!G31+'A4-FinPerf RE'!G33+'A4-FinPerf RE'!G34 -> 8431486370 | G17: ='A4-FinPerf RE'!H26+'A4-FinPerf RE'!H31+'A4-FinPerf RE'!H33+'A4-FinPerf RE'!H34 -> 8431486370 | H17: ='A4-FinPerf RE'!I26+'A4-FinPerf RE'!I31+'A4-FinPerf RE'!I33+'A4-FinPerf RE'!I34 -> 0 | I17: ='A4-FinPerf RE'!J26+'A4-FinPerf RE'!J31+'A4-FinPerf RE'!J33+'A4-FinPerf RE'!J34 -> 8263048080 | J17: ='A4-FinPerf RE'!K26+'A4-FinPerf RE'!K31+'A4-FinPerf RE'!K33+'A4-FinPerf RE'!K34 -> 8470887703 | K17: ='A4-FinPerf RE'!L26+'A4-FinPerf RE'!L31+'A4-FinPerf RE'!L33+'A4-FinPerf RE'!L34 -> 8711066219
A18: ='A4-FinPerf RE'!A35 -> Total Expenditure | B18: =SUM(B11:B17) -> 2.696638724e+10 | C18: =SUM(C11:C17) -> 2.802315096e+10 | D18: 2.996510406e+10 | E18: 3.241697692e+10 | F18: 3.29279339e+10 | G18: 3.29279339e+10 | H18: 0 | I18: 3.556073657e+10 | J18: 3.799183933e+10 | K18: 4.001214025e+10
A19: ='A4-FinPerf RE'!A37 -> Surplus/(Deficit) | B19: =B10-B18 -> -1353764820 | C19: 118883794.7 | D19: 336131374.3 | E19: 113229975.1 | F19: 63257151.72 | G19: 63257150.98 | H19: 0 | I19: 3130824.32 | J19: 20511581.05 | K19: 57450480.76
A20: ='A4-FinPerf RE'!A38 -> Transfers and subsidies - capital (monetary allocations) (National / Provincial and District) | B20: ='A4-FinPerf RE'!C38 -> 2452210170 | C20: ='A4-FinPerf RE'!D38 -> 2310451676 | D20: ='A4-FinPerf RE'!E38 -> 2104325795 | E20: ='A4-FinPerf RE'!F38 -> 2198735060 | F20: ='A4-FinPerf RE'!G38 -> 2246922460 | G20: ='A4-FinPerf RE'!H38 -> 2246922460 | H20: ='A4-FinPerf RE'!I38 -> 0 | I20: ='A4-FinPerf RE'!J38 -> 2202096360 | J20: ='A4-FinPerf RE'!K38 -> 2288474930 | K20: ='A4-FinPerf RE'!L38 -> 2396993120
A21: Contributions recognised - capital & contributed assets | B21: ='A4-FinPerf RE'!C39+'A4-FinPerf RE'!C40 -> 0 | C21: ='A4-FinPerf RE'!D39+'A4-FinPerf RE'!D40 -> 0 | D21: ='A4-FinPerf RE'!E39+'A4-FinPerf RE'!E40 -> 940363.2 | E21: ='A4-FinPerf RE'!F39+'A4-FinPerf RE'!F40 -> 8000000 | F21: ='A4-FinPerf RE'!G39+'A4-FinPerf RE'!G40 -> 25872805.98 | G21: ='A4-FinPerf RE'!H39+'A4-FinPerf RE'!H40 -> 25872805.98 | H21: ='A4-FinPerf RE'!I39+'A4-FinPerf RE'!I40 -> 0 | I21: ='A4-FinPerf RE'!J39+'A4-FinPerf RE'!J40 -> 151176150 | J21: ='A4-FinPerf RE'!K39+'A4-FinPerf RE'!K40 -> 269138363 | K21: ='A4-FinPerf RE'!L39+'A4-FinPerf RE'!L40 -> 297010467.1
A22: ='A4-FinPerf RE'!A41 -> Surplus/(Deficit) after capital transfers & contributions | B22: =B19+SUM(B20:B21) -> 1098445349 | C22: =C19+SUM(C20:C21) -> 2429335470 | D22: 2441397532 | E22: 2319965035 | F22: 2336052418 | G22: 2336052417 | H22: 0 | I22: 2356403334 | J22: 2578124874 | K22: 2751454068
A23: ='A4-FinPerf RE'!A46 -> Share of surplus/ (deficit) of associate | B23: ='A4-FinPerf RE'!C46 -> 0 | C23: ='A4-FinPerf RE'!D46 -> 0 | D23: ='A4-FinPerf RE'!E46 -> 0 | E23: ='A4-FinPerf RE'!F46 -> 0 | F23: ='A4-FinPerf RE'!G46 -> 0 | G23: ='A4-FinPerf RE'!H46 -> 0 | H23: ='A4-FinPerf RE'!I46 -> 0 | I23: ='A4-FinPerf RE'!J46 -> 0 | J23: ='A4-FinPerf RE'!K46 -> 0 | K23: ='A4-FinPerf RE'!L46 -> 0
A24: ='A4-FinPerf RE'!A47 -> Surplus/(Deficit) for the year | B24: =B22+B23 -> 1098445349 | C24: =C22+C23 -> 2429335470 | D24: 2441397532 | E24: 2319965035 | F24: 2336052418 | G24: 2336052417 | H24: 0 | I24: 2356403334 | J24: 2578124874 | K24: 2751454068
A26: Capital expenditure & funds sources
A27: Capital expenditure | B27: ='A5-Capex'!C63 -> 3968594186 | C27: ='A5-Capex'!D63 -> 3199887265 | D27: ='A5-Capex'!E63 -> 3047155993 | E27: ='A5-Capex'!F63 -> 4023015060 | F27: ='A5-Capex'!G63 -> 4033887866 | G27: ='A5-Capex'!H63 -> 4033887866 | H27: ='A5-Capex'!I63 -> 0 | I27: ='A5-Capex'!J63 -> 4218132501 | J27: ='A5-Capex'!K63 -> 4545952833 | K27: ='A5-Capex'!L63 -> 4650795118
A28: Transfers recognised - capital | B28: ='A5-Capex'!C70 -> 2444971046 | C28: ='A5-Capex'!D70 -> 2307029350 | D28: ='A5-Capex'!E70 -> 2104325626 | E28: ='A5-Capex'!F70 -> 2210697060 | F28: ='A5-Capex'!G70 -> 2272795267 | G28: ='A5-Capex'!H70 -> 2272795267 | H28: ='A5-Capex'!I70 -> 0 | I28: ='A5-Capex'!J70 -> 2353272510 | J28: ='A5-Capex'!K70 -> 2557613294 | K28: ='A5-Capex'!L70 -> 2694003587
A30: ='A5-Capex'!A72 -> Borrowing | B30: ='A5-Capex'!C72 -> 1194839429 | C30: ='A5-Capex'!D72 -> 760760538.3 | D30: ='A5-Capex'!E72 -> 700248494.1 | E30: ='A5-Capex'!F72 -> 1500000000 | F30: ='A5-Capex'!G72 -> 1500000000 | G30: ='A5-Capex'!H72 -> 1500000000 | H30: ='A5-Capex'!I72 -> 0 | I30: ='A5-Capex'!J72 -> 1500000000 | J30: ='A5-Capex'!K72 -> 1455101000 | K30: ='A5-Capex'!L72 -> 1410000000
A31: ='A5-Capex'!A73 -> Internally generated funds | B31: ='A5-Capex'!C73 -> 328783710.8 | C31: ='A5-Capex'!D73 -> 132097377.2 | D31: ='A5-Capex'!E73 -> 242581872.5 | E31: ='A5-Capex'!F73 -> 312318000 | F31: ='A5-Capex'!G73 -> 261092599 | G31: ='A5-Capex'!H73 -> 261092599 | H31: ='A5-Capex'!I73 -> 0 | I31: ='A5-Capex'!J73 -> 364859991 | J31: ='A5-Capex'!K73 -> 533238539 | K31: ='A5-Capex'!L73 -> 546791531
A32: Total sources of capital funds | B32: =+B28+B30+B31 -> 3968594186 | C32: =+C28+C30+C31 -> 3199887265 | D32: 3047155993 | E32: 4023015060 | F32: 4033887866 | G32: 4033887866 | H32: 0 | I32: 4218132501 | J32: 4545952833 | K32: 4650795118
A34: Financial position
A35: ='A6-FinPos'!A12 -> Total current assets | B35: ='A6-FinPos'!C12 -> 9783218204 | C35: ='A6-FinPos'!D12 -> 8434063825 | D35: ='A6-FinPos'!E12 -> 9687946699 | E35: ='A6-FinPos'!F12 -> 1.123161229e+10 | F35: ='A6-FinPos'!G12 -> 1.022455665e+10 | G35: ='A6-FinPos'!H12 -> 1.022455665e+10 | H35: ='A6-FinPos'!I12 -> 0 | I35: ='A6-FinPos'!J12 -> 1.147669775e+10 | J35: ='A6-FinPos'!K12 -> 1.228155849e+10 | K35: ='A6-FinPos'!L12 -> 1.233861992e+10
A36: ='A6-FinPos'!A24 -> Total non current assets | B36: ='A6-FinPos'!C24 -> 40340147867 | C36: ='A6-FinPos'!D24 -> 39977358848 | D36: ='A6-FinPos'!E24 -> 41864065229 | E36: ='A6-FinPos'!F24 -> 4.28301924e+10 | F36: ='A6-FinPos'!G24 -> 4.411017403e+10 | G36: ='A6-FinPos'!H24 -> 4.411017403e+10 | H36: ='A6-FinPos'!I24 -> 0 | I36: ='A6-FinPos'!J24 -> 4.638432748e+10 | J36: ='A6-FinPos'!K24 -> 4.893932781e+10 | K36: ='A6-FinPos'!L24 -> 5.158314676e+10
A37: ='A6-FinPos'!A34 -> Total current liabilities | B37: ='A6-FinPos'!C34 -> 9570161263 | C37: ='A6-FinPos'!D34 -> 10975813931 | D37: ='A6-FinPos'!E34 -> 1.18239793e+10 | E37: ='A6-FinPos'!F34 -> 1.124659084e+10 | F37: ='A6-FinPos'!G34 -> 1.193724927e+10 | G37: ='A6-FinPos'!H34 -> 1.193724927e+10 | H37: ='A6-FinPos'!I34 -> 0 | I37: ='A6-FinPos'!J34 -> 1.223818729e+10 | J37: ='A6-FinPos'!K34 -> 1.29234589e+10 | K37: ='A6-FinPos'!L34 -> 1.360467831e+10
A38: ='A6-FinPos'!A39 -> Total non current liabilities | B38: ='A6-FinPos'!C39 -> 14217456000 | C38: ='A6-FinPos'!D39 -> 14780981471 | D38: ='A6-FinPos'!E39 -> 1.461107148e+10 | E38: ='A6-FinPos'!F39 -> 14990202934 | F38: ='A6-FinPos'!G39 -> 1.369474118e+10 | G38: ='A6-FinPos'!H39 -> 1.369474118e+10 | H38: ='A6-FinPos'!I39 -> 0 | I38: ='A6-FinPos'!J39 -> 1.413551536e+10 | J38: ='A6-FinPos'!K39 -> 1.4253399e+10 | K38: ='A6-FinPos'!L39 -> 1.42284325e+10
A39: Community wealth/Equity | B39: ='A6-FinPos'!C48 -> 19663032332 | C39: ='A6-FinPos'!D48 -> 22654627271 | D39: ='A6-FinPos'!E48 -> 2.511696114e+10 | E39: ='A6-FinPos'!F48 -> 2.782501093e+10 | F39: ='A6-FinPos'!G48 -> 2.870274023e+10 | G39: ='A6-FinPos'!H48 -> 2.870274023e+10 | H39: ='A6-FinPos'!I48 -> 0 | I39: ='A6-FinPos'!J48 -> 3.089212526e+10 | J39: ='A6-FinPos'!K48 -> 3.342466726e+10 | K39: ='A6-FinPos'!L48 -> 3.544441439e+10
A41: Cash flows
A42: Net cash from (used) operating | B42: ='A7-CFlow'!C17 -> 4066186900 | C42: ='A7-CFlow'!D17 -> 4375510218 | D42: ='A7-CFlow'!E17 -> 5707363564 | E42: ='A7-CFlow'!F17 -> 4161591342 | F42: ='A7-CFlow'!G17 -> 4571536261 | G42: ='A7-CFlow'!H17 -> 4571536261 | H42: ='A7-CFlow'!I17 -> 0 | I42: ='A7-CFlow'!J17 -> 4641744097 | J42: ='A7-CFlow'!K17 -> 4858280199 | K42: ='A7-CFlow'!L17 -> 4527943694
A43: Net cash from (used) investing | B43: ='A7-CFlow'!C27 -> -4087184499 | C43: ='A7-CFlow'!D27 -> -3645773769 | D43: ='A7-CFlow'!E27 -> -3412680101 | E43: ='A7-CFlow'!F27 -> -3961250690 | F43: ='A7-CFlow'!G27 -> -3902589593 | G43: ='A7-CFlow'!H27 -> -3902589593 | H43: ='A7-CFlow'!I27 -> 0 | I43: ='A7-CFlow'!J27 -> -4292186210 | J43: ='A7-CFlow'!K27 -> -4667044349 | K43: ='A7-CFlow'!L27 -> -4860369633
A44: Net cash from (used) financing | B44: ='A7-CFlow'!C36 -> 605219306 | C44: ='A7-CFlow'!D36 -> 254839184 | D44: ='A7-CFlow'!E36 -> -983532934 | E44: ='A7-CFlow'!F36 -> 445617473.6 | F44: ='A7-CFlow'!G36 -> 647547107.3 | G44: ='A7-CFlow'!H36 -> 647547107.3 | H44: ='A7-CFlow'!I36 -> 0 | I44: ='A7-CFlow'!J36 -> 469284382.1 | J44: ='A7-CFlow'!K36 -> 198712723.6 | K44: ='A7-CFlow'!L36 -> -20103108.13
A45: =LEFT('A7-CFlow'!A40,37) -> Cash/cash equivalents at the year end | B45: ='A7-CFlow'!C40 -> 1184740125 | C45: ='A7-CFlow'!D40 -> 2169315803 | D45: ='A7-CFlow'!E40 -> 2392712235 | E45: ='A7-CFlow'!F40 -> 2978764476 | F45: ='A7-CFlow'!G40 -> 3709206010 | G45: ='A7-CFlow'!H40 -> 3709206010 | H45: ='A7-CFlow'!I40 -> 0 | I45: ='A7-CFlow'!J40 -> 4528048279 | J45: ='A7-CFlow'!K40 -> 4917996853 | K45: ='A7-CFlow'!L40 -> 4565467806
A47: Cash backing/surplus reconciliation
A48: ='A8-ResRecon'!A4 -> Cash and investments available | B48: ='A8-ResRecon'!C8 -> 1185450690 | C48: ='A8-ResRecon'!D8 -> 2160067467 | D48: ='A8-ResRecon'!E8 -> 2919058334 | E48: ='A8-ResRecon'!F8 -> 3720812355 | F48: ='A8-ResRecon'!G8 -> 3944619274 | G48: ='A8-ResRecon'!H8 -> 3944619274 | H48: ='A8-ResRecon'!I8 -> 0 | I48: ='A8-ResRecon'!J8 -> 4863461543 | J48: ='A8-ResRecon'!K8 -> 5403410117 | K48: ='A8-ResRecon'!L8 -> 5300881070
A49: ='A8-ResRecon'!A10 -> Application of cash and investments | B49: ='A8-ResRecon'!C18 -> 1004354892 | C49: ='A8-ResRecon'!D18 -> 4484245797 | D49: ='A8-ResRecon'!E18 -> 4770799563 | E49: ='A8-ResRecon'!F18 -> 2682698620 | F49: ='A8-ResRecon'!G18 -> 4719533617 | G49: ='A8-ResRecon'!H18 -> 4719533617 | H49: ='A8-ResRecon'!I18 -> 0 | I49: ='A8-ResRecon'!J18 -> 4507565091 | J49: ='A8-ResRecon'!K18 -> 4659482813 | K49: ='A8-ResRecon'!L18 -> 4938268583
A50: Balance - surplus (shortfall) | B50: =B48-B49 -> 181095798.4 | C50: =C48-C49 -> -2324178330 | D50: -1851741229 | E50: 1038113735 | F50: -774914342.8 | G50: -774914342.8 | H50: 0 | I50: 355896452.3 | J50: 743927303.9 | K50: 362612486.8
A52: Asset management
A53: Asset register summary (WDV) | B53: ='A9-Asset'!C165 -> 32850187167 | C53: ='A9-Asset'!D165 -> 35281110434 | D53: ='A9-Asset'!E165 -> 4.083222256e+10 | E53: ='A9-Asset'!F165 -> 4.206057972e+10 | F53: ='A9-Asset'!G165 -> 43629681131 | G53: ='A9-Asset'!H165 -> 43629681131 | H53: ='A9-Asset'!H165 -> 43629681131 | I53: ='A9-Asset'!I165 -> 45798069857 | J53: ='A9-Asset'!J165 -> 48197283850 | K53: ='A9-Asset'!K165 -> 50585029664
A54: ='A9-Asset'!A168 -> Depreciation | B54: ='A9-Asset'!C168 -> 1437058624 | C54: ='A9-Asset'!D168 -> 1546230626 | D54: ='A9-Asset'!E168 -> 1886378571 | E54: ='A9-Asset'!F168 -> 1957156351 | F54: ='A9-Asset'!G168 -> 1963178073 | G54: ='A9-Asset'!H168 -> 1963178073 | H54: ='A9-Asset'!H168 -> 1963178073 | I54: ='A9-Asset'!I168 -> 2132962910 | J54: ='A9-Asset'!J168 -> 2220898816 | K54: ='A9-Asset'!K168 -> 2343010542
A55: Renewal and Upgrading of Existing Assets | B55: ='A9-Asset'!C37+'A9-Asset'!C69 -> 2092477848 | C55: ='A9-Asset'!D37+'A9-Asset'!D69 -> 532192875.8 | D55: ='A9-Asset'!E37+'A9-Asset'!E69 -> 1387268718 | E55: ='A9-Asset'!F37+'A9-Asset'!F69 -> 1142675905 | F55: ='A9-Asset'!G37+'A9-Asset'!G69 -> 1199959918 | G55: ='A9-Asset'!H37+'A9-Asset'!H69 -> 1199959918 | H55: ='A9-Asset'!H37+'A9-Asset'!H69 -> 1199959918 | I55: ='A9-Asset'!I37+'A9-Asset'!I69 -> 1277327221 | J55: ='A9-Asset'!J37+'A9-Asset'!J69 -> 1405368278 | K55: ='A9-Asset'!K37+'A9-Asset'!K69 -> 1454676610
A56: Repairs and Maintenance | B56: ='A9-Asset'!C169 -> 1432644018 | C56: ='A9-Asset'!D169 -> 1078842749 | D56: ='A9-Asset'!E169 -> 1067721442 | E56: ='A9-Asset'!F169 -> 1645829412 | F56: ='A9-Asset'!G169 -> 1559780622 | G56: ='A9-Asset'!H169 -> 1559780622 | H56: ='A9-Asset'!H169 -> 1559780622 | I56: ='A9-Asset'!I169 -> 1634578005 | J56: ='A9-Asset'!J169 -> 1722695607 | K56: ='A9-Asset'!K169 -> 1768316903
A58: Free services
A59: Cost of Free Basic Services provided | B59: ='A10-SerDel'!C60 -> 1348264188 | C59: ='A10-SerDel'!D60 -> 2012345318 | D59: ='A10-SerDel'!E60 -> 2177207524 | E59: ='A10-SerDel'!F60 -> 2398640856 | F59: ='A10-SerDel'!G60 -> 2398640856 | G59: ='A10-SerDel'!H60 -> 2398640856 | H59: ='A10-SerDel'!I60 -> 2844415885 | I59: ='A10-SerDel'!I60 -> 2844415885 | J59: ='A10-SerDel'!J60 -> 3123864697 | K59: ='A10-SerDel'!K60 -> 3412035903
A60: Revenue cost of free services provided | B60: ='A10-SerDel'!C79 -> 1865148347 | C60: ='A10-SerDel'!D79 -> 2503812193 | D60: ='A10-SerDel'!E79 -> 2723735374 | E60: ='A10-SerDel'!F79 -> 3061445685 | F60: ='A10-SerDel'!G79 -> 3061445685 | G60: ='A10-SerDel'!H79 -> 3061445685 | H60: ='A10-SerDel'!I79 -> 3628482871 | I60: ='A10-SerDel'!I79 -> 3628482871 | J60: ='A10-SerDel'!J79 -> 3960564001 | K60: ='A10-SerDel'!K79 -> 4317929237
A61: Households below minimum service level
A62: ='A10-SerDel'!A5 -> Water: | B62: ='A10-SerDel'!C14 -> 0 | C62: ='A10-SerDel'!D14 -> 0 | D62: ='A10-SerDel'!E14 -> 0 | E62: ='A10-SerDel'!F14 -> 0 | F62: ='A10-SerDel'!G14 -> 0 | G62: ='A10-SerDel'!H14 -> 0 | H62: ='A10-SerDel'!I14 -> 0 | I62: ='A10-SerDel'!I14 -> 0 | J62: ='A10-SerDel'!J14 -> 0 | K62: ='A10-SerDel'!K14 -> 0
A63: ='A10-SerDel'!A16 -> Sanitation/sewerage: | B63: ='A10-SerDel'!C26 -> 0 | C63: ='A10-SerDel'!D26 -> 0 | D63: ='A10-SerDel'!E26 -> 0 | E63: ='A10-SerDel'!F26 -> 0 | F63: ='A10-SerDel'!G26 -> 0 | G63: ='A10-SerDel'!H26 -> 0 | H63: ='A10-SerDel'!I26 -> 0 | I63: ='A10-SerDel'!I26 -> 0 | J63: ='A10-SerDel'!J26 -> 0 | K63: ='A10-SerDel'!K26 -> 0
A64: ='A10-SerDel'!A28 -> Energy: | B64: ='A10-SerDel'!C35 -> 83236 | C64: ='A10-SerDel'!D35 -> 87946.53353 | D64: ='A10-SerDel'!E35 -> 88696.02806 | E64: ='A10-SerDel'!F35 -> 79581 | F64: ='A10-SerDel'!G35 -> 79581 | G64: ='A10-SerDel'!H35 -> 79581 | H64: ='A10-SerDel'!I35 -> 79979 | I64: ='A10-SerDel'!I35 -> 79979 | J64: ='A10-SerDel'!J35 -> 79979 | K64: ='A10-SerDel'!K35 -> 79979
A65: ='A10-SerDel'!A37 -> Refuse: | B65: ='A10-SerDel'!C45 -> 0 | C65: ='A10-SerDel'!D45 -> 0 | D65: ='A10-SerDel'!E45 -> 0 | E65: ='A10-SerDel'!F45 -> 0 | F65: ='A10-SerDel'!G45 -> 0 | G65: ='A10-SerDel'!H45 -> 0 | H65: ='A10-SerDel'!I45 -> 0 | I65: ='A10-SerDel'!I45 -> 0 | J65: ='A10-SerDel'!J45 -> 0 | K65: ='A10-SerDel'!K45 -> 0

Sheet A2-FinPerf SC
A1: =muni&" - "&Approve3 -> TSH City Of Tshwane - Table A2 Consolidated Budgeted Financial Performance (revenue and expenditure by functional classification)
A2: ="Functional Classification "&desc -> Functional Classification Description | B2: =head27 -> Ref | C2: =head1b -> 2015/16 | D2: =head1A -> 2016/17 | E2: =Head1 -> 2017/18 | F2: =Head2 -> Current Year 2018/19 | I2: =Head3 -> 2019/20 Medium Term Revenue & Expenditure Framework
A3: R thousand | B3: 1 | C3: =Head5 -> Audited Outcome | D3: =Head5 -> Audited Outcome | E3: =Head5 -> Audited Outcome | F3: =Head6 -> Original Budget | G3: =Head7 -> Adjusted Budget | H3: =Head8 -> Full Year Forecast | I3: =Head9 -> Budget Year 2019/20 | J3: =Head10 -> Budget Year +1 2020/21 | K3: =Head11 -> Budget Year +2 2021/22
A4: Revenue - Functional
A5: Governance and administration | C5: =SUM(C6:C8) -> 9135214214 | D5: =SUM(D6:D8) -> 9938492632 | E5: 1.12536237e+10 | F5: 1.15248733e+10 | G5: 1.183817843e+10 | H5: 1.183817843e+10 | I5: 1.25959291e+10 | J5: 1.335145106e+10 | K5: 1.421707606e+10
A6: Executive and council | C6: =A2A!C6 -> 70677624.49 | D6: =A2A!D6 -> 72026991.58 | E6: =A2A!E6 -> 22952278.46 | F6: =A2A!F6 -> 54054050 | G6: =A2A!G6 -> 61466510.43 | H6: =A2A!H6 -> 61466510.43 | I6: =A2A!I6 -> 47275250 | J6: =A2A!J6 -> 50899000 | K6: =A2A!K6 -> 42943700
A7: Finance and administration | C7: =A2A!C9 -> 9024155957 | D7: =A2A!D9 -> 9814708286 | E7: =A2A!E9 -> 1.118288647e+10 | F7: =A2A!F9 -> 1.142664402e+10 | G7: =A2A!G9 -> 1.173465148e+10 | H7: =A2A!H9 -> 1.173465148e+10 | I7: =A2A!I9 -> 1.250417968e+10 | J7: =A2A!J9 -> 1.325358776e+10 | K7: =A2A!K9 -> 1.41245385e+10
A8: Internal audit | C8: =A2A!C23 -> 40380631.94 | D8: =A2A!D23 -> 51757354.79 | E8: =A2A!E23 -> 47784949.27 | F8: =A2A!F23 -> 44175225.11 | G8: =A2A!G23 -> 42060432.11 | H8: =A2A!H23 -> 42060432.11 | I8: =A2A!I23 -> 44474170.7 | J8: =A2A!J23 -> 46964299.9 | K8: =A2A!K23 -> 49593852.07
A9: Community and public safety | C9: =SUM(C10:C14) -> 1571913797 | D9: =SUM(D10:D14) -> 1311494108 | E9: 1600483710 | F9: 1688939872 | G9: 1966603529 | H9: 1966603529 | I9: 1877936397 | J9: 2077570733 | K9: 1601683749
A10: Community and social services | C10: =A2A!C26 -> 55466376.65 | D10: =A2A!D26 -> 86833259.83 | E10: =A2A!E26 -> 41032991.94 | F10: =A2A!F26 -> 22671064.95 | G10: =A2A!G26 -> 65930963.27 | H10: =A2A!H26 -> 65930963.27 | I10: =A2A!I26 -> 42847856.82 | J10: =A2A!J26 -> 20715688.84 | K10: =A2A!K26 -> 17648866.84
A11: Sport and recreation | C11: =A2A!C48 -> 32838940.81 | D11: =A2A!D48 -> 44758351.93 | E11: =A2A!E48 -> 35424006.64 | F11: =A2A!F48 -> 25661675.7 | G11: =A2A!G48 -> 27971786.12 | H11: =A2A!H48 -> 27971786.12 | I11: =A2A!I48 -> 29341869.38 | J11: =A2A!J48 -> 30974739.92 | K11: =A2A!K48 -> 32698496.41
A12: Public safety | C12: =A2A!C54 -> 322521087.9 | D12: =A2A!D54 -> 215314998.4 | E12: =A2A!E54 -> 243411407.9 | F12: =A2A!F54 -> 377073602.6 | G12: =A2A!G54 -> 325811595.5 | H12: =A2A!H54 -> 325811595.5 | I12: =A2A!I54 -> 345223392.2 | J12: =A2A!J54 -> 363890297.6 | K12: =A2A!K54 -> 383566607.1
A13: Housing | C13: =A2A!C63 -> 999153980.8 | D13: =A2A!D63 -> 790547441.8 | E13: =A2A!E63 -> 1064045543 | F13: =A2A!F63 -> 1056042485 | G13: =A2A!G63 -> 1337121339 | H13: =A2A!H63 -> 1337121339 | I13: =A2A!I63 -> 1273709940 | J13: =A2A!J63 -> 1462360672 | K13: =A2A!K63 -> 1153150355
A14: Health | C14: =A2A!C66 -> 161933410.9 | D14: =A2A!D66 -> 174040056.5 | E14: =A2A!E66 -> 216569760.1 | F14: =A2A!F66 -> 207491044 | G14: =A2A!G66 -> 209767845.1 | H14: =A2A!H66 -> 209767845.1 | I14: =A2A!I66 -> 186813338.7 | J14: =A2A!J66 -> 199629334.2 | K14: =A2A!K66 -> 14619423.57
A15: Economic and environmental services | C15: =SUM(C16:C18) -> 1697834940 | D15: =SUM(D16:D18) -> 1611320890 | E15: 1338023020 | F15: 1451106213 | G15: 1283066766 | H15: 1283066766 | I15: 1177067271 | J15: 1251859513 | K15: 1365094854
A16: Planning and development | C16: =A2A!C75 -> 206113098.7 | D16: =A2A!D75 -> 199991894.5 | E16: =A2A!E75 -> 42118024.2 | F16: =A2A!F75 -> 176589571.6 | G16: =A2A!G75 -> 148289873.5 | H16: =A2A!H75 -> 148289873.5 | I16: =A2A!I75 -> 157993746.8 | J16: =A2A!J75 -> 181932121.9 | K16: =A2A!K75 -> 190837491.3
A17: Road transport | C17: =A2A!C86 -> 1487523240 | D17: =A2A!D86 -> 1398556698 | E17: =A2A!E86 -> 1291870982 | F17: =A2A!F86 -> 1273854594 | G17: =A2A!G86 -> 1134114844 | H17: =A2A!H86 -> 1134114844 | I17: =A2A!I86 -> 1018426517 | J17: =A2A!J86 -> 1069244151 | K17: =A2A!K86 -> 1173535862
A18: Environmental protection | C18: =A2A!C91 -> 4198600.53 | D18: =A2A!D91 -> 12772297.75 | E18: =A2A!E91 -> 4034014.36 | F18: =A2A!F91 -> 662048 | G18: =A2A!G91 -> 662048 | H18: =A2A!H91 -> 662048 | I18: =A2A!I91 -> 647007.04 | J18: =A2A!J91 -> 683239.4342 | K18: =A2A!K91 -> 721500.8426
A19: Trading services | C19: =SUM(C20:C23) -> 1.544293021e+10 | D19: =SUM(D20:D23) -> 1.736807242e+10 | E19: 1.799118472e+10 | F19: 1.983177851e+10 | G19: 1.99393874e+10 | H19: 1.99393874e+10 | I19: 2.202055218e+10 | J19: =SUM(J20:J23) -> 2.362954332e+10 | K19: 2.530578208e+10
A20: Energy sources | C20: =A2A!C99 -> 9871095426 | D20: =A2A!D99 -> 1.150808708e+10 | E20: =A2A!E99 -> 1.13979643e+10 | F20: =A2A!F99 -> 1.246744904e+10 | G20: =A2A!G99 -> 1.257653759e+10 | H20: =A2A!H99 -> 1.257653759e+10 | I20: =A2A!I99 -> 1.392055095e+10 | J20: =A2A!J99 -> 1.516893378e+10 | K20: =A2A!K99 -> 1.616718851e+10
A21: Water management | C21: =A2A!C103 -> 3340906255 | D21: =A2A!D103 -> 3345623371 | E21: =A2A!E103 -> 3986415216 | F21: =A2A!F103 -> 4390402606 | G21: =A2A!G103 -> 4339802145 | H21: =A2A!H103 -> 4339802145 | I21: =A2A!I103 -> 4833578857 | J21: =A2A!J103 -> 4949691999 | K21: =A2A!K103 -> 5459652703
A22: Waste water management | C22: =A2A!C107 -> 1039967773 | D22: =A2A!D107 -> 1213407013 | E22: =A2A!E107 -> 1047955089 | F22: =A2A!F107 -> 1438916628 | G22: =A2A!G107 -> 1430183670 | H22: =A2A!H107 -> 1430183670 | I22: =A2A!I107 -> 1578034755 | J22: =A2A!J107 -> 1731355189 | K22: =A2A!K107 -> 1803280246
A23: Waste management | C23: =A2A!C112 -> 1190960757 | D23: =A2A!D112 -> 1300954952 | E23: =A2A!E112 -> 1558850116 | F23: =A2A!F112 -> 1535010234 | G23: =A2A!G112 -> 1592864001 | H23: =A2A!H112 -> 1592864001 | I23: =A2A!I112 -> 1688387614 | J23: =A2A!J112 -> 1779562355 | K23: =A2A!K112 -> 1875660622
A24: Other | B24: 4 | C24: =A2A!C117 -> 216921482.1 | D24: =A2A!D117 -> 222347873.1 | E24: =A2A!E117 -> 220266378.3 | F24: =A2A!F117 -> 240244067.3 | G24: =A2A!G117 -> 236750195.6 | H24: =A2A!H117 -> 236750195.6 | I24: =A2A!I117 -> 245654959.8 | J24: =A2A!J117 -> 259539580.5 | K24: =A2A!K117 -> 273957584.7
A25: ="Total "&A4 -> Total Revenue - Functional | B25: 2 | C25: =C5+C9+C15+C19+C24 -> 2.806481464e+10 | D25: =D5+D9+D15+D19+D24 -> 3.045172792e+10 | E25: =E5+E9+E15+E19+E24 -> 3.240358153e+10 | F25: 3.473694196e+10 | G25: 3.526398632e+10 | H25: 3.526398632e+10 | I25: =I5+I9+I15+I19+I24 -> 3.791713991e+10 | J25: 4.05699642e+10 | K25: 4.276359432e+10
A27: Expenditure - Functional
A28: Governance and administration | C28: =SUM(C29:C31) -> 5485751209 | D28: =SUM(D29:D31) -> 5219449014 | E28: 7929221318 | F28: 7564013465 | G28: 7453950865 | H28: 7453950865 | I28: 8281202152 | J28: 8703399341 | K28: 9118909037
A29: Executive and council | C29: =A2A!C128 -> 1118994791 | D29: =A2A!D128 -> 1022469970 | E29: =A2A!E128 -> 1194151181 | F29: =A2A!F128 -> 1309236086 | G29: =A2A!G128 -> 1255142428 | H29: =A2A!H128 -> 1255142428 | I29: =A2A!I128 -> 1274894897 | J29: =A2A!J128 -> 1362603685 | K29: =A2A!K128 -> 1466586467
A30: Finance and administration | C30: =A2A!C131 -> 3946369699 | D30: =A2A!D131 -> 3850458478 | E30: =A2A!E131 -> 6535757704 | F30: =A2A!F131 -> 5918413865 | G30: =A2A!G131 -> 5886435623 | H30: =A2A!H131 -> 5886435623 | I30: =A2A!I131 -> 6684587027 | J30: =A2A!J131 -> 7000258821 | K30: =A2A!K131 -> 7293604662
A31: Internal audit | C31: =A2A!C145 -> 420386718.5 | D31: =A2A!D145 -> 346520565.4 | E31: =A2A!E145 -> 199312433.4 | F31: =A2A!F145 -> 336363514.6 | G31: =A2A!G145 -> 312372814.2 | H31: =A2A!H145 -> 312372814.2 | I31: =A2A!I145 -> 321720228.7 | J31: =A2A!J145 -> 340536835.3 | K31: =A2A!K145 -> 358717907.4
A32: Community and public safety | C32: =SUM(C33:C37) -> 4267288688 | D32: =SUM(D33:D37) -> 4452881214 | E32: 4562009296 | F32: 5097930837 | G32: 5536434301 | H32: 5536434301 | I32: 5854574417 | J32: 6355840007 | K32: 6738909410
A33: Community and social services | C33: =A2A!C148 -> 246305990.4 | D33: =A2A!D148 -> 289813047.7 | E33: =A2A!E148 -> 473687860.3 | F33: =A2A!F148 -> 292802901.5 | G33: =A2A!G148 -> 346428559.4 | H33: =A2A!H148 -> 346428559.4 | I33: =A2A!I148 -> 339477538 | J33: =A2A!J148 -> 360719463.9 | K33: =A2A!K148 -> 379619996.6
A34: Sport and recreation | C34: =A2A!C170 -> 307870205.8 | D34: =A2A!D170 -> 409797431.1 | E34: =A2A!E170 -> 355842232.3 | F34: =A2A!F170 -> 531376829.8 | G34: =A2A!G170 -> 518723757.6 | H34: =A2A!H170 -> 518723757.6 | I34: =A2A!I170 -> 547510272.9 | J34: =A2A!J170 -> 582258750.1 | K34: =A2A!K170 -> 615345328.3
A35: Public safety | C35: =A2A!C176 -> 2400102658 | D35: =A2A!D176 -> 2572915081 | E35: =A2A!E176 -> 2586874120 | F35: =A2A!F176 -> 3038802655 | G35: =A2A!G176 -> 3036451388 | H35: =A2A!H176 -> 3036451388 | I35: =A2A!I176 -> 3357680950 | J35: =A2A!J176 -> 3695016395 | K35: =A2A!K176 -> 3934531473
A36: Housing | C36: =A2A!C185 -> 693410127.4 | D36: =A2A!D185 -> 585974320.3 | E36: =A2A!E185 -> 561154206.8 | F36: =A2A!F185 -> 538580241.9 | G36: =A2A!G185 -> 882252368 | H36: =A2A!H185 -> 882252368 | I36: =A2A!I185 -> 810066609.6 | J36: =A2A!J185 -> 865945840 | K36: =A2A!K185 -> 903963636.6
A37: Health | C37: =A2A!C188 -> 619599706.1 | D37: =A2A!D188 -> 594381334.2 | E37: =A2A!E188 -> 584450877.1 | F37: =A2A!F188 -> 696368208.5 | G37: =A2A!G188 -> 752578227.5 | H37: =A2A!H188 -> 752578227.5 | I37: =A2A!I188 -> 799839046.3 | J37: =A2A!J188 -> 851899558.3 | K37: =A2A!K188 -> 905448975.1
A38: Economic and environmental services | C38: =SUM(C39:C41) -> 2685127801 | D38: =SUM(D39:D41) -> 2558687287 | E38: 2736827446 | F38: 2984391666 | G38: 3015343045 | H38: 3015343045 | I38: 3176977084 | J38: 3321179287 | K38: 3500613411
A39: Planning and development | C39: =A2A!C197 -> 829107796.6 | D39: =A2A!D197 -> 812866703.8 | E39: =A2A!E197 -> 904374294.8 | F39: =A2A!F197 -> 1041265962 | G39: =A2A!G197 -> 1021058550 | H39: =A2A!H197 -> 1021058550 | I39: =A2A!I197 -> 1091142242 | J39: =A2A!J197 -> 1108637211 | K39: =A2A!K197 -> 1172628474
A40: Road transport | C40: =A2A!C208 -> 1654637768 | D40: =A2A!D208 -> 1619803347 | E40: =A2A!E208 -> 1687091000 | F40: =A2A!F208 -> 1772003894 | G40: =A2A!G208 -> 1818478772 | H40: =A2A!H208 -> 1818478772 | I40: =A2A!I208 -> 1932990676 | J40: =A2A!J208 -> 2049858481 | K40: =A2A!K208 -> 2155256376
A41: Environmental protection | C41: =A2A!C213 -> 201382236.6 | D41: =A2A!D213 -> 126017235.9 | E41: =A2A!E213 -> 145362151.1 | F41: =A2A!F213 -> 171121810.1 | G41: =A2A!G213 -> 175805723 | H41: =A2A!H213 -> 175805723 | I41: =A2A!I213 -> 152844166.3 | J41: =A2A!J213 -> 162683594.9 | K41: =A2A!K213 -> 172728560.8
A42: Trading services | C42: =SUM(C43:C46) -> 1.435042943e+10 | D42: =SUM(D43:D46) -> 1.559226064e+10 | E42: 1.456377837e+10 | F42: =SUM(F43:F46) -> 1.658889835e+10 | G42: 1.674474928e+10 | H42: 1.674474928e+10 | I42: 1.807021218e+10 | J42: 1.942282962e+10 | K42: =SUM(K43:K46) -> 2.04559067e+10
A43: Energy sources | C43: =A2A!C221 -> 9842042559 | D43: =A2A!D221 -> 1.035177961e+10 | E43: =A2A!E221 -> 1.005451782e+10 | F43: =A2A!F221 -> 1.096304263e+10 | G43: =A2A!G221 -> 1.113032535e+10 | H43: =A2A!H221 -> 1.113032535e+10 | I43: =A2A!I221 -> 1.193758898e+10 | J43: =A2A!J221 -> 1.285984105e+10 | K43: =A2A!K221 -> 1.354223052e+10
A44: Water management | C44: =A2A!C225 -> 2717544724 | D44: =A2A!D225 -> 3277129854 | E44: =A2A!E225 -> 2343614561 | F44: =A2A!F225 -> 3567983570 | G44: =A2A!G225 -> 3569890406 | H44: =A2A!H225 -> 3569890406 | I44: =A2A!I225 -> 3902425689 | J44: =A2A!J225 -> 4196927633 | K44: =A2A!K225 -> 4439638323
A45: Waste water management | C45: =A2A!C229 -> 534824552.8 | D45: =A2A!D229 -> 579909641.8 | E45: =A2A!E229 -> 789618853.8 | F45: =A2A!F229 -> 829562503.6 | G45: =A2A!G229 -> 814826957.1 | H45: =A2A!H229 -> 814826957.1 | I45: =A2A!I229 -> 880686421.9 | J45: =A2A!J229 -> 934864375.9 | K45: =A2A!K229 -> 980527217.1
A46: Waste management | C46: =A2A!C234 -> 1256017594 | D46: =A2A!D234 -> 1383441536 | E46: =A2A!E234 -> 1376027133 | F46: =A2A!F234 -> 1228309643 | G46: =A2A!G234 -> 1229706573 | H46: =A2A!H234 -> 1229706573 | I46: =A2A!I234 -> 1349511090 | J46: =A2A!J234 -> 1431196552 | K46: =A2A!K234 -> 1493510641
A47: Other | B47: 4 | C47: =A2A!C239 -> 177790111.8 | D47: =A2A!D239 -> 199872802.4 | E47: =A2A!E239 -> 173267630.8 | F47: =A2A!F239 -> 182277475.1 | G47: =A2A!G239 -> 180387784 | H47: =A2A!H239 -> 180387784 | I47: =A2A!I239 -> 178235792 | J47: =A2A!J239 -> 189088678.7 | K47: =A2A!K239 -> 198334131.9
A48: ="Total "&A27 -> Total Expenditure - Functional | B48: 3 | C48: =C28+C32+C38+C42+C47 -> 2.696638724e+10 | D48: =D28+D32+D38+D42+D47 -> 2.802315096e+10 | E48: =E28+E32+E38+E42+E47 -> 2.996510406e+10 | F48: =F28+F32+F38+F42+F47 -> 3.241751179e+10 | G48: 3.293086528e+10 | H48: 3.293086528e+10 | I48: 3.556120162e+10 | J48: 3.799233693e+10 | K48: 4.001267269e+10
A49: =result -> Surplus/(Deficit) for the year | C49: =C25-C48 -> 1098427405 | D49: =D25-D48 -> 2428576962 | E49: 2438477465 | F49: 2319430165 | G49: 2333121040 | H49: 2333121040 | I49: 2355938284 | J49: 2577627271 | K49: 2750921633
A50: =head27a -> References
A51: 1. Government Finance Statistics Functions and Sub-functions are standardised to assist the compilation of national and international accounts for comparison purposes
A52: 2. Total Revenue by functional classification must reconcile to Total Operating Revenue shown in Budgeted Financial Performance (revenue and expenditure)
A53: 3. Total Expenditure by Functional Classification must reconcile to Total Operating Expenditure shown in Budgeted Financial Performance (revenue and expenditure)
A54: 4. All amounts must be classified under a functional classification . The GFS function 'Other' is only for Abbatoirs, Air Transport, Forestry, Licensing and Regulation, Markets and Tourism - and if used must be supported by footnotes. Nothing else may be placed under 'Other'. Assign associate share to relevant classification.
A57: check oprev balance | C57: =C25-'A4-FinPerf RE'!C59 -> -17943.99999 | D57: =D25-'A4-FinPerf RE'!D59 -> -758508 | E57: =E25-'A4-FinPerf RE'!E59 -> -2920067 | F57: =F25-'A4-FinPerf RE'!F59 -> -0.1459579468 | G57: =G25-'A4-FinPerf RE'!G59 -> 0 | H57: =H25-'A4-FinPerf RE'!H59 -> 0 | I57: =I25-'A4-FinPerf RE'!J59 -> 0 | J57: =J25-'A4-FinPerf RE'!K59 -> 0 | K57: =K25-'A4-FinPerf RE'!L59 -> 0
A58: check opexp balance | C58: =C48-'A4-FinPerf RE'!C35 -> 0.4999885559 | D58: =D48-'A4-FinPerf RE'!D35 -> 0.3699989319 | E58: =E48-'A4-FinPerf RE'!E35 -> 0 | F58: =F48-'A4-FinPerf RE'!F35 -> 534870.1893 | G58: =G48-'A4-FinPerf RE'!G35 -> 2931377.738 | H58: =H48-'A4-FinPerf RE'!H35 -> 2931376.998 | I58: =I48-'A4-FinPerf RE'!J35 -> 465050 | J58: =J48-'A4-FinPerf RE'!K35 -> 497603.5 | K58: =K48-'A4-FinPerf RE'!L35 -> 532435.75

Sheet A2A
A1: =muni&" - "&Approve3 -> TSH City Of Tshwane - Table A2 Consolidated Budgeted Financial Performance (revenue and expenditure by functional classification)
A2: ="Functional Classification "&desc -> Functional Classification Description | B2: =head27 -> Ref | C2: =head1b -> 2015/16 | D2: =head1A -> 2016/17 | E2: =Head1 -> 2017/18 | F2: =Head2 -> Current Year 2018/19 | I2: =Head3 -> 2019/20 Medium Term Revenue & Expenditure Framework
A3: R thousand | B3: 1 | C3: =Head5 -> Audited Outcome | D3: =Head5 -> Audited Outcome | E3: =Head5 -> Audited Outcome | F3: =Head6 -> Original Budget | G3: =Head7 -> Adjusted Budget | H3: =Head8 -> Full Year Forecast | I3: =Head9 -> Budget Year 2019/20 | J3: =Head10 -> Budget Year +1 2020/21 | K3: =Head11 -> Budget Year +2 2021/22
A4: Revenue - Functional
A5: Municipal governance and administration | C5: =C6+C9+C23 -> 9135214214 | D5: 9938492632 | E5: 1.12536237e+10 | F5: 1.15248733e+10 | G5: 1.183817843e+10 | H5: 1.183817843e+10 | I5: 1.25959291e+10 | J5: 1.335145106e+10 | K5: 1.421707606e+10
A6: Executive and council | C6: =SUM(C7:C8) -> 70677624.49 | D6: =SUM(D7:D8) -> 72026991.58 | E6: 22952278.46 | F6: 54054050 | G6: 61466510.43 | H6: 61466510.43 | I6: 47275250 | J6: 50899000 | K6: 42943700
A7: Mayor and Council | C7: 7625.47 | D7: 9098040.03 | E7: 1467250 | F7: 0 | G7: 4283661 | H7: 4283661 | I7: 0 | J7: 0 | K7: 0
A8: Municipal Manager, Town Secretary and Chief Executive | C8: 70669999.02 | D8: 62928951.55 | E8: 21485028.46 | F8: 54054050 | G8: 57182849.43 | H8: 57182849.43 | I8: 47275250 | J8: 50899000 | K8: 42943700
A9: Finance and administration | C9: =SUM(C10:C22) -> 9024155957 | D9: 9814708286 | E9: 1.118288647e+10 | F9: 1.142664402e+10 | G9: 1.173465148e+10 | H9: 1.173465148e+10 | I9: 1.250417968e+10 | J9: 1.325358776e+10 | K9: 1.41245385e+10
A10: Administrative and Corporate Support | C10: 78.8 | D10: 308769.37 | E10: 0 | F10: 0 | G10: 0 | H10: 0 | I10: 0 | J10: 0 | K10: 0
A11: Asset Management | C11: 2268713.91 | D11: 4708101.87 | E11: 39734.61 | F11: 3561146 | G11: 3561146 | H11: 3561146 | I11: 3774814.76 | J11: 3986204.387 | K11: 4209431.832
A12: Finance | C12: 8692519750 | D12: 9655214533 | E12: 1.10501222e+10 | F12: 1.124057933e+10 | G12: 1.156185996e+10 | H12: 1.156185996e+10 | I12: 1.229469722e+10 | J12: 1.305212754e+10 | K12: 1.391202551e+10
A13: Fleet Management | C13: -9527.45 | D13: 2306148.09 | E13: 16541 | F13: 1106200 | G13: 1106200 | H13: 1106200 | I13: 1172572 | J13: 1238236.032 | K13: 1307577.25
A14: Human Resources | C14: 33803155 | D14: 27720807.38 | E14: 15917392.8 | F14: 29199697 | G14: 24820487.05 | H14: 24820487.05 | I14: 36108378.51 | J14: 18592321.13 | K14: 19631249.7
A15: Information Technology | C15: 9560896.51 | D15: 9692681.99 | E15: 5896284.06 | F15: 19924 | G15: 19924 | H15: 19924 | I15: 21119.44 | J15: 22302.12864 | K15: 23551.04784
A16: Legal Services | C16: 53426.34 | D16: 866986.66 | E16: 0 | F16: 435210 | G16: 435210 | H16: 435210 | I16: 0 | J16: 0 | K16: 0
A17: Marketing, Customer Relations, Publicity and Media Co-ordination | C17: 43649040.11 | D17: 37598771.31 | E17: 42385810.28 | F17: 52859600 | G17: 51585362 | H17: 51585362 | I17: 54680483.72 | J17: 57742590.81 | K17: 60976175.89
A18: Property Services | C18: 238596656.5 | D18: 72457154.89 | E18: 68466913.8 | F18: 97700429.31 | G18: 90080700.42 | H18: 90080700.42 | I18: 112471652.4 | J18: 118554929.4 | K18: 124967252.6
A19: Risk Management | C19: 0 | D19: 16659.54 | E19: 0 | F19: 0 | G19: 0 | H19: 0 | I19: 0 | J19: 0 | K19: 0
A20: Security Services | C20: 0 | D20: 83719.88 | E20: 0 | F20: 0 | G20: 0 | H20: 0 | I20: 0 | J20: 0 | K20: 0
A21: Supply Chain Management | C21: 3713767.09 | D21: 3733951.74 | E21: 41599.84 | F21: 1182492 | G21: 1182492 | H21: 1182492 | I21: 1253441.52 | J21: 1323634.245 | K21: 1397757.763
A22: Valuation Service | C22: 0 | D22: 0 | E22: 0 | F22: 0 | G22: 0 | H22: 0 | I22: 0 | J22: 0 | K22: 0
A23: Internal audit | C23: =SUM(C24:C24) -> 40380631.94 | D23: 51757354.79 | E23: 47784949.27 | F23: 44175225.11 | G23: 42060432.11 | H23: 42060432.11 | I23: 44474170.7 | J23: 46964299.9 | K23: 49593852.07
A24: Governance Function | C24: 40380631.94 | D24: 51757354.79 | E24: 47784949.27 | F24: 44175225.11 | G24: 42060432.11 | H24: 42060432.11 | I24: 44474170.7 | J24: 46964299.9 | K24: 49593852.07
A25: Community and public safety | C25: =C26+C48+C54+C63+C66 -> 1571913797 | D25: 1311494108 | E25: 1600483710 | F25: 1688939872 | G25: 1966603529 | H25: 1966603529 | I25: 1877936397 | J25: 2077570733 | K25: 1601683749
A26: Community and social services | C26: =SUM(C27:C47) -> 55466376.65 | D26: =SUM(D27:D47) -> 86833259.83 | E26: 41032991.94 | F26: 22671064.95 | G26: 65930963.27 | H26: 65930963.27 | I26: 42847856.82 | J26: 20715688.84 | K26: 17648866.84
A27: Aged Care | C27: 0 | D27: 0 | E27: 0 | F27: 0 | G27: 0 | H27: 0 | I27: 0 | J27: 0 | K27: 0
A28: Agricultural | C28: 0 | D28: 0 | E28: 0 | F28: 0 | G28: 0 | H28: 0 | I28: 0 | J28: 0 | K28: 0
A29: Animal Care and Diseases | C29: 0 | D29: 0 | E29: 0 | F29: 0 | G29: 0 | H29: 0 | I29: 0 | J29: 0 | K29: 0
A30: Cemeteries, Funeral Parlours and Crematoriums | C30: 16504608.77 | D30: 12970380.7 | E30: 11591666.83 | F30: 12700212 | G30: 12700212 | H30: 12700212 | I30: 13462224.72 | J30: 14216109.3 | K30: 15012211.43
A31: Child Care Facilities | C31: 0 | D31: 0 | E31: 0 | F31: 0 | G31: 0 | H31: 0 | I31: 0 | J31: 0 | K31: 0
A32: Community Halls and Facilities | C32: 3632458.21 | D32: 6280807.17 | E32: 6471779.78 | F32: 7981023 | G32: 51261297 | H32: 51261297 | I32: 27354164.38 | J32: 4357101.585 | K32: 377099.2741
A33: Consumer Protection | C33: 0 | D33: 0 | E33: 0 | F33: 0 | G33: 0 | H33: 0 | I33: 0 | J33: 0 | K33: 0
A34: Cultural Matters | C34: 348739.02 | D34: 1619531.23 | E34: 520231.11 | F34: 365885 | G34: 365885 | H34: 365885 | I34: 366010.1 | J34: 385779.0656 | K34: 406615.8029
A35: Disaster Management | C35: 12438712.64 | D35: 401943.79 | E35: 0 | F35: 0 | G35: 0 | H35: 0 | I35: 0 | J35: 0 | K35: 0
A36: Education | C36: 0 | D36: 15248.08 | E36: 0 | F36: 0 | G36: 50000 | H36: 50000 | I36: 53000 | J36: 55968 | K36: 59102.208
A37: Indigenous and Customary Law | C37: 0 | D37: 0 | E37: 0 | F37: 0 | G37: 0 | H37: 0 | I37: 0 | J37: 0 | K37: 0
A38: Industrial Promotion | C38: 0 | D38: 0 | E38: 0 | F38: 0 | G38: 0 | H38: 0 | I38: 0 | J38: 0 | K38: 0
A39: Language Policy | C39: 0 | D39: 0 | E39: 0 | F39: 0 | G39: 0 | H39: 0 | I39: 0 | J39: 0 | K39: 0
A40: Libraries and Archives | C40: 22300180 | D40: 46294746.3 | E40: 4163413.74 | F40: 1410527.95 | G40: 1284518.6 | H40: 1284518.6 | I40: 1338770.914 | J40: 1411937.586 | K40: 1489104.15
A41: Literacy Programmes | C41: 0 | D41: 78432.68 | E41: 17729614.36 | F41: 0 | G41: 0 | H41: 0 | I41: 0 | J41: 0 | K41: 0
A42: Media Services | C42: 0 | D42: 0 | E42: 0 | F42: 0 | G42: 0 | H42: 0 | I42: 0 | J42: 0 | K42: 0
A43: Museums and Art Galleries | C43: 241678.01 | D43: 19172169.88 | E43: 556286.12 | F43: 213417 | G43: 269050.67 | H43: 269050.67 | I43: 273686.71 | J43: 288793.2984 | K43: 304733.983
A44: Population Development | C44: 0 | D44: 0 | E44: 0 | F44: 0 | G44: 0 | H44: 0 | I44: 0 | J44: 0 | K44: 0
A45: Provincial Cultural Matters | C45: 0 | D45: 0 | E45: 0 | F45: 0 | G45: 0 | H45: 0 | I45: 0 | J45: 0 | K45: 0
A46: Theatres | C46: 0 | D46: 0 | E46: 0 | F46: 0 | G46: 0 | H46: 0 | I46: 0 | J46: 0 | K46: 0
A47: Zoo's | C47: 0 | D47: 0 | E47: 0 | F47: 0 | G47: 0 | H47: 0 | I47: 0 | J47: 0 | K47: 0
A48: Sport and recreation | C48: =SUM(C49:C53) -> 32838940.81 | D48: =SUM(D49:D53) -> 44758351.93 | E48: 35424006.64 | F48: 25661675.7 | G48: 27971786.12 | H48: 27971786.12 | I48: 29341869.38 | J48: 30974739.92 | K48: 32698496.41
A49: Beaches and Jetties | C49: 0 | D49: 0 | E49: 0 | F49: 0 | G49: 0 | H49: 0 | I49: 0 | J49: 0 | K49: 0
A50: Casinos, Racing, Gambling, Wagering | C50: 0 | D50: 0 | E50: 0 | F50: 0 | G50: 0 | H50: 0 | I50: 0 | J50: 0 | K50: 0
A51: Community Parks (including Nurseries) | C51: 5445568.47 | D51: 9405458.89 | E51: 4753297.29 | F51: 3453329.7 | G51: 3448925.7 | H51: 3448925.7 | I51: 3630721.56 | J51: 3833203.967 | K51: 4046980.138
A52: Recreational Facilities | C52: 27393372.34 | D52: 35244623.56 | E52: 30670709.35 | F52: 22208346 | G52: 24522860.42 | H52: 24522860.42 | I52: 25711147.82 | J52: 27141535.95 | K52: 28651516.27
A53: Sports Grounds and Stadiums | C53: 0 | D53: 108269.48 | E53: 0 | F53: 0 | G53: 0 | H53: 0 | I53: 0 | J53: 0 | K53: 0
A54: Public safety | C54: =SUM(C55:C62) -> 322521087.9 | D54: 215314998.4 | E54: 243411407.9 | F54: 377073602.6 | G54: 325811595.5 | H54: 325811595.5 | I54: 345223392.2 | J54: 363890297.6 | K54: 383566607.1
A55: Civil Defence | C55: 308833132.1 | D55: 193759392.8 | E55: 215064291.7 | F55: 362710086.8 | G55: 307221506.8 | H55: 307221506.8 | I55: 325666156.1 | J55: 343263524.7 | K55: 361811789.3
A56: Cleansing | C56: 0 | D56: 0 | E56: 0 | F56: 0 | G56: 0 | H56: 0 | I56: 0 | J56: 0 | K56: 0
A57: Control of Public Nuisances | C57: 0 | D57: 0 | E57: 0 | F57: 0 | G57: 0 | H57: 0 | I57: 0 | J57: 0 | K57: 0
A58: Fencing and Fences | C58: 0 | D58: 0 | E58: 0 | F58: 0 | G58: 0 | H58: 0 | I58: 0 | J58: 0 | K58: 0
A59: Fire Fighting and Protection | C59: 7005248.97 | D59: 15242183.93 | E59: 9991940.47 | F59: 6544056.9 | G59: 6480816.748 | H59: 6480816.748 | I59: 6732335.288 | J59: 7109327.544 | K59: 7507430.367
A60: Licensing and Control of Animals | C60: 0 | D60: 0 | E60: 0 | F60: 0 | G60: 0 | H60: 0 | I60: 0 | J60: 0 | K60: 0
A61: Police Forces, Traffic and Street Parking Control | C61: 6682706.83 | D61: 6313421.65 | E61: 18355175.7 | F61: 7819459 | G61: 12109272 | H61: 12109272 | I61: 12824900.78 | J61: 13517445.42 | K61: 14247387.47
A62: Pounds | C62: 0 | D62: 0 | E62: 0 | F62: 0 | G62: 0 | H62: 0 | I62: 0 | J62: 0 | K62: 0
A63: Housing | C63: =SUM(C64:C65) -> 999153980.8 | D63: =SUM(D64:D65) -> 790547441.8 | E63: 1064045543 | F63: 1056042485 | G63: 1337121339 | H63: 1337121339 | I63: 1273709940 | J63: 1462360672 | K63: 1153150355
A64: Housing | C64: 832410945.1 | D64: 675716412.6 | E64: 1013077801 | F64: 1005037370 | G64: 1288953129 | H64: 1288953129 | I64: 1222379550 | J64: 1420963642 | K64: 1113217775
A65: Informal Settlements | C65: 166743035.7 | D65: 114831029.2 | E65: 50967742.58 | F65: 51005115.17 | G65: 48168210 | H65: 48168210 | I65: 51330390 | J65: 41397030 | K65: 39932580
A66: Health | C66: =SUM(C67:C73) -> 161933410.9 | D66: =SUM(D67:D73) -> 174040056.5 | E66: 216569760.1 | F66: 207491044 | G66: 209767845.1 | H66: 209767845.1 | I66: 186813338.7 | J66: 199629334.2 | K66: 14619423.57
A67: Ambulance | C67: 66162288.59 | D67: 67581167.54 | E67: 100818456.9 | F67: 112240512 | G67: 112240512 | H67: 112240512 | I67: 117939842.7 | J67: 124761705.9 | K67: 11945161.44
A68: Health Services | C68: 95771122.31 | D68: 106458889 | E68: 115751303.2 | F68: 95250532.05 | G68: 97527333.06 | H68: 97527333.06 | I68: 68873495.97 | J68: 74867628.3 | K68: 2674262.13
A69: Laboratory Services | C69: 0 | D69: 0 | E69: 0 | F69: 0 | G69: 0 | H69: 0 | I69: 0 | J69: 0 | K69: 0
A70: Food Control | C70: 0 | D70: 0 | E70: 0 | F70: 0 | G70: 0 | H70: 0 | I70: 0 | J70: 0 | K70: 0
A71: Health Surveillance and Prevention of Communicable Diseases including immunizations | C71: 0 | D71: 0 | E71: 0 | F71: 0 | G71: 0 | H71: 0 | I71: 0 | J71: 0 | K71: 0
A72: Vector Control | C72: 0 | D72: 0 | E72: 0 | F72: 0 | G72: 0 | H72: 0 | I72: 0 | J72: 0 | K72: 0
A73: Chemical Safety | C73: 0 | D73: 0 | E73: 0 | F73: 0 | G73: 0 | H73: 0 | I73: 0 | J73: 0 | K73: 0
A74: Economic and environmental services | C74: =C75+C86+C91 -> 1697834940 | D74: 1611320890 | E74: 1338023020 | F74: 1451106213 | G74: 1283066766 | H74: 1283066766 | I74: 1177067271 | J74: 1251859513 | K74: 1365094854
A75: Planning and development | C75: =SUM(C76:C85) -> 206113098.7 | D75: =SUM(D76:D85) -> 199991894.5 | E75: 42118024.2 | F75: 176589571.6 | G75: 148289873.5 | H75: 148289873.5 | I75: 157993746.8 | J75: 181932121.9 | K75: 190837491.3
A76: Billboards | C76: 0 | D76: 0 | E76: 0 | F76: 0 | G76: 0 | H76: 0 | I76: 0 | J76: 0 | K76: 0
A77: Corporate Wide Strategic Planning (IDPs, LEDs) | C77: 425.65 | D77: 51673.36 | E77: 0 | F77: 0 | G77: 0 | H77: 0 | I77: 0 | J77: 0 | K77: 0
A78: Central City Improvement District | C78: 0 | D78: 0 | E78: 0 | F78: 0 | G78: 0 | H78: 0 | I78: 0 | J78: 0 | K78: 0
A79: Development Facilitation | C79: 0 | D79: 0 | E79: 0 | F79: 0 | G79: 0 | H79: 0 | I79: 0 | J79: 0 | K79: 0
A80: Economic Development/Planning | C80: 36049050.43 | D80: 59779747.19 | E80: 25897499.19 | F80: 33688453.71 | G80: 12138715.62 | H80: 12138715.62 | I80: 9182236.9 | J80: 9539459.249 | K80: 9911147.192
A81: Regional Planning and Development | C81: 0 | D81: 239382.69 | E81: 0 | F81: 0 | G81: 0 | H81: 0 | I81: 0 | J81: 0 | K81: 0
A82: Town Planning, Building Regulations and Enforcement, and City Engineer | C82: 169334909 | D82: 139669841.5 | E82: 15131834.08 | F82: 142651117.9 | G82: 135901157.9 | H82: 135901157.9 | I82: 144046509.9 | J82: 152112822.6 | K82: 160630833.1
A83: Project Management Unit | C83: 728713.68 | D83: 251249.83 | E83: 1088690.93 | F83: 250000 | G83: 250000 | H83: 250000 | I83: 4765000 | J83: 20279840 | K83: 20295511.04
A84: Provincial Planning | C84: 0 | D84: 0 | E84: 0 | F84: 0 | G84: 0 | H84: 0 | I84: 0 | J84: 0 | K84: 0
A85: Support to Local Municipalities | C85: 0 | D85: 0 | E85: 0 | F85: 0 | G85: 0 | H85: 0 | I85: 0 | J85: 0 | K85: 0
A86: Road transport | C86: =SUM(C87:C90) -> 1487523240 | D86: 1398556698 | E86: 1291870982 | F86: 1273854594 | G86: 1134114844 | H86: 1134114844 | I86: 1018426517 | J86: 1069244151 | K86: 1173535862
A87: Public Transport | C87: 888959237.7 | D87: 945295435.3 | E87: 977209262.6 | F87: 869848946 | G87: 899411655.2 | H87: 899411655.2 | I87: 803789413 | J87: 848026564.1 | K87: 910183627.7
A88: Road and Traffic Regulation | C88: 129123527.5 | D88: 145324910.3 | E88: 159614236 | F88: 155966461.9 | G88: 161747061.9 | H88: 161747061.9 | I88: 171451885.6 | J88: 181053191.2 | K88: 191192169.9
A89: Roads | C89: 469440475.2 | D89: 307936352.6 | E89: 155047483 | F89: 248039185.8 | G89: 72956126.87 | H89: 72956126.87 | I89: 43185218.79 | J89: 40164395.98 | K89: 72160064.33
A90: Taxi Ranks | C90: 0 | D90: 0 | E90: 0 | F90: 0 | G90: 0 | H90: 0 | I90: 0 | J90: 0 | K90: 0
A91: Environmental protection | C91: =SUM(C92:C97) -> 4198600.53 | D91: =SUM(D92:D97) -> 12772297.75 | E91: 4034014.36 | F91: 662048 | G91: 662048 | H91: 662048 | I91: 647007.04 | J91: 683239.4342 | K91: 721500.8426
A92: Biodiversity and Landscape | C92: 20.68 | D92: 86730.13 | E92: 0 | F92: 0 | G92: 0 | H92: 0 | I92: 0 | J92: 0 | K92: 0
A93: Coastal Protection | C93: 0 | D93: 0 | E93: 0 | F93: 0 | G93: 0 | H93: 0 | I93: 0 | J93: 0 | K93: 0
A94: Indigenous Forests | C94: 0 | D94: 0 | E94: 0 | F94: 0 | G94: 0 | H94: 0 | I94: 0 | J94: 0 | K94: 0
A95: Nature Conservation | C95: 0 | D95: 264515.44 | E95: 0 | F95: 0 | G95: 0 | H95: 0 | I95: 0 | J95: 0 | K95: 0
A96: Pollution Control | C96: 4198579.85 | D96: 12421052.18 | E96: 4034014.36 | F96: 662048 | G96: 662048 | H96: 662048 | I96: 647007.04 | J96: 683239.4342 | K96: 721500.8426
A97: Soil Conservation | C97: 0 | D97: 0 | E97: 0 | F97: 0 | G97: 0 | H97: 0 | I97: 0 | J97: 0 | K97: 0
A98: Trading services | C98: =C99+C103+C107+C112 -> 1.544293021e+10 | D98: =D99+D103+D107+D112 -> 1.736807242e+10 | E98: 1.799118472e+10 | F98: 1.983177851e+10 | G98: 1.99393874e+10 | H98: 1.99393874e+10 | I98: 2.202055218e+10 | J98: 2.362954332e+10 | K98: =K99+K103+K107+K112 -> 2.530578208e+10
A99: Energy sources | C99: =SUM(C100:C102) -> 9871095426 | D99: =SUM(D100:D102) -> 1.150808708e+10 | E99: 1.13979643e+10 | F99: 1.246744904e+10 | G99: 1.257653759e+10 | H99: 1.257653759e+10 | I99: 1.392055095e+10 | J99: 1.516893378e+10 | K99: 1.616718851e+10
A100: Electricity | C100: 9871095426 | D100: 1.150808708e+10 | E100: 1.13979643e+10 | F100: 1.246744904e+10 | G100: 1.257653759e+10 | H100: 1.257653759e+10 | I100: 1.392055095e+10 | J100: 1.516893378e+10 | K100: 1.616718851e+10
A101: Street Lighting and Signal Systems | C101: 0 | D101: 0 | E101: 0 | F101: 0 | G101: 0 | H101: 0 | I101: 0 | J101: 0 | K101: 0
A102: Nonelectric Energy | C102: 0 | D102: 0 | E102: 0 | F102: 0 | G102: 0 | H102: 0 | I102: 0 | J102: 0 | K102: 0
A103: Water management | C103: =SUM(C104:C106) -> 3340906255 | D103: =SUM(D104:D106) -> 3345623371 | E103: 3986415216 | F103: 4390402606 | G103: 4339802145 | H103: 4339802145 | I103: 4833578857 | J103: 4949691999 | K103: 5459652703
A104: Water Treatment | C104: 0 | D104: 749961.5 | E104: 0 | F104: 0 | G104: 0 | H104: 0 | I104: 0 | J104: 0 | K104: 0
A105: Water Distribution | C105: 3340906255 | D105: 3344873410 | E105: 3986415216 | F105: 4390402606 | G105: 4274302145 | H105: 4274302145 | I105: 4768578857 | J105: 4874691999 | K105: 5384652703
A106: Water Storage | C106: 0 | D106: 0 | E106: 0 | F106: 0 | G106: 65500000 | H106: 65500000 | I106: 65000000 | J106: 75000000 | K106: 75000000
A107: Waste water management | C107: =SUM(C108:C111) -> 1039967773 | D107: =SUM(D108:D111) -> 1213407013 | E107: 1047955089 | F107: 1438916628 | G107: 1430183670 | H107: 1430183670 | I107: 1578034755 | J107: 1731355189 | K107: 1803280246
A108: Public Toilets | C108: 0 | D108: 0 | E108: 0 | F108: 0 | G108: 0 | H108: 0 | I108: 0 | J108: 0 | K108: 0
A109: Sewerage | C109: 1039967299 | D109: 1212736923 | E109: 1046768626 | F109: 1438754781 | G109: 1429976761 | H109: 1429976761 | I109: 1577811293 | J109: 1731113851 | K109: 1788019600
A110: Storm Water Management | C110: -213957.63 | D110: 0 | E110: 998363.82 | F110: 0 | G110: 0 | H110: 0 | I110: 0 | J110: 0 | K110: 15000000
A111: Waste Water Treatment | C111: 214432.07 | D111: 670090.51 | E111: 188099.37 | F111: 161847.14 | G111: 206909.14 | H111: 206909.14 | I111: 223461.8712 | J111: 241338.8209 | K111: 260645.9266
A112: Waste management | C112: =SUM(C113:C116) -> 1190960757 | D112: =SUM(D113:D116) -> 1300954952 | E112: 1558850116 | F112: 1535010234 | G112: 1592864001 | H112: 1592864001 | I112: 1688387614 | J112: 1779562355 | K112: 1875660622
A113: Recycling | C113: 0 | D113: 0 | E113: 0 | F113: 0 | G113: 0 | H113: 0 | I113: 0 | J113: 0 | K113: 0
A114: Solid Waste Disposal (Landfill Sites) | C114: 16979603.88 | D114: 21854571.88 | E114: 97955590.24 | F114: 19103883 | G114: 49178151.4 | H114: 49178151.4 | I114: 52128840.48 | J114: 54943970.3 | K114: 57911126.78
A115: Solid Waste Removal | C115: 1173978368 | D115: 1276725309 | E115: 1460894526 | F115: 1515906351 | G115: 1543685849 | H115: 1543685849 | I115: 1636258773 | J115: 1724618385 | K115: 1817749495
A116: Street Cleaning | C116: 2785.3 | D116: 2375070.97 | E116: 0 | F116: 0 | G116: 0 | H116: 0 | I116: 0 | J116: 0 | K116: 0
A117: Other | C117: =SUM(C118:C123) -> 216921482.1 | D117: =SUM(D118:D123) -> 222347873.1 | E117: 220266378.3 | F117: 240244067.3 | G117: 236750195.6 | H117: 236750195.6 | I117: 245654959.8 | J117: 259539580.5 | K117: 273957584.7
A118: Abattoirs | C118: 0 | D118: 0 | E118: 0 | F118: 0 | G118: 0 | H118: 0 | I118: 0 | J118: 0 | K118: 0
A119: Air Transport | C119: 30157161.68 | D119: 30840782.2 | E119: 23345932.74 | F119: 27078287 | G119: 23318059 | H119: 23318059 | I119: 20510472.22 | J119: 21633308.26 | K119: 22817632.61
A120: Forestry | C120: 0 | D120: 0 | E120: 0 | F120: 0 | G120: 0 | H120: 0 | I120: 0 | J120: 0 | K120: 0
A121: Licensing and Regulation | C121: 0 | D121: 0 | E121: 0 | F121: 0 | G121: 0 | H121: 0 | I121: 0 | J121: 0 | K121: 0
A122: Markets | C122: 186762748.8 | D122: 191406101.4 | E122: 196845048.7 | F122: 213165780.3 | G122: 213432136.6 | H122: 213432136.6 | I122: 225144487.6 | J122: 237906272.2 | K122: 251139952.1
A123: Tourism | C123: 1571.62 | D123: 100989.42 | E123: 75396.89 | F123: 0 | G123: 0 | H123: 0 | I123: 0 | J123: 0 | K123: 0
A124: ="Total "&A4 -> Total Revenue - Functional | B124: 2 | C124: =C5+C25+C74+C98+C117 -> 2.806481464e+10 | D124: 3.045172792e+10 | E124: 3.240358153e+10 | F124: 3.473694196e+10 | G124: 3.526398632e+10 | H124: 3.526398632e+10 | I124: 3.791713991e+10 | J124: 4.05699642e+10 | K124: 4.276359432e+10
A126: Expenditure - Functional
A127: =A5 -> Municipal governance and administration | C127: =C128+C131+C145 -> 5485751209 | D127: 5219449014 | E127: 7929221318 | F127: 7564013465 | G127: 7453950865 | H127: 7453950865 | I127: 8281202152 | J127: 8703399341 | K127: 9118909037
A128: Executive and council | C128: =SUM(C129:C130) -> 1118994791 | D128: 1022469970 | E128: 1194151181 | F128: 1309236086 | G128: 1255142428 | H128: 1255142428 | I128: 1274894897 | J128: 1362603685 | K128: 1466586467
A129: Mayor and Council | C129: 565847221.8 | D129: 490344684.8 | E129: 481283270 | F129: 550174233.8 | G129: 522192393.2 | H129: 522192393.2 | I129: 553162317.1 | J129: 583590020.7 | K129: 619843416.8
A130: Municipal Manager, Town Secretary and Chief Executive | C130: 553147569.5 | D130: 532125285.4 | E130: 712867910.9 | F130: 759061852 | G130: 732950034.5 | H130: 732950034.5 | I130: 721732579.6 | J130: 779013663.9 | K130: 846743050.6
A131: Finance and administration | C131: =SUM(C132:C144) -> 3946369699 | D131: 3850458478 | E131: 6535757704 | F131: 5918413865 | G131: 5886435623 | H131: 5886435623 | I131: 6684587027 | J131: 7000258821 | K131: 7293604662
A132: Administrative and Corporate Support | C132: 32417295.98 | D132: 31122953.36 | E132: 20025884.13 | F132: 23401193.31 | G132: 23414952.4 | H132: 23414952.4 | I132: 25132275.15 | J132: 26771018.67 | K132: 28487599.18
A133: Asset Management | C133: 19460504.93 | D133: 22218017.48 | E133: 78111849.22 | F133: 98137881.08 | G133: 138118346.5 | H133: 138118346.5 | I133: 210561783.6 | J133: 120535702.2 | K133: 21900788.09
A134: Finance | C134: 1343489561 | D134: 1428412319 | E134: 3605019929 | F134: 2753071234 | G134: 2665944890 | H134: 2665944890 | I134: 3104378717 | J134: 3314030136 | K134: 3532160025
A135: Fleet Management | C135: 780850536.8 | D135: 678544999.1 | E135: 720474561.9 | F135: 782539268.3 | G135: 751738927.8 | H135: 751738927.8 | I135: 762135110.4 | J135: 804535684.3 | K135: 845385109.9
A136: Human Resources | C136: 328398103.7 | D136: 335806277.4 | E136: 349087655.3 | F136: 442527381 | G136: 436643744.6 | H136: 436643744.6 | I136: 453206061.1 | J136: 481640677.7 | K136: 511561166.1
A137: Information Technology | C137: 571856303.5 | D137: 507823693.3 | E137: 586403266.1 | F137: 634799952.4 | G137: 626357898.8 | H137: 626357898.8 | I137: 693629541.4 | J137: 733336600.1 | K137: 768106286.5
A138: Legal Services | C138: 193955563.9 | D138: 122082161.1 | E138: 141945889.8 | F138: 160922924.4 | G138: 160656000.2 | H138: 160656000.2 | I138: 167148313.5 | J138: 177484438.7 | K138: 185764868.8
A139: Marketing, Customer Relations, Publicity and Media Co-ordination | C139: 212320106.7 | D139: 204971010.7 | E139: 203879978.4 | F139: 226606963.9 | G139: 230999950.2 | H139: 230999950.2 | I139: 242543709 | J139: 258090023.4 | K139: 274461737.2
A140: Property Services | C140: 353666509.2 | D140: 403170717.8 | E140: 706951113.2 | F140: 667117352.1 | G140: 728709176 | H140: 728709176 | I140: 894672512.3 | J140: 944052662.5 | K140: 976920098.2
A141: Risk Management | C141: 4533828.82 | D141: 4469462.51 | E141: 3960443.64 | F141: 5868048.896 | G141: 6159248.89 | H141: 6159248.89 | I141: 6879200.852 | J141: 7323616.955 | K141: 7788492.989
A142: Security Services | C142: 1362382.32 | D142: 2958014.5 | E142: 4306155.74 | F142: 35935.3232 | G142: 35935.32 | H142: 35935.32 | I142: 38399.3236 | J142: 40581.98042 | K142: 42792.68052
A143: Supply Chain Management | C143: 104059001.9 | D143: 108878851.7 | E143: 115590977.1 | F143: 123385730.3 | G143: 117656552.4 | H143: 117656552.4 | I143: 124261403.5 | J143: 132417679.2 | K143: 141025697.8
A144: Valuation Service | C144: 0 | D144: 0 | E144: 0 | F144: 0 | G144: 0 | H144: 0 | I144: 0 | J144: 0 | K144: 0
A145: Internal audit | C145: =SUM(C146:C146) -> 420386718.5 | D145: 346520565.4 | E145: 199312433.4 | F145: 336363514.6 | G145: 312372814.2 | H145: 312372814.2 | I145: 321720228.7 | J145: 340536835.3 | K145: 358717907.4
A146: Governance Function | C146: 420386718.5 | D146: 346520565.4 | E146: 199312433.4 | F146: 336363514.6 | G146: 312372814.2 | H146: 312372814.2 | I146: 321720228.7 | J146: 340536835.3 | K146: 358717907.4
A147: Community and public safety | C147: =C148+C170+C176+C185+C188 -> 4267288688 | D147: 4452881214 | E147: 4562009296 | F147: 5097930837 | G147: 5536434301 | H147: 5536434301 | I147: 5854574417 | J147: 6355840007 | K147: 6738909410
A148: Community and social services | C148: =SUM(C149:C169) -> 246305990.4 | D148: =SUM(D149:D169) -> 289813047.7 | E148: 473687860.3 | F148: 292802901.5 | G148: 346428559.4 | H148: 346428559.4 | I148: 339477538 | J148: 360719463.9 | K148: 379619996.6
A149: Aged Care | C149: 3798566.64 | D149: 33501887.58 | E149: 4637.86 | F149: 5205.48 | G149: 5205.48 | H149: 5205.48 | I149: 5673.9732 | J149: 6014.411592 | K149: 6345.20423
A150: Agricultural | C150: 0 | D150: 0 | E150: 0 | F150: 0 | G150: 0 | H150: 0 | I150: 0 | J150: 0 | K150: 0
A151: Animal Care and Diseases | C151: 0 | D151: 0 | E151: 0 | F151: 0 | G151: 0 | H151: 0 | I151: 0 | J151: 0 | K151: 0
A152: Cemeteries, Funeral Parlours and Crematoriums | C152: 43833402.86 | D152: 42190695.93 | E152: 62499265.41 | F152: 71861570.74 | G152: 69062630.85 | H152: 69062630.85 | I152: 71784788.2 | J152: 76037543.42 | K152: 78846726.58
A153: Child Care Facilities | C153: 0 | D153: 0 | E153: 0 | F153: 0 | G153: 0 | H153: 0 | I153: 0 | J153: 0 | K153: 0
A154: Community Halls and Facilities | C154: 16098377.96 | D154: 17373947.82 | E154: 224340526.9 | F154: 28517124.13 | G154: 90603401.23 | H154: 90603401.23 | I154: 66813354.57 | J154: 70685780.57 | K154: 73243760.92
A155: Consumer Protection | C155: 0 | D155: 0 | E155: 0 | F155: 0 | G155: 0 | H155: 0 | I155: 0 | J155: 0 | K155: 0
A156: Cultural Matters | C156: 29200209.42 | D156: 29599055.75 | E156: 27253519.08 | F156: 14743677.24 | G156: 14041866.76 | H156: 14041866.76 | I156: 14982286.25 | J156: 15956112.97 | K156: 16915227.25
A157: Disaster Management | C157: 35935074.66 | D157: 23987710.95 | E157: 21450074.61 | F157: 26883388.64 | G157: 24282574.45 | H157: 24282574.45 | I157: 26931343.66 | J157: 28697934.5 | K157: 30566311.15
A158: Education | C158: 37553.14 | D158: 3247.5 | E158: 23299.84 | F158: 8265696.94 | G158: 8476074.28 | H158: 8476074.28 | I158: 9045954.481 | J158: 9649785.773 | K158: 10293793.15
A159: =A37 -> Indigenous and Customary Law | C159: 0 | D159: 0 | E159: 0 | F159: 0 | G159: 0 | H159: 0 | I159: 0 | J159: 0 | K159: 0
A160: Industrial Promotion | C160: 0 | D160: 0 | E160: 0 | F160: 0 | G160: 0 | H160: 0 | I160: 0 | J160: 0 | K160: 0
A161: Language Policy | C161: 0 | D161: 0 | E161: 0 | F161: 0 | G161: 0 | H161: 0 | I161: 0 | J161: 0 | K161: 0
A162: Libraries and Archives | C162: 95108307.52 | D162: 118045937.6 | E162: 107360463.4 | F162: 127404857.1 | G162: 125224701 | H162: 125224701 | I162: 134308614 | J162: 143063470.7 | K162: 152067904.2
A163: Literacy Programmes | C163: 6685454.99 | D163: 7496128.77 | E163: 14571086.74 | F163: 5606667.506 | G163: 5629473.49 | H163: 5629473.49 | I163: 6021829.997 | J163: 6424600.185 | K163: 6854082.468
A164: Media Services | C164: 0 | D164: 0 | E164: 0 | F164: 0 | G164: 0 | H164: 0 | I164: 0 | J164: 0 | K164: 0
A165: Museums and Art Galleries | C165: 15609043.23 | D165: 17614435.73 | E165: 16184986.48 | F165: 9514713.711 | G165: 9102631.85 | H165: 9102631.85 | I165: 9583692.946 | J165: 10198221.36 | K165: 10825845.7
A166: Population Development | C166: 0 | D166: 0 | E166: 0 | F166: 0 | G166: 0 | H166: 0 | I166: 0 | J166: 0 | K166: 0
A167: Provincial Cultural Matters | C167: 0 | D167: 0 | E167: 0 | F167: 0 | G167: 0 | H167: 0 | I167: 0 | J167: 0 | K167: 0
A168: Theatres | C168: 0 | D168: 0 | E168: 0 | F168: 0 | G168: 0 | H168: 0 | I168: 0 | J168: 0 | K168: 0
A169: Zoo's | C169: 0 | D169: 0 | E169: 0 | F169: 0 | G169: 0 | H169: 0 | I169: 0 | J169: 0 | K169: 0
A170: Sport and recreation | C170: =SUM(C171:C175) -> 307870205.8 | D170: 409797431.1 | E170: 355842232.3 | F170: 531376829.8 | G170: 518723757.6 | H170: 518723757.6 | I170: 547510272.9 | J170: 582258750.1 | K170: 615345328.3
A171: Beaches and Jetties | C171: 194208.16 | D171: -716013.94 | E171: 221652.66 | F171: 296193.5 | G171: 257157.72 | H171: 257157.72 | I171: 274246.7897 | J171: 291993.2825 | K171: 310889.7882
A172: Casinos, Racing, Gambling, Wagering | C172: 0 | D172: 0 | E172: 0 | F172: 0 | G172: 0 | H172: 0 | I172: 0 | J172: 0 | K172: 0
A173: Community Parks (including Nurseries) | C173: 129269749.2 | D173: 186347961.5 | E173: 145685496.1 | F173: 304777833.8 | G173: 290736762.9 | H173: 290736762.9 | I173: 310054863.8 | J173: 329899967.6 | K173: 348886043.5
A174: Recreational Facilities | C174: 168946386.6 | D174: 212557953.8 | E174: 199629812 | F174: 213989277.5 | G174: 215413389.5 | H174: 215413389.5 | I174: 224028062.1 | J174: 238036257.8 | K174: 251184228
A175: Sports Grounds and Stadiums | C175: 9459861.86 | D175: 11607529.8 | E175: 10305271.56 | F175: 12313524.95 | G175: 12316447.53 | H175: 12316447.53 | I175: 13153100.21 | J175: 14030531.48 | K175: 14964166.96
A176: Public safety | C176: =SUM(C177:C184) -> 2400102658 | D176: 2572915081 | E176: 2586874120 | F176: 3038802655 | G176: 3036451388 | H176: 3036451388 | I176: 3357680950 | J176: 3695016395 | K176: 3934531473
A177: Civil Defence | C177: 1588331969 | D177: 1959499383 | E177: 1899494973 | F177: 2248696514 | G177: 2238118395 | H177: 2238118395 | I177: 2508901094 | J177: 2790084673 | K177: 2970360257
A178: Cleansing | C178: 0 | D178: 0 | E178: 0 | F178: 0 | G178: 0 | H178: 0 | I178: 0 | J178: 0 | K178: 0
A179: =A57 -> Control of Public Nuisances | C179: 0 | D179: 0 | E179: 0 | F179: 0 | G179: 0 | H179: 0 | I179: 0 | J179: 0 | K179: 0
A180: Fencing and Fences | C180: 0 | D180: 0 | E180: 0 | F180: 0 | G180: 0 | H180: 0 | I180: 0 | J180: 0 | K180: 0
A181: Fire Fighting and Protection | C181: 376331206.7 | D181: 400805953.5 | E181: 413435257 | F181: 479046579.7 | G181: 473369745.7 | H181: 473369745.7 | I181: 508948041.2 | J181: 542564266 | K181: 577981015
A182: Licensing and Control of Animals | C182: 0 | D182: 0 | E182: 0 | F182: 0 | G182: 0 | H182: 0 | I182: 0 | J182: 0 | K182: 0
A183: Police Forces, Traffic and Street Parking Control | C183: 435439482.6 | D183: 212609744 | E183: 273943890.1 | F183: 311059560.8 | G183: 324963248 | H183: 324963248 | I183: 339831814.8 | J183: 362367455.7 | K183: 386190200.7
A184: Pounds | C184: 0 | D184: 0 | E184: 0 | F184: 0 | G184: 0 | H184: 0 | I184: 0 | J184: 0 | K184: 0
A185: =A63 -> Housing | C185: =SUM(C186:C187) -> 693410127.4 | D185: 585974320.3 | E185: 561154206.8 | F185: 538580241.9 | G185: 882252368 | H185: 882252368 | I185: 810066609.6 | J185: 865945840 | K185: 903963636.6
A186: Housing | C186: 316064200 | D186: 317888644.6 | E186: 303417535.2 | F186: 237578332.7 | G186: 512714714.4 | H186: 512714714.4 | I186: 422947751.6 | J186: 457630689.2 | K186: 486995965.5
A187: Informal Settlements | C187: 377345927.4 | D187: 268085675.7 | E187: 257736671.6 | F187: 301001909.2 | G187: 369537653.7 | H187: 369537653.7 | I187: 387118858 | J187: 408315150.8 | K187: 416967671.1
A188: Health | C188: =SUM(C189:C195) -> 619599706.1 | D188: =SUM(D189:D195) -> 594381334.2 | E188: 584450877.1 | F188: 696368208.5 | G188: 752578227.5 | H188: 752578227.5 | I188: 799839046.3 | J188: 851899558.3 | K188: 905448975.1
A189: Ambulance | C189: 189212458.7 | D189: 195075886.4 | E189: 199422439 | F189: 225152911.4 | G189: 224169991.6 | H189: 224169991.6 | I189: 241813651.1 | J189: 258000174 | K189: 275201882.3
A190: Health Services | C190: 430387247.5 | D190: 399305447.8 | E190: 385028438.1 | F190: 471215297.1 | G190: 528408235.8 | H190: 528408235.8 | I190: 558025395.2 | J190: 593899384.3 | K190: 630247092.8
A191: Laboratory Services | C191: 0 | D191: 0 | E191: 0 | F191: 0 | G191: 0 | H191: 0 | I191: 0 | J191: 0 | K191: 0
A192: Food Control | C192: 0 | D192: 0 | E192: 0 | F192: 0 | G192: 0 | H192: 0 | I192: 0 | J192: 0 | K192: 0
A193: Health Surveillance and Prevention of Communicable Diseases including immunizations | C193: 0 | D193: 0 | E193: 0 | F193: 0 | G193: 0 | H193: 0 | I193: 0 | J193: 0 | K193: 0
A194: Vector Control | C194: 0 | D194: 0 | E194: 0 | F194: 0 | G194: 0 | H194: 0 | I194: 0 | J194: 0 | K194: 0
A195: Chemical Safety | C195: 0 | D195: 0 | E195: 0 | F195: 0 | G195: 0 | H195: 0 | I195: 0 | J195: 0 | K195: 0
A196: Economic and environmental services | C196: =C197+C208+C213 -> 2685127801 | D196: 2558687287 | E196: 2736827446 | F196: 2984391666 | G196: 3015343045 | H196: 3015343045 | I196: 3176977084 | J196: 3321179287 | K196: 3500613411
A197: Planning and development | C197: =SUM(C198:C207) -> 829107796.6 | D197: =SUM(D198:D207) -> 812866703.8 | E197: 904374294.8 | F197: 1041265962 | G197: 1021058550 | H197: 1021058550 | I197: 1091142242 | J197: 1108637211 | K197: 1172628474
A198: Billboards | C198: 0 | D198: 0 | E198: 0 | F198: 0 | G198: 0 | H198: 0 | I198: 0 | J198: 0 | K198: 0
A199: Corporate Wide Strategic Planning (IDPs, LEDs) | C199: 17032240.72 | D199: 16798147.31 | E199: 15984241.57 | F199: 32315894.18 | G199: 32053691.51 | H199: 32053691.51 | I199: 34215031.03 | J199: 36503088.23 | K199: 38943237.91
A200: Central City Improvement District | C200: 0 | D200: 0 | E200: 0 | F200: 0 | G200: 0 | H200: 0 | I200: 0 | J200: 0 | K200: 0
A201: Development Facilitation | C201: 0 | D201: 0 | E201: 0 | F201: 0 | G201: 0 | H201: 0 | I201: 0 | J201: 0 | K201: 0
... 53 more rows

Sheet A3-FinPerf V
A1: =muni&" - "&Approve2 -> TSH City Of Tshwane - Table A3 Consolidated Budgeted Financial Performance (revenue and expenditure by municipal vote)
A2: =Vdesc -> Vote Description | B2: =head27 -> Ref | C2: =head1b -> 2015/16 | D2: =head1A -> 2016/17 | E2: =Head1 -> 2017/18 | F2: =Head2 -> Current Year 2018/19 | I2: =Head3 -> 2019/20 Medium Term Revenue & Expenditure Framework | L2: =Head4 -> LTFS
A3: R thousand | C3: =Head5 -> Audited Outcome | D3: =Head5 -> Audited Outcome | E3: =Head5 -> Audited Outcome | F3: =Head6 -> Original Budget | G3: =Head7 -> Adjusted Budget | H3: =Head8 -> Full Year Forecast | I3: =Head9 -> Budget Year 2019/20 | J3: =Head10 -> Budget Year +1 2020/21 | K3: =Head11 -> Budget Year +2 2021/22 | L3: =Head12 -> Forecast 2022/23 | M3: =Head13 -> Forecast 2023/24 | N3: =Head14 -> Forecast 2024/25 | O3: =Head15 -> Forecast 2025/26 | P3: =Head16 -> Forecast 2026/27 | Q3: =Head17 -> Forecast 2027/28 | R3: =Head18 -> Forecast 2028/29 | S3: =Head19 -> Forecast 2029/30 | T3: =Head20 -> Forecast 2030/31 | U3: =Head21 -> Forecast 2031/32 | V3: =Head22 -> Forecast 2032/33 | W3: =Head23 -> Forecast 2033/34
A4: Revenue by Vote | B4: 1
A5: =A3A!A5 -> Vote 1 - Community & Social Development Services Department | C5: =A3A!C5 -> 86612807.44 | D5: =A3A!D5 -> 111282422.3 | E5: =A3A!E5 -> 102327405.8 | F5: =A3A!F5 -> 78317698.49 | G5: =A3A!G5 -> 85506013.16 | H5: =A3A!H5 -> 85506013.16 | I5: =A3A!I5 -> 39144251.02 | J5: =A3A!J5 -> 16719155.23 | K5: =A3A!K5 -> 1815135.061
A6: =A3A!A15 -> Vote 2 - Economic Development & Spatial Planning Department | C6: =A3A!C15 -> 400709068.6 | D6: =A3A!D15 -> 369300513.4 | E6: =A3A!E15 -> 253649499.8 | F6: =A3A!F15 -> 454700450.4 | G6: =A3A!G15 -> 451304721.5 | H6: =A3A!H15 -> 451304721.5 | I6: =A3A!I15 -> 469814446.1 | J6: =A3A!J15 -> 497184809.7 | K6: =A3A!K15 -> 525585614.2
A7: =A3A!A29 -> Vote 3 - Emergency Services Department | C7: =A3A!C29 -> 85606323.6 | D7: =A3A!D29 -> 83369050.98 | E7: =A3A!E29 -> 110810397.4 | F7: =A3A!F29 -> 118784568.9 | G7: =A3A!G29 -> 118771328.7 | H7: =A3A!H29 -> 118771328.7 | I7: =A3A!I29 -> 124725178 | J7: =A3A!J29 -> 131927001.5 | K7: =A3A!K29 -> 19511694.02
A8: =A3A!A37 -> Vote 4 - Environment & Agriculture Management Department | C8: =A3A!C37 -> 1227045867 | D8: =A3A!D37 -> 1345389316 | E8: =A3A!E37 -> 1588361171 | F8: =A3A!F37 -> 1553665244 | G8: =A3A!G37 -> 1611769369 | H8: =A3A!H37 -> 1611769369 | I8: =A3A!I37 -> 1708336509 | J8: =A3A!J37 -> 1800627188 | K8: =A3A!K37 -> 1897903819
A9: =A3A!A47 -> Vote 5 - Group Audit & Risk Department | C9: =A3A!C47 -> 40380631.94 | D9: =A3A!D47 -> 51892964.08 | E9: =A3A!E47 -> 47784949.27 | F9: =A3A!F47 -> 44175225.11 | G9: =A3A!G47 -> 42060432.11 | H9: =A3A!H47 -> 42060432.11 | I9: =A3A!I47 -> 44474170.7 | J9: =A3A!J47 -> 46964299.9 | K9: =A3A!K47 -> 49593852.07
A10: =A3A!A51 -> Vote 6 - Group Financial Services Department | C10: =A3A!C51 -> 8698654010 | D10: =A3A!D51 -> 9665681198 | E10: =A3A!E51 -> 1.105285174e+10 | F10: =A3A!F51 -> 1.124796646e+10 | G10: =A3A!G51 -> 1.15665971e+10 | H10: =A3A!H51 -> 1.15665971e+10 | I10: =A3A!I51 -> 1.229971859e+10 | J10: =A3A!J51 -> 1.30574301e+10 | K10: =A3A!K51 -> 1.391762502e+10
A11: =A3A!A62 -> Vote 7 - Group Property Management Department | C11: =A3A!C62 -> 238295843.9 | D11: =A3A!D62 -> 72055248.51 | E11: =A3A!E62 -> 68252072.3 | F11: =A3A!F62 -> 97257029.32 | G11: =A3A!G62 -> 89637300.42 | H11: =A3A!H62 -> 89637300.42 | I11: =A3A!I62 -> 112200169.2 | J11: =A3A!J62 -> 118268786.1 | K11: =A3A!K62 -> 124665657.6
A12: =A3A!A69 -> Vote 8 - Health Department | C12: =A3A!C69 -> 55454272.71 | D12: =A3A!D69 -> 63565635.01 | E12: =A3A!E69 -> 59822671.19 | F12: =A3A!F69 -> 63434532.05 | G12: =A3A!G69 -> 65002732.05 | H12: =A3A!H69 -> 65002732.05 | I12: =A3A!I69 -> 67722335.97 | J12: =A3A!J69 -> 73652003.34 | K12: =A3A!K69 -> 1390562.172
A13: =A3A!A75 -> Vote 9 - Human Settlement Department | C13: =A3A!C75 -> 974719158.9 | D13: =A3A!D75 -> 761270063.6 | E13: =A3A!E75 -> 1038735466 | F13: =A3A!F75 -> 1015195717 | G13: =A3A!G75 -> 1312973194 | H13: =A3A!H75 -> 1312973194 | I13: =A3A!I75 -> 1270442966 | J13: =A3A!J75 -> 1458910306 | K13: =A3A!K75 -> 1149510870
A14: =A3A!A84 -> Vote 10 - Tshwane Metro Police Department | C14: =A3A!C84 -> 315597030.4 | D14: =A3A!D84 -> 200030215.1 | E14: =A3A!E84 -> 233484695.4 | F14: =A3A!F84 -> 370549045.8 | G14: =A3A!G84 -> 319350278.8 | H14: =A3A!H84 -> 319350278.8 | I14: =A3A!I84 -> 338511726.9 | J14: =A3A!J84 -> 356802797.6 | K14: =A3A!K84 -> 376082226.6
A15: =A3A!A93 -> Vote 11 - Regional Operations & Coordination Department | C15: =A3A!C93 -> 76871759.6 | D15: =A3A!D93 -> 138067053.9 | E15: =A3A!E93 -> 66605923.07 | F15: =A3A!F93 -> 60253791.31 | G15: =A3A!G93 -> 53880566.33 | H15: =A3A!H93 -> 53880566.33 | I15: =A3A!I93 -> 36893102.95 | J15: =A3A!J93 -> 39119092.24 | K15: =A3A!K93 -> 41263466.65 | L15: =A5A!#REF! -> 
A16: =A3A!A155 -> Vote 12 - Roads & Transport Department | C16: =A3A!C155 -> 1515112573 | D16: =A3A!D155 -> 1424840895 | E16: =A3A!E155 -> 1314500401 | F16: =A3A!F155 -> 1299190747 | G16: =A3A!G155 -> 1155690769 | H16: =A3A!H155 -> 1155690769 | I16: =A3A!I155 -> 1041649881 | J16: =A3A!J155 -> 1108990272 | K16: =A3A!K155 -> 1229360625 | L16: =A5A!L155 -> 0
A17: =A3A!A164 -> Vote 13 - Shared Services Department | C17: =A3A!C164 -> 9551533.48 | D17: =A3A!D164 -> 12851852.63 | E17: =A3A!E164 -> 5912825.06 | F17: =A3A!F164 -> 1126124 | G17: =A3A!G164 -> 1126124 | H17: =A3A!H164 -> 1126124 | I17: =A3A!I164 -> 1193691.44 | J17: =A3A!J164 -> 1260538.161 | K17: =A3A!K164 -> 1331128.298 | L17: =A5A!#REF! -> 
A18: =A3A!A172 -> Vote 14 - Utility Services Department | C18: =A3A!C172 -> 1.423983446e+10 | D18: =A3A!D172 -> 1.604864311e+10 | E18: =A3A!E172 -> 1.642092725e+10 | F18: =A3A!F172 -> 1.828982195e+10 | G18: =A3A!G172 -> 1.833941435e+10 | H18: =A3A!H172 -> 1.833941435e+10 | I18: =A3A!I172 -> 2.032455421e+10 | J18: =A3A!J172 -> 2.1841773e+10 | K18: =A3A!K172 -> 2.34064835e+10 | L18: =A5A!#REF! -> 
A19: =A3A!A189 -> Vote 15 - Other Departments | C19: =A3A!C189 -> 100369301.5 | D19: =A3A!D189 -> 103488383.7 | E19: =A3A!E189 -> 39555057.94 | F19: =A3A!F189 -> 42503376 | G19: =A3A!G189 -> 50902044.75 | H19: =A3A!H189 -> 50902044.75 | I19: =A3A!I189 -> 37758679.81 | J19: =A3A!J189 -> 20334848.31 | K19: =A3A!K189 -> 21471157.1 | L19: =A5A!L189 -> 0
A20: Total Revenue by Vote | B20: 2 | C20: =SUM(C5:C19) -> 2.806481464e+10 | D20: =SUM(D5:D19) -> 3.045172792e+10 | E20: 3.240358153e+10 | F20: 3.473694196e+10 | G20: 3.526398632e+10 | H20: 3.526398632e+10 | I20: 3.791713991e+10 | J20: 4.05699642e+10 | K20: 4.276359432e+10
A22: Expenditure by Vote to be appropriated | B22: 1
A23: =A3A!A202 -> Vote 1 - Community & Social Development Services Department | C23: =A3A!C202 -> 448931690.7 | D23: =A3A!D202 -> 426468721.3 | E23: =A3A!E202 -> 342902900.6 | F23: =A3A!F202 -> 441130825.6 | G23: =A3A!G202 -> 472528231 | H23: =A3A!H202 -> 472528231 | I23: =A3A!I202 -> 488501044 | J23: =A3A!J202 -> 518523918.7 | K23: =A3A!K202 -> 544843156
A24: =A3A!A212 -> Vote 2 - Economic Development & Spatial Planning Department | C24: =A3A!C212 -> 534793682.8 | D24: =A3A!D212 -> 530576542.9 | E24: =A3A!E212 -> 481222250.4 | F24: =A3A!F212 -> 578161658.9 | G24: =A3A!G212 -> 573434287 | H24: =A3A!H212 -> 573434287 | I24: =A3A!I212 -> 609613775.3 | J24: =A3A!J212 -> 636985439.6 | K24: =A3A!K212 -> 675157310.1
A25: =A3A!A226 -> Vote 3 - Emergency Services Department | C25: =A3A!C226 -> 606947955.9 | D25: =A3A!D226 -> 625631901.6 | E25: =A3A!E226 -> 640596593.1 | F25: =A3A!F226 -> 741129079.3 | G25: =A3A!G226 -> 731932454 | H25: =A3A!H226 -> 731932454 | I25: =A3A!I226 -> 788478521.9 | J25: =A3A!J226 -> 840746294.3 | K25: =A3A!K226 -> 895909991.5
A26: =A3A!A234 -> Vote 4 - Environment & Agriculture Management Department | C26: =A3A!C234 -> 1505268822 | D26: =A3A!D234 -> 1622119036 | E26: =A3A!E234 -> 1627612548 | F26: =A3A!F234 -> 1503036736 | G26: =A3A!G234 -> 1511741086 | H26: =A3A!H234 -> 1511741086 | I26: =A3A!I234 -> 1609335860 | J26: =A3A!J234 -> 1707884206 | K26: =A3A!K234 -> 1787513891
A27: =A3A!A244 -> Vote 5 - Group Audit & Risk Department | C27: =A3A!C244 -> 437196741.5 | D27: =A3A!D244 -> 363442794.4 | E27: =A3A!E244 -> 225211400.1 | F27: =A3A!F244 -> 357827227.8 | G27: =A3A!G244 -> 336781535.6 | H27: =A3A!H244 -> 336781535.6 | I27: =A3A!I244 -> 345824280.1 | J27: =A3A!J244 -> 366228099.5 | K27: =A3A!K244 -> 386091152.9
A28: =A3A!A248 -> Vote 6 - Group Financial Services Department | C28: =A3A!C248 -> 1405824322 | D28: =A3A!D248 -> 1495663464 | E28: =A3A!E248 -> 3746708920 | F28: =A3A!F248 -> 2897920708 | G28: =A3A!G248 -> 2844417900 | H28: =A3A!H248 -> 2844417900 | I28: =A3A!I248 -> 3360044329 | J28: =A3A!J248 -> 3482485711 | K28: =A3A!K248 -> 3604892201
A29: =A3A!A259 -> Vote 7 - Group Property Management Department | C29: =A3A!C259 -> 339915146.1 | D29: =A3A!D259 -> 388958405.7 | E29: =A3A!E259 -> 684947572.3 | F29: =A3A!F259 -> 656979854.5 | G29: =A3A!G259 -> 722586533.2 | H29: =A3A!H259 -> 722586533.2 | I29: =A3A!I259 -> 888129843.7 | J29: =A3A!J259 -> 937209112.5 | K29: =A3A!K259 -> 970164125.6
A30: =A3A!A266 -> Vote 8 - Health Department | C30: =A3A!C266 -> 342297184.9 | D30: =A3A!D266 -> 349898877.1 | E30: =A3A!E266 -> 375545156.9 | F30: =A3A!F266 -> 425103780.7 | G30: =A3A!G266 -> 441539209.9 | H30: =A3A!H266 -> 441539209.9 | I30: =A3A!I266 -> 466121710.9 | J30: =A3A!J266 -> 496012328.4 | K30: =A3A!K266 -> 526047549.9
A31: =A3A!A272 -> Vote 9 - Human Settlement Department | C31: =A3A!C272 -> 647638933.7 | D31: =A3A!D272 -> 491928195.6 | E31: =A3A!E272 -> 388572842.2 | F31: =A3A!F272 -> 330172889 | G31: =A3A!G272 -> 607746544.5 | H31: =A3A!H272 -> 607746544.5 | I31: =A3A!I272 -> 520477267.4 | J31: =A3A!J272 -> 560070735.3 | K31: =A3A!K272 -> 590946610.8
A32: =A3A!A281 -> Vote 10 - Tshwane Metro Police Department | C32: =A3A!C281 -> 2029465549 | D32: =A3A!D281 -> 2204682302 | E32: =A3A!E281 -> 2240070468 | F32: =A3A!F281 -> 2580440810 | G32: =A3A!G281 -> 2584934451 | H32: =A3A!H281 -> 2584934451 | I32: =A3A!I281 -> 2870983467 | J32: =A3A!J281 -> 3176133977 | K32: =A3A!K281 -> 3381763336
A33: =A3A!A290 -> Vote 11 - Regional Operations & Coordination Department | C33: =A3A!C290 -> 2401064910 | D33: =A3A!D290 -> 2302053387 | E33: =A3A!E290 -> 2595113081 | F33: =A3A!F290 -> 3172232081 | G33: =A3A!G290 -> 3153361238 | H33: =A3A!H290 -> 3153361238 | I33: =A3A!I290 -> 3362298462 | J33: =A3A!J290 -> 3569269404 | K33: =A3A!K290 -> 3751916658 | L33: =A3A!#REF! -> 
A34: =A3A!A352 -> Vote 12 - Roads & Transport Department | C34: =A3A!C352 -> 1453204941 | D34: =A3A!D352 -> 1495472437 | E34: =A3A!E352 -> 1551678467 | F34: =A3A!F352 -> 1499742351 | G34: =A3A!G352 -> 1573212530 | H34: =A3A!H352 -> 1573212530 | I34: =A3A!I352 -> 1667913633 | J34: =A3A!J352 -> 1728177930 | K34: =A3A!K352 -> 1818287062 | L34: =A3A!L353 -> 0
A35: =A3A!A361 -> Vote 13 - Shared Services Department | C35: =A3A!C361 -> 1445767284 | D35: =A3A!D361 -> 1322457831 | E35: =A3A!E361 -> 1430553486 | F35: =A3A!F361 -> 1548491442 | G35: =A3A!G361 -> 1515370099 | H35: =A3A!H361 -> 1515370099 | I35: =A3A!I361 -> 1595652746 | J35: =A3A!J361 -> 1685673294 | K35: =A3A!K361 -> 1769652162 | L35: =A3A!L362 -> 0
A36: =A3A!A369 -> Vote 14 - Utility Services Department | C36: =A3A!C369 -> 1.184901045e+10 | D36: =A3A!D369 -> 1.30618922e+10 | E36: =A3A!E369 -> 1.202331483e+10 | F36: =A3A!F369 -> 1.408755632e+10 | G36: =A3A!G369 -> 1.426849792e+10 | H36: =A3A!H369 -> 1.426849792e+10 | I36: =A3A!I369 -> 1.535681575e+10 | J36: =A3A!J369 -> 1.654377884e+10 | K36: =A3A!K369 -> 1.743907803e+10 | L36: =A3A!L370 -> 0
A37: =A3A!A386 -> Vote 15 - Other Departments | C37: =A3A!C386 -> 1519059629 | D37: =A3A!D386 -> 1341904867 | E37: =A3A!E386 -> 1611053549 | F37: =A3A!F386 -> 1597586031 | G37: =A3A!G386 -> 1592781261 | H37: =A3A!H386 -> 1592781261 | I37: =A3A!I386 -> 1631010934 | J37: =A3A!J386 -> 1743157638 | K37: =A3A!K386 -> 1870409455 | L37: =A3A!L387 -> 0
A38: Total Expenditure by Vote | B38: 2 | C38: =SUM(C23:C37) -> 2.696638724e+10 | D38: =SUM(D23:D37) -> 2.802315096e+10 | E38: 2.996510406e+10 | F38: 3.24175118e+10 | G38: 3.293086528e+10 | H38: 3.293086528e+10 | I38: 3.556120162e+10 | J38: 3.799233693e+10 | K38: 4.001267269e+10 | L38: =SUM(L23:L29) -> 0 | M38: 0 | N38: 0 | O38: 0 | P38: 0 | Q38: 0 | R38: 0 | S38: 0 | T38: 0 | U38: 0 | V38: 0 | W38: 0
A39: =result -> Surplus/(Deficit) for the year | B39: 2 | C39: =C20-C38 -> 1098427405 | D39: 2428576962 | E39: 2438477465 | F39: 2319430162 | G39: 2333121040 | H39: 2333121040 | I39: 2355938284 | J39: 2577627271 | K39: 2750921633 | L39: 0 | M39: 0 | N39: 0 | O39: 0 | P39: 0 | Q39: 0 | R39: 0 | S39: 0 | T39: 0 | U39: 0 | V39: 0 | W39: 0
A40: =head27a -> References
A41: 1. Insert 'Vote'; e.g. department, if different to functional classification structure
A42: 2. Must reconcile to Budgeted Financial Performance (revenue and expenditure)
A43: 3. Assign share in 'associate' to relevant Vote
A45: ="check "&A39 -> check Surplus/(Deficit) for the year | C45: =C39-A3A!C398 -> 0 | D45: =D39-A3A!D398 -> 0 | E45: =E39-A3A!E398 -> 0 | F45: =F39-A3A!F398 -> 0 | G45: =G39-A3A!G398 -> 0 | H45: =H39-A3A!H398 -> 0 | I45: =I39-A3A!I398 -> 0 | J45: =J39-A3A!J398 -> 0 | K45: =K39-A3A!K398 -> 0

Sheet A3A
A1: =muni&" - "&Approve2&"A" -> TSH City Of Tshwane - Table A3 Consolidated Budgeted Financial Performance (revenue and expenditure by municipal vote)A
A2: =Vdesc -> Vote Description | B2: =head27 -> Ref | C2: =head1b -> 2015/16 | D2: =head1A -> 2016/17 | E2: =Head1 -> 2017/18 | F2: =Head2 -> Current Year 2018/19 | I2: =Head3 -> 2019/20 Medium Term Revenue & Expenditure Framework | L2: =Head4 -> LTFS
A3: R thousand | C3: =Head5 -> Audited Outcome | D3: =Head5 -> Audited Outcome | E3: =Head5 -> Audited Outcome | F3: =Head6 -> Original Budget | G3: =Head7 -> Adjusted Budget | H3: =Head8 -> Full Year Forecast | I3: =Head9 -> Budget Year 2019/20 | J3: =Head10 -> Budget Year +1 2020/21 | K3: =Head11 -> Budget Year +2 2021/22 | L3: =Head12 -> Forecast 2022/23 | M3: =Head13 -> Forecast 2023/24 | N3: =Head14 -> Forecast 2024/25 | O3: =Head15 -> Forecast 2025/26 | P3: =Head16 -> Forecast 2026/27 | Q3: =Head17 -> Forecast 2027/28 | R3: =Head18 -> Forecast 2028/29 | S3: =Head19 -> Forecast 2029/30 | T3: =Head20 -> Forecast 2030/31 | U3: =Head21 -> Forecast 2031/32 | V3: =Head22 -> Forecast 2032/33 | W3: =Head23 -> Forecast 2033/34
A4: Revenue by Vote | B4: 1
A5: ='Org structure'!A2 -> Vote 1 - Community & Social Development Services Department | C5: =SUM(C6:C14) -> 86612807.44 | D5: 111282422.3 | E5: 102327405.8 | F5: 78317698.49 | G5: 85506013.16 | H5: 85506013.16 | I5: 39144251.02 | J5: 16719155.23 | K5: 1815135.061
A6: ='Org structure'!E3 -> 1.1 - 019 - Child Care | C6: 40316851.07 | D6: 43319326.77 | E6: 73921416.31 | F6: 31815999.99 | G6: 32524601.01 | H6: 32524601.01 | I6: 1151160 | J6: 1215624.96 | K6: 1283699.958
A7: ='Org structure'!E4 -> 1.2 - 041 - Library | C7: 852739 | D7: 769748.88 | E7: 14612.34 | F7: 465271.8 | G7: 1226.05 | H7: 1226.05 | I7: 1299.242 | J7: 1369.401068 | K7: 1443.348726
A8: ='Org structure'!E5 -> 1.3 - 042 - Culture | C8: 230357.97 | D8: 247845.59 | E8: 10693.93 | F8: 0 | G8: 0 | H8: 0 | I8: 0 | J8: 0 | K8: 0
A9: ='Org structure'!E6 -> 1.4 - 054 - Sport and Recreation | C9: 3170937.73 | D9: 2859973.05 | E9: 379269.26 | F9: 0 | G9: 137627.4 | H9: 137627.4 | I9: 137627.4 | J9: 145059.2796 | K9: 152892.4807
A10: ='Org structure'!E7 -> 1.5 - 058 - Educational Services | C10: 10879540.73 | D10: 13338120.2 | E10: 7513794.44 | F10: 46032023 | G10: 52842559 | H10: 52842559 | I10: 37854164.38 | J10: 15357101.59 | K10: 377099.2741
A11: ='Org structure'!E8 -> 1.6 - 066 - Education and Development | C11: 0 | D11: 0 | E11: 0 | F11: 0 | G11: 0 | H11: 0 | I11: 0 | J11: 0 | K11: 0
A12: ='Org structure'!E9 -> 1.7 - 068 - Management Offices | C12: 31143000 | D12: 50708495.69 | E12: 20451000 | F12: 0 | G12: 0 | H12: 0 | I12: 0 | J12: 0 | K12: 0
A13: ='Org structure'!E10 -> 1.8 - 155 - Management and Administration (Kungwini) | C13: 6432.25 | D13: 16803.27 | E13: 7819.31 | F13: 4403.7 | G13: -0.3 | H13: -0.3 | I13: 0 | J13: 0 | K13: 0
A14: ='Org structure'!E11 -> 1.9 - 156 - Management and Administration (Nokeng) | C14: 12948.69 | D14: 22108.87 | E14: 28800.23 | F14: 0 | G14: 0 | H14: 0 | I14: 0 | J14: 0 | K14: 0
A15: ='Org structure'!A3 -> Vote 2 - Economic Development & Spatial Planning Department | C15: =SUM(C16:C28) -> 400709068.6 | D15: 369300513.4 | E15: 253649499.8 | F15: 454700450.4 | G15: 451304721.5 | H15: 451304721.5 | I15: 469814446.1 | J15: 497184809.7 | K15: 525585614.2
A16: ='Org structure'!E13 -> 2.1 - 010 - Operations | C16: 0 | D16: 0 | E16: 0 | F16: 0 | G16: 0 | H16: 0 | I16: 0 | J16: 0 | K16: 0
A17: ='Org structure'!E14 -> 2.2 - 044 - Quantity Surveyors | C17: 7.93 | D17: 9190.87 | E17: 0 | F17: 0 | G17: 0 | H17: 0 | I17: 0 | J17: 0 | K17: 0
A18: ='Org structure'!E15 -> 2.3 - 045 - Architect | C18: 12.47 | D18: 80141.43 | E18: 0 | F18: 0 | G18: 0 | H18: 0 | I18: 0 | J18: 0 | K18: 0
A19: ='Org structure'!E16 -> 2.4 - 055 - Horticulture | C19: 0 | D19: 144888.52 | E19: 0 | F19: 0 | G19: 0 | H19: 0 | I19: 0 | J19: 0 | K19: 0
A20: ='Org structure'!E17 -> 2.5 - 068 - Economic Development | C20: 1000379.22 | D20: 2191313.66 | E20: -693851.69 | F20: 15802790.16 | G20: 12138715.62 | H20: 12138715.62 | I20: 9182236.9 | J20: 9539459.249 | K20: 9911147.192
A21: ='Org structure'!E18 -> 2.6 - 079 - City Planning | C21: 212945899.4 | D21: 175281272.2 | E21: 57498302.81 | F21: 187470829.9 | G21: 187472819.9 | H21: 187472819.9 | I21: 198712471.7 | J21: 209840078.2 | K21: 221590815
A22: ='Org structure'!E19 -> 2.7 - 080 - City Planning | C22: 19.87 | D22: 35157.94 | E22: 0 | F22: 38261050 | G22: 38261049.43 | H22: 38261049.43 | I22: 36775250 | J22: 39899000 | K22: 42943700
A23: ='Org structure'!E20 -> 2.8 - 153 - Management and Administration (Kungwini) | C23: 0 | D23: 0 | E23: 0 | F23: 0 | G23: 0 | H23: 0 | I23: 0 | J23: 0 | K23: 0
A24: ='Org structure'!E21 -> 2.9 - 154 - Management and Administration (Metsweding) | C24: 0 | D24: 53.88 | E24: 0 | F24: 0 | G24: 0 | H24: 0 | I24: 0 | J24: 0 | K24: 0
A25: ='Org structure'!E22 -> 2.10 - 160 - Fresh-Produce Market | C25: 186762748.8 | D25: 191538089.7 | E25: 196845048.7 | F25: 213165780.3 | G25: 213432136.6 | H25: 213432136.6 | I25: 225144487.6 | J25: 237906272.2 | K25: 251139952.1
A26: ='Org structure'!E23 -> 2.11 - 179 - Management and Administration (Kungwini) | C26: 0 | D26: 422.15 | E26: 0 | F26: 0 | G26: 0 | H26: 0 | I26: 0 | J26: 0 | K26: 0
A27: ='Org structure'!E24 -> 2.12 - 180 - Management and Administration (Nokeng) | C27: 0.95 | D27: 19983.09 | E27: 0 | F27: 0 | G27: 0 | H27: 0 | I27: 0 | J27: 0 | K27: 0
A28: ='Org structure'!E25 -> 2.13 - 181 - Management and Administration (Metsweding) | C28: 0 | D28: 0 | E28: 0 | F28: 0 | G28: 0 | H28: 0 | I28: 0 | J28: 0 | K28: 0
A29: ='Org structure'!A4 -> Vote 3 - Emergency Services Department | C29: =SUM(C30:C36) -> 85606323.6 | D29: 83369050.98 | E29: 110810397.4 | F29: 118784568.9 | G29: 118771328.7 | H29: 118771328.7 | I29: 124725178 | J29: 131927001.5 | K29: 19511694.02
A30: ='Org structure'!E27 -> 3.1 - 005 - Emergency Medical and Ambulance Services | C30: 66162288.59 | D30: 67581167.54 | E30: 100818456.9 | F30: 112240512 | G30: 112240512 | H30: 112240512 | I30: 117939842.7 | J30: 124761705.9 | K30: 11945161.44
A31: ='Org structure'!E28 -> 3.2 - 006 - Fire Brigade | C31: 6970318.04 | D31: 13756973.06 | E31: 9868937.97 | F31: 6367301.9 | G31: 6367301.9 | H31: 6367301.9 | I31: 6723075.44 | J31: 7099567.665 | K31: 7497143.454
A32: ='Org structure'!E29 -> 3.3 - 011 - Management and Administration (Kungwini) | C32: 32 | D32: 128206.52 | E32: 0 | F32: 0 | G32: 0 | H32: 0 | I32: 0 | J32: 0 | K32: 0
A33: ='Org structure'!E30 -> 3.4 - 012 - Management and Administration (Nokeng) | C33: 0 | D33: 107049.75 | E33: 0 | F33: 0 | G33: 0 | H33: 0 | I33: 0 | J33: 0 | K33: 0
A34: ='Org structure'!E31 -> 3.5 - 013 - Management and Administration (Metsweding) | C34: 17.52 | D34: 0 | E34: 0 | F34: 0 | G34: 0 | H34: 0 | I34: 0 | J34: 0 | K34: 0
A35: ='Org structure'!E32 -> 3.6 - 040 - Emergency Operational and Support Services | C35: 31671.29 | D35: 1392014.7 | E35: 123002.5 | F35: 176755 | G35: 163514.848 | H35: 163514.848 | I35: 62259.848 | J35: 65727.87979 | K35: 69389.1213
A36: ='Org structure'!E33 -> 3.7 - 048 - Disaster Management | C36: 12441996.16 | D36: 403639.41 | E36: 0 | F36: 0 | G36: 0 | H36: 0 | I36: 0 | J36: 0 | K36: 0
A37: ='Org structure'!A5 -> Vote 4 - Environment & Agriculture Management Department | C37: =SUM(C38:C46) -> 1227045867 | D37: 1345389316 | E37: 1588361171 | F37: 1553665244 | G37: 1611769369 | H37: 1611769369 | I37: 1708336509 | J37: 1800627188 | K37: 1897903819
A38: ='Org structure'!E35 -> 4.1 - 018 - Environmental Health | C38: 339881.32 | D38: 106989.86 | E38: 419390.4 | F38: 605866 | G38: 605866 | H38: 605866 | I38: 642217.96 | J38: 678182.1658 | K38: 716160.367
A39: ='Org structure'!E36 -> 4.2 - 034 - Waste Management | C39: 2785.3 | D39: 2375070.97 | E39: 0 | F39: 0 | G39: 0 | H39: 0 | I39: 0 | J39: 0 | K39: 0
A40: ='Org structure'!E37 -> 4.3 - 035 - Solid Waste Services | C40: 1189535394 | D40: 1297152145 | E40: 1558409868 | F40: 1534246430 | G40: 1592100197 | H40: 1592100197 | I40: 1687577982 | J40: 1778707384 | K40: 1874757772
A41: ='Org structure'!E38 -> 4.4 - 037 - Management and Administration (Nokeng) | C41: 1689.48 | D41: 47 | E41: 0 | F41: 93367 | G41: 93367 | H41: 93367 | I41: 98969.02 | J41: 104511.2851 | K41: 110363.9171
A42: ='Org structure'!E39 -> 4.5 - 038 - Management and Administration (Metsweding) | C42: 0 | D42: 0 | E42: 0 | F42: 0 | G42: 0 | H42: 0 | I42: 0 | J42: 0 | K42: 0
A43: ='Org structure'!E40 -> 4.6 - 053 - Culture and Recreation | C43: 3878017.46 | D43: 12371405.38 | E43: 3614623.96 | F43: 56182 | G43: 56182 | H43: 56182 | I43: 4789.08 | J43: 5057.26848 | K43: 5340.475515
A44: ='Org structure'!E41 -> 4.7 - 055 - Horticulture | C44: 2923966.23 | D44: 1294399.89 | E44: 1271896.22 | F44: 220000 | G44: 220000 | H44: 220000 | I44: 233200 | J44: 246259.2 | K44: 260049.7152
A45: ='Org structure'!E42 -> 4.8 - 056 - Conservation and Resorts | C45: 21934118.92 | D45: 27954859.11 | E45: 24315028.29 | F45: 18042361 | G45: 18292718.94 | H45: 18292718.94 | I45: 19354251.24 | J45: 20436888.28 | K45: 21580088.14
A46: ='Org structure'!E43 -> 4.9 - 057 - Cemeteries | C46: 8430014.22 | D46: 4134398.49 | E46: 330364.52 | F46: 401038 | G46: 401038 | H46: 401038 | I46: 425100.28 | J46: 448905.8957 | K46: 474044.6258
A47: ='Org structure'!A6 -> Vote 5 - Group Audit & Risk Department | C47: =SUM(C48:C50) -> 40380631.94 | D47: 51892964.08 | E47: 47784949.27 | F47: 44175225.11 | G47: 42060432.11 | H47: 42060432.11 | I47: 44474170.7 | J47: 46964299.9 | K47: 49593852.07
A48: ='Org structure'!E45 -> 5.1 - 049 - Metropolitan Police Services | C48: 191220.2 | D48: 190216.9 | E48: 153398.69 | F48: 95329.5 | G48: 197332.5 | H48: 197332.5 | I48: 209172.45 | J48: 220467.7623 | K48: 232373.0215
A49: ='Org structure'!E46 -> 5.2 - 069 - Internal Audit and Risk Management | C49: 66.14 | D49: 252719.44 | E49: 2 | F49: 0 | G49: 0 | H49: 0 | I49: 0 | J49: 0 | K49: 0
A50: ='Org structure'!E47 -> 5.3 - 070 - Internal Audit | C50: 40189345.6 | D50: 51450027.74 | E50: 47631548.58 | F50: 44079895.61 | G50: 41863099.61 | H50: 41863099.61 | I50: 44264998.25 | J50: 46743832.14 | K50: 49361479.04
A51: ='Org structure'!A7 -> Vote 6 - Group Financial Services Department | C51: =SUM(C52:C61) -> 8698654010 | D51: =SUM(D52:D61) -> 9665681198 | E51: 1.105285174e+10 | F51: 1.124796646e+10 | G51: 1.15665971e+10 | H51: 1.15665971e+10 | I51: 1.229971859e+10 | J51: 1.30574301e+10 | K51: 1.391762502e+10
A52: ='Org structure'!E49 -> 6.1 - 001 - General and Assessment Rates | C52: 8631226446 | D52: 9543026084 | E52: 1.081603239e+10 | F52: 1.11056244e+10 | G52: 1.135904042e+10 | H52: 1.135904042e+10 | I52: 1.206463947e+10 | J52: 1.283787663e+10 | K52: 1.369503477e+10
A53: ='Org structure'!E50 -> 6.2 - 003 - General | C53: 0 | D53: 0 | E53: 0 | F53: 0 | G53: 0 | H53: 0 | I53: 0 | J53: 0 | K53: 0
A54: ='Org structure'!E51 -> 6.3 - 070 - Finance | C54: 60108345.1 | D54: 113390736.6 | E54: 236199762.1 | F54: 137172713.5 | G54: 202387327.5 | H54: 202387327.5 | I54: 229599608.6 | J54: 213767102.9 | K54: 216479841.9
A55: ='Org structure'!E52 -> 6.4 - 071 - Provisioning | C55: 2267635.54 | D55: 4390674 | E55: 38246.61 | F55: 3561146 | G55: 3561146 | H55: 3561146 | I55: 3774814.76 | J55: 3986204.387 | K55: 4209431.832
A56: ='Org structure'!E53 -> 6.5 - 074 - Stores | C56: 243578.76 | D56: 1442645.6 | E56: 2 | F56: 0 | G56: 0 | H56: 0 | I56: 0 | J56: 0 | K56: 0
A57: ='Org structure'!E54 -> 6.6 - 076 - Provisioning Services | C57: 4798051.62 | D57: 3368375.7 | E57: 577225.23 | F57: 1600095 | G57: 1600095 | H57: 1600095 | I57: 1696100.7 | J57: 1791082.339 | K57: 1891382.95
A58: ='Org structure'!E55 -> 6.7 - 078 - Property Valuation | C58: 9897.94 | D58: 51417.27 | E58: 4112.06 | F58: 8109 | G58: 8109 | H58: 8109 | I58: 8595.54 | J58: 9076.89024 | K58: 9585.196093
A59: ='Org structure'!E56 -> 6.8 - 171 - Management and Administration (Kungwini) | C59: 0 | D59: 4416.65 | E59: 0 | F59: 0 | G59: 0 | H59: 0 | I59: 0 | J59: 0 | K59: 0
A60: ='Org structure'!E57 -> 6.9 - 172 - Management and Administration (Nokeng) | C60: 0 | D60: 0 | E60: 0 | F60: 0 | G60: 0 | H60: 0 | I60: 0 | J60: 0 | K60: 0
A61: ='Org structure'!E58 -> 6.10 - 173 - Management and Administration (Metsweding) | C61: 54.95 | D61: 6848.52 | E61: 0 | F61: 0 | G61: 0 | H61: 0 | I61: 0 | J61: 0 | K61: 0
A62: ='Org structure'!A8 -> Vote 7 - Group Property Management Department | C62: =SUM(C63:C68) -> 238295843.9 | D62: 72055248.51 | E62: 68252072.3 | F62: 97257029.32 | G62: 89637300.42 | H62: 89637300.42 | I62: 112200169.2 | J62: 118268786.1 | K62: 124665657.6
A63: ='Org structure'!E60 -> 7.1 - 063 - Property management | C63: 30350798.65 | D63: 25005658.79 | E63: 28565470.21 | F63: 40214808 | G63: 35425233 | H63: 35425233 | I63: 57865242.5 | J63: 60995432.37 | K63: 64294958.63
A64: ='Org structure'!E61 -> 7.2 - 065 - Tshwane House | C64: 164894117.3 | D64: 8971933.93 | E64: 2049051.19 | F64: 2887519.64 | G64: 2887519.64 | H64: 2887519.64 | I64: 3010378.88 | J64: 3177280.366 | K64: 3353437.63
A65: ='Org structure'!E62 -> 7.3 - 067 - Property Services | C65: 43050763 | D65: 37673963.06 | E65: 37637550.9 | F65: 54154701.68 | G65: 51324547.78 | H65: 51324547.78 | I65: 51324547.78 | J65: 54096073.36 | K65: 57017261.33
A66: ='Org structure'!E63 -> 7.4 - 071 - Office of Gen manager | C66: 130.49 | D66: 26679.51 | E66: 0 | F66: 0 | G66: 0 | H66: 0 | I66: 0 | J66: 0 | K66: 0
A67: ='Org structure'!E64 -> 7.5 - 072 - Management and Administration: PM | C67: 34.46 | D67: 178482.23 | E67: 0 | F67: 0 | G67: 0 | H67: 0 | I67: 0 | J67: 0 | K67: 0
A68: ='Org structure'!E65 -> 7.6 - 075 - Building Management | C68: 0 | D68: 198530.99 | E68: 0 | F68: 0 | G68: 0 | H68: 0 | I68: 0 | J68: 0 | K68: 0
A69: ='Org structure'!A9 -> Vote 8 - Health Department | C69: =SUM(C70:C74) -> 55454272.71 | D69: 63565635.01 | E69: 59822671.19 | F69: 63434532.05 | G69: 65002732.05 | H69: 65002732.05 | I69: 67722335.97 | J69: 73652003.34 | K69: 1390562.172
A70: ='Org structure'!E67 -> 8.1 - 019 - Health Services | C70: 487.07 | D70: 271561.53 | E70: 263169.9 | F70: 0 | G70: 0 | H70: 0 | I70: 0 | J70: 0 | K70: 0
A71: ='Org structure'!E68 -> 8.2 - 020 - Health Services | C71: 55453785.64 | D71: 63293348.59 | E71: 59559501.29 | F71: 63434532.05 | G71: 65002732.05 | H71: 65002732.05 | I71: 67722335.97 | J71: 73652003.34 | K71: 1390562.172
A72: ='Org structure'!E69 -> 8.3 - 021 - Management and Administration (Kungwini) | C72: 0 | D72: 724.89 | E72: 0 | F72: 0 | G72: 0 | H72: 0 | I72: 0 | J72: 0 | K72: 0
A73: ='Org structure'!E70 -> 8.4 - 022 - Management and Administration (Nokeng) | C73: 0 | D73: 0 | E73: 0 | F73: 0 | G73: 0 | H73: 0 | I73: 0 | J73: 0 | K73: 0
A74: ='Org structure'!E71 -> 8.5 - 023 - Management and Administration (Metsweding) | C74: 0 | D74: 0 | E74: 0 | F74: 0 | G74: 0 | H74: 0 | I74: 0 | J74: 0 | K74: 0
A75: ='Org structure'!A10 -> Vote 9 - Human Settlement Department | C75: =SUM(C76:C83) -> 974719158.9 | D75: 761270063.6 | E75: 1038735466 | F75: 1015195717 | G75: 1312973194 | H75: 1312973194 | I75: 1270442966 | J75: 1458910306 | K75: 1149510870
A76: ='Org structure'!E73 -> 9.1 - 001 - Tshwane Housing Company | C76: 1185.02 | D76: 6216.2 | E76: 0 | F76: 0 | G76: 0 | H76: 0 | I76: 0 | J76: 0 | K76: 0
A77: ='Org structure'!E74 -> 9.2 - 064 - Urban Development Projects | C77: 716085932.3 | D77: 549299393.6 | E77: 835208500.6 | F77: 932877407.1 | G77: 934313468.4 | H77: 934313468.4 | I77: 880000000 | J77: 945000000 | K77: 707198420.5
A78: ='Org structure'!E75 -> 9.3 - 082 - Housing Administration | C78: 118125544.3 | D78: 124961517.9 | E78: 195052294.7 | F78: 57167633.17 | G78: 364649925.6 | H78: 364649925.6 | I78: 349105082.5 | J78: 462500177.1 | K78: 385826173.6
A79: ='Org structure'!E76 -> 9.4 - 083 - Housing Administration | C79: 0 | D79: 0 | E79: 0 | F79: 0 | G79: 0 | H79: 0 | I79: 0 | J79: 0 | K79: 0
A80: ='Org structure'!E77 -> 9.5 - 084 - Economic Housing | C80: 299758 | D80: 351839 | E80: 214841.5 | F80: 443400 | G80: 443400 | H80: 443400 | I80: 271483.2 | J80: 286143.2928 | K80: 301595.0306
A81: ='Org structure'!E78 -> 9.6 - 086 - Housing Taken Over from Government | C81: 1679098.96 | D81: 21244783.7 | E81: 8259829.58 | F81: 24707276.39 | G81: 13566400 | H81: 13566400 | I81: 41066400 | J81: 51123985.6 | K81: 56184680.82
A82: ='Org structure'!E79 -> 9.7 - 089 - Housing: East | C82: 0 | D82: 0 | E82: 0 | F82: 0 | G82: 0 | H82: 0 | I82: 0 | J82: 0 | K82: 0
A83: ='Org structure'!E80 -> 9.8 - 110 - Electricity | C83: 138527640.2 | D83: 65406313.23 | E83: 0 | F83: 0 | G83: 0 | H83: 0 | I83: 0 | J83: 0 | K83: 0
A84: ='Org structure'!A11 -> Vote 10 - Tshwane Metro Police Department | C84: =SUM(C85:C92) -> 315597030.4 | D84: 200030215.1 | E84: 233484695.4 | F84: 370549045.8 | G84: 319350278.8 | H84: 319350278.8 | I84: 338511726.9 | J84: 356802797.6 | K84: 376082226.6
A85: ='Org structure'!E82 -> 10.1 - 040 - Metro Police Support Services | C85: 0 | D85: 0 | E85: 0 | F85: 0 | G85: 0 | H85: 0 | I85: 0 | J85: 0 | K85: 0
A86: ='Org structure'!E83 -> 10.2 - 048 - Disaster Management | C86: 0 | D86: 0 | E86: 0 | F86: 0 | G86: 0 | H86: 0 | I86: 0 | J86: 0 | K86: 0
A87: ='Org structure'!E84 -> 10.3 - 049 - Metropolitan Police Services | C87: 315595676.9 | D87: 199614086.3 | E87: 233481976.1 | F87: 370547539.8 | G87: 319348772.8 | H87: 319348772.8 | I87: 338511726.9 | J87: 356802797.6 | K87: 376082226.6
A88: ='Org structure'!E85 -> 10.4 - 069 - Operations and Management | C88: 0 | D88: 83719.88 | E88: 0 | F88: 0 | G88: 0 | H88: 0 | I88: 0 | J88: 0 | K88: 0
A89: ='Org structure'!E86 -> 10.5 - 167 - Parking Garages and Areas | C89: 1228.07 | D89: 5192.98 | E89: 2719.3 | F89: 1506 | G89: 1506 | H89: 1506 | I89: 0 | J89: 0 | K89: 0
A90: ='Org structure'!E87 -> 10.6 - 168 - Management and Administration (Kungwini) | C90: 112.27 | D90: 326771.4 | E90: 0 | F90: 0 | G90: 0 | H90: 0 | I90: 0 | J90: 0 | K90: 0
A91: ='Org structure'!E88 -> 10.7 - 169 - Management and Administration (Nokeng) | C91: 0 | D91: 0 | E91: 0 | F91: 0 | G91: 0 | H91: 0 | I91: 0 | J91: 0 | K91: 0
A92: ='Org structure'!E89 -> 10.8 - 170 - Management and Administration (Metsweding) | C92: 13.15 | D92: 444.54 | E92: 0 | F92: 0 | G92: 0 | H92: 0 | I92: 0 | J92: 0 | K92: 0
A93: ='Org structure'!A12 -> Vote 11 - Regional Operations & Coordination Department | C93: =SUM(C94:C154) -> 76871759.6 | D93: 138067053.9 | E93: 66605923.07 | F93: 60253791.31 | G93: 53880566.33 | H93: 53880566.33 | I93: 36893102.95 | J93: 39119092.24 | K93: 41263466.65
A94: ='Org structure'!E91 -> 11.1 - 010 - Operations | C94: 0 | D94: 2579594.29 | E94: 0 | F94: 0 | G94: 0 | H94: 0 | I94: 0 | J94: 0 | K94: 0
A95: ='Org structure'!E92 -> 11.2 - 014 - Management and Administration (Kungwini) | C95: 0 | D95: 67417.37 | E95: 0 | F95: 0 | G95: 0 | H95: 0 | I95: 0 | J95: 0 | K95: 0
A96: ='Org structure'!E93 -> 11.3 - 015 - Management and Administration (Nokeng) | C96: 300 | D96: 174458.27 | E96: 0 | F96: 0 | G96: 0 | H96: 0 | I96: 0 | J96: 0 | K96: 0
A97: ='Org structure'!E94 -> 11.4 - 016 - Management and Administration (Metsweding) | C97: 0 | D97: 35013 | E97: 0 | F97: 0 | G97: 0 | H97: 0 | I97: 0 | J97: 0 | K97: 0
A98: ='Org structure'!E95 -> 11.5 - 020 - Health Services | C98: 0 | D98: 0 | E98: 0 | F98: 0 | G98: 0 | H98: 0 | I98: 0 | J98: 0 | K98: 0
A99: ='Org structure'!E96 -> 11.6 - 025 - Roads and Storm Water | C99: 3001196.38 | D99: 4823874.02 | E99: 2801523.9 | F99: 1972633.99 | G99: 1972633.99 | H99: 1972633.99 | I99: 2031439.109 | J99: 2145199.7 | K99: 2265330.883
A100: ='Org structure'!E97 -> 11.7 - 026 - Management and Administration (Kungwini) | C100: 0 | D100: 0 | E100: 0 | F100: 0 | G100: 0 | H100: 0 | I100: 0 | J100: 0 | K100: 0
A101: ='Org structure'!E98 -> 11.8 - 027 - Management and Administration (Nokeng) | C101: 200 | D101: 169673.29 | E101: 100 | F101: 0 | G101: 0 | H101: 0 | I101: 0 | J101: 0 | K101: 0
A102: ='Org structure'!E99 -> 11.9 - 030 - Waste Water Treatment | C102: 0 | D102: 0 | E102: 0 | F102: 0 | G102: 0 | H102: 0 | I102: 0 | J102: 0 | K102: 0
A103: ='Org structure'!E100 -> 11.10 - 031 - Waste Water Collection | C103: 9258.93 | D103: 616520.54 | E103: 978.32 | F103: 0 | G103: 0 | H103: 0 | I103: 0 | J103: 0 | K103: 0
A104: ='Org structure'!E101 -> 11.11 - 034 - Waste Management | C104: 0 | D104: 0 | E104: 0 | F104: 0 | G104: 0 | H104: 0 | I104: 0 | J104: 0 | K104: 0
A105: ='Org structure'!E102 -> 11.12 - 035 - Solid Waste Services | C105: 0 | D105: 0 | E105: 0 | F105: 0 | G105: 0 | H105: 0 | I105: 0 | J105: 0 | K105: 0
A106: ='Org structure'!E103 -> 11.13 - 036 - Management and Administration (Kungwini) | C106: 1403280.2 | D106: 1417169.33 | E106: 440248.26 | F106: 763804 | G106: 763804 | H106: 763804 | I106: 809632.24 | J106: 854971.6454 | K106: 902850.0576
A107: ='Org structure'!E104 -> 11.14 - 038 - Management and Administration (Metsweding) | C107: 0 | D107: 0 | E107: 0 | F107: 0 | G107: 0 | H107: 0 | I107: 0 | J107: 0 | K107: 0
A108: ='Org structure'!E105 -> 11.15 - 040 - Metro Police Support Services | C108: 0 | D108: 0 | E108: 0 | F108: 0 | G108: 0 | H108: 0 | I108: 0 | J108: 0 | K108: 0
A109: ='Org structure'!E106 -> 11.16 - 041 - Library | C109: 21565822.05 | D109: 45779126.51 | E109: 4461733.18 | F109: 945256.15 | G109: 1283292.55 | H109: 1283292.55 | I109: 1337471.672 | J109: 1410568.185 | K109: 1487660.801
A110: ='Org structure'!E107 -> 11.17 - 042 - Culture | C110: 38975.87 | D110: 9357092.59 | E110: 240286.6 | F110: 420961 | G110: 422799.25 | H110: 422799.25 | I110: 425472.91 | J110: 448542.9165 | K110: 472863.9936
A111: ='Org structure'!E108 -> 11.18 - 053 - Culture and Recreation | C111: 0 | D111: 592.41 | E111: 0 | F111: 2085 | G111: 2085 | H111: 2085 | I111: 2210.1 | J111: 2333.8656 | K111: 2464.562074
A112: ='Org structure'!E109 -> 11.19 - 054 - Sport and Recreation | C112: 1461109.68 | D112: 2723878.28 | E112: 4736393.79 | F112: 2053400 | G112: 3979929.08 | H112: 3979929.08 | I112: 3979929.08 | J112: 4194845.25 | K112: 4421366.894
A113: ='Org structure'!E110 -> 11.20 - 055 - Horticulture | C113: 2502166.3 | D113: 8071711.17 | E113: 3348117.18 | F113: 3135524 | G113: 3135524 | H113: 3135524 | I113: 3303855.44 | J113: 3488211.345 | K113: 3682855.54
A114: ='Org structure'!E111 -> 11.21 - 056 - Conservation and Resorts | C114: 827206.01 | D114: 1971005.21 | E114: 1336682.36 | F114: 2112585 | G114: 2112585 | H114: 2112585 | I114: 2239340.1 | J114: 2364743.146 | K114: 2497168.762
A115: ='Org structure'!E112 -> 11.22 - 057 - Cemeteries | C115: 6927659.04 | D115: 7578344.72 | E115: 9940098.23 | F115: 10869132 | G115: 10869132 | H115: 10869132 | I115: 11521279.92 | J115: 12166471.6 | K115: 12847794
A116: ='Org structure'!E113 -> 11.23 - 064 - Urban Development Projects | C116: 0 | D116: 0 | E116: 0 | F116: 0 | G116: 0 | H116: 0 | I116: 0 | J116: 0 | K116: 0
A117: ='Org structure'!E114 -> 11.24 - 065 - Tshwane House | C117: 0 | D117: 31406.39 | E117: 0 | F117: 0 | G117: 0 | H117: 0 | I117: 0 | J117: 0 | K117: 0
A118: ='Org structure'!E115 -> 11.25 - 069 - Operation and Management | C118: 627800.86 | D118: 469389.16 | E118: 0 | F118: 0 | G118: 0 | H118: 0 | I118: 0 | J118: 0 | K118: 0
A119: ='Org structure'!E116 -> 11.26 - 079 - City Planning | C119: 0 | D119: 0 | E119: 0 | F119: 0 | G119: 0 | H119: 0 | I119: 0 | J119: 0 | K119: 0
A120: ='Org structure'!E117 -> 11.27 - 080 - City Planning | C120: 3905626.65 | D120: 6857262.25 | E120: 6140350.88 | F120: 0 | G120: 0 | H120: 0 | I120: 0 | J120: 0 | K120: 0
A121: ='Org structure'!E118 -> 11.28 - 082 - Housing Administration | C121: 18.49 | D121: 3404184.27 | E121: 2448472.4 | F121: 2836905.17 | G121: 0 | H121: 0 | I121: 0 | J121: 0 | K121: 0
A122: ='Org structure'!E119 -> 11.29 - 083 - Housing Administration | C122: 10215103.2 | D122: 10125241.75 | E122: 6090852.41 | F122: 10260600 | G122: 8258295.96 | H122: 8258295.96 | I122: 0 | J122: 0 | K122: 0
A123: ='Org structure'!E120 -> 11.30 - 084 - Economic Housing | C123: 6955698.85 | D123: 7585670.32 | E123: 8166769.78 | F123: 8990400 | G123: 6513765.2 | H123: 6513765.2 | I123: 0 | J123: 0 | K123: 0
A124: ='Org structure'!E121 -> 11.31 - 085 - Housing: Selling Schemes | C124: 0 | D124: 0 | E124: 0 | F124: 0 | G124: 0 | H124: 0 | I124: 0 | J124: 0 | K124: 0
A125: ='Org structure'!E122 -> 11.32 - 086 - Housing Taken Over From Government | C125: 2865761.69 | D125: 4048198.78 | E125: 3588052.7 | F125: 4069950 | G125: 4083950 | H125: 4083950 | I125: 3102500 | J125: 3270035 | K125: 3446616.89
A126: ='Org structure'!E123 -> 11.33 - 089 - Housing: East | C126: 2135978.56 | D126: 2138045.68 | E126: 2355854.87 | F126: 4741327 | G126: 3145811.296 | H126: 3145811.296 | I126: 435957.3965 | J126: 466474.4142 | K126: 494462.8791
A127: ='Org structure'!E124 -> 11.34 - 090 - RED: Region 3 | C127: 0 | D127: 0 | E127: 0 | F127: 0 | G127: 0 | H127: 0 | I127: 0 | J127: 0 | K127: 0
A128: ='Org structure'!E125 -> 11.35 - 113 - Primary Power Distribution | C128: 0 | D128: 0 | E128: 0 | F128: 0 | G128: 0 | H128: 0 | I128: 0 | J128: 0 | K128: 0
A129: ='Org structure'!E126 -> 11.36 - 114 - Electricity Distribution System: Prince | C129: 118040.79 | D129: 1317456.53 | E129: 93124 | F129: 96495 | G129: 96495 | H129: 96495 | I129: 0 | J129: 0 | K129: 0
A130: ='Org structure'!E127 -> 11.37 - 115 - Electricity Distribution System Works Ea | C130: 840610.14 | D130: 3050095.96 | E130: 1007893 | F130: 124411 | G130: 124411 | H130: 124411 | I130: 15716.62 | J130: 16596.75072 | K130: 17526.16876
A131: ='Org structure'!E128 -> 11.38 - 116 - Electricity: Power System Operating | C131: 6043278.51 | D131: 6420798.09 | E131: 5389719.49 | F131: 5959889 | G131: 6122620 | H131: 6122620 | I131: 6857334.4 | J131: 7412778.486 | K131: 7798242.968
A132: ='Org structure'!E129 -> 11.39 - 117 - Electricity: Previous Park | C132: 3843247.9 | D132: 2835277.73 | E132: 1756078.8 | F132: 0 | G132: 0 | H132: 0 | I132: 0 | J132: 0 | K132: 0
A133: ='Org structure'!E130 -> 11.40 - 118 - Electricity: Technical Support Services | C133: 65.36 | D133: 117682.86 | E133: 444710.31 | F133: 0 | G133: 0 | H133: 0 | I133: 0 | J133: 0 | K133: 0
A134: ='Org structure'!E131 -> 11.41 - 119 - Specialist Engineering | C134: 0 | D134: 71.07 | E134: 0 | F134: 0 | G134: 0 | H134: 0 | I134: 0 | J134: 0 | K134: 0
A135: ='Org structure'!E132 -> 11.42 - 120 - Electro technical: Works South | C135: 127728.5 | D135: 528785.24 | E135: 62315.6 | F135: 0 | G135: 0 | H135: 0 | I135: 0 | J135: 0 | K135: 0
A136: ='Org structure'!E133 -> 11.43 - 121 - Electricity Distribution System: Rosslyn | C136: 1160076 | D136: 1526361.88 | E136: 1081582.2 | F136: 69967 | G136: 69967 | H136: 69967 | I136: 0 | J136: 0 | K136: 0
A137: ='Org structure'!E134 -> 11.44 - 122 - Electricity: Wonderboom | C137: 18721.52 | D137: 317716.33 | E137: 9242.21 | F137: 0 | G137: 0 | H137: 0 | I137: 0 | J137: 0 | K137: 0
A138: ='Org structure'!E135 -> 11.45 - 123 - Electricity Distribution System: Fortsig | C138: 22985.08 | D138: 190467.45 | E138: 29256.5 | F138: 168300 | G138: 168300 | H138: 168300 | I138: 178398 | J138: 188388.288 | K138: 198938.0321
A139: ='Org structure'!E136 -> 11.46 - 124 - Electricity: ESKOM Areas | C139: 0 | D139: 8025.4 | E139: 0 | F139: 0 | G139: 0 | H139: 0 | I139: 0 | J139: 0 | K139: 0
A140: ='Org structure'!E137 -> 11.47 - 125 - Electricity: Soshanguve | C140: 162714.88 | D140: 822844.59 | E140: 123799.1 | F140: 0 | G140: 0 | H140: 0 | I140: 0 | J140: 0 | K140: 0
A141: ='Org structure'!E138 -> 11.48 - 126 - Management and Administration (Kungwini) | C141: 0 | D141: 0 | E141: 0 | F141: 0 | G141: 0 | H141: 0 | I141: 0 | J141: 0 | K141: 0
A142: ='Org structure'!E139 -> 11.49 - 127 - Management and Administration (Nokeng) | C142: 0 | D142: 0 | E142: 0 | F142: 0 | G142: 0 | H142: 0 | I142: 0 | J142: 0 | K142: 0
A143: ='Org structure'!E140 -> 11.50 - 128 - Management and Administration (Metsweding) | C143: 0 | D143: 0 | E143: 0 | F143: 0 | G143: 0 | H143: 0 | I143: 0 | J143: 0 | K143: 0
A144: ='Org structure'!E141 -> 11.51 - 129 - Electricity: Atteridgeville | C144: 0 | D144: 0 | E144: 0 | F144: 0 | G144: 0 | H144: 0 | I144: 0 | J144: 0 | K144: 0
A145: ='Org structure'!E142 -> 11.52 - 136 - Water Supply | C145: 2022.11 | D145: 745991.11 | E145: 410287 | F145: 527264 | G145: 527264 | H145: 527264 | I145: 558899.84 | J145: 590198.231 | K145: 623249.332
A146: ='Org structure'!E143 -> 11.53 - 140 - Management and Administration (Nokeng) | C146: 200 | D146: 18190.58 | E146: 0 | F146: 0 | G146: 0 | H146: 0 | I146: 0 | J146: 0 | K146: 0
A147: ='Org structure'!E144 -> 11.54 - 150 - Management and Administration (Kungwini) | C147: 41.37 | D147: 40240.55 | E147: 0 | F147: 0 | G147: 0 | H147: 0 | I147: 0 | J147: 0 | K147: 0
A148: ='Org structure'!E145 -> 11.55 - 151 - Management and Administration (Nokeng) | C148: 0 | D148: 666.75 | E148: 0 | F148: 0 | G148: 0 | H148: 0 | I148: 0 | J148: 0 | K148: 0
A149: ='Org structure'!E146 -> 11.56 - 152 - Management and Administration (Metsweding) | C149: 44.98 | D149: 112.19 | E149: 0 | F149: 0 | G149: 0 | H149: 0 | I149: 0 | J149: 0 | K149: 0
A150: ='Org structure'!E147 -> 11.57 - 155 - Management and Administration (Kungwini) | C150: 0 | D150: 0 | E150: 0 | F150: 86400 | G150: 86400 | H150: 86400 | I150: 86400 | J150: 91065.6 | K150: 95983.1424
A151: ='Org structure'!E148 -> 11.58 - 156 - Management and Administration (Nokeng) | C151: 0 | D151: 0 | E151: 0 | F151: 7002 | G151: 7002 | H151: 7002 | I151: 7266.12 | J151: 7667.82272 | K151: 8091.739992
A152: ='Org structure'!E149 -> 11.59 - 157 - Management and Administration (Metsweding) | C152: 0 | D152: 0 | E152: 0 | F152: 0 | G152: 0 | H152: 0 | I152: 0 | J152: 0 | K152: 0
A153: ='Org structure'!E150 -> 11.60 - 182 - Management and Administration (Kungwini) | C153: 88819.7 | D153: 101400 | E153: 101400 | F153: 39500 | G153: 134500 | H153: 134500 | I153: 0 | J153: 0 | K153: 0
A154: ='Org structure'!E151 -> 11.61 - 183 - Management and Administration (Nokeng) | C154: 0 | D154: 0 | E154: 0 | F154: 0 | G154: 0 | H154: 0 | I154: 0 | J154: 0 | K154: 0
A155: ='Org structure'!A13 -> Vote 12 - Roads & Transport Department | C155: =SUM(C156:C163) -> 1515112573 | D155: 1424840895 | E155: 1314500401 | F155: 1299190747 | G155: 1155690769 | H155: 1155690769 | I155: 1041649881 | J155: 1108990272 | K155: 1229360625
A156: ='Org structure'!E153 -> 12.1 - 025 - Roads and Stormwater | C156: 466953834.9 | D156: 303398940.3 | E156: 129463271.4 | F156: 212273689.8 | G156: 71233492.88 | H156: 71233492.88 | I156: 45918779.68 | J156: 58299036.28 | K156: 105190244.5
A157: ='Org structure'!E154 -> 12.2 - 026 - Management and Administration (Kungwini) | C157: 0 | D157: 0 | E157: 24869642.49 | F157: 34042862.01 | G157: 0 | H157: 0 | I157: 0 | J157: 0 | K157: 0
A158: ='Org structure'!E155 -> 12.3 - 028 - Management and Administration (Metsweding) | C158: 0 | D158: 0 | E158: 0 | F158: 0 | G158: 0 | H158: 0 | I158: 0 | J158: 0 | K158: 0
A159: ='Org structure'!E156 -> 12.4 - 049 - Metropolitan Police Services | C159: 129042339.2 | D159: 145305737.3 | E159: 159612292 | F159: 155946961.9 | G159: 161727561.9 | H159: 161727561.9 | I159: 171431215.6 | J159: 181031363.7 | K159: 191169120.1
A160: ='Org structure'!E157 -> 12.5 - 068 - Transport | C160: 856501226.4 | D160: 919816306 | E160: 935419252 | F160: 452644397.9 | G160: 539905282.2 | H160: 539905282.2 | I160: 479173844.4 | J160: 524488283.7 | K160: 530520429.9
A161: ='Org structure'!E158 -> 12.6 - 077 - Mechanical Maintenance: C De Wet | C161: 31125 | D161: 732849.25 | E161: 39428 | F161: 183500 | G161: 38590 | H161: 38590 | I161: 40905.4 | J161: 43196.1024 | K161: 45615.08413
A162: ='Org structure'!E159 -> 12.7 - 174 - Transport Services | C162: 32426886.33 | D162: 24746280.06 | E162: 41750582.59 | F162: 417021048.1 | G162: 359467783 | H162: 359467783 | I162: 324574663.2 | J162: 323495084.3 | K162: 379617582.8
A163: ='Org structure'!E160 -> 12.8 - 175 - Airport | C163: 30157161.68 | D163: 30840782.2 | E163: 23345932.74 | F163: 27078287 | G163: 23318059 | H163: 23318059 | I163: 20510472.22 | J163: 21633308.26 | K163: 22817632.61
A164: ='Org structure'!A14 -> Vote 13 - Shared Services Department | C164: =SUM(C165:C171) -> 9551533.48 | D164: 12851852.63 | E164: 5912825.06 | F164: 1126124 | G164: 1126124 | H164: 1126124 | I164: 1193691.44 | J164: 1260538.161 | K164: 1331128.298
A165: ='Org structure'!E162 -> 13.1 - 001 - Tshwane Civic Centre | C165: 0 | D165: 0 | E165: 0 | F165: 0 | G165: 0 | H165: 0 | I165: 0 | J165: 0 | K165: 0
A166: ='Org structure'!E163 -> 13.2 - 008 - Information Services | C166: 9560855.11 | D166: 9628733.23 | E166: 5896284.06 | F166: 19924 | G166: 19924 | H166: 19924 | I166: 21119.44 | J166: 22302.12864 | K166: 23551.04784
A167: ='Org structure'!E164 -> 13.3 - 043 - Administrative Services | C167: 205.82 | D167: 916971.31 | E167: 0 | F167: 0 | G167: 0 | H167: 0 | I167: 0 | J167: 0 | K167: 0
A168: ='Org structure'!E165 -> 13.4 - 062 - Catering | C168: 0 | D168: 0 | E168: 0 | F168: 0 | G168: 0 | H168: 0 | I168: 0 | J168: 0 | K168: 0
A169: ='Org structure'!E166 -> 13.5 - 067 - Property Services | C169: 0 | D169: 0 | E169: 0 | F169: 0 | G169: 0 | H169: 0 | I169: 0 | J169: 0 | K169: 0
A170: ='Org structure'!E167 -> 13.6 - 071 - Corporate Management | C170: 0 | D170: 0 | E170: 0 | F170: 0 | G170: 0 | H170: 0 | I170: 0 | J170: 0 | K170: 0
A171: ='Org structure'!E168 -> 13.7 - 073 - Mechanical Maintenance Bosman Street | C171: -9527.45 | D171: 2306148.09 | E171: 16541 | F171: 1106200 | G171: 1106200 | H171: 1106200 | I171: 1172572 | J171: 1238236.032 | K171: 1307577.25
A172: ='Org structure'!A15 -> Vote 14 - Utility Services Department | C172: =SUM(C173:C188) -> 1.423983446e+10 | D172: =SUM(D173:D188) -> 1.604864311e+10 | E172: 1.642092725e+10 | F172: 1.828982195e+10 | G172: 1.833941435e+10 | H172: 1.833941435e+10 | I172: 2.032455421e+10 | J172: 2.1841773e+10 | K172: 2.34064835e+10
A173: ='Org structure'!E170 -> 14.1 - 109 - Electricity | C173: 0 | D173: 207796.63 | E173: 0 | F173: 0 | G173: 0 | H173: 0 | I173: 0 | J173: 0 | K173: 0
A174: ='Org structure'!E171 -> 14.2 - 110 - Electricity | C174: 106.56 | D174: 220991.8 | E174: 197201 | F174: 0 | G174: 0 | H174: 0 | I174: 0 | J174: 0 | K174: 0
A175: ='Org structure'!E172 -> 14.3 - 111 - Pretoria West Power Station | C175: 50680 | D175: 631466.23 | E175: 49120 | F175: 53981 | G175: 53981 | H175: 53981 | I175: 0 | J175: 0 | K175: 0
A176: ='Org structure'!E173 -> 14.4 - 112 - Royal Power Station | C176: 62832.3 | D176: 1162875.53 | E176: 56592.46 | F176: 96609 | G176: 96609 | H176: 96609 | I176: 6006507.34 | J176: 120006871.8 | K176: 50007256.57
A177: ='Org structure'!E174 -> 14.5 - 113 - Primary Power Distribution | C177: 24005.08 | D177: 26642.87 | E177: 21720 | F177: 29539 | G177: 29539 | H177: 29539 | I177: 0 | J177: 0 | K177: 0
A178: ='Org structure'!E175 -> 14.6 - 116 - Electricity: Power System Operating | C178: 9692223951 | D178: 1.121287382e+10 | E178: 1.107610265e+10 | F178: 1.220937156e+10 | G178: 1.236652144e+10 | H178: 1.236652144e+10 | I178: 1.382224889e+10 | J178: 1.494430903e+10 | K178: 1.570416642e+10
A179: ='Org structure'!E176 -> 14.7 - 118 - Electricity: Technical Support Services | C179: 161495.86 | D179: 11735997.97 | E179: 10051057.71 | F179: 58020 | G179: 18058020 | H179: 18058020 | I179: 53000106 | J179: 65000111.94 | K179: 50000118.2
A180: ='Org structure'!E177 -> 14.8 - 119 - Specialist Engineering | C180: 166234886.6 | D180: 264133835.2 | E180: 301488237 | F180: 251420266.9 | G180: 185196208.1 | H180: 185196208.1 | I180: 32244000 | J180: 32000000 | K180: 355000000
A181: ='Org structure'!E178 -> 14.9 - 030 - Waste Water Treatment | C181: 239507.02 | D181: 1367790.05 | E181: 6249342.73 | F181: 24257782.49 | G181: 54422332.14 | H181: 54422332.14 | I181: 177483011.9 | J181: 220253441.7 | K181: 122780351.5
A182: ='Org structure'!E179 -> 14.10 - 031 - Waste Water Collection | C182: 1039932965 | D182: 1211422703 | E182: 1040706404 | F182: 1039497408 | G182: 1285575639 | H182: 1285575639 | I182: 1303846060 | J182: 1408135557 | K182: 1556510082
A183: ='Org structure'!E180 -> 14.11 - 136 - Water Supply | C183: 3340904033 | D183: 3331209759 | E183: 3906638549 | F183: 4684657799 | G183: 4389460580 | H183: 4389460580 | I183: 4809725640 | J183: 5052067992 | K183: 5568019267
A184: ='Org structure'!E181 -> 14.12 - 137 - Management and Administration (Kungwini) | C184: 0 | D184: 0 | E184: 0 | F184: 0 | G184: 0 | H184: 0 | I184: 0 | J184: 0 | K184: 0
A185: ='Org structure'!E182 -> 14.13 - 138 - Management and Administration (Nokeng) | C185: 0 | D185: 0 | E185: 0 | F185: 0 | G185: 0 | H185: 0 | I185: 0 | J185: 0 | K185: 0
A186: ='Org structure'!E183 -> 14.14 - 139 - Management and Administration (Kungwini) | C186: 0 | D186: 0 | E186: 0 | F186: 0 | G186: 0 | H186: 0 | I186: 0 | J186: 0 | K186: 0
A187: ='Org structure'!E184 -> 14.15 - 140 - Management and Administration (Nokeng) | C187: 0 | D187: 13649430.74 | E187: 79366379.47 | F187: 80378979.74 | G187: 40000000 | H187: 40000000 | I187: 120000000 | J187: 0 | K187: 0
A188: ='Org structure'!E185 -> 14.16 - 141 - Management and Administration (Metsweding) | C188: 0 | D188: 0 | E188: 0 | F188: 0 | G188: 0 | H188: 0 | I188: 0 | J188: 0 | K188: 0
A189: ='Org structure'!A16 -> Vote 15 - Other Departments | C189: =SUM(C190:C198) -> 100369301.5 | D189: 103488383.7 | E189: 39555057.94 | F189: 42503376 | G189: 50902044.75 | H189: 50902044.75 | I189: 37758679.81 | J189: 20334848.31 | K189: 21471157.1
A190: ='Org structure'!E187 -> 15.1 - City Manager Department | C190: 66451477.62 | D190: 63672885.79 | E190: 21574907.76 | F190: 11574031 | G190: 21342486.7 | H190: 21342486.7 | I190: 1628889.3 | J190: 1719916.11 | K190: 1816030.108
A191: ='Org structure'!E188 -> 15.2 - City Strategy and Organisational Performance | C191: 3992.18 | D191: 4555343.6 | E191: 2041624.31 | F191: 0 | G191: 4283661 | H191: 4283661 | I191: 0 | J191: 0 | K191: 0
A192: ='Org structure'!E189 -> 15.3 - Customer Relations Management Department | C192: 32468.3 | D192: 1658124.28 | E192: 21133.07 | F192: 20200 | G192: 20200 | H192: 20200 | I192: 21412 | J192: 22611.072 | K192: 23877.29203
A193: ='Org structure'!E190 -> 15.4 - Group Communication & Marketing Department | C193: 17634.14 | D193: 1205486.62 | E193: 0 | F193: 1274238 | G193: 0 | H193: 0 | I193: 0 | J193: 0 | K193: 0
A194: ='Org structure'!E191 -> 15.5 - Group Human Capital Management Department | C194: 33802732.34 | D194: 26882581.28 | E194: 15917392.8 | F194: 29199697 | G194: 24820487.05 | H194: 24820487.05 | I194: 36108378.51 | J194: 18592321.13 | K194: 19631249.7
A195: ='Org structure'!E192 -> 15.6 - Group Legal and Secretarial Service Department | C195: 53426.34 | D195: 897357.84 | E195: 0 | F195: 435210 | G195: 435210 | H195: 435210 | I195: 0 | J195: 0 | K195: 0
A196: ='Org structure'!E193 -> 15.7 - Office of the Chief Whip Department | C196: 0 | D196: 349422.42 | E196: 0 | F196: 0 | G196: 0 | H196: 0 | I196: 0 | J196: 0 | K196: 0
A197: ='Org structure'!E194 -> 15.8 - Office of the Executive Mayor Department | C197: 7458.61 | D197: 2348455.5 | E197: 0 | F197: 0 | G197: 0 | H197: 0 | I197: 0 | J197: 0 | K197: 0
A198: ='Org structure'!E195 -> 15.9 - Office of the Speaker Department | C198: 111.93 | D198: 1918726.39 | E198: 0 | F198: 0 | G198: 0 | H198: 0 | I198: 0 | J198: 0 | K198: 0
A199: Total Revenue by Vote | B199: 2 | C199: =C5+C15+C29+C37+C47+C51+C62+C69+C75+C84+C93+C155+C164+C172+C189 -> 2.806481464e+10 | D199: 3.045172792e+10 | E199: 3.240358153e+10 | F199: 3.473694196e+10 | G199: 3.526398632e+10 | H199: 3.526398632e+10 | I199: 3.791713991e+10 | J199: 4.05699642e+10 | K199: 4.276359432e+10 | L199: =SUM(#REF!) ->  | M199: =SUM(#REF!) ->  | N199: =SUM(#REF!) ->  | O199: =SUM(#REF!) ->  | P199: =SUM(#REF!) ->  | Q199: =SUM(#REF!) ->  | R199: =SUM(#REF!) ->  | S199: =SUM(#REF!) ->  | T199: =SUM(#REF!) ->  | U199: =SUM(#REF!) ->  | V199: =SUM(#REF!) ->  | W199: =SUM(#REF!) -> 
A201: Expenditure by Vote | B201: 1
... 202 more rows

Sheet A4-FinPerf RE
A1: =muni&" - "&Approve4 -> TSH City Of Tshwane - Table A4 Consolidated Budgeted Financial Performance (revenue and expenditure)
A2: =desc -> Description | B2: =head27 -> Ref | C2: =head1b -> 2015/16 | D2: =head1A -> 2016/17 | E2: =Head1 -> 2017/18 | F2: =Head2 -> Current Year 2018/19 | J2: =Head3 -> 2019/20 Medium Term Revenue & Expenditure Framework | M2: =Head4 -> LTFS
A3: R thousand | B3: 1 | C3: =Head5 -> Audited Outcome | D3: =Head5 -> Audited Outcome | E3: =Head5 -> Audited Outcome | F3: =Head6 -> Original Budget | G3: =Head7 -> Adjusted Budget | H3: =Head8 -> Full Year Forecast | I3: =Head5b -> Pre-audit outcome | J3: =Head9 -> Budget Year 2019/20 | K3: =Head10 -> Budget Year +1 2020/21 | L3: =Head11 -> Budget Year +2 2021/22 | M3: =Head12 -> Forecast 2022/23 | N3: =Head13 -> Forecast 2023/24 | O3: =Head14 -> Forecast 2024/25 | P3: =Head15 -> Forecast 2025/26 | Q3: =Head16 -> Forecast 2026/27 | R3: =Head17 -> Forecast 2027/28 | S3: =Head18 -> Forecast 2028/29 | T3: =Head19 -> Forecast 2029/30 | U3: =Head20 -> Forecast 2030/31 | V3: =Head21 -> Forecast 2031/32 | W3: =Head22 -> Forecast 2032/33 | X3: =Head23 -> Forecast 2033/34
A4: Revenue By Source
A5: Property rates | B5: 2 | C5: ='SA1'!C9 -> 5360554242 | D5: ='SA1'!D9 -> 5912583707 | E5: ='SA1'!E9 -> 6761346762 | F5: ='SA1'!F9 -> 6980635977 | G5: ='SA1'!G9 -> 7065502389 | H5: ='SA1'!H9 -> 7065502389 | I5: ='SA1'!I9 -> 0 | J5: ='SA1'!J9 -> 7490492531 | K5: ='SA1'!K9 -> 7894979128 | L5: ='SA1'!L9 -> 8321308001
A6: Service charges - electricity revenue | B6: 2 | C6: ='SA1'!C15 -> 9498800584 | D6: ='SA1'!D15 -> 1.10881806e+10 | E6: ='SA1'!E15 -> 1.126466451e+10 | F6: ='SA1'!F15 -> 1.194645623e+10 | G6: ='SA1'!G15 -> 1.20109367e+10 | H6: ='SA1'!H15 -> 1.20109367e+10 | I6: ='SA1'!I15 -> 0 | J6: ='SA1'!J15 -> 1.34536155e+10 | K6: ='SA1'!K15 -> 1.454335836e+10 | L6: ='SA1'!L15 -> 1.529961299e+10
A7: Service charges - water revenue | B7: 2 | C7: ='SA1'!C21 -> 3235968965 | D7: ='SA1'!D21 -> 3216180534 | E7: ='SA1'!E21 -> 3222246037 | F7: ='SA1'!F21 -> 4283959389 | G7: ='SA1'!G21 -> 3971962301 | H7: ='SA1'!H21 -> 3971962301 | I7: ='SA1'!I21 -> 0 | J7: ='SA1'!J21 -> 4292528095 | K7: ='SA1'!K21 -> 4636076122 | L7: ='SA1'!L21 -> 5002549759
A8: Service charges - sanitation revenue | B8: 2 | C8: ='SA1'!C27 -> 796302596.1 | D8: ='SA1'!D27 -> 827601956.4 | E8: ='SA1'!E27 -> 952049810.1 | F8: ='SA1'!F27 -> 1063981680 | G8: ='SA1'!G27 -> 1084721347 | H8: ='SA1'!H27 -> 1084721347 | I8: ='SA1'!I27 -> 0 | J8: ='SA1'!J27 -> 1171499054 | K8: ='SA1'!K27 -> 1265218979 | L8: ='SA1'!L27 -> 1366436497
A9: Service charges - refuse revenue | B9: 2 | C9: ='SA1'!C34 -> 1087266654 | D9: ='SA1'!D34 -> 1054530030 | E9: ='SA1'!E34 -> 1482085536 | F9: ='SA1'!F34 -> 1494163033 | G9: ='SA1'!G34 -> 1592142229 | H9: ='SA1'!H34 -> 1592142229 | I9: ='SA1'!I34 -> 0 | J9: ='SA1'!J34 -> 1687670762 | K9: ='SA1'!K34 -> 1778804984 | L9: ='SA1'!L34 -> 1874860453
A11: Rental of facilities and equipment | C11: 134366228.3 | D11: 136183888.7 | E11: 143099811.8 | F11: 182066807.5 | G11: 166784929.2 | H11: 166784929.2 | J11: 177159228.4 | K11: 198401700.5 | L11: 221148745.7
A12: Interest earned - external investments | C12: 57274371.37 | D12: 105877361.7 | E12: 210975786.5 | F12: 103863942.4 | G12: 177982585 | H12: 177982585 | J12: 186887427.6 | K12: 197151316.2 | L12: 207970466.1
A13: Interest earned - outstanding debtors | C13: 406907960.5 | D13: 618766251.1 | E13: 731937501.6 | F13: 575400887 | G13: 765521524.6 | H13: 765521524.6 | J13: 826790732.1 | K13: 884662761.9 | L13: 937741087.4
A14: Dividends received | C14: 0 | D14: 0 | E14: 0 | F14: 0 | G14: 0 | H14: 0 | J14: 0 | K14: 0 | L14: 0
A15: Fines, penalties and forfeits | C15: 317474575.8 | D15: 189607891.3 | E15: 228147623.5 | F15: 368651100.5 | G15: 315074466 | H15: 315074466 | J15: 334088749.3 | K15: 352129541.8 | L15: 371144537
A16: Licences and permits | C16: 48743171.27 | D16: 49266169.13 | E16: 52325465.21 | F16: 58138651.37 | G16: 53173651.37 | H16: 53173651.37 | J16: 54588089.52 | K16: 57645022.53 | L16: 60873143.79
A17: Agency services | C17: 0 | D17: 0 | E17: 0 | F17: 6980004 | G17: 0 | H17: 0 | J17: 0 | K17: 0 | L17: 0
A18: Transfers and subsidies | C18: 3517105033 | D18: 3813144804 | E18: 4362302110 | F18: 4440080940 | G18: 4736593938 | H18: 4736593938 | J18: 4789483640 | K18: 5043649070 | L18: 5180984880
A19: Other revenue | B19: 2 | C19: ='SA1'!C49 -> 985972032.7 | D19: ='SA1'!D49 -> 1126540570 | E19: ='SA1'!E49 -> 862637836.7 | F19: ='SA1'!F49 -> 1025828252 | G19: ='SA1'!G49 -> 1050794994 | H19: ='SA1'!H49 -> 1050794994 | I19: ='SA1'!I49 -> 0 | J19: ='SA1'!J49 -> 1099063586 | K19: ='SA1'!K49 -> 1160273924 | L19: ='SA1'!L49 -> 1224960173
A20: Gains on disposal of PPE | C20: 165886003.6 | D20: 3570991.72 | E20: 27416649.56 | F20: 0 | G20: 0 | H20: 0 | J20: 0 | K20: 0 | L20: 0
A21: Total Revenue (excluding capital transfers and contributions) | C21: =SUM(C5:C9)+SUM(C11:C20) -> 2.561262242e+10 | D21: =SUM(D5:D9)+SUM(D11:D20) -> 2.814203475e+10 | E21: 3.030123544e+10 | F21: 3.25302069e+10 | G21: 3.299119105e+10 | H21: 3.299119105e+10 | I21: 0 | J21: 3.55638674e+10 | K21: 3.801235091e+10 | L21: 4.006959073e+10 | M21: =SUM(M5:M20) -> 0 | N21: 0 | O21: 0 | P21: 0 | Q21: 0 | R21: 0 | S21: 0 | T21: 0 | U21: 0 | V21: 0 | W21: 0 | X21: 0
A23: Expenditure By Type
A24: Employee related costs | B24: 2 | C24: ='SA1'!C67 -> 7515878882 | D24: ='SA1'!D67 -> 8022601725 | E24: ='SA1'!E67 -> 8162683482 | F24: ='SA1'!F67 -> 9604146267 | G24: ='SA1'!G67 -> 9557269604 | H24: ='SA1'!H67 -> 9557269604 | I24: ='SA1'!I67 -> 0 | J24: ='SA1'!J67 -> 1.06319404e+10 | K24: ='SA1'!K67 -> 1.162852383e+10 | L24: ='SA1'!L67 -> 1.240785596e+10
A25: Remuneration of councillors | C25: 109968279.8 | D25: 115513604.1 | E25: 123785928.2 | F25: 132797337.5 | G25: 136383061.7 | H25: 136383061.7 | J25: 142093151.1 | K25: 151613392.2 | L25: 161771489.5
A26: Debt impairment | B26: 3 | C26: 445769412.5 | D26: 1417202205 | E26: 1714178382 | F26: 1514427397 | G26: 1514427397 | H26: 1514427397 | J26: 1639519100 | K26: 1755924956 | L26: 1859524528
A27: Depreciation & asset impairment | B27: 2 | C27: ='SA1'!C83 -> 1417534573 | D27: ='SA1'!D83 -> 1588749855 | E27: ='SA1'!E83 -> 2043501122 | F27: ='SA1'!F83 -> 1957156351 | G27: ='SA1'!G83 -> 1957258609 | H27: ='SA1'!H83 -> 1957258609 | I27: ='SA1'!I83 -> 0 | J27: ='SA1'!J83 -> 2132962910 | K27: ='SA1'!K83 -> 2220898816 | L27: ='SA1'!L83 -> 2343010542
A28: Finance charges | C28: 1126460250 | D28: 1301275716 | E28: 1686553864 | F28: 1390948318 | G28: 1387722304 | H28: 1387722304 | J28: 1512675725 | K28: 1618563026 | L28: 1731862437
A29: Bulk purchases | B29: 2 | C29: ='SA1'!C88 -> 8711361194 | D29: ='SA1'!D88 -> 9380038532 | E29: ='SA1'!E88 -> 9802267128 | F29: ='SA1'!F88 -> 1.075896398e+10 | G29: ='SA1'!G88 -> 1.075621398e+10 | H29: ='SA1'!H88 -> 1.075621398e+10 | I29: ='SA1'!I88 -> 0 | J29: ='SA1'!J88 -> 1.214119172e+10 | K29: ='SA1'!K88 -> 1.312175147e+10 | L29: ='SA1'!L88 -> 1.382893795e+10
A30: Other materials | B30: 8 | C30: 480067058.2 | D30: 437818219.6 | E30: 418032768.2 | F30: 730486222.5 | G30: 643731824 | H30: 643731824 | J30: 678941795.2 | K30: 718604652 | L30: 760236543.7
A31: Contracted services | C31: ='SA1'!C127 -> 3989639499 | D31: ='SA1'!D127 -> 3084923027 | E31: ='SA1'!E127 -> 3046813907 | F31: ='SA1'!F127 -> 3342942062 | G31: ='SA1'!G127 -> 3813475621 | H31: ='SA1'!H127 -> 3813475621 | I31: ='SA1'!I127 -> 0 | J31: ='SA1'!J127 -> 3993199613 | K31: ='SA1'!K127 -> 3946227145 | L31: ='SA1'!L127 -> 3935001762
A32: Transfers and subsidies | C32: ='SA1'!C93 -> 76213216.13 | D32: ='SA1'!D93 -> 51462269.55 | E32: ='SA1'!E93 -> 33709003.29 | F32: ='SA1'!F93 -> 42222485.79 | G32: ='SA1'!G93 -> 57868149.83 | H32: ='SA1'!H93 -> 57868150.57 | I32: ='SA1'!I93 -> 0 | J32: ='SA1'!J93 -> 57882790 | K32: ='SA1'!K93 -> 60996437.09 | L32: ='SA1'!L93 -> 67399108.66
A33: Other expenditure | B33: 4, 5 | C33: ='SA1'!C157 -> 2989583704 | D33: ='SA1'!D157 -> 2545157175 | E33: ='SA1'!E157 -> 2739994531 | F33: ='SA1'!F157 -> 2942885375 | G33: ='SA1'!G157 -> 3103497953 | H33: ='SA1'!H157 -> 3103497953 | I33: ='SA1'!I157 -> 0 | J33: ='SA1'!J157 -> 2630329367 | K33: ='SA1'!K157 -> 2768735602 | L33: ='SA1'!L157 -> 2916539929
A34: Loss on disposal of PPE | C34: 103911170.2 | D34: 78408630.87 | E34: 193583948.1 | F34: 1125 | G34: 85399 | H34: 85399 | J34: 0 | K34: 0 | L34: 0
A35: Total Expenditure | C35: =SUM(C24:C34) -> 2.696638724e+10 | D35: =SUM(D24:D34) -> 2.802315096e+10 | E35: 2.996510406e+10 | F35: 3.241697692e+10 | G35: 3.29279339e+10 | H35: 3.29279339e+10 | I35: 0 | J35: 3.556073657e+10 | K35: 3.799183933e+10 | L35: 4.001214025e+10 | M35: =SUM(M24:M34) -> 0 | N35: 0 | O35: 0 | P35: 0 | Q35: 0 | R35: 0 | S35: 0 | T35: 0 | U35: 0 | V35: 0 | W35: 0 | X35: 0
A37: Surplus/(Deficit) | C37: =C21-C35 -> -1353764820 | D37: 118883794.7 | E37: 336131374.3 | F37: 113229975.1 | G37: 63257151.72 | H37: 63257150.98 | I37: 0 | J37: 3130824.32 | K37: 20511581.05 | L37: 57450480.76 | M37: =M21+M35 -> 0 | N37: 0 | O37: 0 | P37: 0 | Q37: 0 | R37: 0 | S37: 0 | T37: 0 | U37: 0 | V37: 0 | W37: 0 | X37: 0
A38: Transfers and subsidies - capital (monetary allocations) (National / Provincial and District) | C38: 2452210170 | D38: 2310451676 | E38: 2104325795 | F38: 2198735060 | G38: 2246922460 | H38: 2246922460 | J38: 2202096360 | K38: 2288474930 | L38: 2396993120
A39: Transfers and subsidies - capital (monetary allocations) (National / Provincial Departmental Agencies, Households, Non-profit Institutions, Private Enterprises, Public Corporatons, Higher Educational Institutions) | B39: 6 | C39: ='SA1'!C76 -> 0 | D39: ='SA1'!D76 -> 0 | E39: ='SA1'!E76 -> 940363.2 | F39: ='SA1'!F76 -> 8000000 | G39: ='SA1'!G76 -> 25872805.98 | H39: ='SA1'!H76 -> 25872805.98 | I39: ='SA1'!I76 -> 0 | J39: ='SA1'!J76 -> 151176150 | K39: ='SA1'!K76 -> 269138363 | L39: ='SA1'!L76 -> 297010467.1
A40: Transfers and subsidies - capital (in-kind - all) | F40: 0 | G40: 0 | H40: 0 | J40: 0 | K40: 0 | L40: 0
A41: Surplus/(Deficit) after capital transfers & contributions | C41: =SUM(C37:C40) -> 1098445349 | D41: 2429335470 | E41: 2441397532 | F41: 2319965035 | G41: 2336052418 | H41: 2336052417 | I41: 0 | J41: 2356403334 | K41: 2578124874 | L41: 2751454068
A42: Taxation | C42: 17944 | D42: 758508 | E42: 2920067 | F42: 534997.0053 | G42: 2931376.998 | H42: 2931376.998 | J42: 465050 | K42: 497603.5 | L42: 532435.75
A43: Surplus/(Deficit) after taxation | C43: =C41-C42 -> 1098427405 | D43: 2428576962 | E43: 2438477465 | F43: 2319430038 | G43: 2333121041 | H43: 2333121040 | I43: 0 | J43: 2355938284 | K43: 2577627271 | L43: 2750921633
A44: Attributable to minorities | F44: 0 | G44: 0 | H44: 0 | J44: 0 | K44: 0 | L44: 0
A45: Surplus/(Deficit) attributable to municipality | C45: =SUM(C43:C44) -> 1098427405 | D45: 2428576962 | E45: 2438477465 | F45: 2319430038 | G45: 2333121041 | H45: 2333121040 | I45: 0 | J45: 2355938284 | K45: 2577627271 | L45: 2750921633
A46: Share of surplus/ (deficit) of associate | B46: 7 | F46: 0 | G46: 0 | H46: 0 | J46: 0 | K46: 0 | L46: 0
A47: =result -> Surplus/(Deficit) for the year | C47: =SUM(C45:C46) -> 1098427405 | D47: 2428576962 | E47: 2438477465 | F47: 2319430038 | G47: 2333121041 | H47: 2333121040 | I47: 0 | J47: 2355938284 | K47: 2577627271 | L47: 2750921633 | M47: =M25+M46 -> 0 | N47: 0 | O47: 0 | P47: 0 | Q47: 0 | R47: 0 | S47: 0 | T47: 0 | U47: 0 | V47: 0 | W47: 0 | X47: 0
A48: =head27a -> References
A49: 1. Classifications are revenue sources and expenditure type
A50: 2. Detail to be provided in Table SA1
A51: 3. Previously described as 'bad or doubtful debts' - amounts shown should reflect the change in the provision for debt impairment
A52: 4. Expenditure type components previously shown under repairs and maintenance should be allocated back to the originating expenditure group/item; e.g. employee costs
A53: 5. Repairs & maintenance detailed in Table A9 and Table SA34c
A54: 6. Contributions are funds provided by external organisations to assist with infrastructure development; e.g. developer contributions (detail to be provided in Table SA1)
A55: 7. Equity method ( Includes Joint Ventures)
A56: 8. All materials not part of 'bulk' e.g road making materials, pipe, cable etc.
A57: check balance | C57: =C45-'A3-FinPerf V'!C39 -> 0.4999914169 | D57: =D45-'A3-FinPerf V'!D39 -> 0.3700046539 | E57: =E45-'A3-FinPerf V'!E39 -> 0 | F57: =F45-'A3-FinPerf V'!F39 -> -124.3201294 | G57: =G45-'A3-FinPerf V'!G39 -> 0.7400007248 | H57: =H45-'A3-FinPerf V'!H39 -> 0 | J57: =J45-'A3-FinPerf V'!I39 -> -1.430511475e-05 | K57: =K45-'A3-FinPerf V'!J39 -> 0 | L57: =L45-'A3-FinPerf V'!K39 -> -7.629394531e-06
A59: Total revenue | C59: =C21+SUM(C38:C40) -> 2.806483259e+10 | D59: 3.045248643e+10 | E59: 3.24065016e+10 | F59: 3.473694196e+10 | G59: 3.526398632e+10 | H59: 3.526398632e+10 | I59: 0 | J59: 3.791713991e+10 | K59: 4.05699642e+10 | L59: 4.276359432e+10

Sheet A5-Capex
A1: =muni&" - "&Approve5 -> TSH City Of Tshwane - Table A5 Consolidated Budgeted Capital Expenditure by vote, functional classification and funding
A2: =Vdesc -> Vote Description | B2: =head27 -> Ref | C2: =head1b -> 2015/16 | D2: =head1A -> 2016/17 | E2: =Head1 -> 2017/18 | F2: =Head2 -> Current Year 2018/19 | J2: =Head3 -> 2019/20 Medium Term Revenue & Expenditure Framework
A3: R thousand | B3: 1 | C3: =Head5 -> Audited Outcome | D3: =Head5 -> Audited Outcome | E3: =Head5 -> Audited Outcome | F3: =Head6 -> Original Budget | G3: =Head7 -> Adjusted Budget | H3: =Head8 -> Full Year Forecast | I3: =Head5b -> Pre-audit outcome | J3: =Head9 -> Budget Year 2019/20 | K3: =Head10 -> Budget Year +1 2020/21 | L3: =Head11 -> Budget Year +2 2021/22
A4: Capital expenditure - Vote
A5: Multi-year expenditure to be appropriated | B5: 2
A6: =A5A!A6 -> Vote 1 - Community & Social Development Services Department | C6: =A5A!C6 -> 77598605 | D6: =A5A!D6 -> 102067718.8 | E6: =A5A!E6 -> 76628488.15 | F6: =A5A!F6 -> 97730000 | G6: =A5A!G6 -> 96755401 | H6: =A5A!H6 -> 96755401 | I6: =A5A!I6 -> 0 | J6: =A5A!J6 -> 64200000 | K6: =A5A!K6 -> 156200000 | L6: =A5A!L6 -> 190300000
A7: =A5A!A16 -> Vote 2 - Economic Development & Spatial Planning Department | C7: =A5A!C16 -> 92176852 | D7: =A5A!D16 -> 55983187.64 | E7: =A5A!E16 -> 14202794.68 | F7: =A5A!F16 -> 113491700 | G7: =A5A!G16 -> 90491700 | H7: =A5A!H16 -> 90491700 | I7: =A5A!I16 -> 0 | J7: =A5A!J16 -> 69885157 | K7: =A5A!K16 -> 40852811 | L7: =A5A!L16 -> 74143700
A8: =A5A!A30 -> Vote 3 - Emergency Services Department | C8: =A5A!C30 -> 381243127 | D8: =A5A!D30 -> 10895316.78 | E8: =A5A!E30 -> 9940133.8 | F8: =A5A!F30 -> 20700000 | G8: =A5A!G30 -> 14700000 | H8: =A5A!H30 -> 14700000 | I8: =A5A!I30 -> 0 | J8: =A5A!J30 -> 74000000 | K8: =A5A!K30 -> 31700000 | L8: =A5A!L30 -> 55500000
A9: =A5A!A38 -> Vote 4 - Environment & Agriculture Management Department | C9: =A5A!C38 -> 492098363 | D9: =A5A!D38 -> 22122626.67 | E9: =A5A!E38 -> 27005174 | F9: =A5A!F38 -> 51500000 | G9: =A5A!G38 -> 62000000 | H9: =A5A!H38 -> 62000000 | I9: =A5A!I38 -> 0 | J9: =A5A!J38 -> 63000000 | K9: =A5A!K38 -> 36500000 | L9: =A5A!L38 -> 69100000
A10: =A5A!A48 -> Vote 5 - Group Audit & Risk Department | C10: =A5A!C48 -> 142372980 | D10: =A5A!D48 -> 5856316.5 | E10: =A5A!E48 -> 9046819.36 | F10: =A5A!F48 -> 40150000 | G10: =A5A!G48 -> 40150000 | H10: =A5A!H48 -> 40150000 | I10: =A5A!I48 -> 0 | J10: =A5A!J48 -> 25150000 | K10: =A5A!K48 -> 25150000 | L10: =A5A!L48 -> 25150000
A11: =A5A!A52 -> Vote 6 - Group Financial Services Department | C11: =A5A!C52 -> 34336298 | D11: =A5A!D52 -> 43513464.96 | E11: =A5A!E52 -> 14396599.22 | F11: =A5A!F52 -> 81500000 | G11: =A5A!G52 -> 30500000 | H11: =A5A!H52 -> 30500000 | I11: =A5A!I52 -> 0 | J11: =A5A!J52 -> 107262350 | K11: =A5A!K52 -> 500000 | L11: =A5A!L52 -> 50600000
A12: =A5A!A63 -> Vote 7 - Group Property Management Department | C12: =A5A!C63 -> 4171177 | D12: =A5A!D63 -> 0 | E12: =A5A!E63 -> 0 | F12: =A5A!F63 -> 5200000 | G12: =A5A!G63 -> 9200000 | H12: =A5A!H63 -> 9200000 | I12: =A5A!I63 -> 0 | J12: =A5A!J63 -> 4500000 | K12: =A5A!K63 -> 5000000 | L12: =A5A!L63 -> 10100000
A13: =A5A!A70 -> Vote 8 - Health Department | C13: =A5A!C70 -> 52650931 | D13: =A5A!D70 -> 14031486.48 | E13: =A5A!E70 -> 15199861.4 | F13: =A5A!F70 -> 32000000 | G13: =A5A!G70 -> 33161635 | H13: =A5A!H70 -> 33161635 | I13: =A5A!I70 -> 0 | J13: =A5A!J70 -> 39936000 | K13: =A5A!K70 -> 20000000 | L13: =A5A!L70 -> 0
A14: =A5A!A76 -> Vote 9 - Human Settlement Department | C14: =A5A!C76 -> 31616741 | D14: =A5A!D76 -> 608884927.7 | E14: =A5A!E76 -> 900799646.1 | F14: =A5A!F76 -> 937758469 | G14: =A5A!G76 -> 1024081275 | H14: =A5A!H76 -> 1024081275 | I14: =A5A!I76 -> 0 | J14: =A5A!J76 -> 1122047355 | K14: =A5A!K76 -> 1387224092 | L14: =A5A!L76 -> 1183144118
A15: =A5A!A85 -> Vote 10 - Tshwane Metro Police Department | C15: =A5A!C85 -> 507458 | D15: =A5A!D85 -> 29997108.16 | E15: =A5A!E85 -> 12996196.29 | F15: =A5A!F85 -> 11500000 | G15: =A5A!G85 -> 11500000 | H15: =A5A!H85 -> 11500000 | I15: =A5A!I85 -> 0 | J15: =A5A!J85 -> 37067879 | K15: =A5A!K85 -> 30750000 | L15: =A5A!L85 -> 129000000
A16: =A5A!A94 -> Vote 11 - Regional Operations & Coordination Department | C16: =A5A!C94 -> 0 | D16: =A5A!D94 -> 2832193 | E16: =A5A!E94 -> 2448472.4 | F16: =A5A!F94 -> 4200000 | G16: =A5A!G94 -> 1200000 | H16: =A5A!H94 -> 1200000 | I16: =A5A!I94 -> 0 | J16: =A5A!J94 -> 50000000 | K16: =A5A!K94 -> 0 | L16: =A5A!L94 -> 5000000
A17: =A5A!A156 -> Vote 12 - Roads & Transport Department | C17: =A5A!C156 -> 747639370 | D17: =A5A!D156 -> 1103584531 | E17: =A5A!E156 -> 893285597.2 | F17: =A5A!F156 -> 994160445 | G17: =A5A!G156 -> 988818445 | H17: =A5A!H156 -> 988818445 | I17: =A5A!I156 -> 0 | J17: =A5A!J156 -> 1022369079 | K17: =A5A!K156 -> 1268358580 | L17: =A5A!L156 -> 1159226000
A18: =A5A!A165 -> Vote 13 - Shared Services Department | C18: =A5A!C165 -> 13259998 | D18: =A5A!D165 -> 159831342.4 | E18: =A5A!E165 -> 87409093.27 | F18: =A5A!F165 -> 115000000 | G18: =A5A!G165 -> 193306172 | H18: =A5A!H165 -> 193306172 | I18: =A5A!I165 -> 0 | J18: =A5A!J165 -> 278000000 | K18: =A5A!K165 -> 230000000 | L18: =A5A!L165 -> 141000000
A19: =A5A!A173 -> Vote 14 - Utility Services Department | C19: =A5A!C173 -> 1663070065 | D19: =A5A!D173 -> 978955286.3 | E19: =A5A!E173 -> 915843890.8 | F19: =A5A!F173 -> 1457769446 | G19: =A5A!G173 -> 1403073238 | H19: =A5A!H173 -> 1403073238 | I19: =A5A!I173 -> 0 | J19: =A5A!J173 -> 1235964681 | K19: =A5A!K173 -> 1311467350 | L19: =A5A!L173 -> 1552681300
A20: =A5A!A190 -> Vote 15 - Other Departments | C20: =A5A!C190 -> 147213819 | D20: =A5A!D190 -> 52300782.17 | E20: =A5A!E190 -> 38775988.55 | F20: =A5A!F190 -> 54705000 | G20: =A5A!G190 -> 29100000 | H20: =A5A!H190 -> 29100000 | I20: =A5A!I190 -> 0 | J20: =A5A!J190 -> 22500000 | K20: =A5A!K190 -> 0 | L20: =A5A!L190 -> 3500000
A21: Capital multi-year expenditure sub-total | B21: 7 | C21: =SUM(C6:C20) -> 3879955784 | D21: =SUM(D6:D20) -> 3190856289 | E21: 3017978755 | F21: 4017365060 | G21: 4028037866 | H21: =SUM(H6:H20) -> 4028037866 | I21: 0 | J21: 4215882501 | K21: 4543702833 | L21: 4648445118
A23: Single-year expenditure to be appropriated | B23: 2
A24: =A6 -> Vote 1 - Community & Social Development Services Department | C24: =A5A!C204 -> 0 | D24: =A5A!D204 -> 0 | E24: =A5A!E204 -> 8823077.36 | F24: =A5A!F204 -> 300000 | G24: =A5A!G204 -> 300000 | H24: =A5A!H204 -> 300000 | I24: =A5A!I204 -> 0 | J24: =A5A!J204 -> 0 | K24: =A5A!K204 -> 0 | L24: =A5A!L204 -> 0
A25: =A7 -> Vote 2 - Economic Development & Spatial Planning Department | C25: =A5A!C214 -> 0 | D25: =A5A!D214 -> 4000000 | E25: =A5A!E214 -> 393253.01 | F25: =A5A!F214 -> 350000 | G25: =A5A!G214 -> 350000 | H25: =A5A!H214 -> 350000 | I25: =A5A!I214 -> 0 | J25: =A5A!J214 -> 350000 | K25: =A5A!K214 -> 350000 | L25: =A5A!L214 -> 350000
A26: Vote 3 - Emergency Services Department | C26: =A5A!C228 -> 0 | D26: =A5A!D228 -> 0 | E26: =A5A!E228 -> 249026.59 | F26: =A5A!F228 -> 0 | G26: =A5A!G228 -> 0 | H26: =A5A!H228 -> 0 | I26: =A5A!I228 -> 0 | J26: =A5A!J228 -> 0 | K26: =A5A!K228 -> 0 | L26: =A5A!L228 -> 0
A27: Vote 4 - Environment & Agriculture Management Department | C27: =A5A!C236 -> 44185576 | D27: =A5A!D236 -> 4830976.28 | E27: =A5A!E236 -> 0 | F27: =A5A!F236 -> 0 | G27: =A5A!G236 -> 200000 | H27: =A5A!H236 -> 200000 | I27: =A5A!I236 -> 0 | J27: =A5A!J236 -> 0 | K27: =A5A!K236 -> 0 | L27: =A5A!L236 -> 0
A28: Vote 5 - Group Audit & Risk Department | C28: =A5A!C246 -> 0 | D28: =A5A!D246 -> 0 | E28: =A5A!E246 -> 0 | F28: =A5A!F246 -> 0 | G28: =A5A!G246 -> 0 | H28: =A5A!H246 -> 0 | I28: =A5A!I246 -> 0 | J28: =A5A!J246 -> 0 | K28: =A5A!K246 -> 0 | L28: =A5A!L246 -> 0
A29: Vote 6 - Group Financial Services Department | C29: =A5A!C250 -> 0 | D29: =A5A!D250 -> 0 | E29: =A5A!E250 -> 11264780.92 | F29: =A5A!F250 -> 5000000 | G29: =A5A!G250 -> 5000000 | H29: =A5A!H250 -> 5000000 | I29: =A5A!I250 -> 0 | J29: =A5A!J250 -> 0 | K29: =A5A!K250 -> 0 | L29: =A5A!L250 -> 0
A30: Vote 7 - Group Property Management Department | C30: =A5A!C261 -> 947632 | D30: =A5A!D261 -> 0 | E30: =A5A!E261 -> 97749.72 | F30: =A5A!F261 -> 0 | G30: =A5A!G261 -> 0 | H30: =A5A!H261 -> 0 | I30: =A5A!I261 -> 0 | J30: =A5A!J261 -> 200000 | K30: =A5A!K261 -> 200000 | L30: =A5A!L261 -> 200000
A31: Vote 8 - Health Department | C31: =A5A!C268 -> 0 | D31: =A5A!D268 -> 0 | E31: =A5A!E268 -> 1084409.88 | F31: =A5A!F268 -> 0 | G31: =A5A!G268 -> 0 | H31: =A5A!H268 -> 0 | I31: =A5A!I268 -> 0 | J31: =A5A!J268 -> 0 | K31: =A5A!K268 -> 0 | L31: =A5A!L268 -> 0
A32: Vote 9 - Human Settlement Department | C32: =A5A!C274 -> 0 | D32: =A5A!D274 -> 0 | E32: =A5A!E274 -> 0 | F32: =A5A!F274 -> 0 | G32: =A5A!G274 -> 0 | H32: =A5A!H274 -> 0 | I32: =A5A!I274 -> 0 | J32: =A5A!J274 -> 0 | K32: =A5A!K274 -> 0 | L32: =A5A!L274 -> 0
A33: Vote 10 - Tshwane Metro Police Department | C33: =A5A!C283 -> 379368 | D33: =A5A!D283 -> 0 | E33: =A5A!E283 -> 0 | F33: =A5A!F283 -> 0 | G33: =A5A!G283 -> 0 | H33: =A5A!H283 -> 0 | I33: =A5A!I283 -> 0 | J33: =A5A!J283 -> 0 | K33: =A5A!K283 -> 0 | L33: =A5A!L283 -> 0
A34: Vote 11 - Regional Operations & Coordination Department | C34: =A5A!C292 -> 0 | D34: =A5A!D292 -> 0 | E34: =A5A!E292 -> 1600954.35 | F34: =A5A!F292 -> 0 | G34: =A5A!G292 -> 0 | H34: =A5A!H292 -> 0 | I34: =A5A!I292 -> 0 | J34: =A5A!J292 -> 1200000 | K34: =A5A!K292 -> 1200000 | L34: =A5A!L292 -> 1200000
A35: Vote 12 - Roads & Transport Department | C35: =A5A!C354 -> 0 | D35: =A5A!D354 -> 0 | E35: =A5A!E354 -> 0 | F35: =A5A!F354 -> 0 | G35: =A5A!G354 -> 0 | H35: =A5A!H354 -> 0 | I35: =A5A!I354 -> 0 | J35: =A5A!J354 -> 0 | K35: =A5A!K354 -> 0 | L35: =A5A!L354 -> 0
A36: Vote 13 - Shared Services Department | C36: =A5A!C363 -> 43125826 | D36: =A5A!D363 -> 200000 | E36: =A5A!E363 -> 0 | F36: =A5A!F363 -> 0 | G36: =A5A!G363 -> 0 | H36: =A5A!H363 -> 0 | I36: =A5A!I363 -> 0 | J36: =A5A!J363 -> 0 | K36: =A5A!K363 -> 0 | L36: =A5A!L363 -> 0
A37: Vote 14 - Utility Services Department | C37: =A5A!C371 -> 0 | D37: =A5A!D371 -> 0 | E37: =A5A!E371 -> 5074614.7 | F37: =A5A!F371 -> 0 | G37: =A5A!G371 -> 0 | H37: =A5A!H371 -> 0 | I37: =A5A!I371 -> 0 | J37: =A5A!J371 -> 0 | K37: =A5A!K371 -> 0 | L37: =A5A!L371 -> 0
A38: =A20 -> Vote 15 - Other Departments | C38: =A5A!C388 -> 0 | D38: =A5A!D388 -> 0 | E38: =A5A!E388 -> 589371.29 | F38: =A5A!F388 -> 0 | G38: =A5A!G388 -> 0 | H38: =A5A!H388 -> 0 | I38: =A5A!I388 -> 0 | J38: =A5A!J388 -> 500000 | K38: =A5A!K388 -> 500000 | L38: =A5A!L388 -> 600000
A39: Capital single-year expenditure sub-total | C39: =SUM(C24:C38) -> 88638402 | D39: =SUM(D24:D38) -> 9030976.28 | E39: 29177237.82 | F39: 5650000 | G39: 5850000 | H39: 5850000 | I39: 0 | J39: 2250000 | K39: 2250000 | L39: 2350000
A40: Total Capital Expenditure - Vote | C40: =C39+C21 -> 3968594186 | D40: =D39+D21 -> 3199887265 | E40: 3047155993 | F40: 4023015060 | G40: 4033887866 | H40: 4033887866 | I40: 0 | J40: 4218132501 | K40: 4545952833 | L40: 4650795118
A42: Capital Expenditure - Functional
A43: Governance and administration | C43: =SUM(C44:C46) -> 341706999.1 | D43: =SUM(D44:D46) -> 267411678.5 | E43: 147131945.3 | F43: 377761050 | G43: 401567222 | H43: 401567222 | I43: 0 | J43: 435533257 | K43: 276502811 | L43: 223350000
A44: Executive and council | C44: 79090859.55 | D44: 62116879.66 | E44: 1974617.42 | F44: 101761050 | G44: 101761050 | H44: 101761050 | J44: 0 | K44: 0 | L44: 0
A45: Finance and administration | C45: 2683502 | D45: 0 | E45: 0 | F45: 236000000 | G45: 259806172 | H45: 259806172 | J45: 435383257 | K45: 276352811 | L45: 223200000
A46: Internal audit | C46: 259932637.5 | D46: 205294798.9 | E46: 145157327.9 | F46: 40000000 | G46: 40000000 | H46: 40000000 | J46: 150000 | K46: 150000 | L46: 150000
A47: Community and public safety | C47: =SUM(C48:C52) -> 1051757890 | D47: =SUM(D48:D52) -> 736418048.4 | E47: 517845411.3 | F47: 1030613469 | G47: 1123323311 | H47: 1123323311 | I47: 0 | J47: 1095901234 | K47: 1367074092 | L47: 1528290698
A48: Community and social services | C48: 31624793.91 | D48: 19292321.46 | E48: 11649153.18 | F48: 15250000 | G48: 31766800 | H48: 31766800 | J48: 39650000 | K48: 49400000 | L48: 49700000
A49: Sport and recreation | C49: 90834737.63 | D49: 41795816.31 | E49: 7814537.46 | F49: 64500000 | G49: 61000000 | H49: 61000000 | J49: 39000000 | K49: 127000000 | L49: 158000000
A50: Public safety | C50: 14791072.04 | D50: 5903080.18 | E50: 23185356.68 | F50: 18000000 | G50: 12000000 | H50: 12000000 | J50: 110267879 | K50: 58450000 | L50: 209500000
A51: Housing | C51: 829299972.1 | D51: 611717120.7 | E51: 397987329.9 | F51: 900863469 | G51: 984686275 | H51: 984686275 | J51: 867047355 | K51: 1112224092 | L51: 1111090698
A52: Health | C52: 85207313.93 | D52: 57709709.69 | E52: 77209034.08 | F52: 32000000 | G52: 33870236 | H52: 33870236 | J52: 39936000 | K52: 20000000 | L52: 0
A53: Economic and environmental services | C53: =SUM(C54:C56) -> 1455793589 | D53: =SUM(D54:D56) -> 1163844261 | E53: 885215074.6 | F53: 1012823095 | G53: 1021228095 | H53: 1021228095 | I53: 0 | J53: 1055160909 | K53: 1281208580 | L53: 1191619700
A54: Planning and development | C54: 24789313.54 | D54: 49140187.04 | E54: 34044303.59 | F54: 9000000 | G54: -14000000 | H54: -14000000 | J54: 43122400 | K54: 20951000 | L54: 20350000
A55: Road transport | C55: 1428678275 | D55: 1111988996 | E55: 843667796.3 | F55: 1000573095 | G55: 1032778095 | H55: 1032778095 | J55: 990038509 | K55: 1252757580 | L55: 1159669700
A56: Environmental protection | C56: 2326000 | D56: 2715078.65 | E56: 7502974.72 | F56: 3250000 | G56: 2450000 | H56: 2450000 | J56: 22000000 | K56: 7500000 | L56: 11600000
A57: Trading services | C57: =SUM(C58:C61) -> 1089357962 | D57: =SUM(D58:D61) -> 1000581738 | E57: 1470090424 | F57: 1490269446 | G57: 1376221238 | H57: 1376221238 | I57: 0 | J57: 1582914681 | K57: 1582167350 | L57: 1676334720
A58: Energy sources | C58: 430984288.4 | D58: 491987736.4 | E58: 496646446.3 | F58: 983154020 | G58: 938229000 | H58: 938229000 | J58: 686026071 | K58: 656516350 | L58: 1003125000
A59: Water management | C59: 97526471.91 | D59: 149201452.1 | E59: 547252087.9 | F59: 327900872 | G59: 302718327 | H59: 302718327 | J59: 458138610 | K59: 440024982 | L59: 313870533.4
A60: Waste water management | C60: 543853296.3 | D60: 338570203.2 | E60: 411622432.5 | F60: 167214554 | G60: 122473911 | H60: 122473911 | J60: 402000000 | K60: 476626018 | L60: 319039187
A61: Waste management | C61: 16993905.21 | D61: 20822346.28 | E61: 14569457.23 | F61: 12000000 | G61: 12800000 | H61: 12800000 | J61: 36750000 | K61: 9000000 | L61: 40300000
A62: Other | C62: 29977746.87 | D62: 31631538.85 | E62: 26873137.82 | F62: 111548000 | G62: 111548000 | H62: 111548000 | J62: 48622420 | K62: 39000000 | L62: 31200000
A63: Total Capital Expenditure - Functional | B63: 3 | C63: =C43+C47+C53+C57+C62 -> 3968594186 | D63: =D43+D47+D53+D57+D62 -> 3199887265 | E63: 3047155993 | F63: 4023015060 | G63: 4033887866 | H63: 4033887866 | I63: 0 | J63: 4218132501 | K63: 4545952833 | L63: =L43+L47+L53+L57+L62 -> 4650795118
A65: Funded by:
A66: National Government | C66: 2398239232 | D66: 2260119717 | E66: 2042358849 | F66: 2161967060 | G66: 2203667060 | H66: 2203667060 | J66: 2191596360 | K66: 2277474930 | L66: 2396993120
A67: Provincial Government | C67: 44958554.01 | D67: 46709633.19 | E67: 61966777.46 | F67: 40730000 | G67: 54128207 | H67: 54128207 | J67: 130176150 | K67: 280138364 | L67: 297010467
A68: District Municipality | C68: 0 | D68: 0 | E68: 0 | F68: 0 | G68: 0 | H68: 0
A69: Other transfers and grants | C69: 1773259.98 | D69: 200000 | E69: 0 | F69: 8000000 | G69: 15000000 | H69: 15000000 | J69: 31500000 | K69: 0 | L69: 0
A70: Transfers recognised - capital | B70: 4 | C70: =SUM(C66:C69) -> 2444971046 | D70: 2307029350 | E70: 2104325626 | F70: 2210697060 | G70: 2272795267 | H70: 2272795267 | I70: 0 | J70: 2353272510 | K70: 2557613294 | L70: 2694003587
A71: Public contributions & donations | C71: 0 | D71: 0 | E71: 0 | F71: 0 | G71: 0 | H71: 0 | J71: 0 | K71: 0 | L71: 0
A72: Borrowing | B72: 6 | C72: 1194839429 | D72: 760760538.3 | E72: 700248494.1 | F72: 1500000000 | G72: 1500000000 | H72: 1500000000 | J72: 1500000000 | K72: 1455101000 | L72: 1410000000
A73: Internally generated funds | C73: 328783710.8 | D73: 132097377.2 | E73: 242581872.5 | F73: 312318000 | G73: 261092599 | H73: 261092599 | I73: 0 | J73: 364859991 | K73: 533238539 | L73: 546791531
A74: Total Capital Funding | B74: 7 | C74: =+C70+C71+C72+C73 -> 3968594186 | D74: 3199887265 | E74: 3047155993 | F74: 4023015060 | G74: 4033887866 | H74: 4033887866 | I74: =+I70+I72+I73 -> 0 | J74: =+J70+J71+J72+J73 -> 4218132501 | K74: =+K70+K71+K72+K73 -> 4545952833 | L74: =+L70+L71+L72+L73 -> 4650795118
A75: =head27a -> References
A76: 1. Municipalities may choose to appropriate for capital expenditure for three years or for one year (if one year appropriation projected expenditure required for yr2 and yr3).
A77: 2. Include capital component of PPP unitary payment. Note that capital transfers are only appropriated to municipalities for the budget year
A78: 3. Capital expenditure by functional classification must reconcile to the appropriations by vote
A79: 4. Must reconcile to supporting table SA20 and to Budgeted Financial Performance (revenue and expenditure)
A81: 6. Include finance leases and PPP capital funding component of unitary payment - total borrowing/repayments to reconcile to changes in Table SA17
A82: 7. Total Capital Funding must balance with Total Capital Expenditure
A83: 8. Include any capitalised interest (MFMA section 46) as part of relevant capital budget
A85: check balance | C85: =IF((C63-C74)=0,0,"Unbalanced") -> Unbalanced | D85: =IF((D63-D74)=0,0,"Unbalanced") -> 0 | E85: Unbalanced | F85: 0 | G85: 0 | H85: 0 | I85: 0 | J85: 0 | K85: 0 | L85: 0

Sheet A5A
A1: =muni&" - "&Approve5 -> TSH City Of Tshwane - Table A5 Consolidated Budgeted Capital Expenditure by vote, functional classification and funding
A2: =Vdesc -> Vote Description | B2: =head27 -> Ref | C2: =head1b -> 2015/16 | D2: =head1A -> 2016/17 | E2: =Head1 -> 2017/18 | F2: =Head2 -> Current Year 2018/19 | J2: =Head3 -> 2019/20 Medium Term Revenue & Expenditure Framework | N2: ="Multi-year appropriation for "&Head9& " in the "&Head2A&" Annual Budget" -> Multi-year appropriation for Budget Year 2019/20 in the 2018/19 Annual Budget | R2: ="Multi-year appropriation for "&RIGHT(Head10,7)& " in the "&Head2A&" Annual Budget" -> Multi-year appropriation for 2020/21 in the 2018/19 Annual Budget | V2: New multi-year appropriations (funds for new and existing projects)
A3: R thousand | B3: 1 | C3: =Head5 -> Audited Outcome | D3: =Head5 -> Audited Outcome | E3: =Head5 -> Audited Outcome | F3: =Head6 -> Original Budget | G3: =Head7 -> Adjusted Budget | H3: =Head8 -> Full Year Forecast | I3: =Head5b -> Pre-audit outcome | J3: =Head9 -> Budget Year 2019/20 | K3: =Head10 -> Budget Year +1 2020/21 | L3: =Head11 -> Budget Year +2 2021/22 | N3: ="Appropriation for "&RIGHT(Head9,7) -> Appropriation for 2019/20 | O3: ="Adjustments in "&Head2A -> Adjustments in 2018/19 | P3: ="Downward adjustments for "&RIGHT(Head9,7) -> Downward adjustments for 2019/20 | Q3: Appropriation carried forward | R3: ="Appropriation for "&RIGHT(Head9,7) -> Appropriation for 2019/20 | S3: ="Adjustments in "&Head2A -> Adjustments in 2018/19 | T3: ="Downward adjustments for "&RIGHT(Head9,7) -> Downward adjustments for 2019/20 | U3: Appropriation carried forward | V3: =Head9 -> Budget Year 2019/20 | W3: =Head10 -> Budget Year +1 2020/21 | X3: =Head11 -> Budget Year +2 2021/22
A4: Capital expenditure - Municipal Vote
A5: Multi-year expenditure appropriation | B5: 2
A6: ='Org structure'!A2 -> Vote 1 - Community & Social Development Services Department | C6: =SUM(C7:C15) -> 77598605 | D6: 102067718.8 | E6: 76628488.15 | F6: 97730000 | G6: 96755401 | H6: 96755401 | I6: 0 | J6: 64200000 | K6: 156200000 | L6: 190300000 | N6: =SUM(N7:N15) -> 63800000 | O6: 0 | P6: 0 | Q6: 63800000 | R6: 156300000 | S6: 0 | T6: 0 | U6: 156300000 | V6: 400000 | W6: -100000 | X6: 190300000
A7: ='Org structure'!E3 -> 1.1 - 019 - Child Care | C7: 77598605 | D7: 43678223.21 | E7: 70920616.92 | F7: 30730000 | G7: 31438601 | H7: 31438601 | J7: =Q7+V7 -> 500000 | K7: =U7+W7 -> 0 | L7: =X7 -> 0 | M7: =IF(AND(C7=0,D7=0,E7=0,F7=0,G7=0,H7=0,J7=0,K7=0,L7=0),"Exclude","") ->  | N7: 0 | Q7: =SUM(N7:P7) -> 0 | R7: 0 | U7: =SUM(R7:T7) -> 0 | V7: 500000 | W7: 0 | X7: 0
A8: ='Org structure'!E4 -> 1.2 - 041 - Library | C8: 0 | D8: 9936346.29 | E8: 5512523.11 | F8: 0 | G8: 0 | H8: 0 | J8: =Q8+V8 -> 10000000 | K8: =U8+W8 -> 23000000 | L8: =X8 -> 42000000 | M8: =IF(AND(C8=0,D8=0,E8=0,F8=0,G8=0,H8=0,J8=0,K8=0,L8=0),"Exclude","") ->  | N8: 10000000 | Q8: =SUM(N8:P8) -> 10000000 | R8: 23000000 | U8: =SUM(R8:T8) -> 23000000 | V8: 0 | W8: 0 | X8: 42000000
A9: ='Org structure'!E5 -> 1.3 - 042 - Culture | C9: 0 | D9: 0 | E9: 0 | F9: 0 | G9: 0 | H9: 0 | J9: =Q9+V9 -> 5000000 | K9: =U9+W9 -> 0 | L9: 0 | N9: 5000000 | Q9: 5000000 | U9: 0 | V9: 0 | W9: 0 | X9: 0
A10: ='Org structure'!E6 -> 1.4 - 054 - Sport and Recreation | C10: 0 | D10: 38383133.14 | E10: -1045381.9 | F10: 57000000 | G10: 53500000 | H10: 53500000 | J10: 38000000 | K10: 62000000 | L10: 88000000 | N10: 38000000 | Q10: 38000000 | R10: 62000000 | U10: 62000000 | V10: 0 | W10: 0 | X10: 88000000
A11: ='Org structure'!E7 -> 1.5 - 058 - Educational Services | C11: 0 | D11: 7299587.01 | E11: 1042014.66 | F11: 10000000 | G11: 11816800 | H11: 11816800 | J11: 10700000 | K11: 41200000 | L11: =X11 -> 30300000 | N11: 10800000 | Q11: 10800000 | R11: 41300000 | U11: 41300000 | V11: -100000 | W11: -100000 | X11: 30300000
A12: ='Org structure'!E8 -> 1.6 - 066 - Education and Development | C12: 0 | D12: 0 | E12: 0 | F12: 0 | G12: 0 | H12: 0 | J12: 0 | K12: 0 | L12: 0 | M12: Exclude | N12: 0 | Q12: 0 | R12: 0 | U12: 0 | V12: 0 | W12: 0 | X12: 0
A13: ='Org structure'!E9 -> 1.7 - 068 - Management Offices | C13: 0 | D13: 0 | E13: 0 | F13: 0 | G13: 0 | H13: 0 | J13: 0 | K13: 0 | L13: 0 | M13: Exclude | Q13: 0 | U13: 0
A14: ='Org structure'!E10 -> 1.8 - 155 - Management and Administration (Kungwini) | C14: 0 | D14: 950492.68 | E14: 198715.36 | F14: 0 | G14: 0 | H14: 0 | J14: 0 | K14: 30000000 | L14: 30000000 | Q14: 0 | R14: 30000000 | U14: 30000000 | V14: 0 | W14: 0 | X14: 30000000
A15: ='Org structure'!E11 -> 1.9 - 156 - Management and Administration (Nokeng) | C15: 0 | D15: 1819936.49 | E15: 0 | F15: 0 | G15: 0 | H15: 0 | J15: 0 | K15: 0 | L15: 0 | Q15: 0 | U15: 0
A16: ='Org structure'!A3 -> Vote 2 - Economic Development & Spatial Planning Department | C16: =SUM(C17:C29) -> 92176852 | D16: 55983187.64 | E16: 14202794.68 | F16: 113491700 | G16: 90491700 | H16: 90491700 | I16: 0 | J16: 69885157 | K16: 40852811 | L16: 74143700 | N16: =SUM(N17:N29) -> 171254307 | O16: 0 | P16: 0 | Q16: 171254307 | R16: 41202811 | S16: 0 | T16: 0 | U16: 41202811 | V16: -101369150 | W16: -350000 | X16: 74143700
A17: ='Org structure'!E13 -> 2.1 - 010 - Operations | C17: 15802475 | D17: 0 | E17: 0 | F17: 318000 | G17: 318000 | H17: 318000 | J17: =Q17+V17 -> 0 | K17: =U17+W17 -> 0 | L17: =X17 -> 0 | Q17: =SUM(N17:P17) -> 0 | U17: 0
A18: ='Org structure'!E14 -> 2.2 - 044 - Quantity Surveyors | C18: 0 | D18: 0 | E18: 0 | F18: 0 | G18: 0 | H18: 0 | J18: =Q18+V18 -> 0 | K18: =U18+W18 -> 0 | L18: 0 | M18: Exclude | Q18: 0 | U18: 0
A19: ='Org structure'!E15 -> 2.3 - 045 - Architect | C19: 0 | D19: 0 | E19: 0 | F19: 0 | G19: 0 | H19: 0 | J19: 0 | K19: 0 | L19: 0 | M19: Exclude | Q19: 0 | U19: 0
A20: ='Org structure'!E16 -> 2.4 - 055 - Horticulture | C20: 0 | D20: 0 | E20: 0 | F20: 0 | G20: 0 | H20: 0 | J20: 0 | K20: =U20+W20 -> 0 | L20: 0 | M20: Exclude | Q20: 0 | U20: 0
A21: ='Org structure'!E17 -> 2.5 - 068 - Economic Development | C21: 66490895 | D21: 45140187.04 | E21: 7999038.125 | F21: 53412650 | G21: 30412650 | H21: 30412650 | J21: 30109907 | K21: 953811 | L21: 0 | N21: 130109907 | Q21: 130109907 | R21: 953811 | U21: 953811 | V21: -100000000 | W21: 0 | X21: 0
A22: ='Org structure'!E18 -> 2.6 - 079 - City Planning | C22: 4990281 | D22: 0 | E22: 0 | F22: 6000000 | G22: 6000000 | H22: 6000000 | J22: 0 | K22: 0 | L22: 0 | Q22: 0 | U22: 0
A23: ='Org structure'!E19 -> 2.7 - 080 - City Planning | C23: 4893201 | D23: 0 | E23: 0 | F23: 38261050 | G23: 38261050 | H23: 38261050 | J23: 36775250 | K23: 39899000 | L23: 42943700 | N23: 38144400 | Q23: 38144400 | R23: 40249000 | U23: 40249000 | V23: -1369150 | W23: -350000 | X23: 42943700
A24: ='Org structure'!E20 -> 2.8 - 153 - Management and Administration (Kungwini) | C24: 0 | D24: 0 | E24: 0 | F24: 0 | G24: 0 | H24: 0 | J24: 0 | K24: 0 | L24: 0 | M24: Exclude | Q24: 0 | U24: 0
A25: ='Org structure'!E21 -> 2.9 - 154 - Management and Administration (Metsweding) | C25: 0 | D25: 0 | E25: 0 | F25: 0 | G25: 0 | H25: 0 | J25: 0 | K25: 0 | L25: 0 | M25: Exclude | Q25: 0 | U25: 0
A26: ='Org structure'!E22 -> 2.10 - 160 - Fresh-Produce Market | C26: 0 | D26: 10843000.6 | E26: 6203756.55 | F26: 15500000 | G26: 15500000 | H26: 15500000 | J26: =Q26+V26 -> 3000000 | K26: =U26+W26 -> 0 | L26: =X26 -> 31200000 | N26: 3000000 | Q26: 3000000 | U26: 0 | X26: 31200000
A27: ='Org structure'!E23 -> 2.11 - 179 - Management and Administration (Kungwini) | C27: 0 | D27: 0 | E27: 0 | F27: 0 | G27: 0 | H27: 0 | J27: 0 | K27: 0 | L27: 0 | M27: Exclude | Q27: 0 | U27: 0
A28: ='Org structure'!E24 -> 2.12 - 180 - Management and Administration (Nokeng) | C28: 0 | D28: 0 | E28: 0 | F28: 0 | G28: 0 | H28: 0 | J28: 0 | K28: 0 | L28: 0 | M28: Exclude | Q28: 0 | U28: 0
A29: ='Org structure'!E25 -> 2.13 - 181 - Management and Administration (Metsweding) | C29: 0 | D29: 0 | E29: 0 | F29: 0 | G29: 0 | H29: 0 | J29: 0 | K29: 0 | L29: 0 | M29: Exclude | Q29: 0 | U29: 0
A30: ='Org structure'!A4 -> Vote 3 - Emergency Services Department | C30: =SUM(C31:C37) -> 381243127 | D30: 10895316.78 | E30: 9940133.8 | F30: 20700000 | G30: 14700000 | H30: 14700000 | I30: 0 | J30: 74000000 | K30: 31700000 | L30: 55500000 | N30: =SUM(N31:N37) -> 44700000 | O30: 0 | P30: 0 | Q30: 44700000 | R30: 23200000 | S30: 0 | T30: 0 | U30: 23200000 | V30: 29300000 | W30: 8500000 | X30: 55500000
A31: ='Org structure'!E27 -> 3.1 - 005 - Emergency Medical and Ambulance Services | C31: 0 | D31: 0 | E31: 0 | F31: 0 | G31: 0 | H31: 0 | J31: =Q31+V31 -> 0 | K31: =U31+W31 -> 0 | L31: =X31 -> 0 | M31: Exclude | Q31: =SUM(N31:P31) -> 0 | U31: 0
A32: ='Org structure'!E28 -> 3.2 - 006 - Fire Brigade | C32: 0 | D32: 0 | E32: 0 | F32: 0 | G32: 0 | H32: 0 | J32: 7800000 | K32: 14000000 | L32: 45000000 | Q32: 0 | R32: 8000000 | U32: 8000000 | V32: 7800000 | W32: 6000000 | X32: 45000000
A33: ='Org structure'!E29 -> 3.3 - 011 - Management and Administration (Kungwini) | C33: 0 | D33: 0 | E33: 0 | F33: 0 | G33: 0 | H33: 0 | J33: 0 | K33: 0 | L33: 0 | M33: Exclude | Q33: 0 | U33: =SUM(R33:T33) -> 0
A34: ='Org structure'!E30 -> 3.4 - 012 - Management and Administration (Nokeng) | C34: 0 | D34: 0 | E34: 0 | F34: 0 | G34: 0 | H34: 0 | J34: 0 | K34: =U34+W34 -> 0 | L34: 0 | M34: Exclude | Q34: 0 | U34: 0
A35: ='Org structure'!E31 -> 3.5 - 013 - Management and Administration (Metsweding) | C35: 0 | D35: 0 | E35: 0 | F35: 0 | G35: 0 | H35: 0 | J35: =Q35+V35 -> 0 | K35: 0 | L35: 0 | M35: Exclude | Q35: 0 | U35: 0
A36: ='Org structure'!E32 -> 3.6 - 040 - Emergency Operational and Support Services | C36: 375862248 | D36: 5903080.18 | E36: 6942192.73 | F36: 18200000 | G36: 12200000 | H36: 12200000 | J36: 61200000 | K36: 12700000 | L36: 5500000 | N36: 42200000 | Q36: 42200000 | R36: 12700000 | U36: 12700000 | V36: 19000000 | X36: 5500000
A37: ='Org structure'!E33 -> 3.7 - 048 - Disaster Management | C37: 5380879 | D37: 4992236.6 | E37: 2997941.07 | F37: 2500000 | G37: 2500000 | H37: 2500000 | J37: 5000000 | K37: 5000000 | L37: 5000000 | N37: 2500000 | Q37: 2500000 | R37: 2500000 | U37: 2500000 | V37: 2500000 | W37: 2500000 | X37: 5000000
A38: ='Org structure'!A5 -> Vote 4 - Environment & Agriculture Management Department | C38: =SUM(C39:C47) -> 492098363 | D38: 22122626.67 | E38: 27005174 | F38: 51500000 | G38: 62000000 | H38: 62000000 | I38: 0 | J38: 63000000 | K38: 36500000 | L38: 69100000 | N38: =SUM(N39:N47) -> 63000000 | O38: 0 | P38: 0 | Q38: 63000000 | R38: 36500000 | S38: 0 | T38: 0 | U38: 36500000 | V38: 0 | W38: 0 | X38: 69100000
A39: ='Org structure'!E35 -> 4.1 - 018 - Environmental Health | C39: 139059063 | D39: 2715078.65 | E39: 2988888.08 | F39: 500000 | G39: 500000 | H39: 500000 | J39: =Q39+V39 -> 2000000 | K39: =U39+W39 -> 500000 | L39: =X39 -> 4600000 | N39: 4500000 | Q39: =SUM(N39:P39) -> 4500000 | R39: 500000 | U39: 500000 | V39: -2500000 | X39: 4600000
A40: ='Org structure'!E36 -> 4.2 - 034 - Waste Management | C40: 0 | D40: 0 | E40: 0 | F40: 0 | G40: 0 | H40: 0 | J40: 0 | K40: 0 | L40: 0 | M40: Exclude | Q40: 0 | U40: 0
A41: ='Org structure'!E37 -> 4.3 - 035 - Solid Waste Services | C41: 15437501 | D41: 15991370 | E41: 13569458.23 | F41: 18000000 | G41: 22400000 | H41: 22400000 | J41: 27500000 | K41: 14000000 | L41: 35300000 | N41: 13500000 | Q41: 13500000 | R41: 14000000 | U41: 14000000 | V41: 14000000 | X41: 35300000
A42: ='Org structure'!E38 -> 4.4 - 037 - Management and Administration (Nokeng) | C42: 0 | D42: 0 | E42: 0 | F42: 0 | G42: 0 | H42: 0 | J42: 0 | K42: 0 | L42: 0 | M42: Exclude | Q42: 0 | U42: 0
A43: ='Org structure'!E39 -> 4.5 - 038 - Management and Administration (Metsweding) | C43: 38708361 | D43: 0 | E43: 0 | F43: 0 | G43: 0 | H43: 0 | J43: 0 | K43: 0 | L43: 0 | Q43: 0 | U43: 0
A44: ='Org structure'!E40 -> 4.6 - 053 - Culture and Recreation | C44: 0 | D44: 0 | E44: 0 | F44: 3500000 | G44: 3500000 | H44: 3500000 | J44: 0 | K44: 5000000 | L44: 6500000 | Q44: 0 | R44: 5000000 | U44: 5000000 | X44: 6500000
A45: ='Org structure'!E41 -> 4.7 - 055 - Horticulture | C45: 155082554 | D45: 0 | E45: 0 | F45: 0 | G45: 0 | H45: 0 | J45: 2000000 | K45: 0 | L45: 0 | Q45: 0 | U45: 0 | V45: 2000000 | W45: 0
A46: ='Org structure'!E42 -> 4.8 - 056 - Conservation and Resorts | C46: 143810884 | D46: 642254 | E46: 5514085.64 | F46: 23000000 | G46: 18400000 | H46: 18400000 | J46: 24500000 | K46: 8000000 | L46: 22700000 | N46: 27000000 | Q46: 27000000 | R46: 8000000 | U46: 8000000 | V46: -2500000 | X46: 22700000
A47: ='Org structure'!E43 -> 4.9 - 057 - Cemeteries | C47: 0 | D47: 2773924.02 | E47: 4932742.05 | F47: 6500000 | G47: 17200000 | H47: 17200000 | J47: 7000000 | K47: 9000000 | L47: 0 | N47: 18000000 | Q47: 18000000 | R47: 9000000 | U47: 9000000 | V47: -11000000
A48: ='Org structure'!A6 -> Vote 5 - Group Audit & Risk Department | C48: =SUM(C49:C51) -> 142372980 | D48: 5856316.5 | E48: 9046819.36 | F48: 40150000 | G48: 40150000 | H48: 40150000 | I48: 0 | J48: 25150000 | K48: 25150000 | L48: 25150000 | N48: =SUM(N49:N51) -> 25150000 | O48: 0 | P48: 0 | Q48: 25150000 | R48: 25150000 | S48: 0 | T48: 0 | U48: 25150000 | V48: 0 | W48: 0 | X48: 25150000
A49: ='Org structure'!E45 -> 5.1 - 049 - Metropolitan Police Services | C49: 0 | D49: 0 | E49: 0 | F49: 0 | G49: 0 | H49: 0 | J49: =Q49+V49 -> 0 | K49: =U49+W49 -> 0 | L49: =X49 -> 0 | M49: Exclude | Q49: =SUM(N49:P49) -> 0 | U49: 0
A50: ='Org structure'!E46 -> 5.2 - 069 - Internal Audit and Risk Management | C50: 0 | D50: 0 | E50: 0 | F50: 0 | G50: 0 | H50: 0 | J50: 150000 | K50: 150000 | L50: 150000 | N50: 150000 | Q50: 150000 | R50: 150000 | U50: 150000 | X50: 150000
A51: ='Org structure'!E47 -> 5.3 - 070 - Internal Audit | C51: 142372980 | D51: 5856316.5 | E51: 9046819.36 | F51: 40150000 | G51: 40150000 | H51: 40150000 | J51: 25000000 | K51: 25000000 | L51: 25000000 | N51: 25000000 | Q51: 25000000 | R51: 25000000 | U51: 25000000 | X51: 25000000
A52: ='Org structure'!A7 -> Vote 6 - Group Financial Services Department | C52: =SUM(C53:C62) -> 34336298 | D52: 43513464.96 | E52: 14396599.22 | F52: 81500000 | G52: 30500000 | H52: 30500000 | I52: 0 | J52: 107262350 | K52: 500000 | L52: 50600000 | N52: =SUM(N53:N62) -> 20500000 | O52: 0 | P52: 0 | Q52: 20500000 | R52: 10500000 | S52: 0 | T52: 0 | U52: 10500000 | V52: 86762350 | W52: -10000000 | X52: 50600000
A53: ='Org structure'!E49 -> 6.1 - 001 - General and Assessment Rates | C53: 0 | D53: 0 | E53: 0 | F53: 0 | G53: 0 | H53: 0 | J53: =Q53+V53 -> 0 | K53: =U53+W53 -> 0 | L53: =X53 -> 0 | M53: Exclude | Q53: =SUM(N53:P53) -> 0 | U53: 0
A54: ='Org structure'!E50 -> 6.2 - 003 - General | C54: 0 | D54: 0 | E54: 0 | F54: 0 | G54: 0 | H54: 0 | J54: 0 | K54: 0 | L54: 0 | M54: Exclude | Q54: 0 | U54: 0
A55: ='Org structure'!E51 -> 6.3 - 070 - Finance | C55: 34336298 | D55: 21313239.11 | E55: 4962615 | F55: 81500000 | G55: 30500000 | H55: 30500000 | J55: 83500000 | K55: 500000 | L55: 40600000 | N55: 20500000 | Q55: 20500000 | R55: 500000 | U55: 500000 | V55: 63000000 | X55: 40600000
A56: ='Org structure'!E52 -> 6.4 - 071 - Provisioning | C56: 0 | D56: 0 | E56: 0 | F56: 0 | G56: 0 | H56: 0 | J56: 0 | K56: 0 | L56: 0 | M56: Exclude | Q56: 0 | U56: 0
A57: ='Org structure'!E53 -> 6.5 - 074 - Stores | C57: 0 | D57: 22200225.85 | E57: 9433984.22 | F57: 0 | G57: 0 | H57: 0 | J57: 23762350 | K57: 0 | L57: 10000000 | Q57: 0 | R57: 10000000 | U57: 10000000 | V57: 23762350 | W57: -10000000 | X57: 10000000
A58: ='Org structure'!E54 -> 6.6 - 076 - Provisioning Services | C58: 0 | D58: 0 | E58: 0 | F58: 0 | G58: 0 | H58: 0 | J58: 0 | K58: 0 | L58: 0 | M58: Exclude | Q58: 0 | U58: 0
A59: ='Org structure'!E55 -> 6.7 - 078 - Property Valuation | C59: 0 | D59: 0 | E59: 0 | F59: 0 | G59: 0 | H59: 0 | J59: 0 | K59: 0 | L59: 0 | M59: Exclude | Q59: 0 | U59: 0
A60: ='Org structure'!E56 -> 6.8 - 171 - Management and Administration (Kungwini) | C60: 0 | D60: 0 | E60: 0 | F60: 0 | G60: 0 | H60: 0 | J60: 0 | K60: 0 | L60: 0 | M60: Exclude | Q60: 0 | U60: 0
A61: ='Org structure'!E57 -> 6.9 - 172 - Management and Administration (Nokeng) | C61: 0 | D61: 0 | E61: 0 | F61: 0 | G61: 0 | H61: 0 | J61: 0 | K61: 0 | L61: 0 | M61: Exclude | Q61: 0 | U61: 0
A62: ='Org structure'!E58 -> 6.10 - 173 - Management and Administration (Metsweding) | C62: 0 | D62: 0 | E62: 0 | F62: 0 | G62: 0 | H62: 0 | J62: 0 | K62: 0 | L62: 0 | M62: Exclude | Q62: 0 | U62: 0
A63: ='Org structure'!A8 -> Vote 7 - Group Property Management Department | C63: =SUM(C64:C69) -> 4171177 | D63: 0 | E63: 0 | F63: 5200000 | G63: 9200000 | H63: 9200000 | I63: 0 | J63: 4500000 | K63: 5000000 | L63: 10100000 | N63: =SUM(N64:N69) -> 5200000 | O63: 0 | P63: 0 | Q63: 5200000 | R63: 5200000 | S63: 0 | T63: 0 | U63: 5200000 | V63: -700000 | W63: -200000 | X63: 10100000
A64: ='Org structure'!E60 -> 7.1 - 063 - Property management | C64: 0 | D64: 0 | E64: 0 | F64: 0 | G64: 0 | H64: 0 | J64: =Q64+V64 -> 0 | K64: =U64+W64 -> 0 | L64: =X64 -> 0 | M64: Exclude | Q64: =SUM(N64:P64) -> 0 | U64: =SUM(R64:T64) -> 0
A65: ='Org structure'!E61 -> 7.2 - 065 - Tshwane House | C65: 0 | D65: 0 | E65: 0 | F65: 0 | G65: 0 | H65: 0 | J65: 0 | K65: 0 | L65: 0 | M65: Exclude | Q65: 0 | U65: 0
A66: ='Org structure'!E62 -> 7.3 - 067 - Property Services | C66: 0 | D66: 0 | E66: 0 | F66: 0 | G66: 0 | H66: 0 | J66: 0 | K66: 0 | L66: 0 | M66: Exclude | Q66: 0 | U66: 0
A67: ='Org structure'!E63 -> 7.4 - 071 - Office of Gen manager | C67: 0 | D67: 0 | E67: 0 | F67: 0 | G67: 0 | H67: 0 | J67: 0 | K67: 0 | L67: 0 | M67: Exclude | Q67: 0 | U67: 0
A68: ='Org structure'!E64 -> 7.5 - 072 - Management and Administration: PM | C68: 0 | D68: 0 | E68: 0 | F68: 1000000 | G68: 1000000 | H68: 1000000 | J68: 500000 | K68: 5000000 | L68: 0 | N68: 1200000 | Q68: 1200000 | R68: 5200000 | U68: 5200000 | V68: -700000 | W68: -200000 | X68: 0
A69: ='Org structure'!E65 -> 7.6 - 075 - Building Management | C69: 4171177 | D69: 0 | E69: 0 | F69: 4200000 | G69: 8200000 | H69: 8200000 | J69: 4000000 | K69: 0 | L69: 10100000 | N69: 4000000 | Q69: 4000000 | U69: 0 | X69: 10100000
A70: ='Org structure'!A9 -> Vote 8 - Health Department | C70: =SUM(C71:C75) -> 52650931 | D70: 14031486.48 | E70: 15199861.4 | F70: 32000000 | G70: 33161635 | H70: 33161635 | I70: 0 | J70: 39936000 | K70: 20000000 | L70: 0 | N70: =SUM(N71:N75) -> 39936000 | O70: 0 | P70: 0 | Q70: 39936000 | R70: 20000000 | S70: 0 | T70: 0 | U70: 20000000 | V70: 0 | W70: 0 | X70: 0
A71: ='Org structure'!E67 -> 8.1 - 019 - Health Services | C71: 0 | D71: 0 | E71: 0 | F71: 0 | G71: 0 | H71: 0 | J71: =Q71+V71 -> 0 | K71: =U71+W71 -> 0 | L71: =X71 -> 0 | M71: Exclude | Q71: =SUM(N71:P71) -> 0 | U71: 0
A72: ='Org structure'!E68 -> 8.2 - 020 - Health Services | C72: 52650931 | D72: 14031486.48 | E72: 15199861.4 | F72: 32000000 | G72: 33161635 | H72: 33161635 | J72: 39936000 | K72: 20000000 | L72: 0 | M72: =IF(AND(C72=0,D72=0,E72=0,F72=0,G72=0,H72=0,J72=0,K72=0,L72=0),"Exclude","") ->  | N72: 39936000 | Q72: 39936000 | R72: 20000000 | U72: 20000000
A73: ='Org structure'!E69 -> 8.3 - 021 - Management and Administration (Kungwini) | C73: 0 | D73: 0 | E73: 0 | F73: 0 | G73: 0 | H73: 0 | J73: 0 | K73: 0 | L73: 0 | M73: Exclude | Q73: 0 | U73: 0
A74: ='Org structure'!E70 -> 8.4 - 022 - Management and Administration (Nokeng) | C74: 0 | D74: 0 | E74: 0 | F74: 0 | G74: 0 | H74: 0 | J74: 0 | K74: 0 | L74: 0 | M74: Exclude | Q74: 0 | U74: 0
A75: ='Org structure'!E71 -> 8.5 - 023 - Management and Administration (Metsweding) | C75: 0 | D75: 0 | E75: 0 | F75: 0 | G75: 0 | H75: 0 | J75: 0 | K75: 0 | L75: 0 | M75: Exclude | Q75: 0 | U75: 0
A76: ='Org structure'!A10 -> Vote 9 - Human Settlement Department | C76: =SUM(C77:C84) -> 31616741 | D76: 608884927.7 | E76: 900799646.1 | F76: 937758469 | G76: 1024081275 | H76: 1024081275 | I76: 0 | J76: 1122047355 | K76: 1387224092 | L76: 1183144118 | N76: =SUM(N77:N84) -> 1038946450 | O76: 0 | P76: 0 | Q76: 1038946450 | R76: 1061559860 | S76: 0 | T76: 0 | U76: 1061559860 | V76: 83100905 | W76: 325664232 | X76: 1183144118
A77: ='Org structure'!E73 -> 9.1 - 001 - Tshwane Housing Company | C77: 0 | D77: 0 | E77: 0 | F77: 1000000 | G77: 11872806 | H77: 11872806 | J77: =Q77+V77 -> 202047355 | K77: =U77+W77 -> 392224092 | L77: =X77 -> 420945698 | N77: 93581450 | Q77: =SUM(N77:P77) -> 93581450 | R77: 101559860 | U77: 101559860 | V77: 108465905 | W77: 290664232 | X77: 420945698
A78: ='Org structure'!E74 -> 9.2 - 064 - Urban Development Projects | C78: 29134033 | D78: 585377107 | E78: 884879268.6 | F78: 911758469 | G78: 999708469 | H78: 999708469 | J78: 880000000 | K78: 945000000 | L78: 707198420.5 | N78: 905365000 | Q78: 905365000 | R78: 910000000 | U78: 910000000 | V78: -25365000 | W78: 35000000 | X78: 707198420.5
A79: ='Org structure'!E75 -> 9.3 - 082 - Housing Administration | C79: 2326000 | D79: 3650700.88 | E79: 162480 | F79: 0 | G79: 0 | H79: 0 | J79: 0 | K79: 0 | L79: 0 | Q79: 0 | U79: 0
A80: ='Org structure'!E76 -> 9.4 - 083 - Housing Administration | C80: 0 | D80: 0 | E80: 0 | F80: 0 | G80: 0 | H80: 0 | J80: 0 | K80: 0 | L80: 0 | M80: Exclude | Q80: 0 | U80: 0
A81: ='Org structure'!E77 -> 9.5 - 084 - Economic Housing | C81: 156708 | D81: 0 | E81: 0 | F81: 0 | G81: 0 | H81: 0 | J81: 0 | K81: 0 | L81: 0 | Q81: 0 | U81: 0
A82: ='Org structure'!E78 -> 9.6 - 086 - Housing Taken Over from Government | C82: 0 | D82: 19857119.88 | E82: 15757897.5 | F82: 25000000 | G82: 12500000 | H82: 12500000 | J82: 40000000 | K82: 50000000 | L82: 55000000 | N82: 40000000 | Q82: 40000000 | R82: 50000000 | U82: 50000000 | X82: 55000000
A83: ='Org structure'!E79 -> 9.7 - 089 - Housing: East | C83: 0 | D83: 0 | E83: 0 | F83: 0 | G83: 0 | H83: 0 | J83: 0 | K83: 0 | L83: 0 | M83: Exclude | Q83: 0 | U83: 0
A84: ='Org structure'!E80 -> 9.8 - 110 - Electricity | C84: 0 | D84: 0 | E84: 0 | F84: 0 | G84: 0 | H84: 0 | J84: 0 | K84: 0 | L84: 0 | M84: Exclude | Q84: 0 | U84: 0
A85: ='Org structure'!A11 -> Vote 10 - Tshwane Metro Police Department | C85: =SUM(C86:C93) -> 507458 | D85: 29997108.16 | E85: 12996196.29 | F85: 11500000 | G85: 11500000 | H85: 11500000 | I85: 0 | J85: 37067879 | K85: 30750000 | L85: 129000000 | N85: =SUM(N86:N93) -> 23500000 | O85: 0 | P85: 0 | Q85: 23500000 | R85: 30750000 | S85: 0 | T85: 0 | U85: 30750000 | V85: 13567879 | W85: 0 | X85: 129000000
A86: ='Org structure'!E82 -> 10.1 - 040 - Metro Police Support Services | C86: 0 | D86: 0 | E86: 0 | F86: 0 | G86: 0 | H86: 0 | J86: =Q86+V86 -> 0 | K86: =U86+W86 -> 0 | L86: =X86 -> 0 | M86: Exclude | Q86: =SUM(N86:P86) -> 0 | U86: 0
A87: ='Org structure'!E83 -> 10.2 - 048 - Disaster Management | C87: 0 | D87: 0 | E87: 0 | F87: 0 | G87: 0 | H87: 0 | J87: 0 | K87: 0 | L87: 0 | M87: Exclude | Q87: 0 | U87: 0
A88: ='Org structure'!E84 -> 10.3 - 049 - Metropolitan Police Services | C88: 507458 | D88: 29997108.16 | E88: 12996196.29 | F88: 11500000 | G88: 11500000 | H88: 11500000 | J88: 37067879 | K88: 30750000 | L88: 129000000 | N88: 23500000 | Q88: 23500000 | R88: 30750000 | U88: 30750000 | V88: 13567879 | W88: 0 | X88: 129000000
A89: ='Org structure'!E85 -> 10.4 - 069 - Operations and Management | C89: 0 | D89: 0 | E89: 0 | F89: 0 | G89: 0 | H89: 0 | J89: 0 | K89: 0 | L89: 0 | M89: Exclude | Q89: 0 | U89: 0
A90: ='Org structure'!E86 -> 10.5 - 167 - Parking Garages and Areas | C90: 0 | D90: 0 | E90: 0 | F90: 0 | G90: 0 | H90: 0 | J90: 0 | K90: 0 | L90: 0 | M90: Exclude | Q90: 0 | U90: 0
A91: ='Org structure'!E87 -> 10.6 - 168 - Management and Administration (Kungwini) | C91: 0 | D91: 0 | E91: 0 | F91: 0 | G91: 0 | H91: 0 | J91: 0 | K91: 0 | L91: 0 | M91: Exclude | Q91: 0 | U91: 0
A92: ='Org structure'!E88 -> 10.7 - 169 - Management and Administration (Nokeng) | C92: 0 | D92: 0 | E92: 0 | F92: 0 | G92: 0 | H92: 0 | J92: 0 | K92: 0 | L92: 0 | M92: Exclude | Q92: 0 | U92: 0
A93: ='Org structure'!E89 -> 10.8 - 170 - Management and Administration (Metsweding) | C93: 0 | D93: 0 | E93: 0 | F93: 0 | G93: 0 | H93: 0 | J93: 0 | K93: 0 | L93: 0 | M93: Exclude | Q93: 0 | U93: 0
A94: ='Org structure'!A12 -> Vote 11 - Regional Operations & Coordination Department | C94: =SUM(C95:C155) -> 0 | D94: 2832193 | E94: 2448472.4 | F94: 4200000 | G94: 1200000 | H94: 1200000 | I94: 0 | J94: 50000000 | K94: 0 | L94: 5000000 | N94: =SUM(N95:N155) -> 0 | O94: 0 | P94: 0 | Q94: 0 | R94: 0 | S94: 0 | T94: 0 | U94: 0 | V94: 50000000 | W94: 0 | X94: 5000000
A95: ='Org structure'!E91 -> 11.1 - 010 - Operations | C95: 0 | D95: 0 | E95: 0 | F95: 0 | G95: 0 | H95: 0 | J95: =Q95+V95 -> 0 | K95: =U95+W95 -> 0 | L95: =X95 -> 0 | M95: Exclude | Q95: =SUM(N95:P95) -> 0 | U95: 0
A96: ='Org structure'!E92 -> 11.2 - 014 - Management and Administration (Kungwini) | C96: 0 | D96: 0 | E96: 0 | F96: 0 | G96: 0 | H96: 0 | J96: =Q96+V96 -> 0 | K96: =U96+W96 -> 0 | L96: =X96 -> 0 | M96: Exclude | Q96: 0 | U96: 0
A97: ='Org structure'!E93 -> 11.3 - 015 - Management and Administration (Nokeng) | C97: 0 | D97: 0 | E97: 0 | F97: 0 | G97: 0 | H97: 0 | J97: 0 | K97: 0 | L97: 0 | M97: Exclude | Q97: 0 | U97: 0
A98: ='Org structure'!E94 -> 11.4 - 016 - Management and Administration (Metsweding) | C98: 0 | D98: 0 | E98: 0 | F98: 0 | G98: 0 | H98: 0 | J98: 0 | K98: 0 | L98: 0 | M98: Exclude | Q98: 0 | U98: 0
A99: ='Org structure'!E95 -> 11.5 - 020 - Health Services | C99: 0 | D99: 0 | E99: 0 | F99: 0 | G99: 0 | H99: 0 | J99: 0 | K99: 0 | L99: 0 | M99: Exclude | Q99: 0 | U99: 0
A100: ='Org structure'!E96 -> 11.6 - 025 - Roads and Storm Water | C100: 0 | D100: 0 | E100: 0 | F100: 0 | G100: 0 | H100: 0 | J100: 0 | K100: 0 | L100: 0 | M100: Exclude | Q100: 0 | U100: 0
A101: ='Org structure'!E97 -> 11.7 - 026 - Management and Administration (Kungwini) | C101: 0 | D101: 0 | E101: 0 | F101: 0 | G101: 0 | H101: 0 | J101: 0 | K101: 0 | L101: 0 | M101: Exclude | Q101: 0 | U101: 0
A102: ='Org structure'!E98 -> 11.8 - 027 - Management and Administration (Nokeng) | C102: 0 | D102: 0 | E102: 0 | F102: 0 | G102: 0 | H102: 0 | J102: 0 | K102: 0 | L102: 0 | M102: Exclude | Q102: 0 | U102: 0
A103: ='Org structure'!E99 -> 11.9 - 030 - Waste Water Treatment | C103: 0 | D103: 0 | E103: 0 | F103: 0 | G103: 0 | H103: 0 | J103: 0 | K103: 0 | L103: 0 | M103: Exclude | Q103: 0 | U103: 0
A104: ='Org structure'!E100 -> 11.10 - 031 - Waste Water Collection | C104: 0 | D104: 0 | E104: 0 | F104: 0 | G104: 0 | H104: 0 | J104: 0 | K104: 0 | L104: 0 | M104: Exclude | Q104: 0 | U104: 0
A105: ='Org structure'!E101 -> 11.11 - 034 - Waste Management | C105: 0 | D105: 0 | E105: 0 | F105: 0 | G105: 0 | H105: 0 | J105: 0 | K105: 0 | L105: 0 | M105: Exclude | Q105: 0 | U105: 0
A106: ='Org structure'!E102 -> 11.12 - 035 - Solid Waste Services | C106: 0 | D106: 0 | E106: 0 | F106: 0 | G106: 0 | H106: 0 | J106: 0 | K106: 0 | L106: 0 | M106: Exclude | Q106: 0 | U106: 0
A107: ='Org structure'!E103 -> 11.13 - 036 - Management and Administration (Kungwini) | C107: 0 | D107: 0 | E107: 0 | F107: 0 | G107: 0 | H107: 0 | J107: 0 | K107: 0 | L107: 0 | M107: Exclude | Q107: 0 | U107: 0
A108: ='Org structure'!E104 -> 11.14 - 038 - Management and Administration (Metsweding) | C108: 0 | D108: 0 | E108: 0 | F108: 0 | G108: 0 | H108: 0 | J108: 0 | K108: 0 | L108: 0 | M108: Exclude | Q108: 0 | U108: 0
A109: ='Org structure'!E105 -> 11.15 - 040 - Metro Police Support Services | C109: 0 | D109: 0 | E109: 0 | F109: 0 | G109: 0 | H109: 0 | J109: 0 | K109: 0 | L109: 0 | M109: Exclude | Q109: 0 | U109: 0
A110: ='Org structure'!E106 -> 11.16 - 041 - Library | C110: 0 | D110: 0 | E110: 0 | F110: 0 | G110: 0 | H110: 0 | J110: 0 | K110: 0 | L110: 0 | M110: Exclude | Q110: 0 | U110: 0
A111: ='Org structure'!E107 -> 11.17 - 042 - Culture | C111: 0 | D111: 0 | E111: 0 | F111: 0 | G111: 0 | H111: 0 | J111: 0 | K111: 0 | L111: 0 | M111: Exclude | Q111: 0 | U111: 0
A112: ='Org structure'!E108 -> 11.18 - 053 - Culture and Recreation | C112: 0 | D112: 0 | E112: 0 | F112: 0 | G112: 0 | H112: 0 | J112: 0 | K112: 0 | L112: 0 | M112: Exclude | Q112: 0 | U112: 0
A113: ='Org structure'!E109 -> 11.19 - 054 - Sport and Recreation | C113: 0 | D113: 0 | E113: 0 | F113: 0 | G113: 0 | H113: 0 | J113: 0 | K113: 0 | L113: 0 | M113: Exclude | Q113: 0 | U113: 0
A114: ='Org structure'!E110 -> 11.20 - 055 - Horticulture | C114: 0 | D114: 0 | E114: 0 | F114: 0 | G114: 0 | H114: 0 | J114: 0 | K114: 0 | L114: 0 | M114: Exclude | Q114: 0 | U114: 0
A115: ='Org structure'!E111 -> 11.21 - 056 - Conservation and Resorts | C115: 0 | D115: 0 | E115: 0 | F115: 0 | G115: 0 | H115: 0 | J115: 0 | K115: 0 | L115: 0 | M115: Exclude | Q115: 0 | U115: 0
A116: ='Org structure'!E112 -> 11.22 - 057 - Cemeteries | C116: 0 | D116: 0 | E116: 0 | F116: 0 | G116: 0 | H116: 0 | J116: 0 | K116: 0 | L116: 0 | M116: Exclude | Q116: 0 | U116: 0
A117: ='Org structure'!E113 -> 11.23 - 064 - Urban Development Projects | C117: 0 | D117: 0 | E117: 0 | F117: 0 | G117: 0 | H117: 0 | J117: 0 | K117: 0 | L117: 0 | M117: Exclude | Q117: 0 | U117: 0
A118: ='Org structure'!E114 -> 11.24 - 065 - Tshwane House | C118: 0 | D118: 0 | E118: 0 | F118: 0 | G118: 0 | H118: 0 | J118: 0 | K118: 0 | L118: 0 | M118: Exclude | Q118: 0 | U118: 0
A119: ='Org structure'!E115 -> 11.25 - 069 - Operation and Management | C119: 0 | D119: 0 | E119: 0 | F119: 0 | G119: 0 | H119: 0 | J119: 0 | K119: 0 | L119: 0 | M119: Exclude | Q119: 0 | U119: 0
A120: ='Org structure'!E116 -> 11.26 - 079 - City Planning | C120: 0 | D120: 0 | E120: 0 | F120: 0 | G120: 0 | H120: 0 | J120: 0 | K120: 0 | L120: 0 | M120: Exclude | Q120: 0 | U120: 0
A121: ='Org structure'!E117 -> 11.27 - 080 - City Planning | C121: 0 | D121: 0 | E121: 0 | F121: 0 | G121: 0 | H121: 0 | J121: 50000000 | K121: 0 | L121: 5000000 | N121: 0 | Q121: 0 | R121: 0 | U121: 0 | V121: 50000000 | W121: 0 | X121: 5000000
A122: ='Org structure'!E118 -> 11.28 - 082 - Housing Administration | C122: 0 | D122: 2832193 | E122: 2448472.4 | F122: 4200000 | G122: 1200000 | H122: 1200000 | J122: 0 | K122: 0 | L122: 0 | Q122: 0 | U122: 0
A123: ='Org structure'!E119 -> 11.29 - 083 - Housing Administration | C123: 0 | D123: 0 | E123: 0 | F123: 0 | G123: 0 | H123: 0 | J123: 0 | K123: 0 | L123: 0 | M123: Exclude | Q123: 0 | U123: 0
A124: ='Org structure'!E120 -> 11.30 - 084 - Economic Housing | C124: 0 | D124: 0 | E124: 0 | F124: 0 | G124: 0 | H124: 0 | J124: 0 | K124: 0 | L124: 0 | M124: Exclude | Q124: 0 | U124: 0
A125: ='Org structure'!E121 -> 11.31 - 085 - Housing: Selling Schemes | C125: 0 | D125: 0 | E125: 0 | F125: 0 | G125: 0 | H125: 0 | J125: 0 | K125: 0 | L125: 0 | M125: Exclude | Q125: 0 | U125: 0
A126: ='Org structure'!E122 -> 11.32 - 086 - Housing Taken Over From Government | C126: 0 | D126: 0 | E126: 0 | F126: 0 | G126: 0 | H126: 0 | J126: 0 | K126: 0 | L126: 0 | M126: Exclude | Q126: 0 | U126: 0
A127: ='Org structure'!E123 -> 11.33 - 089 - Housing: East | C127: 0 | D127: 0 | E127: 0 | F127: 0 | G127: 0 | H127: 0 | J127: 0 | K127: 0 | L127: 0 | M127: Exclude | Q127: 0 | U127: 0
A128: ='Org structure'!E124 -> 11.34 - 090 - RED: Region 3 | C128: 0 | D128: 0 | E128: 0 | F128: 0 | G128: 0 | H128: 0 | J128: 0 | K128: 0 | L128: 0 | M128: Exclude | Q128: 0 | U128: 0
A129: ='Org structure'!E125 -> 11.35 - 113 - Primary Power Distribution | C129: 0 | D129: 0 | E129: 0 | F129: 0 | G129: 0 | H129: 0 | J129: 0 | K129: 0 | L129: 0 | M129: Exclude | Q129: 0 | U129: 0
A130: ='Org structure'!E126 -> 11.36 - 114 - Electricity Distribution System: Prince | C130: 0 | D130: 0 | E130: 0 | F130: 0 | G130: 0 | H130: 0 | J130: 0 | K130: 0 | L130: 0 | M130: Exclude | Q130: 0 | U130: 0
A131: ='Org structure'!E127 -> 11.37 - 115 - Electricity Distribution System Works Ea | C131: 0 | D131: 0 | E131: 0 | F131: 0 | G131: 0 | H131: 0 | J131: 0 | K131: 0 | L131: 0 | M131: Exclude | Q131: 0 | U131: 0
A132: ='Org structure'!E128 -> 11.38 - 116 - Electricity: Power System Operating | C132: 0 | D132: 0 | E132: 0 | F132: 0 | G132: 0 | H132: 0 | J132: 0 | K132: 0 | L132: 0 | M132: Exclude | Q132: 0 | U132: 0
A133: ='Org structure'!E129 -> 11.39 - 117 - Electricity: Previous Park | C133: 0 | D133: 0 | E133: 0 | F133: 0 | G133: 0 | H133: 0 | J133: 0 | K133: 0 | L133: 0 | M133: Exclude | Q133: 0 | U133: 0
A134: ='Org structure'!E130 -> 11.40 - 118 - Electricity: Technical Support Services | C134: 0 | D134: 0 | E134: 0 | F134: 0 | G134: 0 | H134: 0 | J134: 0 | K134: 0 | L134: 0 | M134: Exclude | Q134: 0 | U134: 0
A135: ='Org structure'!E131 -> 11.41 - 119 - Specialist Engineering | C135: 0 | D135: 0 | E135: 0 | F135: 0 | G135: 0 | H135: 0 | J135: 0 | K135: 0 | L135: 0 | M135: Exclude | Q135: 0 | U135: 0
A136: ='Org structure'!E132 -> 11.42 - 120 - Electro technical: Works South | C136: 0 | D136: 0 | E136: 0 | F136: 0 | G136: 0 | H136: 0 | J136: 0 | K136: 0 | L136: 0 | M136: =IF(AND(C136=0,D136=0,E136=0,F136=0,G136=0,H136=0,J136=0,K136=0,L136=0),"Exclude","") -> Exclude | Q136: 0 | U136: 0
A137: ='Org structure'!E133 -> 11.43 - 121 - Electricity Distribution System: Rosslyn | C137: 0 | D137: 0 | E137: 0 | F137: 0 | G137: 0 | H137: 0 | J137: 0 | K137: 0 | L137: 0 | M137: Exclude | Q137: 0 | U137: 0
A138: ='Org structure'!E134 -> 11.44 - 122 - Electricity: Wonderboom | C138: 0 | D138: 0 | E138: 0 | F138: 0 | G138: 0 | H138: 0 | J138: 0 | K138: 0 | L138: 0 | M138: Exclude | Q138: 0 | U138: 0
A139: ='Org structure'!E135 -> 11.45 - 123 - Electricity Distribution System: Fortsig | C139: 0 | D139: 0 | E139: 0 | F139: 0 | G139: 0 | H139: 0 | J139: 0 | K139: 0 | L139: 0 | M139: Exclude | Q139: 0 | U139: 0
A140: ='Org structure'!E136 -> 11.46 - 124 - Electricity: ESKOM Areas | C140: 0 | D140: 0 | E140: 0 | F140: 0 | G140: 0 | H140: 0 | J140: 0 | K140: 0 | L140: 0 | M140: Exclude | Q140: 0 | U140: 0
A141: ='Org structure'!E137 -> 11.47 - 125 - Electricity: Soshanguve | C141: 0 | D141: 0 | E141: 0 | F141: 0 | G141: 0 | H141: 0 | J141: 0 | K141: 0 | L141: 0 | M141: Exclude | Q141: 0 | U141: 0
A142: ='Org structure'!E138 -> 11.48 - 126 - Management and Administration (Kungwini) | C142: 0 | D142: 0 | E142: 0 | F142: 0 | G142: 0 | H142: 0 | J142: 0 | K142: 0 | L142: 0 | M142: Exclude | Q142: 0 | U142: 0
A143: ='Org structure'!E139 -> 11.49 - 127 - Management and Administration (Nokeng) | C143: 0 | D143: 0 | E143: 0 | F143: 0 | G143: 0 | H143: 0 | J143: 0 | K143: 0 | L143: 0 | M143: Exclude | Q143: 0 | U143: 0
A144: ='Org structure'!E140 -> 11.50 - 128 - Management and Administration (Metsweding) | C144: 0 | D144: 0 | E144: 0 | F144: 0 | G144: 0 | H144: 0 | J144: 0 | K144: 0 | L144: 0 | M144: Exclude | Q144: 0 | U144: 0
A145: ='Org structure'!E141 -> 11.51 - 129 - Electricity: Atteridgeville | C145: 0 | D145: 0 | E145: 0 | F145: 0 | G145: 0 | H145: 0 | J145: 0 | K145: 0 | L145: 0 | M145: Exclude | Q145: 0 | U145: 0
A146: ='Org structure'!E142 -> 11.52 - 136 - Water Supply | C146: 0 | D146: 0 | E146: 0 | F146: 0 | G146: 0 | H146: 0 | J146: 0 | K146: 0 | L146: 0 | M146: Exclude | Q146: 0 | U146: 0
A147: ='Org structure'!E143 -> 11.53 - 140 - Management and Administration (Nokeng) | C147: 0 | D147: 0 | E147: 0 | F147: 0 | G147: 0 | H147: 0 | J147: 0 | K147: 0 | L147: 0 | M147: Exclude | Q147: 0 | U147: 0
A148: ='Org structure'!E144 -> 11.54 - 150 - Management and Administration (Kungwini) | C148: 0 | D148: 0 | E148: 0 | F148: 0 | G148: 0 | H148: 0 | J148: 0 | K148: 0 | L148: 0 | M148: Exclude | Q148: 0 | U148: 0
A149: ='Org structure'!E145 -> 11.55 - 151 - Management and Administration (Nokeng) | C149: 0 | D149: 0 | E149: 0 | F149: 0 | G149: 0 | H149: 0 | J149: 0 | K149: 0 | L149: 0 | M149: Exclude | Q149: 0 | U149: 0
A150: ='Org structure'!E146 -> 11.56 - 152 - Management and Administration (Metsweding) | C150: 0 | D150: 0 | E150: 0 | F150: 0 | G150: 0 | H150: 0 | J150: 0 | K150: 0 | L150: 0 | M150: Exclude | Q150: 0 | U150: 0
A151: ='Org structure'!E147 -> 11.57 - 155 - Management and Administration (Kungwini) | C151: 0 | D151: 0 | E151: 0 | F151: 0 | G151: 0 | H151: 0 | J151: 0 | K151: 0 | L151: 0 | M151: Exclude | Q151: 0 | U151: 0
A152: ='Org structure'!E148 -> 11.58 - 156 - Management and Administration (Nokeng) | C152: 0 | D152: 0 | E152: 0 | F152: 0 | G152: 0 | H152: 0 | J152: 0 | K152: 0 | L152: 0 | M152: Exclude | Q152: 0 | U152: 0
A153: ='Org structure'!E149 -> 11.59 - 157 - Management and Administration (Metsweding) | C153: 0 | D153: 0 | E153: 0 | F153: 0 | G153: 0 | H153: 0 | J153: 0 | K153: 0 | L153: 0 | M153: Exclude | Q153: 0 | U153: 0
A154: ='Org structure'!E150 -> 11.60 - 182 - Management and Administration (Kungwini) | C154: 0 | D154: 0 | E154: 0 | F154: 0 | G154: 0 | H154: 0 | J154: 0 | K154: 0 | L154: 0 | M154: Exclude | Q154: 0 | U154: 0
A155: ='Org structure'!E151 -> 11.61 - 183 - Management and Administration (Nokeng) | C155: 0 | D155: 0 | E155: 0 | F155: 0 | G155: 0 | H155: 0 | J155: 0 | K155: 0 | L155: 0 | M155: Exclude | Q155: 0 | U155: 0
A156: ='Org structure'!A13 -> Vote 12 - Roads & Transport Department | C156: =SUM(C157:C164) -> 747639370 | D156: 1103584531 | E156: 893285597.2 | F156: 994160445 | G156: 988818445 | H156: 988818445 | I156: 0 | J156: 1022369079 | K156: 1268358580 | L156: 1159226000 | N156: =SUM(N157:N164) -> 1052686429 | O156: 0 | P156: 0 | Q156: 1052686429 | R156: 1258401580 | S156: 0 | T156: 0 | U156: 1258401580 | V156: -30317350 | W156: 9957000 | X156: 1159226000
A157: ='Org structure'!E153 -> 12.1 - 025 - Roads and Stormwater | C157: 599778370 | D157: 370334246.2 | E157: 224510761.1 | F157: 356598225 | G157: 342256225 | H157: 342256225 | J157: =Q157+V157 -> 490909159 | K157: =U157+W157 -> 513018602 | L157: =X157 -> 527975000 | N157: 521226509 | Q157: =SUM(N157:P157) -> 521226509 | R157: 503018602 | U157: 503018602 | V157: -30317350 | W157: 10000000 | X157: 527975000
A158: ='Org structure'!E154 -> 12.2 - 026 - Management and Administration (Kungwini) | C158: 0 | D158: 147788.58 | E158: 64860088.57 | F158: 43400000 | G158: 40400000 | H158: 40400000 | J158: 0 | K158: 149500000 | L158: 50000000 | Q158: 0 | R158: 149500000 | U158: 149500000 | X158: 50000000
A159: ='Org structure'!E155 -> 12.3 - 028 - Management and Administration (Metsweding) | C159: 0 | D159: 0 | E159: 0 | F159: 0 | G159: 0 | H159: 0 | J159: 0 | K159: 0 | L159: 0 | M159: Exclude | Q159: 0 | U159: 0
A160: ='Org structure'!E156 -> 12.4 - 049 - Metropolitan Police Services | C160: 59265244 | D160: 0 | E160: 0 | F160: 0 | G160: 0 | H160: 0 | J160: 0 | K160: 0 | L160: 0 | Q160: 0 | U160: 0
A161: ='Org structure'!E157 -> 12.5 - 068 - Transport | C161: 0 | D161: 712313958.2 | E161: 573246162.7 | F161: 512162220 | G161: 512162220 | H161: 512162220 | J161: 468637500 | K161: 504914960 | L161: 559851000 | N161: 468637500 | Q161: 468637500 | R161: 504957960 | U161: 504957960 | W161: -43000 | X161: 559851000
A162: ='Org structure'!E158 -> 12.6 - 077 - Mechanical Maintenance: C De Wet | C162: 0 | D162: 0 | E162: 0 | F162: 0 | G162: 0 | H162: 0 | J162: =Q162+V162 -> 0 | K162: 0 | L162: 0 | M162: Exclude | Q162: 0 | U162: 0
A163: ='Org structure'!E159 -> 12.7 - 174 - Transport Services | C163: 88595756 | D163: 0 | E163: 9999203.62 | F163: 23000000 | G163: 23000000 | H163: 23000000 | J163: 18000000 | K163: 65925018 | L163: 21400000 | N163: 18000000 | Q163: 18000000 | R163: 65925018 | U163: 65925018 | X163: 21400000
A164: ='Org structure'!E160 -> 12.8 - 175 - Airport | C164: 0 | D164: 20788538.25 | E164: 20669381.27 | F164: 59000000 | G164: 71000000 | H164: 71000000 | J164: 44822420 | K164: 35000000 | L164: 0 | N164: 44822420 | Q164: 44822420 | R164: 35000000 | U164: 35000000
A165: ='Org structure'!A14 -> Vote 13 - Shared Services Department | C165: =SUM(C166:C172) -> 13259998 | D165: 159831342.4 | E165: 87409093.27 | F165: 115000000 | G165: 193306172 | H165: 193306172 | I165: 0 | J165: 278000000 | K165: 230000000 | L165: 141000000 | N165: =SUM(N166:N172) -> 118000000 | O165: 0 | P165: 0 | Q165: 118000000 | R165: 130000000 | S165: 0 | T165: 0 | U165: 130000000 | V165: 160000000 | W165: 100000000 | X165: 141000000
A166: ='Org structure'!E162 -> 13.1 - 001 - Tshwane Civic Centre | C166: 0 | D166: 0 | E166: 0 | F166: 0 | G166: 0 | H166: 0 | J166: =Q166+V166 -> 0 | K166: =U166+W166 -> 0 | L166: =X166 -> 0 | M166: Exclude | Q166: =SUM(N166:P166) -> 0 | U166: =SUM(R166:T166) -> 0
A167: ='Org structure'!E163 -> 13.2 - 008 - Information Services | C167: 4828210 | D167: 159831342.4 | E167: 87409093.27 | F167: 115000000 | G167: 123500000 | H167: 123500000 | J167: 168000000 | K167: 130000000 | L167: 141000000 | N167: 118000000 | Q167: 118000000 | R167: 130000000 | U167: 130000000 | V167: 50000000 | W167: 0 | X167: 141000000
A168: ='Org structure'!E164 -> 13.3 - 043 - Administrative Services | C168: 0 | D168: 0 | E168: 0 | F168: 0 | G168: 0 | H168: 0 | J168: 0 | K168: 0 | L168: 0 | M168: Exclude | Q168: 0 | U168: 0
A169: ='Org structure'!E165 -> 13.4 - 062 - Catering | C169: 8431788 | D169: 0 | E169: 0 | F169: 0 | G169: 0 | H169: 0 | J169: 0 | K169: 0 | L169: 0 | Q169: 0 | U169: 0
A170: ='Org structure'!E166 -> 13.5 - 067 - Property Services | C170: 0 | D170: 0 | E170: 0 | F170: 0 | G170: 0 | H170: 0 | J170: 0 | K170: 0 | L170: 0 | M170: Exclude | Q170: 0 | U170: 0
A171: ='Org structure'!E167 -> 13.6 - 071 - Corporate Management | C171: 0 | D171: 0 | E171: 0 | F171: 0 | G171: 0 | H171: 0 | J171: 0 | K171: 0 | L171: 0 | M171: Exclude | Q171: 0 | U171: 0
A172: ='Org structure'!E168 -> 13.7 - 073 - Mechanical Maintenance Bosman Street | C172: 0 | D172: 0 | E172: 0 | F172: 0 | G172: 69806172 | H172: 69806172 | J172: 110000000 | K172: 100000000 | L172: 0 | Q172: 0 | U172: 0 | V172: 110000000 | W172: 100000000
A173: ='Org structure'!A15 -> Vote 14 - Utility Services Department | C173: =SUM(C174:C189) -> 1663070065 | D173: 978955286.3 | E173: 915843890.8 | F173: 1457769446 | G173: 1403073238 | H173: 1403073238 | I173: 0 | J173: 1235964681 | K173: 1311467350 | L173: 1552681300 | N173: =SUM(N174:N189) -> 1383258651 | O173: 0 | P173: 0 | Q173: 1383258651 | R173: 1395850000 | S173: 0 | T173: 0 | U173: 1395850000 | V173: -147293970 | W173: -84382650 | X173: 1552681300
A174: ='Org structure'!E170 -> 14.1 - 109 - Electricity | C174: 35999998 | D174: 0 | E174: 0 | F174: 0 | G174: 0 | H174: 0 | J174: =Q174+V174 -> 0 | K174: =U174+W174 -> 0 | L174: =X174 -> 0 | Q174: =SUM(N174:P174) -> 0 | U174: 0
A175: ='Org structure'!E171 -> 14.2 - 110 - Electricity | C175: 0 | D175: 0 | E175: 0 | F175: 0 | G175: 0 | H175: 0 | J175: 15000000 | K175: 10000000 | L175: 500000 | Q175: 0 | U175: 0 | V175: 15000000 | W175: 10000000 | X175: 500000
A176: ='Org structure'!E172 -> 14.3 - 111 - Pretoria West Power Station | C176: 0 | D176: 0 | E176: 0 | F176: 0 | G176: 0 | H176: 0 | J176: 0 | K176: 0 | L176: 0 | M176: Exclude | Q176: 0 | U176: 0
A177: ='Org structure'!E173 -> 14.4 - 112 - Royal Power Station | C177: 0 | D177: 153256117.1 | E177: 0 | F177: 0 | G177: 0 | H177: 0 | J177: 7500000 | K177: 500000 | L177: 600000 | N177: 15000000 | Q177: 15000000 | R177: 10000000 | U177: 10000000 | V177: -7500000 | W177: -9500000 | X177: 600000
A178: ='Org structure'!E174 -> 14.5 - 113 - Primary Power Distribution | C178: 155162135 | D178: 0 | E178: 0 | F178: 0 | G178: 0 | H178: 0 | J178: =Q178+V178 -> 11813721 | K178: =U178+W178 -> 0 | L178: =X178 -> 49950000 | Q178: 0 | U178: 0 | V178: 11813721 | X178: 49950000
A179: ='Org structure'!E175 -> 14.6 - 116 - Electricity: Power System Operating | C179: 94184967 | D179: 56369448.58 | E179: 88851189.91 | F179: 86000000 | G179: 89000000 | H179: 89000000 | J179: 82500000 | K179: 107000000 | L179: 104500000 | N179: 82500000 | Q179: 82500000 | R179: 107000000 | U179: 107000000 | X179: 104500000
A180: ='Org structure'!E176 -> 14.7 - 118 - Electricity: Technical Support Services | C180: 20963384 | D180: 16794988.72 | E180: 24994926.14 | F180: 33000000 | G180: 19000000 | H180: 19000000 | J180: 68000000 | K180: 75000000 | L180: 40100000 | N180: 68000000 | Q180: 68000000 | R180: 75000000 | U180: 75000000 | X180: 40100000
A181: ='Org structure'!E177 -> 14.8 - 119 - Specialist Engineering | C181: 719954827 | D181: 265567182 | E181: 382800330.3 | F181: 868654020 | G181: 834729000 | H181: 834729000 | J181: 497712350 | K181: 429516350 | L181: 797975000 | N181: 481526071 | Q181: 481526071 | R181: 495500000 | U181: 495500000 | V181: 16186279 | W181: -65983650 | X181: 797975000
A182: ='Org structure'!E178 -> 14.9 - 030 - Waste Water Treatment | C182: 0 | D182: 11675307.6 | E182: 9644909.44 | F182: 107845000 | G182: 131104357 | H182: 131104357 | J182: 175000000 | K182: 277626018 | L182: 140000000 | N182: 220000000 | Q182: 220000000 | R182: 277626018 | U182: 277626018 | V182: -45000000 | X182: 140000000
A183: ='Org structure'!E179 -> 14.10 - 031 - Waste Water Collection | C183: 1408000 | D183: 326090790.2 | E183: 103209024.1 | F183: 34369554 | G183: 34369554 | H183: 34369554 | J183: 35000000 | K183: 69000000 | L183: 107056300 | N183: 75000000 | Q183: 75000000 | R183: 123000000 | U183: 123000000 | V183: -40000000 | W183: -54000000 | X183: 107056300
A184: ='Org structure'!E180 -> 14.11 - 136 - Water Supply | C184: 635396754 | D184: 135552021.4 | E184: 226977131.5 | F184: 257900872 | G184: 244870327 | H184: 244870327 | J184: 280500000 | K184: 267824982 | L184: 237000000 | N184: 366232580 | Q184: 366232580 | R184: 217723982 | U184: 217723982 | V184: -85732580 | W184: 50101000 | X184: 237000000
A185: ='Org structure'!E181 -> 14.12 - 137 - Management and Administration (Kungwini) | C185: 0 | D185: 0 | E185: 0 | F185: 0 | G185: 0 | H185: 0 | J185: 0 | K185: 0 | L185: 0 | M185: Exclude | Q185: 0 | U185: 0
A186: ='Org structure'!E182 -> 14.13 - 138 - Management and Administration (Nokeng) | C186: 0 | D186: 0 | E186: 0 | F186: 0 | G186: 0 | H186: 0 | J186: 0 | K186: 0 | L186: 0 | M186: Exclude | Q186: 0 | U186: 0
A187: ='Org structure'!E183 -> 14.14 - 139 - Management and Administration (Kungwini) | C187: 0 | D187: 0 | E187: 0 | F187: 0 | G187: 0 | H187: 0 | J187: 0 | K187: 0 | L187: 0 | M187: Exclude | Q187: 0 | U187: 0
A188: ='Org structure'!E184 -> 14.15 - 140 - Management and Administration (Nokeng) | C188: 0 | D188: 13649430.74 | E188: 79366379.47 | F188: 70000000 | G188: 50000000 | H188: 50000000 | J188: 62938610 | K188: 75000000 | L188: 75000000 | N188: 75000000 | Q188: 75000000 | R188: 90000000 | U188: 90000000 | V188: -12061390 | W188: -15000000 | X188: 75000000
A189: ='Org structure'!E185 -> 14.16 - 141 - Management and Administration (Metsweding) | C189: 0 | D189: 0 | E189: 0 | F189: 0 | G189: 0 | H189: 0 | J189: 0 | K189: 0 | L189: 0 | M189: Exclude | Q189: 0 | U189: 0
A190: ='Org structure'!A16 -> Vote 15 - Other Departments | C190: =SUM(C191:C199) -> 147213819 | D190: 52300782.17 | E190: 38775988.55 | F190: 54705000 | G190: 29100000 | H190: 29100000 | I190: 0 | J190: 22500000 | K190: 0 | L190: 3500000 | N190: =SUM(N191:N199) -> 300000 | O190: 0 | P190: 0 | Q190: 300000 | R190: 300000 | S190: 0 | T190: 0 | U190: 300000 | V190: 22200000 | W190: -300000 | X190: 3500000
A191: ='Org structure'!E187 -> 15.1 - City Manager Department | C191: 125232641 | D191: 48002376.29 | E191: 26045265.47 | F191: 22205000 | G191: 100000 | H191: 100000 | J191: =Q191+V191 -> 0 | K191: =U191+W191 -> 0 | L191: =X191 -> 0 | Q191: =SUM(N191:P191) -> 0 | U191: 0
A192: ='Org structure'!E188 -> 15.2 - City Strategy and Organisational Performance | C192: 0 | D192: 0 | E192: 0 | F192: 0 | G192: 0 | H192: 0 | J192: 0 | K192: 0 | L192: 0 | M192: Exclude | Q192: 0 | U192: 0
A193: ='Org structure'!E189 -> 15.3 - Customer Relations Management Department | C193: 1724878 | D193: 0 | E193: 11416696.81 | F193: 20100000 | G193: 16600000 | H193: 16600000 | J193: 0 | K193: 0 | L193: 3500000 | N193: 100000 | Q193: 100000 | R193: 100000 | U193: 100000 | V193: -100000 | W193: -100000 | X193: 3500000
A194: ='Org structure'!E190 -> 15.4 - Group Communication & Marketing Department | C194: 3999999.05 | D194: 0 | E194: 0 | F194: 4200000 | G194: 4200000 | H194: 4200000 | J194: 4000000 | K194: 0 | L194: 0 | N194: 0 | Q194: 0 | R194: 0 | U194: 0 | V194: 4000000 | X194: 0
A195: ='Org structure'!E191 -> 15.5 - Group Human Capital Management Department | C195: 0 | D195: 4298405.88 | E195: 940363.2 | F195: 8200000 | G195: 8200000 | H195: 8200000 | J195: 18500000 | K195: 0 | L195: 0 | N195: 200000 | Q195: 200000 | R195: 200000 | U195: 200000 | V195: 18300000 | W195: -200000 | X195: 0
A196: ='Org structure'!E192 -> 15.6 - Group Legal and Secretarial Service Department | C196: 3998852 | D196: 0 | E196: 0 | F196: 0 | G196: 0 | H196: 0 | J196: 0 | K196: 0 | L196: 0 | Q196: 0 | U196: 0
A197: ='Org structure'!E193 -> 15.7 - Office of the Chief Whip Department | C197: 4876725 | D197: 0 | E197: 0 | F197: 0 | G197: 0 | H197: 0 | J197: 0 | K197: 0 | L197: 0 | Q197: 0 | U197: 0
A198: ='Org structure'!E194 -> 15.8 - Office of the Executive Mayor Department | C198: 7380724 | D198: 0 | E198: 373663.07 | F198: 0 | G198: 0 | H198: 0 | J198: 0 | K198: 0 | L198: 0 | Q198: 0 | U198: 0
A199: ='Org structure'!E195 -> 15.9 - Office of the Speaker Department | C199: 0 | D199: 0 | E199: 0 | F199: 0 | G199: 0 | H199: 0 | J199: 0 | K199: 0 | L199: 0 | M199: Exclude | Q199: 0 | U199: 0
A200: Capital multi-year expenditure sub-total | C200: =C6+C16+C30+C38+C48+C52+C63+C70+C76+C85+C94+C156+C165+C173+C190 -> 3879955784 | D200: 3190856289 | E200: 3017978755 | F200: 4017365060 | G200: 4028037866 | H200: 4028037866 | I200: 0 | J200: 4215882501 | K200: 4543702833 | L200: 4648445118 | N200: =N6+N16+N30+N38+N48+N52+N63+N70+N76+N85+N94+N156+N165+N173+N190 -> 4050231837 | O200: 0 | P200: 0 | Q200: 4050231837 | R200: 4194914251 | S200: 0 | U200: =U6+U16+U30+U38+U48+U52+U63+U70+U76+U85+U94+U156+U165+U173+U190 -> 4194914251 | V200: =V6+V16+V30+V38+V48+V52+V63+V70+V76+V85+V94+V156+V165+V173+V190 -> 165650664 | W200: =W6+W16+W30+W38+W48+W52+W63+W70+W76+W85+W94+W156+W165+W173+W190 -> 348788582 | X200: =X6+X16+X30+X38+X48+X52+X63+X70+X76+X85+X94+X156+X165+X173+X190 -> 4648445118
... 198 more rows

Sheet A6-FinPos
A1: =muni&" - "&Approve6 -> TSH City Of Tshwane - Table A6 Consolidated Budgeted Financial Position
A2: =desc -> Description | B2: =head27 -> Ref | C2: =head1b -> 2015/16 | D2: =head1A -> 2016/17 | E2: =Head1 -> 2017/18 | F2: =Head2 -> Current Year 2018/19 | J2: =Head3 -> 2019/20 Medium Term Revenue & Expenditure Framework
A3: R thousand | C3: =Head5 -> Audited Outcome | D3: =Head5 -> Audited Outcome | E3: =Head5 -> Audited Outcome | F3: =Head6 -> Original Budget | G3: =Head7 -> Adjusted Budget | H3: =Head8 -> Full Year Forecast | I3: =Head5b -> Pre-audit outcome | J3: =Head9 -> Budget Year 2019/20 | K3: =Head10 -> Budget Year +1 2020/21 | L3: =Head11 -> Budget Year +2 2021/22
A4: ASSETS
A5: Current assets
A6: Cash | C6: 93910194 | D6: 447530497 | E6: 562495690 | F6: 552702387.9 | G6: 618745258.9 | H6: =+G6 -> 618745258.9 | J6: 680619784.9 | K6: 748681763.4 | L6: 823549939.7
A7: Call investment deposits | B7: 1 | C7: ='SA3'!C9 -> 1090829976 | D7: ='SA3'!D9 -> 1712536970 | E7: ='SA3'!E9 -> 2356562644 | F7: ='SA3'!F9 -> 2426062776 | G7: ='SA3'!G9 -> 2919198027 | H7: ='SA3'!H9 -> 2919198027 | I7: ='SA3'!I9 -> 0 | J7: ='SA3'!J9 -> 3676165770 | K7: ='SA3'!K9 -> 3998052366 | L7: ='SA3'!L9 -> 3570655142
A8: Consumer debtors | B8: 1 | C8: ='SA3'!C14 -> 6831501880 | D8: ='SA3'!D14 -> 3987606350 | E8: ='SA3'!E14 -> 4117378659 | F8: ='SA3'!F14 -> 5812009615 | G8: ='SA3'!G14 -> 4377339860 | H8: ='SA3'!H14 -> 4377339860 | I8: ='SA3'!I14 -> 0 | J8: ='SA3'!J14 -> 4648317558 | K8: ='SA3'!K14 -> 4903266572 | L8: ='SA3'!L14 -> 5141311190
A9: Other debtors | C9: 1094808786 | D9: 1503025396 | E9: 1414393187 | F9: 1499740852 | G9: 1489667786 | H9: =+G9 -> 1489667786 | J9: 1571599514 | K9: 1643893092 | L9: 1719512175
A10: Current portion of long-term receivables | C10: 95249478 | D10: 91005216 | E10: 601551326 | F10: 103341792 | G10: 120484011 | H10: 120484011 | J10: 130961235 | K10: 141727422 | L10: 153060476
A11: Inventory | B11: 2 | C11: 576917890 | D11: 692359396 | E11: 635565193 | F11: 837754871.6 | G11: 699121711.6 | H11: 699121711.6 | J11: 769033883.5 | K11: 845937271.9 | L11: 930530999.1
A12: Total current assets | C12: =SUM(C6:C11) -> 9783218204 | D12: 8434063825 | E12: 9687946699 | F12: 1.123161229e+10 | G12: 1.022455665e+10 | H12: 1.022455665e+10 | I12: 0 | J12: 1.147669775e+10 | K12: 1.228155849e+10 | L12: 1.233861992e+10
A14: Non current assets
A15: Long-term receivables | C15: 18825840 | D15: 54943077 | E15: 88333762 | F15: 27565489 | G15: 73818012 | H15: =+G15 -> 73818012 | J15: 79575822 | K15: 85360679 | L15: 91443145
A16: Investments | C16: 710520 | D16: 0 | E16: 0 | F16: 742047191.4 | G16: 406675988.4 | H16: 406675988.4 | J16: 506675988 | K16: 656675988 | L16: 906675988
A17: Investment property | C17: 772608569 | D17: 833694548 | E17: 828889079 | F17: 917747760 | G17: 879955453 | H17: 879955453 | J17: 934114342 | K17: 981295035 | L17: 1030883453
A18: Investment in Associate | C18: 0 | D18: 0 | E18: 0 | F18: 0 | G18: 0 | H18: 0 | J18: 0 | K18: 0 | L18: 0
A19: Property, plant and equipment | B19: 3 | C19: ='SA3'!C26 -> 35225918800 | D19: ='SA3'!D26 -> 38672515705 | E19: ='SA3'!E26 -> 40556704582 | F19: ='SA3'!F26 -> 4.075553901e+10 | G19: ='SA3'!G26 -> 4.236914892e+10 | H19: ='SA3'!H26 -> 4.236914892e+10 | I19: ='SA3'!I26 -> 0 | J19: ='SA3'!J26 -> 4.449017614e+10 | K19: ='SA3'!K26 -> 4.685288062e+10 | L19: ='SA3'!L26 -> 4.920019817e+10
A21: Biological | C21: 0 | D21: 0 | E21: 0 | F21: 0 | G21: 0 | H21: =+G21 -> 0 | J21: 0 | K21: 0 | L21: 0
A22: Intangible | C22: 408178322 | D22: 416205518 | E22: 390137806 | F22: 387292959 | G22: 380575650 | H22: 380575650 | J22: 373785186.6 | K22: 363115483.6 | L22: 353946008.6
A23: Other non-current assets | C23: 3913905816 | D23: 0 | E23: 0 | F23: 0 | G23: 0 | H23: 0 | J23: 0 | K23: 0 | L23: 0
A24: Total non current assets | C24: =SUM(C15:C19)+SUM(C21:C23) -> 40340147867 | D24: =SUM(D15:D19)+SUM(D21:D23) -> 39977358848 | E24: 41864065229 | F24: 4.28301924e+10 | G24: 4.411017403e+10 | H24: 4.411017403e+10 | I24: 0 | J24: 4.638432748e+10 | K24: 4.893932781e+10 | L24: 5.158314676e+10
A25: TOTAL ASSETS | C25: =C12+C24 -> 50123366071 | D25: =D12+D24 -> 48411422673 | E25: =E12+E24 -> 51552011928 | F25: =F12+F24 -> 5.40618047e+10 | G25: 5.433473068e+10 | H25: 5.433473068e+10 | I25: 0 | J25: 5.786102522e+10 | K25: 6.12208863e+10 | L25: 6.392176669e+10
A27: LIABILITIES
A28: Current liabilities
A29: Bank overdraft | B29: 1 | C29: 0 | D29: 0 | E29: 0 | F29: 0 | G29: 0 | H29: =+G29 -> 0 | J29: 0 | K29: 0 | L29: 0
A30: Borrowing | B30: 4 | C30: ='SA3'!C32 -> 732845615 | D30: ='SA3'!D32 -> 1128003527 | E30: ='SA3'!E32 -> 1126652652 | F30: ='SA3'!F32 -> 1559731086 | G30: ='SA3'!G32 -> 1294614295 | H30: ='SA3'!H32 -> 1294614295 | I30: ='SA3'!I32 -> 0 | J30: ='SA3'!J32 -> 1494675457 | K30: ='SA3'!K32 -> 1743230283 | L30: ='SA3'!L32 -> 1940965074
A31: Consumer deposits | C31: 379915638 | D31: 411345192 | E31: 516053782 | F31: 427963538 | G31: 526374857.6 | H31: =+G31 -> 526374857.6 | J31: 536902354.8 | K31: 547640401.9 | L31: 558593209.9
A32: Trade and other payables | B32: 4 | C32: ='SA3'!C39 -> 8457400010 | D32: ='SA3'!D39 -> 9436465212 | E32: ='SA3'!E39 -> 10181272863 | F32: ='SA3'!F39 -> 9258896213 | G32: ='SA3'!G39 -> 10116260117 | H32: ='SA3'!H39 -> 10116260117 | I32: ='SA3'!I39 -> 0 | J32: ='SA3'!J39 -> 1.020660947e+10 | K32: ='SA3'!K39 -> 1.063258821e+10 | L32: ='SA3'!L39 -> 1.110512002e+10
A33: Provisions | C33: 0 | D33: 0 | E33: 0 | F33: 0 | G33: 0 | H33: =+G33 -> 0 | J33: 0 | K33: 0 | L33: 0
A34: Total current liabilities | C34: =SUM(C29:C33) -> 9570161263 | D34: 10975813931 | E34: 1.18239793e+10 | F34: 1.124659084e+10 | G34: 1.193724927e+10 | H34: 1.193724927e+10 | I34: 0 | J34: 1.223818729e+10 | K34: 1.29234589e+10 | L34: 1.360467831e+10
A36: Non current liabilities
A37: Borrowing | C37: ='SA3'!C44 -> 11028235589 | D37: ='SA3'!D44 -> 12148282758 | E37: ='SA3'!E44 -> 1.199576601e+10 | F37: ='SA3'!F44 -> 11369708433 | G37: ='SA3'!G44 -> 11111739144 | H37: ='SA3'!H44 -> 11111739144 | I37: ='SA3'!I44 -> 0 | J37: ='SA3'!J44 -> 1.12633668e+10 | K37: ='SA3'!K44 -> 1.10978652e+10 | L37: ='SA3'!L44 -> 1.076640707e+10
A38: Provisions | C38: ='SA3'!C51 -> 3189220411 | D38: ='SA3'!D51 -> 2632698713 | E38: ='SA3'!E51 -> 2615305473 | F38: ='SA3'!F51 -> 3620494501 | G38: ='SA3'!G51 -> 2583002036 | H38: ='SA3'!H51 -> 2583002036 | I38: ='SA3'!I51 -> 0 | J38: ='SA3'!J51 -> 2872148563 | K38: ='SA3'!K51 -> 3155533805 | L38: ='SA3'!L51 -> 3462025427
A39: Total non current liabilities | C39: =SUM(C37:C38) -> 14217456000 | D39: =SUM(D37:D38) -> 14780981471 | E39: =SUM(E37:E38) -> 1.461107148e+10 | F39: =SUM(F37:F38) -> 14990202934 | G39: 1.369474118e+10 | H39: 1.369474118e+10 | I39: 0 | J39: 1.413551536e+10 | K39: =SUM(K37:K38) -> 1.4253399e+10 | L39: 1.42284325e+10
A40: TOTAL LIABILITIES | C40: =C34+C39 -> 23787617263 | D40: =D34+D39 -> 25756795402 | E40: =E34+E39 -> 26435050779 | F40: =F34+F39 -> 2.623679377e+10 | G40: 2.563199045e+10 | H40: 2.563199045e+10 | I40: 0 | J40: 2.637370265e+10 | K40: =K34+K39 -> 2.71768579e+10 | L40: 2.78331108e+10
A42: NET ASSETS | B42: 5 | C42: =C25-C40 -> 26335748808 | D42: 22654627271 | E42: 25116961149 | F42: 2.782501093e+10 | G42: 2.870274023e+10 | H42: 2.870274023e+10 | I42: 0 | J42: 3.148732257e+10 | K42: 3.404402839e+10 | L42: 3.608865588e+10
A44: COMMUNITY WEALTH/EQUITY
A45: Accumulated Surplus/(Deficit) | C45: 19406023720 | D45: 22423824303 | E45: 2.487757154e+10 | F45: 2.756631828e+10 | G45: 2.846169694e+10 | H45: =+G45 -> 2.846169694e+10 | J45: 3.064939519e+10 | K45: 3.318021669e+10 | L45: 3.51982089e+10
A46: Reserves | B46: 4 | C46: ='SA3'!C70 -> 257008612 | D46: ='SA3'!D70 -> 230802968 | E46: ='SA3'!E70 -> 239389596 | F46: ='SA3'!F70 -> 258692652 | G46: ='SA3'!G70 -> 241043293 | H46: ='SA3'!H70 -> 241043293 | I46: ='SA3'!I70 -> 0 | J46: ='SA3'!J70 -> 242730064 | K46: ='SA3'!K70 -> 244450570.4 | L46: ='SA3'!L70 -> 246205486.9
A48: TOTAL COMMUNITY WEALTH/EQUITY | B48: 5 | C48: =SUM(C45:C46) -> 19663032332 | D48: =SUM(D45:D46) -> 22654627271 | E48: 2.511696114e+10 | F48: 2.782501093e+10 | G48: 2.870274023e+10 | H48: 2.870274023e+10 | I48: 0 | J48: 3.089212526e+10 | K48: 3.342466726e+10 | L48: 3.544441439e+10
A49: =head27a -> References
A50: 1. Detail to be provided in Table SA3
A51: 2. Include completed low cost housing to be transferred to beneficiaries within 12 months
A52: 3. Include 'Construction-work-in-progress' (disclosed separately in annual financial statements)
A53: 4. Detail to be provided in Table SA3. Includes reserves to be funded by statute.
A54: 5. Net assets must balance with Total Community Wealth/Equity
A55: check balance | C55: =IF((C42-C48)=0,0,"Unbalanced") -> Unbalanced | D55: =IF((D42-D48)=0,0,"Unbalanced") -> 0 | E55: Unbalanced | F55: Unbalanced | G55: Unbalanced | H55: Unbalanced | I55: 0 | J55: Unbalanced | K55: Unbalanced | L55: Unbalanced
A71: Test | C71: =IF(C25<>C40,"Unbalanced",0) -> Unbalanced | D71: =IF(D25<>D40,"Unbalanced",0) -> Unbalanced | E71: Unbalanced | F71: Unbalanced | G71: Unbalanced | H71: Unbalanced | I71: 0 | J71: Unbalanced | K71: Unbalanced | L71: Unbalanced

Sheet A7-CFlow
A1: =muni&" - "&Approve7 -> TSH City Of Tshwane - Table A7 Consolidated Budgeted Cash Flows
A2: =desc -> Description | B2: =head27 -> Ref | C2: =head1b -> 2015/16 | D2: =head1A -> 2016/17 | E2: =Head1 -> 2017/18 | F2: =Head2 -> Current Year 2018/19 | J2: =Head3 -> 2019/20 Medium Term Revenue & Expenditure Framework
A3: R thousand | C3: =Head5 -> Audited Outcome | D3: =Head5 -> Audited Outcome | E3: =Head5 -> Audited Outcome | F3: =Head6 -> Original Budget | G3: =Head7 -> Adjusted Budget | H3: =Head8 -> Full Year Forecast | I3: =Head5b -> Pre-audit outcome | J3: =Head9 -> Budget Year 2019/20 | K3: =Head10 -> Budget Year +1 2020/21 | L3: =Head11 -> Budget Year +2 2021/22
A4: CASH FLOW FROM OPERATING ACTIVITIES
A5: Receipts
A6: Property rates | C6: 5360554242 | D6: 5912583707 | E6: 6197408434 | F6: 6491991459 | G6: 6676899758 | H6: =+G6 -> 6676899758 | J6: ='SA30'!N5 -> 7041062979 | K6: ='SA30'!O5 -> 7421280380 | L6: ='SA30'!P5 -> 7905242601
A7: Service charges | C7: 14588796049 | D7: 14386069277 | E7: 1.617906285e+10 | F7: 1.799122122e+10 | G7: 1.833010022e+10 | H7: =+G7 -> 1.833010022e+10 | J7: ='SA30'!N6+'SA30'!N7+'SA30'!N8+'SA30'!N9 -> 2.011310627e+10 | K7: ='SA30'!O6+'SA30'!O7+'SA30'!O8+'SA30'!O9 -> 2.168624742e+10 | L7: ='SA30'!P6+'SA30'!P7+'SA30'!P8+'SA30'!P9 -> 2.236628672e+10
A8: Other revenue | C8: 837575876.1 | D8: 2664511745 | E8: 2296579247 | F8: 1500317641 | G8: 1490032124 | H8: 1490032124 | J8: ='SA30'!N11+'SA30'!N13+'SA30'!N15+'SA30'!N16+'SA30'!N17+'SA30'!N19 -> 1574695691 | K8: ='SA30'!O11+'SA30'!O13+'SA30'!O15+'SA30'!O16+'SA30'!O17+'SA30'!O19 -> 1673375212 | L8: ='SA30'!P11+'SA30'!P13+'SA30'!P15+'SA30'!P16+'SA30'!P17+'SA30'!P19 -> 1777917575
A9: Government - operating | B9: 1 | C9: 3516826178 | D9: 3980677184 | E9: 4320824281 | F9: 4440080940 | G9: 4736593938 | H9: 4736593938 | J9: ='SA30'!N18 -> 4789483640 | K9: ='SA30'!O18 -> 5043649070 | L9: ='SA30'!P18 -> 5180984880
A10: Government - capital | B10: 1 | C10: 2452210170 | D10: 2378837580 | E10: 2368845285 | F10: 2206735060 | G10: 2272795267 | H10: 2272795267 | J10: ='SA30'!N23 -> 2353272510 | K10: ='SA30'!O23 -> 2356403334 | L10: ='SA30'!P23 -> 2694003588
A11: Interest | C11: 463280797 | D11: 105993848 | E11: 205582045 | F11: 133342209.7 | G11: 177982585 | H11: 177982585 | J11: ='SA30'!N12 -> 186887427.2 | K11: ='SA30'!O12 -> 197151316.6 | L11: ='SA30'!P12 -> 207970466.1
